Workbook

Sheet التكويد
A1: الكود | B1: اللون | C1: الوصف | D1: المقاس | E1: اللون | F1: رصيد اول كيلو | G1: رصيد اول متر | H1: رصيد اول قطع | I1: وارد كيلو | J1: وارد متر | K1: وارد قطع | L1: منصرف كيلو | M1: منصرف متر | N1: منصرف قطع | O1: مرتجع كيلو | P1: مرتجع متر | Q1: مرتجع قطع | R1: رصيد اخر كيلو | S1: رصيد اخر متر | T1: رصيد اخر قطع | X1: 100 | AJ1: الكود
A2: 1 | B2: ابيض | C2: كروشيه | D2: 3سم | E2: =B2&" "&C2&" "&D2 -> ابيض كروشيه 3سم | F2: 1596.8 | I2: =SUMIF(الوارد!$D$2:$D$5853,E2,الوارد!$E$2:$E$5853) -> 9425.75 | J2: =SUMIF(الوارد!$D$2:$D$5853,E2,الوارد!$G$2:$G$5853) -> 0 | K2: =SUMIF(الوارد!$D$2:$D$5853,E2,الوارد!$H$2:$H$5853) -> 0 | L2: =SUMIF(المنصرف!$D$2:$D$4677,E2,المنصرف!$E$2:$E$4677) -> 10403.34 | M2: =SUMIF(المنصرف!$D$2:$D$4677,E2,المنصرف!$G$2:$G$4677) -> 0 | N2: =SUMIF(المنصرف!$D$2:$D$4677,E2,المنصرف!$H$2:$H$4677) -> 0 | O2: =SUMIF(المرتجع!$D$2:$D$789,E2,المرتجع!$E$2:$E$789) -> 0 | P2: =SUMIF(المرتجع!$D$2:$D$789,E2,المرتجع!$G$2:$G$789) -> 0 | Q2: =SUMIF(المرتجع!$D$2:$D$789,E2,المرتجع!$H$2:$H$789) -> 0 | R2: =F2+I2+O2-L2 -> 619.21 | S2: =G2+J2+P2-M2 -> 0 | T2: =H2+K2+Q2-N2 -> 0 | AA2: 5 | AG2: =IFERROR(VLOOKUP(ROWS($AG$1:AG3),$AI$2:$AJ$932,2,0),"") -> 15 | AH2: =OFFSET($AG$2,,COUNTIF($AG$2:AG932,"?*")) -> 15 | AI2: =IF(ISNUMBER(SEARCH($AL$2,AJ2)),MAX($AI$1:AI1)+1,0) -> 1 | AJ2: 5
A3: 2 | B3: رصاصى | C3: كروشيه | D3: 3سم | E3: رصاصى كروشيه 3سم | F3: 162.3 | I3: =SUMIF(الوارد!$D$2:$D$5853,E3,الوارد!$E$2:$E$5853) -> 0 | J3: =SUMIF(الوارد!$D$2:$D$5853,E3,الوارد!$G$2:$G$5853) -> 0 | K3: =SUMIF(الوارد!$D$2:$D$5853,E3,الوارد!$H$2:$H$5853) -> 0 | L3: =SUMIF(المنصرف!$D$2:$D$4677,E3,المنصرف!$E$2:$E$4677) -> 0 | M3: =SUMIF(المنصرف!$D$2:$D$4677,E3,المنصرف!$G$2:$G$4677) -> 0 | N3: =SUMIF(المنصرف!$D$2:$D$4677,E3,المنصرف!$H$2:$H$4677) -> 0 | O3: =SUMIF(المرتجع!$D$2:$D$789,E3,المرتجع!$E$2:$E$789) -> 0 | P3: =SUMIF(المرتجع!$D$2:$D$789,E3,المرتجع!$G$2:$G$789) -> 0 | Q3: =SUMIF(المرتجع!$D$2:$D$789,E3,المرتجع!$H$2:$H$789) -> 0 | R3: 162.3 | S3: 0 | T3: 0 | AA3: 10 | AG3: =IFERROR(VLOOKUP(ROWS($AG$2:AG3),$AI$2:$AJ$932,2,0),"") -> 10 | AI3: =IF(ISNUMBER(SEARCH($AL$2,AJ3)),MAX($AI$1:AI2)+1,0) -> 2 | AJ3: 10
A4: 3 | B4: احمر | C4: كورد قطن | D4: 125سم | E4: احمر كورد قطن 125سم | I4: =SUMIF(الوارد!$D$2:$D$5853,E4,الوارد!$E$2:$E$5853) -> 138.07 | J4: =SUMIF(الوارد!$D$2:$D$5853,E4,الوارد!$G$2:$G$5853) -> 14193.75 | K4: =SUMIF(الوارد!$D$2:$D$5853,E4,الوارد!$H$2:$H$5853) -> 0 | L4: =SUMIF(المنصرف!$D$2:$D$4677,E4,المنصرف!$E$2:$E$4677) -> 138.07 | M4: =SUMIF(المنصرف!$D$2:$D$4677,E4,المنصرف!$G$2:$G$4677) -> 14193.75 | N4: =SUMIF(المنصرف!$D$2:$D$4677,E4,المنصرف!$H$2:$H$4677) -> 0 | O4: =SUMIF(المرتجع!$D$2:$D$789,E4,المرتجع!$E$2:$E$789) -> 0 | P4: =SUMIF(المرتجع!$D$2:$D$789,E4,المرتجع!$G$2:$G$789) -> 0 | Q4: =SUMIF(المرتجع!$D$2:$D$789,E4,المرتجع!$H$2:$H$789) -> 0 | R4: 0 | S4: 0 | T4: 0 | AA4: 15 | AG4: =IFERROR(VLOOKUP(ROWS($AG$2:AG4),$AI$2:$AJ$932,2,0),"") -> 15 | AI4: =IF(ISNUMBER(SEARCH($AL$2,AJ4)),MAX($AI$1:AI3)+1,0) -> 3 | AJ4: 15
A5: 4 | B5: ابيض | C5: كروشيه | D5: 1.5سم | E5: ابيض كروشيه 1.5سم | F5: =887.1-3109.19+300 -> -1922.09 | I5: =SUMIF(الوارد!$D$2:$D$5853,E5,الوارد!$E$2:$E$5853) -> 5109.51 | J5: =SUMIF(الوارد!$D$2:$D$5853,E5,الوارد!$G$2:$G$5853) -> 0 | K5: =SUMIF(الوارد!$D$2:$D$5853,E5,الوارد!$H$2:$H$5853) -> 0 | L5: =SUMIF(المنصرف!$D$2:$D$4677,E5,المنصرف!$E$2:$E$4677) -> 2888.2 | M5: =SUMIF(المنصرف!$D$2:$D$4677,E5,المنصرف!$G$2:$G$4677) -> 0 | N5: =SUMIF(المنصرف!$D$2:$D$4677,E5,المنصرف!$H$2:$H$4677) -> 0 | O5: =SUMIF(المرتجع!$D$2:$D$789,E5,المرتجع!$E$2:$E$789) -> 0 | P5: =SUMIF(المرتجع!$D$2:$D$789,E5,المرتجع!$G$2:$G$789) -> 0 | Q5: =SUMIF(المرتجع!$D$2:$D$789,E5,المرتجع!$H$2:$H$789) -> 0 | R5: 299.22 | S5: 0 | T5: 0 | AA5: 20 | AG5: =IFERROR(VLOOKUP(ROWS($AG$2:AG5),$AI$2:$AJ$932,2,0),"") -> 20 | AI5: =IF(ISNUMBER(SEARCH($AL$2,AJ5)),MAX($AI$1:AI4)+1,0) -> 4 | AJ5: 20
A6: 5 | B6: اسود | C6: كروشيه | D6: 1.5سم | E6: اسود كروشيه 1.5سم | F6: =278.49+135.24 -> 413.73 | I6: =SUMIF(الوارد!$D$2:$D$5853,E6,الوارد!$E$2:$E$5853) -> 116.71 | J6: =SUMIF(الوارد!$D$2:$D$5853,E6,الوارد!$G$2:$G$5853) -> 0 | K6: =SUMIF(الوارد!$D$2:$D$5853,E6,الوارد!$H$2:$H$5853) -> 0 | L6: =SUMIF(المنصرف!$D$2:$D$4677,E6,المنصرف!$E$2:$E$4677) -> 168.08 | M6: =SUMIF(المنصرف!$D$2:$D$4677,E6,المنصرف!$G$2:$G$4677) -> 0 | N6: =SUMIF(المنصرف!$D$2:$D$4677,E6,المنصرف!$H$2:$H$4677) -> 0 | O6: =SUMIF(المرتجع!$D$2:$D$789,E6,المرتجع!$E$2:$E$789) -> 0 | P6: =SUMIF(المرتجع!$D$2:$D$789,E6,المرتجع!$G$2:$G$789) -> 0 | Q6: =SUMIF(المرتجع!$D$2:$D$789,E6,المرتجع!$H$2:$H$789) -> 0 | R6: 362.36 | S6: 0 | T6: 0 | AA6: 25 | AG6: =IFERROR(VLOOKUP(ROWS($AG$2:AG6),$AI$2:$AJ$932,2,0),"") -> 25 | AI6: =IF(ISNUMBER(SEARCH($AL$2,AJ6)),MAX($AI$1:AI5)+1,0) -> 5 | AJ6: 25
A7: 6 | B7: ابيض | C7: كروشيه | D7: 4سم | E7: ابيض كروشيه 4سم | F7: =1453.32+2461.67-450+397.37+673 -> 4535.36 | I7: =SUMIF(الوارد!$D$2:$D$5853,E7,الوارد!$E$2:$E$5853) -> 21674.28 | J7: =SUMIF(الوارد!$D$2:$D$5853,E7,الوارد!$G$2:$G$5853) -> 0 | K7: =SUMIF(الوارد!$D$2:$D$5853,E7,الوارد!$H$2:$H$5853) -> 0 | L7: =SUMIF(المنصرف!$D$2:$D$4677,E7,المنصرف!$E$2:$E$4677) -> 25518.2 | M7: =SUMIF(المنصرف!$D$2:$D$4677,E7,المنصرف!$G$2:$G$4677) -> 0 | N7: =SUMIF(المنصرف!$D$2:$D$4677,E7,المنصرف!$H$2:$H$4677) -> 0 | O7: =SUMIF(المرتجع!$D$2:$D$789,E7,المرتجع!$E$2:$E$789) -> 0 | P7: =SUMIF(المرتجع!$D$2:$D$789,E7,المرتجع!$G$2:$G$789) -> 0 | Q7: =SUMIF(المرتجع!$D$2:$D$789,E7,المرتجع!$H$2:$H$789) -> 0 | R7: 691.44 | S7: 0 | T7: 0 | AA7: 30 | AG7: =IFERROR(VLOOKUP(ROWS($AG$2:AG7),$AI$2:$AJ$932,2,0),"") -> 30 | AI7: =IF(ISNUMBER(SEARCH($AL$2,AJ7)),MAX($AI$1:AI6)+1,0) -> 6 | AJ7: 30
A8: 7 | B8: اسود | C8: كروشيه | D8: 4سم | E8: اسود كروشيه 4سم | F8: =675.19-633.89+18.3 -> 59.6 | I8: =SUMIF(الوارد!$D$2:$D$5853,E8,الوارد!$E$2:$E$5853) -> 17140.53 | J8: =SUMIF(الوارد!$D$2:$D$5853,E8,الوارد!$G$2:$G$5853) -> 0 | K8: =SUMIF(الوارد!$D$2:$D$5853,E8,الوارد!$H$2:$H$5853) -> 0 | L8: =SUMIF(المنصرف!$D$2:$D$4677,E8,المنصرف!$E$2:$E$4677) -> 16686.77 | M8: =SUMIF(المنصرف!$D$2:$D$4677,E8,المنصرف!$G$2:$G$4677) -> 0 | N8: =SUMIF(المنصرف!$D$2:$D$4677,E8,المنصرف!$H$2:$H$4677) -> 0 | O8: =SUMIF(المرتجع!$D$2:$D$789,E8,المرتجع!$E$2:$E$789) -> 0 | P8: =SUMIF(المرتجع!$D$2:$D$789,E8,المرتجع!$G$2:$G$789) -> 0 | Q8: =SUMIF(المرتجع!$D$2:$D$789,E8,المرتجع!$H$2:$H$789) -> 0 | R8: 513.36 | S8: 0 | T8: 0 | AA8: 35 | AG8: =IFERROR(VLOOKUP(ROWS($AG$2:AG8),$AI$2:$AJ$932,2,0),"") -> 35 | AI8: =IF(ISNUMBER(SEARCH($AL$2,AJ8)),MAX($AI$1:AI7)+1,0) -> 7 | AJ8: 35
A9: 8 | B9: ابيض | C9: كروشيه | D9: 4.5سم | E9: ابيض كروشيه 4.5سم | F9: =1007.94-403.11 -> 604.83 | I9: =SUMIF(الوارد!$D$2:$D$5853,E9,الوارد!$E$2:$E$5853) -> 5629.3 | J9: =SUMIF(الوارد!$D$2:$D$5853,E9,الوارد!$G$2:$G$5853) -> 0 | K9: =SUMIF(الوارد!$D$2:$D$5853,E9,الوارد!$H$2:$H$5853) -> 0 | L9: =SUMIF(المنصرف!$D$2:$D$4677,E9,المنصرف!$E$2:$E$4677) -> 5479.62 | M9: =SUMIF(المنصرف!$D$2:$D$4677,E9,المنصرف!$G$2:$G$4677) -> 0 | N9: =SUMIF(المنصرف!$D$2:$D$4677,E9,المنصرف!$H$2:$H$4677) -> 0 | O9: =SUMIF(المرتجع!$D$2:$D$789,E9,المرتجع!$E$2:$E$789) -> 0 | P9: =SUMIF(المرتجع!$D$2:$D$789,E9,المرتجع!$G$2:$G$789) -> 0 | Q9: =SUMIF(المرتجع!$D$2:$D$789,E9,المرتجع!$H$2:$H$789) -> 0 | R9: 754.51 | S9: 0 | T9: 0 | AA9: 40 | AG9: =IFERROR(VLOOKUP(ROWS($AG$2:AG9),$AI$2:$AJ$932,2,0),"") -> 40 | AI9: =IF(ISNUMBER(SEARCH($AL$2,AJ9)),MAX($AI$1:AI8)+1,0) -> 8 | AJ9: 40
A10: 9 | B10: اسود | C10: كروشيه | D10: 4.5سم | E10: اسود كروشيه 4.5سم | F10: =2161.97+302.83+70.5+450 -> 2985.3 | I10: =SUMIF(الوارد!$D$2:$D$5853,E10,الوارد!$E$2:$E$5853) -> 5476.64 | J10: =SUMIF(الوارد!$D$2:$D$5853,E10,الوارد!$G$2:$G$5853) -> 0 | K10: =SUMIF(الوارد!$D$2:$D$5853,E10,الوارد!$H$2:$H$5853) -> 0 | L10: =SUMIF(المنصرف!$D$2:$D$4677,E10,المنصرف!$E$2:$E$4677) -> 8025.69 | M10: =SUMIF(المنصرف!$D$2:$D$4677,E10,المنصرف!$G$2:$G$4677) -> 0 | N10: =SUMIF(المنصرف!$D$2:$D$4677,E10,المنصرف!$H$2:$H$4677) -> 0 | O10: =SUMIF(المرتجع!$D$2:$D$789,E10,المرتجع!$E$2:$E$789) -> 0 | P10: =SUMIF(المرتجع!$D$2:$D$789,E10,المرتجع!$G$2:$G$789) -> 0 | Q10: =SUMIF(المرتجع!$D$2:$D$789,E10,المرتجع!$H$2:$H$789) -> 0 | R10: 436.25 | S10: 0 | T10: 0 | AA10: 45 | AG10: =IFERROR(VLOOKUP(ROWS($AG$2:AG10),$AI$2:$AJ$932,2,0),"") -> 45 | AI10: =IF(ISNUMBER(SEARCH($AL$2,AJ10)),MAX($AI$1:AI9)+1,0) -> 9 | AJ10: 45
A11: 10 | B11: ابيض | C11: كروشيه | D11: 3.5سم | E11: ابيض كروشيه 3.5سم | F11: =1353.8+100 -> 1453.8 | I11: =SUMIF(الوارد!$D$2:$D$5853,E11,الوارد!$E$2:$E$5853) -> 11502.22 | J11: =SUMIF(الوارد!$D$2:$D$5853,E11,الوارد!$G$2:$G$5853) -> 0 | K11: =SUMIF(الوارد!$D$2:$D$5853,E11,الوارد!$H$2:$H$5853) -> 0 | L11: =SUMIF(المنصرف!$D$2:$D$4677,E11,المنصرف!$E$2:$E$4677) -> 12233.74 | M11: =SUMIF(المنصرف!$D$2:$D$4677,E11,المنصرف!$G$2:$G$4677) -> 0 | N11: =SUMIF(المنصرف!$D$2:$D$4677,E11,المنصرف!$H$2:$H$4677) -> 0 | O11: =SUMIF(المرتجع!$D$2:$D$789,E11,المرتجع!$E$2:$E$789) -> 46.1 | P11: =SUMIF(المرتجع!$D$2:$D$789,E11,المرتجع!$G$2:$G$789) -> 0 | Q11: =SUMIF(المرتجع!$D$2:$D$789,E11,المرتجع!$H$2:$H$789) -> 0 | R11: 768.38 | S11: 0 | T11: 0 | AA11: 50 | AG11: =IFERROR(VLOOKUP(ROWS($AG$2:AG11),$AI$2:$AJ$932,2,0),"") -> 50 | AI11: =IF(ISNUMBER(SEARCH($AL$2,AJ11)),MAX($AI$1:AI10)+1,0) -> 10 | AJ11: 50
A12: 11 | B12: اسود | C12: كروشيه | D12: 3.5سم | E12: اسود كروشيه 3.5سم | F12: 549.4 | I12: =SUMIF(الوارد!$D$2:$D$5853,E12,الوارد!$E$2:$E$5853) -> 2772.95 | J12: =SUMIF(الوارد!$D$2:$D$5853,E12,الوارد!$G$2:$G$5853) -> 0 | K12: =SUMIF(الوارد!$D$2:$D$5853,E12,الوارد!$H$2:$H$5853) -> 0 | L12: =SUMIF(المنصرف!$D$2:$D$4677,E12,المنصرف!$E$2:$E$4677) -> 2769.69 | M12: =SUMIF(المنصرف!$D$2:$D$4677,E12,المنصرف!$G$2:$G$4677) -> 0 | N12: =SUMIF(المنصرف!$D$2:$D$4677,E12,المنصرف!$H$2:$H$4677) -> 0 | O12: =SUMIF(المرتجع!$D$2:$D$789,E12,المرتجع!$E$2:$E$789) -> 0 | P12: =SUMIF(المرتجع!$D$2:$D$789,E12,المرتجع!$G$2:$G$789) -> 0 | Q12: =SUMIF(المرتجع!$D$2:$D$789,E12,المرتجع!$H$2:$H$789) -> 0 | R12: 552.66 | S12: 0 | T12: 0 | AA12: 55 | AG12: =IFERROR(VLOOKUP(ROWS($AG$2:AG12),$AI$2:$AJ$932,2,0),"") -> 55 | AI12: =IF(ISNUMBER(SEARCH($AL$2,AJ12)),MAX($AI$1:AI11)+1,0) -> 11 | AJ12: 55
A13: 12 | B13: اسود | C13: كروشيه | D13: 6.4سم | E13: اسود كروشيه 6.4سم | F13: 17.11 | I13: =SUMIF(الوارد!$D$2:$D$5853,E13,الوارد!$E$2:$E$5853) -> 431.55 | J13: =SUMIF(الوارد!$D$2:$D$5853,E13,الوارد!$G$2:$G$5853) -> 0 | K13: =SUMIF(الوارد!$D$2:$D$5853,E13,الوارد!$H$2:$H$5853) -> 0 | L13: =SUMIF(المنصرف!$D$2:$D$4677,E13,المنصرف!$E$2:$E$4677) -> 363.38 | M13: =SUMIF(المنصرف!$D$2:$D$4677,E13,المنصرف!$G$2:$G$4677) -> 0 | N13: =SUMIF(المنصرف!$D$2:$D$4677,E13,المنصرف!$H$2:$H$4677) -> 0 | O13: =SUMIF(المرتجع!$D$2:$D$789,E13,المرتجع!$E$2:$E$789) -> 0 | P13: =SUMIF(المرتجع!$D$2:$D$789,E13,المرتجع!$G$2:$G$789) -> 0 | Q13: =SUMIF(المرتجع!$D$2:$D$789,E13,المرتجع!$H$2:$H$789) -> 0 | R13: 85.28 | S13: 0 | T13: 0 | AA13: 60 | AG13: =IFERROR(VLOOKUP(ROWS($AG$2:AG13),$AI$2:$AJ$932,2,0),"") -> 60 | AI13: =IF(ISNUMBER(SEARCH($AL$2,AJ13)),MAX($AI$1:AI12)+1,0) -> 12 | AJ13: 60
A14: 13 | B14: ابيض | C14: كروشيه | D14: 5مم | E14: ابيض كروشيه 5مم | F14: =177.19+65+163.16 -> 405.35 | I14: =SUMIF(الوارد!$D$2:$D$5853,E14,الوارد!$E$2:$E$5853) -> 113.29 | J14: =SUMIF(الوارد!$D$2:$D$5853,E14,الوارد!$G$2:$G$5853) -> 0 | K14: =SUMIF(الوارد!$D$2:$D$5853,E14,الوارد!$H$2:$H$5853) -> 0 | L14: =SUMIF(المنصرف!$D$2:$D$4677,E14,المنصرف!$E$2:$E$4677) -> 434.29 | M14: =SUMIF(المنصرف!$D$2:$D$4677,E14,المنصرف!$G$2:$G$4677) -> 0 | N14: =SUMIF(المنصرف!$D$2:$D$4677,E14,المنصرف!$H$2:$H$4677) -> 0 | O14: =SUMIF(المرتجع!$D$2:$D$789,E14,المرتجع!$E$2:$E$789) -> 0 | P14: =SUMIF(المرتجع!$D$2:$D$789,E14,المرتجع!$G$2:$G$789) -> 0 | Q14: =SUMIF(المرتجع!$D$2:$D$789,E14,المرتجع!$H$2:$H$789) -> 0 | R14: 84.35 | S14: 0 | T14: 0 | AA14: 65 | AG14: =IFERROR(VLOOKUP(ROWS($AG$2:AG14),$AI$2:$AJ$932,2,0),"") -> 65 | AI14: =IF(ISNUMBER(SEARCH($AL$2,AJ14)),MAX($AI$1:AI13)+1,0) -> 13 | AJ14: 65
A15: 14 | B15: ابيض | C15: كروشيه | D15: 6مم | E15: ابيض كروشيه 6مم | I15: =SUMIF(الوارد!$D$2:$D$5853,E15,الوارد!$E$2:$E$5853) -> 0 | J15: =SUMIF(الوارد!$D$2:$D$5853,E15,الوارد!$G$2:$G$5853) -> 0 | K15: =SUMIF(الوارد!$D$2:$D$5853,E15,الوارد!$H$2:$H$5853) -> 0 | L15: =SUMIF(المنصرف!$D$2:$D$4677,E15,المنصرف!$E$2:$E$4677) -> 0 | M15: =SUMIF(المنصرف!$D$2:$D$4677,E15,المنصرف!$G$2:$G$4677) -> 0 | N15: =SUMIF(المنصرف!$D$2:$D$4677,E15,المنصرف!$H$2:$H$4677) -> 0 | O15: =SUMIF(المرتجع!$D$2:$D$789,E15,المرتجع!$E$2:$E$789) -> 0 | P15: =SUMIF(المرتجع!$D$2:$D$789,E15,المرتجع!$G$2:$G$789) -> 0 | Q15: =SUMIF(المرتجع!$D$2:$D$789,E15,المرتجع!$H$2:$H$789) -> 0 | R15: 0 | S15: 0 | T15: 0 | AA15: 70 | AG15: =IFERROR(VLOOKUP(ROWS($AG$2:AG15),$AI$2:$AJ$932,2,0),"") -> 70 | AI15: =IF(ISNUMBER(SEARCH($AL$2,AJ15)),MAX($AI$1:AI14)+1,0) -> 14 | AJ15: 70
A16: 15 | B16: اسود | C16: كروشيه | D16: 6مم | E16: اسود كروشيه 6مم | F16: 74.18 | I16: =SUMIF(الوارد!$D$2:$D$5853,E16,الوارد!$E$2:$E$5853) -> 0 | J16: =SUMIF(الوارد!$D$2:$D$5853,E16,الوارد!$G$2:$G$5853) -> 0 | K16: =SUMIF(الوارد!$D$2:$D$5853,E16,الوارد!$H$2:$H$5853) -> 0 | L16: =SUMIF(المنصرف!$D$2:$D$4677,E16,المنصرف!$E$2:$E$4677) -> 0 | M16: =SUMIF(المنصرف!$D$2:$D$4677,E16,المنصرف!$G$2:$G$4677) -> 0 | N16: =SUMIF(المنصرف!$D$2:$D$4677,E16,المنصرف!$H$2:$H$4677) -> 0 | O16: =SUMIF(المرتجع!$D$2:$D$789,E16,المرتجع!$E$2:$E$789) -> 0 | P16: =SUMIF(المرتجع!$D$2:$D$789,E16,المرتجع!$G$2:$G$789) -> 0 | Q16: =SUMIF(المرتجع!$D$2:$D$789,E16,المرتجع!$H$2:$H$789) -> 0 | R16: 74.18 | S16: 0 | T16: 0 | AA16: 75 | AG16: =IFERROR(VLOOKUP(ROWS($AG$2:AG16),$AI$2:$AJ$932,2,0),"") -> 75 | AI16: =IF(ISNUMBER(SEARCH($AL$2,AJ16)),MAX($AI$1:AI15)+1,0) -> 15 | AJ16: 75
A17: 16 | B17: ابيض | C17: كروشيه | D17: 7مم | E17: ابيض كروشيه 7مم | F17: 216.19 | I17: =SUMIF(الوارد!$D$2:$D$5853,E17,الوارد!$E$2:$E$5853) -> 267.49 | J17: =SUMIF(الوارد!$D$2:$D$5853,E17,الوارد!$G$2:$G$5853) -> 0 | K17: =SUMIF(الوارد!$D$2:$D$5853,E17,الوارد!$H$2:$H$5853) -> 0 | L17: =SUMIF(المنصرف!$D$2:$D$4677,E17,المنصرف!$E$2:$E$4677) -> 243.89 | M17: =SUMIF(المنصرف!$D$2:$D$4677,E17,المنصرف!$G$2:$G$4677) -> 0 | N17: =SUMIF(المنصرف!$D$2:$D$4677,E17,المنصرف!$H$2:$H$4677) -> 0 | O17: =SUMIF(المرتجع!$D$2:$D$789,E17,المرتجع!$E$2:$E$789) -> 0 | P17: =SUMIF(المرتجع!$D$2:$D$789,E17,المرتجع!$G$2:$G$789) -> 0 | Q17: =SUMIF(المرتجع!$D$2:$D$789,E17,المرتجع!$H$2:$H$789) -> 0 | R17: 239.79 | S17: 0 | T17: 0 | AA17: 80 | AG17: =IFERROR(VLOOKUP(ROWS($AG$2:AG17),$AI$2:$AJ$932,2,0),"") -> 80 | AI17: =IF(ISNUMBER(SEARCH($AL$2,AJ17)),MAX($AI$1:AI16)+1,0) -> 16 | AJ17: 80
A18: 17 | B18: اسود | C18: كروشيه | D18: 7مم | E18: اسود كروشيه 7مم | F18: 74.17 | I18: =SUMIF(الوارد!$D$2:$D$5853,E18,الوارد!$E$2:$E$5853) -> 0 | J18: =SUMIF(الوارد!$D$2:$D$5853,E18,الوارد!$G$2:$G$5853) -> 0 | K18: =SUMIF(الوارد!$D$2:$D$5853,E18,الوارد!$H$2:$H$5853) -> 0 | L18: =SUMIF(المنصرف!$D$2:$D$4677,E18,المنصرف!$E$2:$E$4677) -> 0 | M18: =SUMIF(المنصرف!$D$2:$D$4677,E18,المنصرف!$G$2:$G$4677) -> 0 | N18: =SUMIF(المنصرف!$D$2:$D$4677,E18,المنصرف!$H$2:$H$4677) -> 0 | O18: =SUMIF(المرتجع!$D$2:$D$789,E18,المرتجع!$E$2:$E$789) -> 0 | P18: =SUMIF(المرتجع!$D$2:$D$789,E18,المرتجع!$G$2:$G$789) -> 0 | Q18: =SUMIF(المرتجع!$D$2:$D$789,E18,المرتجع!$H$2:$H$789) -> 0 | R18: 74.17 | S18: 0 | T18: 0 | AA18: 85 | AG18: =IFERROR(VLOOKUP(ROWS($AG$2:AG18),$AI$2:$AJ$932,2,0),"") -> 85 | AI18: =IF(ISNUMBER(SEARCH($AL$2,AJ18)),MAX($AI$1:AI17)+1,0) -> 17 | AJ18: 85
A19: 18 | B19: ابيض | C19: كروشيه | D19: 8مم | E19: ابيض كروشيه 8مم | F19: =109.18+1.06 -> 110.24 | I19: =SUMIF(الوارد!$D$2:$D$5853,E19,الوارد!$E$2:$E$5853) -> 53.76 | J19: =SUMIF(الوارد!$D$2:$D$5853,E19,الوارد!$G$2:$G$5853) -> 0 | K19: =SUMIF(الوارد!$D$2:$D$5853,E19,الوارد!$H$2:$H$5853) -> 0 | L19: =SUMIF(المنصرف!$D$2:$D$4677,E19,المنصرف!$E$2:$E$4677) -> 164 | M19: =SUMIF(المنصرف!$D$2:$D$4677,E19,المنصرف!$G$2:$G$4677) -> 0 | N19: =SUMIF(المنصرف!$D$2:$D$4677,E19,المنصرف!$H$2:$H$4677) -> 0 | O19: =SUMIF(المرتجع!$D$2:$D$789,E19,المرتجع!$E$2:$E$789) -> 0 | P19: =SUMIF(المرتجع!$D$2:$D$789,E19,المرتجع!$G$2:$G$789) -> 0 | Q19: =SUMIF(المرتجع!$D$2:$D$789,E19,المرتجع!$H$2:$H$789) -> 0 | R19: 0 | S19: 0 | T19: 0 | AA19: 90 | AG19: =IFERROR(VLOOKUP(ROWS($AG$2:AG19),$AI$2:$AJ$932,2,0),"") -> 90 | AI19: =IF(ISNUMBER(SEARCH($AL$2,AJ19)),MAX($AI$1:AI18)+1,0) -> 18 | AJ19: 90
A20: 19 | B20: ابيض | C20: كروشيه | D20: 7.5سم | E20: ابيض كروشيه 7.5سم | F20: 13.62 | I20: =SUMIF(الوارد!$D$2:$D$5853,E20,الوارد!$E$2:$E$5853) -> 0 | J20: =SUMIF(الوارد!$D$2:$D$5853,E20,الوارد!$G$2:$G$5853) -> 0 | K20: =SUMIF(الوارد!$D$2:$D$5853,E20,الوارد!$H$2:$H$5853) -> 0 | L20: =SUMIF(المنصرف!$D$2:$D$4677,E20,المنصرف!$E$2:$E$4677) -> 0 | M20: =SUMIF(المنصرف!$D$2:$D$4677,E20,المنصرف!$G$2:$G$4677) -> 0 | N20: =SUMIF(المنصرف!$D$2:$D$4677,E20,المنصرف!$H$2:$H$4677) -> 0 | O20: =SUMIF(المرتجع!$D$2:$D$789,E20,المرتجع!$E$2:$E$789) -> 0 | P20: =SUMIF(المرتجع!$D$2:$D$789,E20,المرتجع!$G$2:$G$789) -> 0 | Q20: =SUMIF(المرتجع!$D$2:$D$789,E20,المرتجع!$H$2:$H$789) -> 0 | R20: 13.62 | S20: 0 | T20: 0 | AA20: 95 | AG20: =IFERROR(VLOOKUP(ROWS($AG$2:AG20),$AI$2:$AJ$932,2,0),"") -> 95 | AI20: =IF(ISNUMBER(SEARCH($AL$2,AJ20)),MAX($AI$1:AI19)+1,0) -> 19 | AJ20: 95
A21: 20 | B21: ابيض | C21: كروشيه | D21: 1سم | E21: =B21&" "&C21&" "&D21 -> ابيض كروشيه 1سم | F21: 663.25 | I21: =SUMIF(الوارد!$D$2:$D$5853,E21,الوارد!$E$2:$E$5853) -> 570.78 | J21: =SUMIF(الوارد!$D$2:$D$5853,E21,الوارد!$G$2:$G$5853) -> 0 | K21: =SUMIF(الوارد!$D$2:$D$5853,E21,الوارد!$H$2:$H$5853) -> 0 | L21: =SUMIF(المنصرف!$D$2:$D$4677,E21,المنصرف!$E$2:$E$4677) -> 556.07 | M21: =SUMIF(المنصرف!$D$2:$D$4677,E21,المنصرف!$G$2:$G$4677) -> 0 | N21: =SUMIF(المنصرف!$D$2:$D$4677,E21,المنصرف!$H$2:$H$4677) -> 0 | O21: =SUMIF(المرتجع!$D$2:$D$789,E21,المرتجع!$E$2:$E$789) -> 0 | P21: =SUMIF(المرتجع!$D$2:$D$789,E21,المرتجع!$G$2:$G$789) -> 0 | Q21: =SUMIF(المرتجع!$D$2:$D$789,E21,المرتجع!$H$2:$H$789) -> 0 | R21: =F21+I21+O21-L21 -> 677.96 | S21: =G21+J21+P21-M21 -> 0 | T21: =H21+K21+Q21-N21 -> 0 | AA21: 100 | AG21: =IFERROR(VLOOKUP(ROWS($AG$2:AG21),$AI$2:$AJ$932,2,0),"") -> 100 | AI21: =IF(ISNUMBER(SEARCH($AL$2,AJ21)),MAX($AI$1:AI20)+1,0) -> 20 | AJ21: 100
A22: 21 | B22: ابيض | C22: كروشيه | D22: 1.2سم | E22: ابيض كروشيه 1.2سم | F22: =871.41-311.33 -> 560.08 | I22: =SUMIF(الوارد!$D$2:$D$5853,E22,الوارد!$E$2:$E$5853) -> 39.92 | J22: =SUMIF(الوارد!$D$2:$D$5853,E22,الوارد!$G$2:$G$5853) -> 0 | K22: =SUMIF(الوارد!$D$2:$D$5853,E22,الوارد!$H$2:$H$5853) -> 0 | L22: =SUMIF(المنصرف!$D$2:$D$4677,E22,المنصرف!$E$2:$E$4677) -> 0 | M22: =SUMIF(المنصرف!$D$2:$D$4677,E22,المنصرف!$G$2:$G$4677) -> 0 | N22: =SUMIF(المنصرف!$D$2:$D$4677,E22,المنصرف!$H$2:$H$4677) -> 0 | O22: =SUMIF(المرتجع!$D$2:$D$789,E22,المرتجع!$E$2:$E$789) -> 0 | P22: =SUMIF(المرتجع!$D$2:$D$789,E22,المرتجع!$G$2:$G$789) -> 0 | Q22: =SUMIF(المرتجع!$D$2:$D$789,E22,المرتجع!$H$2:$H$789) -> 0 | R22: 600 | S22: 0 | T22: 0 | AA22: 105 | AG22: =IFERROR(VLOOKUP(ROWS($AG$2:AG22),$AI$2:$AJ$932,2,0),"") -> 105 | AI22: =IF(ISNUMBER(SEARCH($AL$2,AJ22)),MAX($AI$1:AI21)+1,0) -> 21 | AJ22: 105
A23: 22 | B23: اسود | C23: كروشيه | D23: 1.3سم | E23: اسود كروشيه 1.3سم | F23: 302 | I23: =SUMIF(الوارد!$D$2:$D$5853,E23,الوارد!$E$2:$E$5853) -> 73.86 | J23: =SUMIF(الوارد!$D$2:$D$5853,E23,الوارد!$G$2:$G$5853) -> 0 | K23: =SUMIF(الوارد!$D$2:$D$5853,E23,الوارد!$H$2:$H$5853) -> 0 | L23: =SUMIF(المنصرف!$D$2:$D$4677,E23,المنصرف!$E$2:$E$4677) -> 0 | M23: =SUMIF(المنصرف!$D$2:$D$4677,E23,المنصرف!$G$2:$G$4677) -> 0 | N23: =SUMIF(المنصرف!$D$2:$D$4677,E23,المنصرف!$H$2:$H$4677) -> 0 | O23: =SUMIF(المرتجع!$D$2:$D$789,E23,المرتجع!$E$2:$E$789) -> 0 | P23: =SUMIF(المرتجع!$D$2:$D$789,E23,المرتجع!$G$2:$G$789) -> 0 | Q23: =SUMIF(المرتجع!$D$2:$D$789,E23,المرتجع!$H$2:$H$789) -> 0 | R23: 375.86 | S23: 0 | T23: 0 | AA23: 110 | AG23: =IFERROR(VLOOKUP(ROWS($AG$2:AG23),$AI$2:$AJ$932,2,0),"") -> 110 | AI23: =IF(ISNUMBER(SEARCH($AL$2,AJ23)),MAX($AI$1:AI22)+1,0) -> 22 | AJ23: 110
A24: 23 | B24: اسود | C24: كروشيه | D24: 3سم | E24: اسود كروشيه 3سم | F24: =207.06+263.84+378.92 -> 849.82 | I24: =SUMIF(الوارد!$D$2:$D$5853,E24,الوارد!$E$2:$E$5853) -> 6980.67 | J24: =SUMIF(الوارد!$D$2:$D$5853,E24,الوارد!$G$2:$G$5853) -> 0 | K24: =SUMIF(الوارد!$D$2:$D$5853,E24,الوارد!$H$2:$H$5853) -> 0 | L24: =SUMIF(المنصرف!$D$2:$D$4677,E24,المنصرف!$E$2:$E$4677) -> 7608.42 | M24: =SUMIF(المنصرف!$D$2:$D$4677,E24,المنصرف!$G$2:$G$4677) -> 0 | N24: =SUMIF(المنصرف!$D$2:$D$4677,E24,المنصرف!$H$2:$H$4677) -> 0 | O24: =SUMIF(المرتجع!$D$2:$D$789,E24,المرتجع!$E$2:$E$789) -> 0 | P24: =SUMIF(المرتجع!$D$2:$D$789,E24,المرتجع!$G$2:$G$789) -> 0 | Q24: =SUMIF(المرتجع!$D$2:$D$789,E24,المرتجع!$H$2:$H$789) -> 0 | R24: 222.07 | S24: 0 | T24: 0 | AA24: 115 | AG24: =IFERROR(VLOOKUP(ROWS($AG$2:AG24),$AI$2:$AJ$932,2,0),"") -> 115 | AI24: =IF(ISNUMBER(SEARCH($AL$2,AJ24)),MAX($AI$1:AI23)+1,0) -> 23 | AJ24: 115
A25: 24 | B25: ابيض | C25: كروشيه | D25: 8سم | E25: ابيض كروشيه 8سم | F25: 6.81 | I25: =SUMIF(الوارد!$D$2:$D$5853,E25,الوارد!$E$2:$E$5853) -> 0 | J25: =SUMIF(الوارد!$D$2:$D$5853,E25,الوارد!$G$2:$G$5853) -> 0 | K25: =SUMIF(الوارد!$D$2:$D$5853,E25,الوارد!$H$2:$H$5853) -> 0 | L25: =SUMIF(المنصرف!$D$2:$D$4677,E25,المنصرف!$E$2:$E$4677) -> 0 | M25: =SUMIF(المنصرف!$D$2:$D$4677,E25,المنصرف!$G$2:$G$4677) -> 0 | N25: =SUMIF(المنصرف!$D$2:$D$4677,E25,المنصرف!$H$2:$H$4677) -> 0 | O25: =SUMIF(المرتجع!$D$2:$D$789,E25,المرتجع!$E$2:$E$789) -> 0 | P25: =SUMIF(المرتجع!$D$2:$D$789,E25,المرتجع!$G$2:$G$789) -> 0 | Q25: =SUMIF(المرتجع!$D$2:$D$789,E25,المرتجع!$H$2:$H$789) -> 0 | R25: 6.81 | S25: 0 | T25: 0 | AG25: =IFERROR(VLOOKUP(ROWS($AG$2:AG25),$AI$2:$AJ$932,2,0),"") -> 180 | AI25: =IF(ISNUMBER(SEARCH($AL$2,AJ25)),MAX($AI$1:AI24)+1,0) -> 0
A26: 25 | B26: ابيض | C26: كروشيه | D26: 7سم | E26: ابيض كروشيه 7سم | F26: 90.94 | I26: =SUMIF(الوارد!$D$2:$D$5853,E26,الوارد!$E$2:$E$5853) -> 0 | J26: =SUMIF(الوارد!$D$2:$D$5853,E26,الوارد!$G$2:$G$5853) -> 0 | K26: =SUMIF(الوارد!$D$2:$D$5853,E26,الوارد!$H$2:$H$5853) -> 0 | L26: =SUMIF(المنصرف!$D$2:$D$4677,E26,المنصرف!$E$2:$E$4677) -> 0 | M26: =SUMIF(المنصرف!$D$2:$D$4677,E26,المنصرف!$G$2:$G$4677) -> 0 | N26: =SUMIF(المنصرف!$D$2:$D$4677,E26,المنصرف!$H$2:$H$4677) -> 0 | O26: =SUMIF(المرتجع!$D$2:$D$789,E26,المرتجع!$E$2:$E$789) -> 0 | P26: =SUMIF(المرتجع!$D$2:$D$789,E26,المرتجع!$G$2:$G$789) -> 0 | Q26: =SUMIF(المرتجع!$D$2:$D$789,E26,المرتجع!$H$2:$H$789) -> 0 | R26: 90.94 | S26: 0 | T26: 0 | AA26: 180 | AG26: =IFERROR(VLOOKUP(ROWS($AG$2:AG26),$AI$2:$AJ$932,2,0),"") -> 185 | AI26: =IF(ISNUMBER(SEARCH($AL$2,AJ26)),MAX($AI$1:AI25)+1,0) -> 24 | AJ26: 180
A27: 26 | B27: ابيض | C27: كروشيه | D27: 6سم | E27: ابيض كروشيه 6سم | F27: 149.47 | I27: =SUMIF(الوارد!$D$2:$D$5853,E27,الوارد!$E$2:$E$5853) -> 163.97 | J27: =SUMIF(الوارد!$D$2:$D$5853,E27,الوارد!$G$2:$G$5853) -> 0 | K27: =SUMIF(الوارد!$D$2:$D$5853,E27,الوارد!$H$2:$H$5853) -> 0 | L27: =SUMIF(المنصرف!$D$2:$D$4677,E27,المنصرف!$E$2:$E$4677) -> 156.74 | M27: =SUMIF(المنصرف!$D$2:$D$4677,E27,المنصرف!$G$2:$G$4677) -> 0 | N27: =SUMIF(المنصرف!$D$2:$D$4677,E27,المنصرف!$H$2:$H$4677) -> 0 | O27: =SUMIF(المرتجع!$D$2:$D$789,E27,المرتجع!$E$2:$E$789) -> 0 | P27: =SUMIF(المرتجع!$D$2:$D$789,E27,المرتجع!$G$2:$G$789) -> 0 | Q27: =SUMIF(المرتجع!$D$2:$D$789,E27,المرتجع!$H$2:$H$789) -> 0 | R27: 156.7 | S27: 0 | T27: 0 | AA27: 185 | AG27: =IFERROR(VLOOKUP(ROWS($AG$2:AG27),$AI$2:$AJ$932,2,0),"") -> 190 | AI27: =IF(ISNUMBER(SEARCH($AL$2,AJ27)),MAX($AI$1:AI26)+1,0) -> 25 | AJ27: 185
A28: 27 | B28: اسود | C28: كروشيه | D28: 6.5سم | E28: اسود كروشيه 6.5سم | F28: 12.51 | I28: =SUMIF(الوارد!$D$2:$D$5853,E28,الوارد!$E$2:$E$5853) -> 0 | J28: =SUMIF(الوارد!$D$2:$D$5853,E28,الوارد!$G$2:$G$5853) -> 0 | K28: =SUMIF(الوارد!$D$2:$D$5853,E28,الوارد!$H$2:$H$5853) -> 0 | L28: =SUMIF(المنصرف!$D$2:$D$4677,E28,المنصرف!$E$2:$E$4677) -> 0 | M28: =SUMIF(المنصرف!$D$2:$D$4677,E28,المنصرف!$G$2:$G$4677) -> 0 | N28: =SUMIF(المنصرف!$D$2:$D$4677,E28,المنصرف!$H$2:$H$4677) -> 0 | O28: =SUMIF(المرتجع!$D$2:$D$789,E28,المرتجع!$E$2:$E$789) -> 0 | P28: =SUMIF(المرتجع!$D$2:$D$789,E28,المرتجع!$G$2:$G$789) -> 0 | Q28: =SUMIF(المرتجع!$D$2:$D$789,E28,المرتجع!$H$2:$H$789) -> 0 | R28: 12.51 | S28: 0 | T28: 0 | AA28: 190 | AG28: =IFERROR(VLOOKUP(ROWS($AG$2:AG28),$AI$2:$AJ$932,2,0),"") -> 195 | AI28: =IF(ISNUMBER(SEARCH($AL$2,AJ28)),MAX($AI$1:AI27)+1,0) -> 26 | AJ28: 190
A29: 28 | B29: اسود | C29: كروشيه | D29: 5.5سم | E29: اسود كروشيه 5.5سم | F29: 1432.03 | I29: =SUMIF(الوارد!$D$2:$D$5853,E29,الوارد!$E$2:$E$5853) -> 302.8 | J29: =SUMIF(الوارد!$D$2:$D$5853,E29,الوارد!$G$2:$G$5853) -> 0 | K29: =SUMIF(الوارد!$D$2:$D$5853,E29,الوارد!$H$2:$H$5853) -> 0 | L29: =SUMIF(المنصرف!$D$2:$D$4677,E29,المنصرف!$E$2:$E$4677) -> 1405.91 | M29: =SUMIF(المنصرف!$D$2:$D$4677,E29,المنصرف!$G$2:$G$4677) -> 0 | N29: =SUMIF(المنصرف!$D$2:$D$4677,E29,المنصرف!$H$2:$H$4677) -> 0 | O29: =SUMIF(المرتجع!$D$2:$D$789,E29,المرتجع!$E$2:$E$789) -> 0 | P29: =SUMIF(المرتجع!$D$2:$D$789,E29,المرتجع!$G$2:$G$789) -> 0 | Q29: =SUMIF(المرتجع!$D$2:$D$789,E29,المرتجع!$H$2:$H$789) -> 0 | R29: 328.92 | S29: 0 | T29: 0 | AA29: 195 | AG29: =IFERROR(VLOOKUP(ROWS($AG$2:AG29),$AI$2:$AJ$932,2,0),"") -> 200 | AI29: =IF(ISNUMBER(SEARCH($AL$2,AJ29)),MAX($AI$1:AI28)+1,0) -> 27 | AJ29: 195
A30: 29 | B30: ابيض | C30: كروشيه | D30: 6.5سم | E30: ابيض كروشيه 6.5سم | F30: =117*9.22 -> 1078.74 | I30: =SUMIF(الوارد!$D$2:$D$5853,E30,الوارد!$E$2:$E$5853) -> 4.41 | J30: =SUMIF(الوارد!$D$2:$D$5853,E30,الوارد!$G$2:$G$5853) -> 0 | K30: =SUMIF(الوارد!$D$2:$D$5853,E30,الوارد!$H$2:$H$5853) -> 0 | L30: =SUMIF(المنصرف!$D$2:$D$4677,E30,المنصرف!$E$2:$E$4677) -> 0 | M30: =SUMIF(المنصرف!$D$2:$D$4677,E30,المنصرف!$G$2:$G$4677) -> 0 | N30: =SUMIF(المنصرف!$D$2:$D$4677,E30,المنصرف!$H$2:$H$4677) -> 0 | O30: =SUMIF(المرتجع!$D$2:$D$789,E30,المرتجع!$E$2:$E$789) -> 0 | P30: =SUMIF(المرتجع!$D$2:$D$789,E30,المرتجع!$G$2:$G$789) -> 0 | Q30: =SUMIF(المرتجع!$D$2:$D$789,E30,المرتجع!$H$2:$H$789) -> 0 | R30: 1083.15 | S30: 0 | T30: 0 | AA30: 200 | AG30: =IFERROR(VLOOKUP(ROWS($AG$2:AG30),$AI$2:$AJ$932,2,0),"") -> 205 | AI30: =IF(ISNUMBER(SEARCH($AL$2,AJ30)),MAX($AI$1:AI29)+1,0) -> 28 | AJ30: 200
A31: 30 | B31: اسود | C31: كروشيه | D31: 1سم | E31: اسود كروشيه 1سم | F31: =301.48-9 -> 292.48 | I31: =SUMIF(الوارد!$D$2:$D$5853,E31,الوارد!$E$2:$E$5853) -> 75.63 | J31: =SUMIF(الوارد!$D$2:$D$5853,E31,الوارد!$G$2:$G$5853) -> 0 | K31: =SUMIF(الوارد!$D$2:$D$5853,E31,الوارد!$H$2:$H$5853) -> 0 | L31: =SUMIF(المنصرف!$D$2:$D$4677,E31,المنصرف!$E$2:$E$4677) -> 117.82 | M31: =SUMIF(المنصرف!$D$2:$D$4677,E31,المنصرف!$G$2:$G$4677) -> 0 | N31: =SUMIF(المنصرف!$D$2:$D$4677,E31,المنصرف!$H$2:$H$4677) -> 0 | O31: =SUMIF(المرتجع!$D$2:$D$789,E31,المرتجع!$E$2:$E$789) -> 0 | P31: =SUMIF(المرتجع!$D$2:$D$789,E31,المرتجع!$G$2:$G$789) -> 0 | Q31: =SUMIF(المرتجع!$D$2:$D$789,E31,المرتجع!$H$2:$H$789) -> 0 | R31: 250.29 | S31: 0 | T31: 0 | AA31: 205 | AG31: =IFERROR(VLOOKUP(ROWS($AG$2:AG31),$AI$2:$AJ$932,2,0),"") -> 210 | AI31: =IF(ISNUMBER(SEARCH($AL$2,AJ31)),MAX($AI$1:AI30)+1,0) -> 29 | AJ31: 205
A32: 31 | B32: اسود | C32: كروشيه | D32: 6سم | E32: اسود كروشيه 6سم | I32: =SUMIF(الوارد!$D$2:$D$5853,E32,الوارد!$E$2:$E$5853) -> 154.25 | J32: =SUMIF(الوارد!$D$2:$D$5853,E32,الوارد!$G$2:$G$5853) -> 0 | K32: =SUMIF(الوارد!$D$2:$D$5853,E32,الوارد!$H$2:$H$5853) -> 0 | L32: =SUMIF(المنصرف!$D$2:$D$4677,E32,المنصرف!$E$2:$E$4677) -> 138.3 | M32: =SUMIF(المنصرف!$D$2:$D$4677,E32,المنصرف!$G$2:$G$4677) -> 0 | N32: =SUMIF(المنصرف!$D$2:$D$4677,E32,المنصرف!$H$2:$H$4677) -> 0 | O32: =SUMIF(المرتجع!$D$2:$D$789,E32,المرتجع!$E$2:$E$789) -> 0 | P32: =SUMIF(المرتجع!$D$2:$D$789,E32,المرتجع!$G$2:$G$789) -> 0 | Q32: =SUMIF(المرتجع!$D$2:$D$789,E32,المرتجع!$H$2:$H$789) -> 0 | R32: 15.95 | S32: 0 | T32: 0 | AA32: 210 | AG32: =IFERROR(VLOOKUP(ROWS($AG$2:AG32),$AI$2:$AJ$932,2,0),"") -> 215 | AI32: =IF(ISNUMBER(SEARCH($AL$2,AJ32)),MAX($AI$1:AI31)+1,0) -> 30 | AJ32: 210
A33: 32 | B33: ابيض | C33: كروشيه | D33: 2.5سم | E33: ابيض كروشيه 2.5سم | F33: =857.84-170+150 -> 837.84 | I33: =SUMIF(الوارد!$D$2:$D$5853,E33,الوارد!$E$2:$E$5853) -> 3835.51 | J33: =SUMIF(الوارد!$D$2:$D$5853,E33,الوارد!$G$2:$G$5853) -> 0 | K33: =SUMIF(الوارد!$D$2:$D$5853,E33,الوارد!$H$2:$H$5853) -> 0 | L33: =SUMIF(المنصرف!$D$2:$D$4677,E33,المنصرف!$E$2:$E$4677) -> 4387.83 | M33: =SUMIF(المنصرف!$D$2:$D$4677,E33,المنصرف!$G$2:$G$4677) -> 0 | N33: =SUMIF(المنصرف!$D$2:$D$4677,E33,المنصرف!$H$2:$H$4677) -> 0 | O33: =SUMIF(المرتجع!$D$2:$D$789,E33,المرتجع!$E$2:$E$789) -> 0 | P33: =SUMIF(المرتجع!$D$2:$D$789,E33,المرتجع!$G$2:$G$789) -> 0 | Q33: =SUMIF(المرتجع!$D$2:$D$789,E33,المرتجع!$H$2:$H$789) -> 0 | R33: 285.52 | S33: 0 | T33: 0 | AA33: 215 | AG33: =IFERROR(VLOOKUP(ROWS($AG$2:AG33),$AI$2:$AJ$932,2,0),"") -> 220 | AI33: =IF(ISNUMBER(SEARCH($AL$2,AJ33)),MAX($AI$1:AI32)+1,0) -> 31 | AJ33: 215
A34: 33 | B34: ابيض | C34: كروشيه | D34: 5.7سم | E34: ابيض كروشيه 5.7سم | F34: 88.53 | I34: =SUMIF(الوارد!$D$2:$D$5853,E34,الوارد!$E$2:$E$5853) -> 0 | J34: =SUMIF(الوارد!$D$2:$D$5853,E34,الوارد!$G$2:$G$5853) -> 0 | K34: =SUMIF(الوارد!$D$2:$D$5853,E34,الوارد!$H$2:$H$5853) -> 0 | L34: =SUMIF(المنصرف!$D$2:$D$4677,E34,المنصرف!$E$2:$E$4677) -> 0 | M34: =SUMIF(المنصرف!$D$2:$D$4677,E34,المنصرف!$G$2:$G$4677) -> 0 | N34: =SUMIF(المنصرف!$D$2:$D$4677,E34,المنصرف!$H$2:$H$4677) -> 0 | O34: =SUMIF(المرتجع!$D$2:$D$789,E34,المرتجع!$E$2:$E$789) -> 0 | P34: =SUMIF(المرتجع!$D$2:$D$789,E34,المرتجع!$G$2:$G$789) -> 0 | Q34: =SUMIF(المرتجع!$D$2:$D$789,E34,المرتجع!$H$2:$H$789) -> 0 | R34: 88.53 | S34: 0 | T34: 0 | AA34: 220 | AG34: =IFERROR(VLOOKUP(ROWS($AG$2:AG34),$AI$2:$AJ$932,2,0),"") -> 225 | AI34: =IF(ISNUMBER(SEARCH($AL$2,AJ34)),MAX($AI$1:AI33)+1,0) -> 32 | AJ34: 220
A35: 34 | B35: اسود | C35: كروشيه | D35: 4مم | E35: اسود كروشيه 4مم | F35: 178.46 | I35: =SUMIF(الوارد!$D$2:$D$5853,E35,الوارد!$E$2:$E$5853) -> 0 | J35: =SUMIF(الوارد!$D$2:$D$5853,E35,الوارد!$G$2:$G$5853) -> 0 | K35: =SUMIF(الوارد!$D$2:$D$5853,E35,الوارد!$H$2:$H$5853) -> 0 | L35: =SUMIF(المنصرف!$D$2:$D$4677,E35,المنصرف!$E$2:$E$4677) -> 5 | M35: =SUMIF(المنصرف!$D$2:$D$4677,E35,المنصرف!$G$2:$G$4677) -> 0 | N35: =SUMIF(المنصرف!$D$2:$D$4677,E35,المنصرف!$H$2:$H$4677) -> 0 | O35: =SUMIF(المرتجع!$D$2:$D$789,E35,المرتجع!$E$2:$E$789) -> 0 | P35: =SUMIF(المرتجع!$D$2:$D$789,E35,المرتجع!$G$2:$G$789) -> 0 | Q35: =SUMIF(المرتجع!$D$2:$D$789,E35,المرتجع!$H$2:$H$789) -> 0 | R35: 173.46 | S35: 0 | T35: 0 | AA35: 225 | AG35: =IFERROR(VLOOKUP(ROWS($AG$2:AG35),$AI$2:$AJ$932,2,0),"") -> 230 | AI35: =IF(ISNUMBER(SEARCH($AL$2,AJ35)),MAX($AI$1:AI34)+1,0) -> 33 | AJ35: 225
A36: 35 | B36: ابيض | C36: كروشيه | D36: 5سم | E36: ابيض كروشيه 5سم | F36: =3531.54+490+300+450 -> 4771.54 | I36: =SUMIF(الوارد!$D$2:$D$5853,E36,الوارد!$E$2:$E$5853) -> 16357.28 | J36: =SUMIF(الوارد!$D$2:$D$5853,E36,الوارد!$G$2:$G$5853) -> 0 | K36: =SUMIF(الوارد!$D$2:$D$5853,E36,الوارد!$H$2:$H$5853) -> 0 | L36: =SUMIF(المنصرف!$D$2:$D$4677,E36,المنصرف!$E$2:$E$4677) -> 21211.25 | M36: =SUMIF(المنصرف!$D$2:$D$4677,E36,المنصرف!$G$2:$G$4677) -> 0 | N36: =SUMIF(المنصرف!$D$2:$D$4677,E36,المنصرف!$H$2:$H$4677) -> 0 | O36: =SUMIF(المرتجع!$D$2:$D$789,E36,المرتجع!$E$2:$E$789) -> 0 | P36: =SUMIF(المرتجع!$D$2:$D$789,E36,المرتجع!$G$2:$G$789) -> 0 | Q36: =SUMIF(المرتجع!$D$2:$D$789,E36,المرتجع!$H$2:$H$789) -> 0 | R36: -82.43 | S36: 0 | T36: 0 | AA36: 230 | AG36: =IFERROR(VLOOKUP(ROWS($AG$2:AG36),$AI$2:$AJ$932,2,0),"") -> 235 | AI36: =IF(ISNUMBER(SEARCH($AL$2,AJ36)),MAX($AI$1:AI35)+1,0) -> 34 | AJ36: 230
A37: 36 | B37: اسود | C37: كروشيه | D37: 2.5سم | E37: اسود كروشيه 2.5سم | F37: 1274.95 | I37: =SUMIF(الوارد!$D$2:$D$5853,E37,الوارد!$E$2:$E$5853) -> 984.55 | J37: =SUMIF(الوارد!$D$2:$D$5853,E37,الوارد!$G$2:$G$5853) -> 0 | K37: =SUMIF(الوارد!$D$2:$D$5853,E37,الوارد!$H$2:$H$5853) -> 0 | L37: =SUMIF(المنصرف!$D$2:$D$4677,E37,المنصرف!$E$2:$E$4677) -> 1830.59 | M37: =SUMIF(المنصرف!$D$2:$D$4677,E37,المنصرف!$G$2:$G$4677) -> 0 | N37: =SUMIF(المنصرف!$D$2:$D$4677,E37,المنصرف!$H$2:$H$4677) -> 0 | O37: =SUMIF(المرتجع!$D$2:$D$789,E37,المرتجع!$E$2:$E$789) -> 0 | P37: =SUMIF(المرتجع!$D$2:$D$789,E37,المرتجع!$G$2:$G$789) -> 0 | Q37: =SUMIF(المرتجع!$D$2:$D$789,E37,المرتجع!$H$2:$H$789) -> 0 | R37: 428.91 | S37: 0 | T37: 0 | AA37: 235 | AG37: =IFERROR(VLOOKUP(ROWS($AG$2:AG37),$AI$2:$AJ$932,2,0),"") -> 240 | AI37: =IF(ISNUMBER(SEARCH($AL$2,AJ37)),MAX($AI$1:AI36)+1,0) -> 35 | AJ37: 235
A38: 37 | B38: اسود | C38: كروشيه | D38: 2سم | E38: اسود كروشيه 2سم | F38: 1565.43 | I38: =SUMIF(الوارد!$D$2:$D$5853,E38,الوارد!$E$2:$E$5853) -> 1866.69 | J38: =SUMIF(الوارد!$D$2:$D$5853,E38,الوارد!$G$2:$G$5853) -> 0 | K38: =SUMIF(الوارد!$D$2:$D$5853,E38,الوارد!$H$2:$H$5853) -> 0 | L38: =SUMIF(المنصرف!$D$2:$D$4677,E38,المنصرف!$E$2:$E$4677) -> 1637.57 | M38: =SUMIF(المنصرف!$D$2:$D$4677,E38,المنصرف!$G$2:$G$4677) -> 0 | N38: =SUMIF(المنصرف!$D$2:$D$4677,E38,المنصرف!$H$2:$H$4677) -> 0 | O38: =SUMIF(المرتجع!$D$2:$D$789,E38,المرتجع!$E$2:$E$789) -> 0 | P38: =SUMIF(المرتجع!$D$2:$D$789,E38,المرتجع!$G$2:$G$789) -> 0 | Q38: =SUMIF(المرتجع!$D$2:$D$789,E38,المرتجع!$H$2:$H$789) -> 0 | R38: 1794.55 | S38: 0 | T38: 0 | AA38: 240 | AG38: =IFERROR(VLOOKUP(ROWS($AG$2:AG38),$AI$2:$AJ$932,2,0),"") -> 245 | AI38: =IF(ISNUMBER(SEARCH($AL$2,AJ38)),MAX($AI$1:AI37)+1,0) -> 36 | AJ38: 240
A39: 38 | B39: اسود | C39: كروشيه | D39: 5.8سم | E39: اسود كروشيه 5.8سم | F39: =137.46+137+9.22 -> 283.68 | I39: =SUMIF(الوارد!$D$2:$D$5853,E39,الوارد!$E$2:$E$5853) -> 770.64 | J39: =SUMIF(الوارد!$D$2:$D$5853,E39,الوارد!$G$2:$G$5853) -> 0 | K39: =SUMIF(الوارد!$D$2:$D$5853,E39,الوارد!$H$2:$H$5853) -> 0 | L39: =SUMIF(المنصرف!$D$2:$D$4677,E39,المنصرف!$E$2:$E$4677) -> 1015.82 | M39: =SUMIF(المنصرف!$D$2:$D$4677,E39,المنصرف!$G$2:$G$4677) -> 0 | N39: =SUMIF(المنصرف!$D$2:$D$4677,E39,المنصرف!$H$2:$H$4677) -> 0 | O39: =SUMIF(المرتجع!$D$2:$D$789,E39,المرتجع!$E$2:$E$789) -> 0 | P39: =SUMIF(المرتجع!$D$2:$D$789,E39,المرتجع!$G$2:$G$789) -> 0 | Q39: =SUMIF(المرتجع!$D$2:$D$789,E39,المرتجع!$H$2:$H$789) -> 0 | R39: 38.5 | S39: 0 | T39: 0 | AA39: 245 | AG39: =IFERROR(VLOOKUP(ROWS($AG$2:AG39),$AI$2:$AJ$932,2,0),"") -> 250 | AI39: =IF(ISNUMBER(SEARCH($AL$2,AJ39)),MAX($AI$1:AI38)+1,0) -> 37 | AJ39: 245
A40: 39 | B40: اسود | C40: كروشيه | D40: 5سم | E40: اسود كروشيه 5سم | F40: 1609.75 | I40: =SUMIF(الوارد!$D$2:$D$5853,E40,الوارد!$E$2:$E$5853) -> 10269.16 | J40: =SUMIF(الوارد!$D$2:$D$5853,E40,الوارد!$G$2:$G$5853) -> 0 | K40: =SUMIF(الوارد!$D$2:$D$5853,E40,الوارد!$H$2:$H$5853) -> 0 | L40: =SUMIF(المنصرف!$D$2:$D$4677,E40,المنصرف!$E$2:$E$4677) -> 11492.04 | M40: =SUMIF(المنصرف!$D$2:$D$4677,E40,المنصرف!$G$2:$G$4677) -> 0 | N40: =SUMIF(المنصرف!$D$2:$D$4677,E40,المنصرف!$H$2:$H$4677) -> 0 | O40: =SUMIF(المرتجع!$D$2:$D$789,E40,المرتجع!$E$2:$E$789) -> 73.76 | P40: =SUMIF(المرتجع!$D$2:$D$789,E40,المرتجع!$G$2:$G$789) -> 0 | Q40: =SUMIF(المرتجع!$D$2:$D$789,E40,المرتجع!$H$2:$H$789) -> 0 | R40: 460.63 | S40: 0 | T40: 0 | AA40: 250 | AG40: =IFERROR(VLOOKUP(ROWS($AG$2:AG40),$AI$2:$AJ$932,2,0),"") -> 255 | AI40: =IF(ISNUMBER(SEARCH($AL$2,AJ40)),MAX($AI$1:AI39)+1,0) -> 38 | AJ40: 250
A41: 40 | B41: ابيض | C41: كروشيه | D41: 2سم | E41: ابيض كروشيه 2سم | F41: 465.62 | I41: =SUMIF(الوارد!$D$2:$D$5853,E41,الوارد!$E$2:$E$5853) -> 3217.99 | J41: =SUMIF(الوارد!$D$2:$D$5853,E41,الوارد!$G$2:$G$5853) -> 0 | K41: =SUMIF(الوارد!$D$2:$D$5853,E41,الوارد!$H$2:$H$5853) -> 0 | L41: =SUMIF(المنصرف!$D$2:$D$4677,E41,المنصرف!$E$2:$E$4677) -> 3448.33 | M41: =SUMIF(المنصرف!$D$2:$D$4677,E41,المنصرف!$G$2:$G$4677) -> 0 | N41: =SUMIF(المنصرف!$D$2:$D$4677,E41,المنصرف!$H$2:$H$4677) -> 0 | O41: =SUMIF(المرتجع!$D$2:$D$789,E41,المرتجع!$E$2:$E$789) -> 0 | P41: =SUMIF(المرتجع!$D$2:$D$789,E41,المرتجع!$G$2:$G$789) -> 0 | Q41: =SUMIF(المرتجع!$D$2:$D$789,E41,المرتجع!$H$2:$H$789) -> 0 | R41: 235.28 | S41: 0 | T41: 0 | AA41: 255 | AG41: =IFERROR(VLOOKUP(ROWS($AG$2:AG41),$AI$2:$AJ$932,2,0),"") -> 260 | AI41: =IF(ISNUMBER(SEARCH($AL$2,AJ41)),MAX($AI$1:AI40)+1,0) -> 39 | AJ41: 255
A42: 41 | B42: اسود | C42: ويفين (510) | D42: 3.5سم | E42: اسود ويفين (510) 3.5سم | I42: =SUMIF(الوارد!$D$2:$D$5853,E42,الوارد!$E$2:$E$5853) -> 28.5 | J42: =SUMIF(الوارد!$D$2:$D$5853,E42,الوارد!$G$2:$G$5853) -> 0 | K42: =SUMIF(الوارد!$D$2:$D$5853,E42,الوارد!$H$2:$H$5853) -> 0 | L42: =SUMIF(المنصرف!$D$2:$D$4677,E42,المنصرف!$E$2:$E$4677) -> 28.5 | M42: =SUMIF(المنصرف!$D$2:$D$4677,E42,المنصرف!$G$2:$G$4677) -> 0 | N42: =SUMIF(المنصرف!$D$2:$D$4677,E42,المنصرف!$H$2:$H$4677) -> 0 | O42: =SUMIF(المرتجع!$D$2:$D$789,E42,المرتجع!$E$2:$E$789) -> 0 | P42: =SUMIF(المرتجع!$D$2:$D$789,E42,المرتجع!$G$2:$G$789) -> 0 | Q42: =SUMIF(المرتجع!$D$2:$D$789,E42,المرتجع!$H$2:$H$789) -> 0 | R42: 0 | S42: 0 | T42: 0 | AA42: 260 | AG42: =IFERROR(VLOOKUP(ROWS($AG$2:AG42),$AI$2:$AJ$932,2,0),"") -> 265 | AI42: =IF(ISNUMBER(SEARCH($AL$2,AJ42)),MAX($AI$1:AI41)+1,0) -> 40 | AJ42: 260
A43: 42 | B43: اسود | C43: كروشيه | D43: 2.2سم | E43: اسود كروشيه 2.2سم | F43: 7.64 | I43: =SUMIF(الوارد!$D$2:$D$5853,E43,الوارد!$E$2:$E$5853) -> 0 | J43: =SUMIF(الوارد!$D$2:$D$5853,E43,الوارد!$G$2:$G$5853) -> 0 | K43: =SUMIF(الوارد!$D$2:$D$5853,E43,الوارد!$H$2:$H$5853) -> 0 | L43: =SUMIF(المنصرف!$D$2:$D$4677,E43,المنصرف!$E$2:$E$4677) -> 0 | M43: =SUMIF(المنصرف!$D$2:$D$4677,E43,المنصرف!$G$2:$G$4677) -> 0 | N43: =SUMIF(المنصرف!$D$2:$D$4677,E43,المنصرف!$H$2:$H$4677) -> 0 | O43: =SUMIF(المرتجع!$D$2:$D$789,E43,المرتجع!$E$2:$E$789) -> 0 | P43: =SUMIF(المرتجع!$D$2:$D$789,E43,المرتجع!$G$2:$G$789) -> 0 | Q43: =SUMIF(المرتجع!$D$2:$D$789,E43,المرتجع!$H$2:$H$789) -> 0 | R43: 7.64 | S43: 0 | T43: 0 | AA43: 265 | AG43: =IFERROR(VLOOKUP(ROWS($AG$2:AG43),$AI$2:$AJ$932,2,0),"") -> 270 | AI43: =IF(ISNUMBER(SEARCH($AL$2,AJ43)),MAX($AI$1:AI42)+1,0) -> 41 | AJ43: 265
A44: 43 | B44: اسود | C44: كروشيه | D44: 1.2سم | E44: اسود كروشيه 1.2سم | F44: =235+92 -> 327 | I44: =SUMIF(الوارد!$D$2:$D$5853,E44,الوارد!$E$2:$E$5853) -> 13.11 | J44: =SUMIF(الوارد!$D$2:$D$5853,E44,الوارد!$G$2:$G$5853) -> 0 | K44: =SUMIF(الوارد!$D$2:$D$5853,E44,الوارد!$H$2:$H$5853) -> 0 | L44: =SUMIF(المنصرف!$D$2:$D$4677,E44,المنصرف!$E$2:$E$4677) -> 0 | M44: =SUMIF(المنصرف!$D$2:$D$4677,E44,المنصرف!$G$2:$G$4677) -> 0 | N44: =SUMIF(المنصرف!$D$2:$D$4677,E44,المنصرف!$H$2:$H$4677) -> 0 | O44: =SUMIF(المرتجع!$D$2:$D$789,E44,المرتجع!$E$2:$E$789) -> 0 | P44: =SUMIF(المرتجع!$D$2:$D$789,E44,المرتجع!$G$2:$G$789) -> 0 | Q44: =SUMIF(المرتجع!$D$2:$D$789,E44,المرتجع!$H$2:$H$789) -> 0 | R44: 340.11 | S44: 0 | T44: 0 | AA44: 270 | AG44: =IFERROR(VLOOKUP(ROWS($AG$2:AG44),$AI$2:$AJ$932,2,0),"") -> 275 | AI44: =IF(ISNUMBER(SEARCH($AL$2,AJ44)),MAX($AI$1:AI43)+1,0) -> 42 | AJ44: 270
A45: 44 | B45: ابيض | C45: كروشيه | D45: 5.5سم | E45: ابيض كروشيه 5.5سم | F45: =60.75+128.58 -> 189.33 | I45: =SUMIF(الوارد!$D$2:$D$5853,E45,الوارد!$E$2:$E$5853) -> 278.42 | J45: =SUMIF(الوارد!$D$2:$D$5853,E45,الوارد!$G$2:$G$5853) -> 0 | K45: =SUMIF(الوارد!$D$2:$D$5853,E45,الوارد!$H$2:$H$5853) -> 0 | L45: =SUMIF(المنصرف!$D$2:$D$4677,E45,المنصرف!$E$2:$E$4677) -> 467.75 | M45: =SUMIF(المنصرف!$D$2:$D$4677,E45,المنصرف!$G$2:$G$4677) -> 0 | N45: =SUMIF(المنصرف!$D$2:$D$4677,E45,المنصرف!$H$2:$H$4677) -> 0 | O45: =SUMIF(المرتجع!$D$2:$D$789,E45,المرتجع!$E$2:$E$789) -> 0 | P45: =SUMIF(المرتجع!$D$2:$D$789,E45,المرتجع!$G$2:$G$789) -> 0 | Q45: =SUMIF(المرتجع!$D$2:$D$789,E45,المرتجع!$H$2:$H$789) -> 0 | R45: 0 | S45: 0 | T45: 0 | AA45: 275 | AG45: =IFERROR(VLOOKUP(ROWS($AG$2:AG45),$AI$2:$AJ$932,2,0),"") -> 280 | AI45: =IF(ISNUMBER(SEARCH($AL$2,AJ45)),MAX($AI$1:AI44)+1,0) -> 43 | AJ45: 275
A46: 45 | B46: ابيض | C46: كروشيه | D46: 5.8سم | E46: ابيض كروشيه 5.8سم | F46: =64.1+23.44 -> 87.54 | I46: =SUMIF(الوارد!$D$2:$D$5853,E46,الوارد!$E$2:$E$5853) -> 730.46 | J46: =SUMIF(الوارد!$D$2:$D$5853,E46,الوارد!$G$2:$G$5853) -> 0 | K46: =SUMIF(الوارد!$D$2:$D$5853,E46,الوارد!$H$2:$H$5853) -> 0 | L46: =SUMIF(المنصرف!$D$2:$D$4677,E46,المنصرف!$E$2:$E$4677) -> 531.54 | M46: =SUMIF(المنصرف!$D$2:$D$4677,E46,المنصرف!$G$2:$G$4677) -> 0 | N46: =SUMIF(المنصرف!$D$2:$D$4677,E46,المنصرف!$H$2:$H$4677) -> 0 | O46: =SUMIF(المرتجع!$D$2:$D$789,E46,المرتجع!$E$2:$E$789) -> 0 | P46: =SUMIF(المرتجع!$D$2:$D$789,E46,المرتجع!$G$2:$G$789) -> 0 | Q46: =SUMIF(المرتجع!$D$2:$D$789,E46,المرتجع!$H$2:$H$789) -> 0 | R46: 286.46 | S46: 0 | T46: 0 | AA46: 280 | AG46: =IFERROR(VLOOKUP(ROWS($AG$2:AG46),$AI$2:$AJ$932,2,0),"") -> 305 | AI46: =IF(ISNUMBER(SEARCH($AL$2,AJ46)),MAX($AI$1:AI45)+1,0) -> 44 | AJ46: 280
A47: 46 | B47: كحلي | C47: كورد قطن | D47: 1.6سم | E47: كحلي كورد قطن 1.6سم | F47: 35 | G47: 2590 | I47: =SUMIF(الوارد!$D$2:$D$5853,E47,الوارد!$E$2:$E$5853) -> 0 | J47: =SUMIF(الوارد!$D$2:$D$5853,E47,الوارد!$G$2:$G$5853) -> 0 | K47: =SUMIF(الوارد!$D$2:$D$5853,E47,الوارد!$H$2:$H$5853) -> 0 | L47: =SUMIF(المنصرف!$D$2:$D$4677,E47,المنصرف!$E$2:$E$4677) -> 0 | M47: =SUMIF(المنصرف!$D$2:$D$4677,E47,المنصرف!$G$2:$G$4677) -> 0 | N47: =SUMIF(المنصرف!$D$2:$D$4677,E47,المنصرف!$H$2:$H$4677) -> 0 | O47: =SUMIF(المرتجع!$D$2:$D$789,E47,المرتجع!$E$2:$E$789) -> 0 | P47: =SUMIF(المرتجع!$D$2:$D$789,E47,المرتجع!$G$2:$G$789) -> 0 | Q47: =SUMIF(المرتجع!$D$2:$D$789,E47,المرتجع!$H$2:$H$789) -> 0 | R47: 35 | S47: 2590 | T47: 0 | AA47: 305 | AG47: =IFERROR(VLOOKUP(ROWS($AG$2:AG47),$AI$2:$AJ$932,2,0),"") -> 310 | AI47: =IF(ISNUMBER(SEARCH($AL$2,AJ47)),MAX($AI$1:AI46)+1,0) -> 45 | AJ47: 305
A48: 47 | B48: ازرق | C48: كورد قطن | D48: 1.6سم | E48: ازرق كورد قطن 1.6سم | F48: 88.53 | G48: 6418 | I48: =SUMIF(الوارد!$D$2:$D$5853,E48,الوارد!$E$2:$E$5853) -> 0 | J48: =SUMIF(الوارد!$D$2:$D$5853,E48,الوارد!$G$2:$G$5853) -> 0 | K48: =SUMIF(الوارد!$D$2:$D$5853,E48,الوارد!$H$2:$H$5853) -> 0 | L48: =SUMIF(المنصرف!$D$2:$D$4677,E48,المنصرف!$E$2:$E$4677) -> 0 | M48: =SUMIF(المنصرف!$D$2:$D$4677,E48,المنصرف!$G$2:$G$4677) -> 0 | N48: =SUMIF(المنصرف!$D$2:$D$4677,E48,المنصرف!$H$2:$H$4677) -> 0 | O48: =SUMIF(المرتجع!$D$2:$D$789,E48,المرتجع!$E$2:$E$789) -> 0 | P48: =SUMIF(المرتجع!$D$2:$D$789,E48,المرتجع!$G$2:$G$789) -> 0 | Q48: =SUMIF(المرتجع!$D$2:$D$789,E48,المرتجع!$H$2:$H$789) -> 0 | R48: 88.53 | S48: 6418 | T48: 0 | AA48: 310 | AG48: =IFERROR(VLOOKUP(ROWS($AG$2:AG48),$AI$2:$AJ$932,2,0),"") -> 315 | AI48: =IF(ISNUMBER(SEARCH($AL$2,AJ48)),MAX($AI$1:AI47)+1,0) -> 46 | AJ48: 310
A49: 48 | B49: رصاصي | C49: كورد قطن | D49: 1سم | E49: رصاصي كورد قطن 1سم | F49: 27.24 | I49: =SUMIF(الوارد!$D$2:$D$5853,E49,الوارد!$E$2:$E$5853) -> 0 | J49: =SUMIF(الوارد!$D$2:$D$5853,E49,الوارد!$G$2:$G$5853) -> 0 | K49: =SUMIF(الوارد!$D$2:$D$5853,E49,الوارد!$H$2:$H$5853) -> 0 | L49: =SUMIF(المنصرف!$D$2:$D$4677,E49,المنصرف!$E$2:$E$4677) -> 0 | M49: =SUMIF(المنصرف!$D$2:$D$4677,E49,المنصرف!$G$2:$G$4677) -> 0 | N49: =SUMIF(المنصرف!$D$2:$D$4677,E49,المنصرف!$H$2:$H$4677) -> 0 | O49: =SUMIF(المرتجع!$D$2:$D$789,E49,المرتجع!$E$2:$E$789) -> 0 | P49: =SUMIF(المرتجع!$D$2:$D$789,E49,المرتجع!$G$2:$G$789) -> 0 | Q49: =SUMIF(المرتجع!$D$2:$D$789,E49,المرتجع!$H$2:$H$789) -> 0 | R49: 27.24 | S49: 0 | T49: 0 | AA49: 315 | AG49: =IFERROR(VLOOKUP(ROWS($AG$2:AG49),$AI$2:$AJ$932,2,0),"") -> 320 | AI49: =IF(ISNUMBER(SEARCH($AL$2,AJ49)),MAX($AI$1:AI48)+1,0) -> 47 | AJ49: 315
A50: 49 | B50: اوف وايت | C50: كورد قطن | D50: 1.1سم | E50: اوف وايت كورد قطن 1.1سم | F50: 20.43 | I50: =SUMIF(الوارد!$D$2:$D$5853,E50,الوارد!$E$2:$E$5853) -> 0 | J50: =SUMIF(الوارد!$D$2:$D$5853,E50,الوارد!$G$2:$G$5853) -> 0 | K50: =SUMIF(الوارد!$D$2:$D$5853,E50,الوارد!$H$2:$H$5853) -> 0 | L50: =SUMIF(المنصرف!$D$2:$D$4677,E50,المنصرف!$E$2:$E$4677) -> 0 | M50: =SUMIF(المنصرف!$D$2:$D$4677,E50,المنصرف!$G$2:$G$4677) -> 0 | N50: =SUMIF(المنصرف!$D$2:$D$4677,E50,المنصرف!$H$2:$H$4677) -> 0 | O50: =SUMIF(المرتجع!$D$2:$D$789,E50,المرتجع!$E$2:$E$789) -> 20 | P50: =SUMIF(المرتجع!$D$2:$D$789,E50,المرتجع!$G$2:$G$789) -> 2600 | Q50: =SUMIF(المرتجع!$D$2:$D$789,E50,المرتجع!$H$2:$H$789) -> 0 | R50: 40.43 | S50: 2600 | T50: 0 | AA50: 320 | AG50: =IFERROR(VLOOKUP(ROWS($AG$2:AG50),$AI$2:$AJ$932,2,0),"") -> 325 | AI50: =IF(ISNUMBER(SEARCH($AL$2,AJ50)),MAX($AI$1:AI49)+1,0) -> 48 | AJ50: 320
A51: 50 | C51: كورد قطن مبطط بواقي | E51: كورد قطن مبطط بواقي | F51: 1593.83 | I51: =SUMIF(الوارد!$D$2:$D$5853,E51,الوارد!$E$2:$E$5853) -> 0 | J51: =SUMIF(الوارد!$D$2:$D$5853,E51,الوارد!$G$2:$G$5853) -> 0 | K51: =SUMIF(الوارد!$D$2:$D$5853,E51,الوارد!$H$2:$H$5853) -> 0 | L51: =SUMIF(المنصرف!$D$2:$D$4677,E51,المنصرف!$E$2:$E$4677) -> 0 | M51: =SUMIF(المنصرف!$D$2:$D$4677,E51,المنصرف!$G$2:$G$4677) -> 0 | N51: =SUMIF(المنصرف!$D$2:$D$4677,E51,المنصرف!$H$2:$H$4677) -> 0 | O51: =SUMIF(المرتجع!$D$2:$D$789,E51,المرتجع!$E$2:$E$789) -> 0 | P51: =SUMIF(المرتجع!$D$2:$D$789,E51,المرتجع!$G$2:$G$789) -> 0 | Q51: =SUMIF(المرتجع!$D$2:$D$789,E51,المرتجع!$H$2:$H$789) -> 0 | R51: 1593.83 | S51: 0 | T51: 0 | AA51: 325 | AG51: =IFERROR(VLOOKUP(ROWS($AG$2:AG51),$AI$2:$AJ$932,2,0),"") -> 330 | AI51: =IF(ISNUMBER(SEARCH($AL$2,AJ51)),MAX($AI$1:AI50)+1,0) -> 49 | AJ51: 325
A52: 51 | C52: كورد قطن مبروم بواقي | E52: كورد قطن مبروم بواقي | F52: 1420.56 | I52: =SUMIF(الوارد!$D$2:$D$5853,E52,الوارد!$E$2:$E$5853) -> 0 | J52: =SUMIF(الوارد!$D$2:$D$5853,E52,الوارد!$G$2:$G$5853) -> 0 | K52: =SUMIF(الوارد!$D$2:$D$5853,E52,الوارد!$H$2:$H$5853) -> 0 | L52: =SUMIF(المنصرف!$D$2:$D$4677,E52,المنصرف!$E$2:$E$4677) -> 25.45 | M52: =SUMIF(المنصرف!$D$2:$D$4677,E52,المنصرف!$G$2:$G$4677) -> 0 | N52: =SUMIF(المنصرف!$D$2:$D$4677,E52,المنصرف!$H$2:$H$4677) -> 0 | O52: =SUMIF(المرتجع!$D$2:$D$789,E52,المرتجع!$E$2:$E$789) -> 0 | P52: =SUMIF(المرتجع!$D$2:$D$789,E52,المرتجع!$G$2:$G$789) -> 0 | Q52: =SUMIF(المرتجع!$D$2:$D$789,E52,المرتجع!$H$2:$H$789) -> 0 | R52: 1395.11 | S52: 0 | T52: 0 | AA52: 330 | AG52: =IFERROR(VLOOKUP(ROWS($AG$2:AG52),$AI$2:$AJ$932,2,0),"") -> 335 | AI52: =IF(ISNUMBER(SEARCH($AL$2,AJ52)),MAX($AI$1:AI51)+1,0) -> 50 | AJ52: 330
A53: 52 | B53: ألوان | C53: كورد مخلوط وقطن وبوليستر خام | E53: ألوان كورد مخلوط وقطن وبوليستر خام | F53: 2916.09 | I53: =SUMIF(الوارد!$D$2:$D$5853,E53,الوارد!$E$2:$E$5853) -> 0 | J53: =SUMIF(الوارد!$D$2:$D$5853,E53,الوارد!$G$2:$G$5853) -> 0 | K53: =SUMIF(الوارد!$D$2:$D$5853,E53,الوارد!$H$2:$H$5853) -> 0 | L53: =SUMIF(المنصرف!$D$2:$D$4677,E53,المنصرف!$E$2:$E$4677) -> 1191.67 | M53: =SUMIF(المنصرف!$D$2:$D$4677,E53,المنصرف!$G$2:$G$4677) -> 0 | N53: =SUMIF(المنصرف!$D$2:$D$4677,E53,المنصرف!$H$2:$H$4677) -> 0 | O53: =SUMIF(المرتجع!$D$2:$D$789,E53,المرتجع!$E$2:$E$789) -> 0 | P53: =SUMIF(المرتجع!$D$2:$D$789,E53,المرتجع!$G$2:$G$789) -> 0 | Q53: =SUMIF(المرتجع!$D$2:$D$789,E53,المرتجع!$H$2:$H$789) -> 0 | R53: 1724.42 | S53: 0 | T53: 0 | AA53: 335 | AG53: =IFERROR(VLOOKUP(ROWS($AG$2:AG53),$AI$2:$AJ$932,2,0),"") -> 340 | AI53: =IF(ISNUMBER(SEARCH($AL$2,AJ53)),MAX($AI$1:AI52)+1,0) -> 51 | AJ53: 335
A54: 53 | B54: زيتي | C54: كورد قطن | D54: 125سم | E54: زيتي كورد قطن 125سم | F54: 4.61 | I54: =SUMIF(الوارد!$D$2:$D$5853,E54,الوارد!$E$2:$E$5853) -> 5.21 | J54: =SUMIF(الوارد!$D$2:$D$5853,E54,الوارد!$G$2:$G$5853) -> 50 | K54: =SUMIF(الوارد!$D$2:$D$5853,E54,الوارد!$H$2:$H$5853) -> 0 | L54: =SUMIF(المنصرف!$D$2:$D$4677,E54,المنصرف!$E$2:$E$4677) -> 5.21 | M54: =SUMIF(المنصرف!$D$2:$D$4677,E54,المنصرف!$G$2:$G$4677) -> 50 | N54: =SUMIF(المنصرف!$D$2:$D$4677,E54,المنصرف!$H$2:$H$4677) -> 0 | O54: =SUMIF(المرتجع!$D$2:$D$789,E54,المرتجع!$E$2:$E$789) -> 0 | P54: =SUMIF(المرتجع!$D$2:$D$789,E54,المرتجع!$G$2:$G$789) -> 0 | Q54: =SUMIF(المرتجع!$D$2:$D$789,E54,المرتجع!$H$2:$H$789) -> 0 | R54: 4.61 | S54: 0 | T54: 0 | AA54: 340 | AG54: =IFERROR(VLOOKUP(ROWS($AG$2:AG54),$AI$2:$AJ$932,2,0),"") -> 345 | AI54: =IF(ISNUMBER(SEARCH($AL$2,AJ54)),MAX($AI$1:AI53)+1,0) -> 52 | AJ54: 340
A55: 54 | B55: زيتي | C55: كورد قطن | D55: 150سم | E55: زيتي كورد قطن 150سم | F55: 7.16 | I55: =SUMIF(الوارد!$D$2:$D$5853,E55,الوارد!$E$2:$E$5853) -> 7.75 | J55: =SUMIF(الوارد!$D$2:$D$5853,E55,الوارد!$G$2:$G$5853) -> 60 | K55: =SUMIF(الوارد!$D$2:$D$5853,E55,الوارد!$H$2:$H$5853) -> 0 | L55: =SUMIF(المنصرف!$D$2:$D$4677,E55,المنصرف!$E$2:$E$4677) -> 7.75 | M55: =SUMIF(المنصرف!$D$2:$D$4677,E55,المنصرف!$G$2:$G$4677) -> 60 | N55: =SUMIF(المنصرف!$D$2:$D$4677,E55,المنصرف!$H$2:$H$4677) -> 0 | O55: =SUMIF(المرتجع!$D$2:$D$789,E55,المرتجع!$E$2:$E$789) -> 0 | P55: =SUMIF(المرتجع!$D$2:$D$789,E55,المرتجع!$G$2:$G$789) -> 0 | Q55: =SUMIF(المرتجع!$D$2:$D$789,E55,المرتجع!$H$2:$H$789) -> 0 | R55: 7.16 | S55: 0 | T55: 0 | AA55: 345 | AG55: =IFERROR(VLOOKUP(ROWS($AG$2:AG55),$AI$2:$AJ$932,2,0),"") -> 350 | AI55: =IF(ISNUMBER(SEARCH($AL$2,AJ55)),MAX($AI$1:AI54)+1,0) -> 53 | AJ55: 345
A56: 55 | B56: ازرق | C56: كورد قطن | D56: 125سم | E56: ازرق كورد قطن 125سم | F56: 43.95 | I56: =SUMIF(الوارد!$D$2:$D$5853,E56,الوارد!$E$2:$E$5853) -> 0 | J56: =SUMIF(الوارد!$D$2:$D$5853,E56,الوارد!$G$2:$G$5853) -> 0 | K56: =SUMIF(الوارد!$D$2:$D$5853,E56,الوارد!$H$2:$H$5853) -> 0 | L56: =SUMIF(المنصرف!$D$2:$D$4677,E56,المنصرف!$E$2:$E$4677) -> 0 | M56: =SUMIF(المنصرف!$D$2:$D$4677,E56,المنصرف!$G$2:$G$4677) -> 0 | N56: =SUMIF(المنصرف!$D$2:$D$4677,E56,المنصرف!$H$2:$H$4677) -> 0 | O56: =SUMIF(المرتجع!$D$2:$D$789,E56,المرتجع!$E$2:$E$789) -> 0 | P56: =SUMIF(المرتجع!$D$2:$D$789,E56,المرتجع!$G$2:$G$789) -> 0 | Q56: =SUMIF(المرتجع!$D$2:$D$789,E56,المرتجع!$H$2:$H$789) -> 0 | R56: 43.95 | S56: 0 | T56: 0 | AA56: 350 | AG56: =IFERROR(VLOOKUP(ROWS($AG$2:AG56),$AI$2:$AJ$932,2,0),"") -> 355 | AI56: =IF(ISNUMBER(SEARCH($AL$2,AJ56)),MAX($AI$1:AI55)+1,0) -> 54 | AJ56: 350
A57: 56 | B57: ازرق | C57: كورد قطن | D57: 122سم | E57: ازرق كورد قطن 122سم | F57: 38.9 | I57: =SUMIF(الوارد!$D$2:$D$5853,E57,الوارد!$E$2:$E$5853) -> 0 | J57: =SUMIF(الوارد!$D$2:$D$5853,E57,الوارد!$G$2:$G$5853) -> 0 | K57: =SUMIF(الوارد!$D$2:$D$5853,E57,الوارد!$H$2:$H$5853) -> 0 | L57: =SUMIF(المنصرف!$D$2:$D$4677,E57,المنصرف!$E$2:$E$4677) -> 0 | M57: =SUMIF(المنصرف!$D$2:$D$4677,E57,المنصرف!$G$2:$G$4677) -> 0 | N57: =SUMIF(المنصرف!$D$2:$D$4677,E57,المنصرف!$H$2:$H$4677) -> 0 | O57: =SUMIF(المرتجع!$D$2:$D$789,E57,المرتجع!$E$2:$E$789) -> 0 | P57: =SUMIF(المرتجع!$D$2:$D$789,E57,المرتجع!$G$2:$G$789) -> 0 | Q57: =SUMIF(المرتجع!$D$2:$D$789,E57,المرتجع!$H$2:$H$789) -> 0 | R57: 38.9 | S57: 0 | T57: 0 | AA57: 355 | AG57: =IFERROR(VLOOKUP(ROWS($AG$2:AG57),$AI$2:$AJ$932,2,0),"") -> 360 | AI57: =IF(ISNUMBER(SEARCH($AL$2,AJ57)),MAX($AI$1:AI56)+1,0) -> 55 | AJ57: 355
A58: 57 | B58: كحلي | C58: كورد قطن | D58: 127سم | E58: كحلي كورد قطن 127سم | F58: 8.21 | I58: =SUMIF(الوارد!$D$2:$D$5853,E58,الوارد!$E$2:$E$5853) -> 0 | J58: =SUMIF(الوارد!$D$2:$D$5853,E58,الوارد!$G$2:$G$5853) -> 0 | K58: =SUMIF(الوارد!$D$2:$D$5853,E58,الوارد!$H$2:$H$5853) -> 0 | L58: =SUMIF(المنصرف!$D$2:$D$4677,E58,المنصرف!$E$2:$E$4677) -> 0 | M58: =SUMIF(المنصرف!$D$2:$D$4677,E58,المنصرف!$G$2:$G$4677) -> 0 | N58: =SUMIF(المنصرف!$D$2:$D$4677,E58,المنصرف!$H$2:$H$4677) -> 0 | O58: =SUMIF(المرتجع!$D$2:$D$789,E58,المرتجع!$E$2:$E$789) -> 0 | P58: =SUMIF(المرتجع!$D$2:$D$789,E58,المرتجع!$G$2:$G$789) -> 0 | Q58: =SUMIF(المرتجع!$D$2:$D$789,E58,المرتجع!$H$2:$H$789) -> 0 | R58: 8.21 | S58: 0 | T58: 0 | AA58: 360 | AG58: =IFERROR(VLOOKUP(ROWS($AG$2:AG58),$AI$2:$AJ$932,2,0),"") -> 365 | AI58: =IF(ISNUMBER(SEARCH($AL$2,AJ58)),MAX($AI$1:AI57)+1,0) -> 56 | AJ58: 360
A59: 58 | B59: كحلي | C59: كورد بوليستر | D59: 110سم | E59: كحلي كورد بوليستر 110سم | F59: 29.8 | G59: 2 | I59: =SUMIF(الوارد!$D$2:$D$5853,E59,الوارد!$E$2:$E$5853) -> 461.82 | J59: =SUMIF(الوارد!$D$2:$D$5853,E59,الوارد!$G$2:$G$5853) -> 44275.2 | K59: =SUMIF(الوارد!$D$2:$D$5853,E59,الوارد!$H$2:$H$5853) -> 0 | L59: =SUMIF(المنصرف!$D$2:$D$4677,E59,المنصرف!$E$2:$E$4677) -> 426.92 | M59: =SUMIF(المنصرف!$D$2:$D$4677,E59,المنصرف!$G$2:$G$4677) -> 40818.8 | N59: =SUMIF(المنصرف!$D$2:$D$4677,E59,المنصرف!$H$2:$H$4677) -> 0 | O59: =SUMIF(المرتجع!$D$2:$D$789,E59,المرتجع!$E$2:$E$789) -> 0 | P59: =SUMIF(المرتجع!$D$2:$D$789,E59,المرتجع!$G$2:$G$789) -> 0 | Q59: =SUMIF(المرتجع!$D$2:$D$789,E59,المرتجع!$H$2:$H$789) -> 0 | R59: 64.7 | S59: 3458.4 | T59: 0 | AA59: 365 | AG59: =IFERROR(VLOOKUP(ROWS($AG$2:AG59),$AI$2:$AJ$932,2,0),"") -> 370 | AI59: =IF(ISNUMBER(SEARCH($AL$2,AJ59)),MAX($AI$1:AI58)+1,0) -> 57 | AJ59: 365
A60: 59 | B60: زيتى (19-0414) | C60: كورد قطن | D60: 135سم | E60: زيتى (19-0414) كورد قطن 135سم | F60: 6.76 | I60: =SUMIF(الوارد!$D$2:$D$5853,E60,الوارد!$E$2:$E$5853) -> 21.47 | J60: =SUMIF(الوارد!$D$2:$D$5853,E60,الوارد!$G$2:$G$5853) -> 0 | K60: =SUMIF(الوارد!$D$2:$D$5853,E60,الوارد!$H$2:$H$5853) -> 0 | L60: =SUMIF(المنصرف!$D$2:$D$4677,E60,المنصرف!$E$2:$E$4677) -> 15.41 | M60: =SUMIF(المنصرف!$D$2:$D$4677,E60,المنصرف!$G$2:$G$4677) -> 0 | N60: =SUMIF(المنصرف!$D$2:$D$4677,E60,المنصرف!$H$2:$H$4677) -> 0 | O60: =SUMIF(المرتجع!$D$2:$D$789,E60,المرتجع!$E$2:$E$789) -> 0 | P60: =SUMIF(المرتجع!$D$2:$D$789,E60,المرتجع!$G$2:$G$789) -> 0 | Q60: =SUMIF(المرتجع!$D$2:$D$789,E60,المرتجع!$H$2:$H$789) -> 0 | R60: 12.82 | S60: 0 | T60: 0 | AA60: 370 | AG60: =IFERROR(VLOOKUP(ROWS($AG$2:AG60),$AI$2:$AJ$932,2,0),"") -> 375 | AI60: =IF(ISNUMBER(SEARCH($AL$2,AJ60)),MAX($AI$1:AI59)+1,0) -> 58 | AJ60: 370
A61: 60 | B61: زيتي | C61: كورد قطن | D61: 130سم | E61: زيتي كورد قطن 130سم | F61: 8.1 | I61: =SUMIF(الوارد!$D$2:$D$5853,E61,الوارد!$E$2:$E$5853) -> 7.51 | J61: =SUMIF(الوارد!$D$2:$D$5853,E61,الوارد!$G$2:$G$5853) -> 52 | K61: =SUMIF(الوارد!$D$2:$D$5853,E61,الوارد!$H$2:$H$5853) -> 0 | L61: =SUMIF(المنصرف!$D$2:$D$4677,E61,المنصرف!$E$2:$E$4677) -> 7.51 | M61: =SUMIF(المنصرف!$D$2:$D$4677,E61,المنصرف!$G$2:$G$4677) -> 52 | N61: =SUMIF(المنصرف!$D$2:$D$4677,E61,المنصرف!$H$2:$H$4677) -> 0 | O61: =SUMIF(المرتجع!$D$2:$D$789,E61,المرتجع!$E$2:$E$789) -> 0 | P61: =SUMIF(المرتجع!$D$2:$D$789,E61,المرتجع!$G$2:$G$789) -> 0 | Q61: =SUMIF(المرتجع!$D$2:$D$789,E61,المرتجع!$H$2:$H$789) -> 0 | R61: 8.1 | S61: 0 | T61: 0 | AA61: 375 | AG61: =IFERROR(VLOOKUP(ROWS($AG$2:AG61),$AI$2:$AJ$932,2,0),"") -> 380 | AI61: =IF(ISNUMBER(SEARCH($AL$2,AJ61)),MAX($AI$1:AI60)+1,0) -> 59 | AJ61: 375
A62: 61 | B62: اسود | C62: كورد بوليستر | D62: 3مم | E62: اسود كورد بوليستر 3مم | F62: 108.42 | I62: =SUMIF(الوارد!$D$2:$D$5853,E62,الوارد!$E$2:$E$5853) -> 0 | J62: =SUMIF(الوارد!$D$2:$D$5853,E62,الوارد!$G$2:$G$5853) -> 0 | K62: =SUMIF(الوارد!$D$2:$D$5853,E62,الوارد!$H$2:$H$5853) -> 0 | L62: =SUMIF(المنصرف!$D$2:$D$4677,E62,المنصرف!$E$2:$E$4677) -> 0 | M62: =SUMIF(المنصرف!$D$2:$D$4677,E62,المنصرف!$G$2:$G$4677) -> 0 | N62: =SUMIF(المنصرف!$D$2:$D$4677,E62,المنصرف!$H$2:$H$4677) -> 0 | O62: =SUMIF(المرتجع!$D$2:$D$789,E62,المرتجع!$E$2:$E$789) -> 0 | P62: =SUMIF(المرتجع!$D$2:$D$789,E62,المرتجع!$G$2:$G$789) -> 0 | Q62: =SUMIF(المرتجع!$D$2:$D$789,E62,المرتجع!$H$2:$H$789) -> 0 | R62: 108.42 | S62: 0 | T62: 0 | AA62: 380 | AG62: =IFERROR(VLOOKUP(ROWS($AG$2:AG62),$AI$2:$AJ$932,2,0),"") -> 420 | AI62: =IF(ISNUMBER(SEARCH($AL$2,AJ62)),MAX($AI$1:AI61)+1,0) -> 60 | AJ62: 380
A63: 62 | B63: اسود | C63: كورد بوليستر | D63: 5مم | E63: اسود كورد بوليستر 5مم | F63: =139.88+226.59-10-0.05 -> 356.42 | I63: =SUMIF(الوارد!$D$2:$D$5853,E63,الوارد!$E$2:$E$5853) -> 1147.72 | J63: =SUMIF(الوارد!$D$2:$D$5853,E63,الوارد!$G$2:$G$5853) -> 0 | K63: =SUMIF(الوارد!$D$2:$D$5853,E63,الوارد!$H$2:$H$5853) -> 0 | L63: =SUMIF(المنصرف!$D$2:$D$4677,E63,المنصرف!$E$2:$E$4677) -> 1504.14 | M63: =SUMIF(المنصرف!$D$2:$D$4677,E63,المنصرف!$G$2:$G$4677) -> 0 | N63: =SUMIF(المنصرف!$D$2:$D$4677,E63,المنصرف!$H$2:$H$4677) -> 0 | O63: =SUMIF(المرتجع!$D$2:$D$789,E63,المرتجع!$E$2:$E$789) -> 0 | P63: =SUMIF(المرتجع!$D$2:$D$789,E63,المرتجع!$G$2:$G$789) -> 0 | Q63: =SUMIF(المرتجع!$D$2:$D$789,E63,المرتجع!$H$2:$H$789) -> 0 | R63: 0 | S63: 0 | T63: 0 | AA63: 420 | AG63: =IFERROR(VLOOKUP(ROWS($AG$2:AG63),$AI$2:$AJ$932,2,0),"") -> 425 | AI63: =IF(ISNUMBER(SEARCH($AL$2,AJ63)),MAX($AI$1:AI62)+1,0) -> 61 | AJ63: 420
A64: 63 | B64: اورانج | C64: كورد بوليستر | D64: 5مم | E64: اورانج كورد بوليستر 5مم | F64: 71.31 | I64: =SUMIF(الوارد!$D$2:$D$5853,E64,الوارد!$E$2:$E$5853) -> 0 | J64: =SUMIF(الوارد!$D$2:$D$5853,E64,الوارد!$G$2:$G$5853) -> 0 | K64: =SUMIF(الوارد!$D$2:$D$5853,E64,الوارد!$H$2:$H$5853) -> 0 | L64: =SUMIF(المنصرف!$D$2:$D$4677,E64,المنصرف!$E$2:$E$4677) -> 0 | M64: =SUMIF(المنصرف!$D$2:$D$4677,E64,المنصرف!$G$2:$G$4677) -> 0 | N64: =SUMIF(المنصرف!$D$2:$D$4677,E64,المنصرف!$H$2:$H$4677) -> 0 | O64: =SUMIF(المرتجع!$D$2:$D$789,E64,المرتجع!$E$2:$E$789) -> 0 | P64: =SUMIF(المرتجع!$D$2:$D$789,E64,المرتجع!$G$2:$G$789) -> 0 | Q64: =SUMIF(المرتجع!$D$2:$D$789,E64,المرتجع!$H$2:$H$789) -> 0 | R64: 71.31 | S64: 0 | T64: 0 | AA64: 425 | AG64: =IFERROR(VLOOKUP(ROWS($AG$2:AG64),$AI$2:$AJ$932,2,0),"") -> 430 | AI64: =IF(ISNUMBER(SEARCH($AL$2,AJ64)),MAX($AI$1:AI63)+1,0) -> 62 | AJ64: 425
A65: 64 | B65: ألوان | C65: بايبنج | E65: ألوان بايبنج | F65: 740.7 | I65: =SUMIF(الوارد!$D$2:$D$5853,E65,الوارد!$E$2:$E$5853) -> 0 | J65: =SUMIF(الوارد!$D$2:$D$5853,E65,الوارد!$G$2:$G$5853) -> 0 | K65: =SUMIF(الوارد!$D$2:$D$5853,E65,الوارد!$H$2:$H$5853) -> 0 | L65: =SUMIF(المنصرف!$D$2:$D$4677,E65,المنصرف!$E$2:$E$4677) -> 22.35 | M65: =SUMIF(المنصرف!$D$2:$D$4677,E65,المنصرف!$G$2:$G$4677) -> 0 | N65: =SUMIF(المنصرف!$D$2:$D$4677,E65,المنصرف!$H$2:$H$4677) -> 0 | O65: =SUMIF(المرتجع!$D$2:$D$789,E65,المرتجع!$E$2:$E$789) -> 0 | P65: =SUMIF(المرتجع!$D$2:$D$789,E65,المرتجع!$G$2:$G$789) -> 0 | Q65: =SUMIF(المرتجع!$D$2:$D$789,E65,المرتجع!$H$2:$H$789) -> 0 | R65: 718.35 | S65: 0 | T65: 0 | AA65: 430 | AG65: =IFERROR(VLOOKUP(ROWS($AG$2:AG65),$AI$2:$AJ$932,2,0),"") -> 435 | AI65: =IF(ISNUMBER(SEARCH($AL$2,AJ65)),MAX($AI$1:AI64)+1,0) -> 63 | AJ65: 430
A66: 65 | C66: جاكار الوان | E66: جاكار الوان | F66: 1072 | I66: =SUMIF(الوارد!$D$2:$D$5853,E66,الوارد!$E$2:$E$5853) -> 0 | J66: =SUMIF(الوارد!$D$2:$D$5853,E66,الوارد!$G$2:$G$5853) -> 0 | K66: =SUMIF(الوارد!$D$2:$D$5853,E66,الوارد!$H$2:$H$5853) -> 0 | L66: =SUMIF(المنصرف!$D$2:$D$4677,E66,المنصرف!$E$2:$E$4677) -> 0 | M66: =SUMIF(المنصرف!$D$2:$D$4677,E66,المنصرف!$G$2:$G$4677) -> 0 | N66: =SUMIF(المنصرف!$D$2:$D$4677,E66,المنصرف!$H$2:$H$4677) -> 0 | O66: =SUMIF(المرتجع!$D$2:$D$789,E66,المرتجع!$E$2:$E$789) -> 0 | P66: =SUMIF(المرتجع!$D$2:$D$789,E66,المرتجع!$G$2:$G$789) -> 0 | Q66: =SUMIF(المرتجع!$D$2:$D$789,E66,المرتجع!$H$2:$H$789) -> 0 | R66: 1072 | S66: 0 | T66: 0 | AA66: 435 | AG66: =IFERROR(VLOOKUP(ROWS($AG$2:AG66),$AI$2:$AJ$932,2,0),"") -> 440 | AI66: =IF(ISNUMBER(SEARCH($AL$2,AJ66)),MAX($AI$1:AI65)+1,0) -> 64 | AJ66: 435
A67: 66 | B67: اخضر غامق | C67: جاكار | D67: 3سم | E67: اخضر غامق جاكار 3سم | F67: 448 | I67: =SUMIF(الوارد!$D$2:$D$5853,E67,الوارد!$E$2:$E$5853) -> 0 | J67: =SUMIF(الوارد!$D$2:$D$5853,E67,الوارد!$G$2:$G$5853) -> 0 | K67: =SUMIF(الوارد!$D$2:$D$5853,E67,الوارد!$H$2:$H$5853) -> 0 | L67: =SUMIF(المنصرف!$D$2:$D$4677,E67,المنصرف!$E$2:$E$4677) -> 0 | M67: =SUMIF(المنصرف!$D$2:$D$4677,E67,المنصرف!$G$2:$G$4677) -> 0 | N67: =SUMIF(المنصرف!$D$2:$D$4677,E67,المنصرف!$H$2:$H$4677) -> 0 | O67: =SUMIF(المرتجع!$D$2:$D$789,E67,المرتجع!$E$2:$E$789) -> 0 | P67: =SUMIF(المرتجع!$D$2:$D$789,E67,المرتجع!$G$2:$G$789) -> 0 | Q67: =SUMIF(المرتجع!$D$2:$D$789,E67,المرتجع!$H$2:$H$789) -> 0 | R67: 448 | S67: 0 | T67: 0 | AA67: 440 | AG67: =IFERROR(VLOOKUP(ROWS($AG$2:AG67),$AI$2:$AJ$932,2,0),"") -> 445 | AI67: =IF(ISNUMBER(SEARCH($AL$2,AJ67)),MAX($AI$1:AI66)+1,0) -> 65 | AJ67: 440
A68: 67 | B68: ابيض | C68: جاكار | D68: 3سم | E68: ابيض جاكار 3سم | F68: 405.48 | I68: =SUMIF(الوارد!$D$2:$D$5853,E68,الوارد!$E$2:$E$5853) -> 0 | J68: =SUMIF(الوارد!$D$2:$D$5853,E68,الوارد!$G$2:$G$5853) -> 0 | K68: =SUMIF(الوارد!$D$2:$D$5853,E68,الوارد!$H$2:$H$5853) -> 0 | L68: =SUMIF(المنصرف!$D$2:$D$4677,E68,المنصرف!$E$2:$E$4677) -> 0 | M68: =SUMIF(المنصرف!$D$2:$D$4677,E68,المنصرف!$G$2:$G$4677) -> 0 | N68: =SUMIF(المنصرف!$D$2:$D$4677,E68,المنصرف!$H$2:$H$4677) -> 0 | O68: =SUMIF(المرتجع!$D$2:$D$789,E68,المرتجع!$E$2:$E$789) -> 0 | P68: =SUMIF(المرتجع!$D$2:$D$789,E68,المرتجع!$G$2:$G$789) -> 0 | Q68: =SUMIF(المرتجع!$D$2:$D$789,E68,المرتجع!$H$2:$H$789) -> 0 | R68: 405.48 | S68: 0 | T68: 0 | AA68: 445 | AG68: =IFERROR(VLOOKUP(ROWS($AG$2:AG68),$AI$2:$AJ$932,2,0),"") -> 450 | AI68: =IF(ISNUMBER(SEARCH($AL$2,AJ68)),MAX($AI$1:AI67)+1,0) -> 66 | AJ68: 445
A69: 68 | C69: جاكار | D69: 7سم | E69: جاكار 7سم | F69: =52.5+26.25 -> 78.75 | I69: =SUMIF(الوارد!$D$2:$D$5853,E69,الوارد!$E$2:$E$5853) -> 0 | J69: =SUMIF(الوارد!$D$2:$D$5853,E69,الوارد!$G$2:$G$5853) -> 0 | K69: =SUMIF(الوارد!$D$2:$D$5853,E69,الوارد!$H$2:$H$5853) -> 0 | L69: =SUMIF(المنصرف!$D$2:$D$4677,E69,المنصرف!$E$2:$E$4677) -> 0 | M69: =SUMIF(المنصرف!$D$2:$D$4677,E69,المنصرف!$G$2:$G$4677) -> 0 | N69: =SUMIF(المنصرف!$D$2:$D$4677,E69,المنصرف!$H$2:$H$4677) -> 0 | O69: =SUMIF(المرتجع!$D$2:$D$789,E69,المرتجع!$E$2:$E$789) -> 0 | P69: =SUMIF(المرتجع!$D$2:$D$789,E69,المرتجع!$G$2:$G$789) -> 0 | Q69: =SUMIF(المرتجع!$D$2:$D$789,E69,المرتجع!$H$2:$H$789) -> 0 | R69: 78.75 | S69: 0 | T69: 0 | AA69: 450 | AG69: =IFERROR(VLOOKUP(ROWS($AG$2:AG69),$AI$2:$AJ$932,2,0),"") -> 455 | AI69: =IF(ISNUMBER(SEARCH($AL$2,AJ69)),MAX($AI$1:AI68)+1,0) -> 67 | AJ69: 450
A70: 69 | B70: اوف وايت | C70: كورد قطن | D70: 6مم | E70: اوف وايت كورد قطن 6مم | I70: =SUMIF(الوارد!$D$2:$D$5853,E70,الوارد!$E$2:$E$5853) -> 154.16 | J70: =SUMIF(الوارد!$D$2:$D$5853,E70,الوارد!$G$2:$G$5853) -> 11273 | K70: =SUMIF(الوارد!$D$2:$D$5853,E70,الوارد!$H$2:$H$5853) -> 0 | L70: =SUMIF(المنصرف!$D$2:$D$4677,E70,المنصرف!$E$2:$E$4677) -> 154.16 | M70: =SUMIF(المنصرف!$D$2:$D$4677,E70,المنصرف!$G$2:$G$4677) -> 11273 | N70: =SUMIF(المنصرف!$D$2:$D$4677,E70,المنصرف!$H$2:$H$4677) -> 0 | O70: =SUMIF(المرتجع!$D$2:$D$789,E70,المرتجع!$E$2:$E$789) -> 0 | P70: =SUMIF(المرتجع!$D$2:$D$789,E70,المرتجع!$G$2:$G$789) -> 0 | Q70: =SUMIF(المرتجع!$D$2:$D$789,E70,المرتجع!$H$2:$H$789) -> 0 | R70: 0 | S70: 0 | T70: 0 | AA70: 455 | AG70: =IFERROR(VLOOKUP(ROWS($AG$2:AG70),$AI$2:$AJ$932,2,0),"") -> 460 | AI70: =IF(ISNUMBER(SEARCH($AL$2,AJ70)),MAX($AI$1:AI69)+1,0) -> 68 | AJ70: 455
A71: 70 | B71: ابيض | C71: جاكار كيوت جيرل خام | D71: 1.7سم | E71: ابيض جاكار كيوت جيرل خام 1.7سم | I71: =SUMIF(الوارد!$D$2:$D$5853,E71,الوارد!$E$2:$E$5853) -> 351.8 | J71: =SUMIF(الوارد!$D$2:$D$5853,E71,الوارد!$G$2:$G$5853) -> 0 | K71: =SUMIF(الوارد!$D$2:$D$5853,E71,الوارد!$H$2:$H$5853) -> 0 | L71: =SUMIF(المنصرف!$D$2:$D$4677,E71,المنصرف!$E$2:$E$4677) -> 0 | M71: =SUMIF(المنصرف!$D$2:$D$4677,E71,المنصرف!$G$2:$G$4677) -> 0 | N71: =SUMIF(المنصرف!$D$2:$D$4677,E71,المنصرف!$H$2:$H$4677) -> 0 | O71: =SUMIF(المرتجع!$D$2:$D$789,E71,المرتجع!$E$2:$E$789) -> 0 | P71: =SUMIF(المرتجع!$D$2:$D$789,E71,المرتجع!$G$2:$G$789) -> 0 | Q71: =SUMIF(المرتجع!$D$2:$D$789,E71,المرتجع!$H$2:$H$789) -> 0 | R71: 351.8 | S71: 0 | T71: 0 | AA71: 460 | AG71: =IFERROR(VLOOKUP(ROWS($AG$2:AG71),$AI$2:$AJ$932,2,0),"") -> 465 | AI71: =IF(ISNUMBER(SEARCH($AL$2,AJ71)),MAX($AI$1:AI70)+1,0) -> 69 | AJ71: 460
A72: 71 | B72: ابيض | C72: جاكار بارز خام ريد قطن | D72: 3.5سم | E72: ابيض جاكار بارز خام ريد قطن 3.5سم | F72: =23.78+425.22 -> 449 | I72: =SUMIF(الوارد!$D$2:$D$5853,E72,الوارد!$E$2:$E$5853) -> 0 | J72: =SUMIF(الوارد!$D$2:$D$5853,E72,الوارد!$G$2:$G$5853) -> 0 | K72: =SUMIF(الوارد!$D$2:$D$5853,E72,الوارد!$H$2:$H$5853) -> 0 | L72: =SUMIF(المنصرف!$D$2:$D$4677,E72,المنصرف!$E$2:$E$4677) -> 240 | M72: =SUMIF(المنصرف!$D$2:$D$4677,E72,المنصرف!$G$2:$G$4677) -> 0 | N72: =SUMIF(المنصرف!$D$2:$D$4677,E72,المنصرف!$H$2:$H$4677) -> 0 | O72: =SUMIF(المرتجع!$D$2:$D$789,E72,المرتجع!$E$2:$E$789) -> 0 | P72: =SUMIF(المرتجع!$D$2:$D$789,E72,المرتجع!$G$2:$G$789) -> 0 | Q72: =SUMIF(المرتجع!$D$2:$D$789,E72,المرتجع!$H$2:$H$789) -> 0 | R72: 209 | S72: 0 | T72: 0 | AA72: 465 | AG72: =IFERROR(VLOOKUP(ROWS($AG$2:AG72),$AI$2:$AJ$932,2,0),"") -> 470 | AI72: =IF(ISNUMBER(SEARCH($AL$2,AJ72)),MAX($AI$1:AI71)+1,0) -> 70 | AJ72: 465
A73: 72 | B73: ابيض | C73: جاكار فاني باني خام | E73: ابيض جاكار فاني باني خام | F73: =1165.49+417.21 -> 1582.7 | I73: =SUMIF(الوارد!$D$2:$D$5853,E73,الوارد!$E$2:$E$5853) -> 120 | J73: =SUMIF(الوارد!$D$2:$D$5853,E73,الوارد!$G$2:$G$5853) -> 0 | K73: =SUMIF(الوارد!$D$2:$D$5853,E73,الوارد!$H$2:$H$5853) -> 0 | L73: =SUMIF(المنصرف!$D$2:$D$4677,E73,المنصرف!$E$2:$E$4677) -> 1702.7 | M73: =SUMIF(المنصرف!$D$2:$D$4677,E73,المنصرف!$G$2:$G$4677) -> 0 | N73: =SUMIF(المنصرف!$D$2:$D$4677,E73,المنصرف!$H$2:$H$4677) -> 0 | O73: =SUMIF(المرتجع!$D$2:$D$789,E73,المرتجع!$E$2:$E$789) -> 0 | P73: =SUMIF(المرتجع!$D$2:$D$789,E73,المرتجع!$G$2:$G$789) -> 0 | Q73: =SUMIF(المرتجع!$D$2:$D$789,E73,المرتجع!$H$2:$H$789) -> 0 | R73: 0 | S73: 0 | T73: 0 | AA73: 470 | AG73: =IFERROR(VLOOKUP(ROWS($AG$2:AG73),$AI$2:$AJ$932,2,0),"") -> 475 | AI73: =IF(ISNUMBER(SEARCH($AL$2,AJ73)),MAX($AI$1:AI72)+1,0) -> 71 | AJ73: 470
A74: 73 | B74: ابيض | C74: جاكار | E74: ابيض جاكار | F74: 904.05 | I74: =SUMIF(الوارد!$D$2:$D$5853,E74,الوارد!$E$2:$E$5853) -> 0 | J74: =SUMIF(الوارد!$D$2:$D$5853,E74,الوارد!$G$2:$G$5853) -> 0 | K74: =SUMIF(الوارد!$D$2:$D$5853,E74,الوارد!$H$2:$H$5853) -> 0 | L74: =SUMIF(المنصرف!$D$2:$D$4677,E74,المنصرف!$E$2:$E$4677) -> 0 | M74: =SUMIF(المنصرف!$D$2:$D$4677,E74,المنصرف!$G$2:$G$4677) -> 0 | N74: =SUMIF(المنصرف!$D$2:$D$4677,E74,المنصرف!$H$2:$H$4677) -> 0 | O74: =SUMIF(المرتجع!$D$2:$D$789,E74,المرتجع!$E$2:$E$789) -> 0 | P74: =SUMIF(المرتجع!$D$2:$D$789,E74,المرتجع!$G$2:$G$789) -> 0 | Q74: =SUMIF(المرتجع!$D$2:$D$789,E74,المرتجع!$H$2:$H$789) -> 0 | R74: 904.05 | S74: 0 | T74: 0 | AA74: 475 | AG74: =IFERROR(VLOOKUP(ROWS($AG$2:AG74),$AI$2:$AJ$932,2,0),"") -> 480 | AI74: =IF(ISNUMBER(SEARCH($AL$2,AJ74)),MAX($AI$1:AI73)+1,0) -> 72 | AJ74: 475
A75: 74 | B75: ابيض | C75: جاكار بارز خام جونيور | D75: 2سم | E75: ابيض جاكار بارز خام جونيور 2سم | F75: 113.72 | I75: =SUMIF(الوارد!$D$2:$D$5853,E75,الوارد!$E$2:$E$5853) -> 0 | J75: =SUMIF(الوارد!$D$2:$D$5853,E75,الوارد!$G$2:$G$5853) -> 0 | K75: =SUMIF(الوارد!$D$2:$D$5853,E75,الوارد!$H$2:$H$5853) -> 0 | L75: =SUMIF(المنصرف!$D$2:$D$4677,E75,المنصرف!$E$2:$E$4677) -> 60 | M75: =SUMIF(المنصرف!$D$2:$D$4677,E75,المنصرف!$G$2:$G$4677) -> 0 | N75: =SUMIF(المنصرف!$D$2:$D$4677,E75,المنصرف!$H$2:$H$4677) -> 0 | O75: =SUMIF(المرتجع!$D$2:$D$789,E75,المرتجع!$E$2:$E$789) -> 0 | P75: =SUMIF(المرتجع!$D$2:$D$789,E75,المرتجع!$G$2:$G$789) -> 0 | Q75: =SUMIF(المرتجع!$D$2:$D$789,E75,المرتجع!$H$2:$H$789) -> 0 | R75: 53.72 | S75: 0 | T75: 0 | AA75: 480 | AG75: =IFERROR(VLOOKUP(ROWS($AG$2:AG75),$AI$2:$AJ$932,2,0),"") -> 485 | AI75: =IF(ISNUMBER(SEARCH($AL$2,AJ75)),MAX($AI$1:AI74)+1,0) -> 73 | AJ75: 480
A76: 75 | B76: ابيض | C76: جاكار | D76: مقاسات مختلفة | E76: ابيض جاكار مقاسات مختلفة | F76: 200.76 | I76: =SUMIF(الوارد!$D$2:$D$5853,E76,الوارد!$E$2:$E$5853) -> 0 | J76: =SUMIF(الوارد!$D$2:$D$5853,E76,الوارد!$G$2:$G$5853) -> 0 | K76: =SUMIF(الوارد!$D$2:$D$5853,E76,الوارد!$H$2:$H$5853) -> 0 | L76: =SUMIF(المنصرف!$D$2:$D$4677,E76,المنصرف!$E$2:$E$4677) -> 0 | M76: =SUMIF(المنصرف!$D$2:$D$4677,E76,المنصرف!$G$2:$G$4677) -> 0 | N76: =SUMIF(المنصرف!$D$2:$D$4677,E76,المنصرف!$H$2:$H$4677) -> 0 | O76: =SUMIF(المرتجع!$D$2:$D$789,E76,المرتجع!$E$2:$E$789) -> 0 | P76: =SUMIF(المرتجع!$D$2:$D$789,E76,المرتجع!$G$2:$G$789) -> 0 | Q76: =SUMIF(المرتجع!$D$2:$D$789,E76,المرتجع!$H$2:$H$789) -> 0 | R76: 200.76 | S76: 0 | T76: 0 | AA76: 485 | AG76: =IFERROR(VLOOKUP(ROWS($AG$2:AG76),$AI$2:$AJ$932,2,0),"") -> 490 | AI76: =IF(ISNUMBER(SEARCH($AL$2,AJ76)),MAX($AI$1:AI75)+1,0) -> 74 | AJ76: 485
A77: 76 | B77: رصاصى | C77: جاكار | D77: 3سم | E77: رصاصى جاكار 3سم | F77: 678.53 | I77: =SUMIF(الوارد!$D$2:$D$5853,E77,الوارد!$E$2:$E$5853) -> 0 | J77: =SUMIF(الوارد!$D$2:$D$5853,E77,الوارد!$G$2:$G$5853) -> 0 | K77: =SUMIF(الوارد!$D$2:$D$5853,E77,الوارد!$H$2:$H$5853) -> 0 | L77: =SUMIF(المنصرف!$D$2:$D$4677,E77,المنصرف!$E$2:$E$4677) -> 0 | M77: =SUMIF(المنصرف!$D$2:$D$4677,E77,المنصرف!$G$2:$G$4677) -> 0 | N77: =SUMIF(المنصرف!$D$2:$D$4677,E77,المنصرف!$H$2:$H$4677) -> 0 | O77: =SUMIF(المرتجع!$D$2:$D$789,E77,المرتجع!$E$2:$E$789) -> 0 | P77: =SUMIF(المرتجع!$D$2:$D$789,E77,المرتجع!$G$2:$G$789) -> 0 | Q77: =SUMIF(المرتجع!$D$2:$D$789,E77,المرتجع!$H$2:$H$789) -> 0 | R77: 678.53 | S77: 0 | T77: 0 | AA77: 490 | AG77: =IFERROR(VLOOKUP(ROWS($AG$2:AG77),$AI$2:$AJ$932,2,0),"") -> 495 | AI77: =IF(ISNUMBER(SEARCH($AL$2,AJ77)),MAX($AI$1:AI76)+1,0) -> 75 | AJ77: 490
A78: 77 | B78: ابيض | C78: جاكار | D78: 3.5سم | E78: ابيض جاكار 3.5سم | F78: =71.35+124.65 -> 196 | G78: =8708 -> 8708 | I78: =SUMIF(الوارد!$D$2:$D$5853,E78,الوارد!$E$2:$E$5853) -> 7 | J78: =SUMIF(الوارد!$D$2:$D$5853,E78,الوارد!$G$2:$G$5853) -> 311 | K78: =SUMIF(الوارد!$D$2:$D$5853,E78,الوارد!$H$2:$H$5853) -> 0 | L78: =SUMIF(المنصرف!$D$2:$D$4677,E78,المنصرف!$E$2:$E$4677) -> 203 | M78: =SUMIF(المنصرف!$D$2:$D$4677,E78,المنصرف!$G$2:$G$4677) -> 9019 | N78: =SUMIF(المنصرف!$D$2:$D$4677,E78,المنصرف!$H$2:$H$4677) -> 0 | O78: =SUMIF(المرتجع!$D$2:$D$789,E78,المرتجع!$E$2:$E$789) -> 0 | P78: =SUMIF(المرتجع!$D$2:$D$789,E78,المرتجع!$G$2:$G$789) -> 0 | Q78: =SUMIF(المرتجع!$D$2:$D$789,E78,المرتجع!$H$2:$H$789) -> 0 | R78: 0 | S78: 0 | T78: 0 | AA78: 495 | AG78: =IFERROR(VLOOKUP(ROWS($AG$2:AG78),$AI$2:$AJ$932,2,0),"") -> 500 | AI78: =IF(ISNUMBER(SEARCH($AL$2,AJ78)),MAX($AI$1:AI77)+1,0) -> 76 | AJ78: 495
A79: 78 | B79: رصاصي*اسود | C79: جاكار | D79: 4سم | E79: رصاصي*اسود جاكار 4سم | F79: 28 | I79: =SUMIF(الوارد!$D$2:$D$5853,E79,الوارد!$E$2:$E$5853) -> 0 | J79: =SUMIF(الوارد!$D$2:$D$5853,E79,الوارد!$G$2:$G$5853) -> 0 | K79: =SUMIF(الوارد!$D$2:$D$5853,E79,الوارد!$H$2:$H$5853) -> 0 | L79: =SUMIF(المنصرف!$D$2:$D$4677,E79,المنصرف!$E$2:$E$4677) -> 0 | M79: =SUMIF(المنصرف!$D$2:$D$4677,E79,المنصرف!$G$2:$G$4677) -> 0 | N79: =SUMIF(المنصرف!$D$2:$D$4677,E79,المنصرف!$H$2:$H$4677) -> 0 | O79: =SUMIF(المرتجع!$D$2:$D$789,E79,المرتجع!$E$2:$E$789) -> 0 | P79: =SUMIF(المرتجع!$D$2:$D$789,E79,المرتجع!$G$2:$G$789) -> 0 | Q79: =SUMIF(المرتجع!$D$2:$D$789,E79,المرتجع!$H$2:$H$789) -> 0 | R79: 28 | S79: 0 | T79: 0 | AA79: 500 | AG79: =IFERROR(VLOOKUP(ROWS($AG$2:AG79),$AI$2:$AJ$932,2,0),"") -> 510 | AI79: =IF(ISNUMBER(SEARCH($AL$2,AJ79)),MAX($AI$1:AI78)+1,0) -> 77 | AJ79: 500
A80: 79 | B80: ابيض*اسود | C80: جاكار | D80: 4سم | E80: ابيض*اسود جاكار 4سم | F80: 21 | I80: =SUMIF(الوارد!$D$2:$D$5853,E80,الوارد!$E$2:$E$5853) -> 136.36 | J80: =SUMIF(الوارد!$D$2:$D$5853,E80,الوارد!$G$2:$G$5853) -> 6016 | K80: =SUMIF(الوارد!$D$2:$D$5853,E80,الوارد!$H$2:$H$5853) -> 0 | L80: =SUMIF(المنصرف!$D$2:$D$4677,E80,المنصرف!$E$2:$E$4677) -> 77 | M80: =SUMIF(المنصرف!$D$2:$D$4677,E80,المنصرف!$G$2:$G$4677) -> 3080 | N80: =SUMIF(المنصرف!$D$2:$D$4677,E80,المنصرف!$H$2:$H$4677) -> 0 | O80: =SUMIF(المرتجع!$D$2:$D$789,E80,المرتجع!$E$2:$E$789) -> 0 | P80: =SUMIF(المرتجع!$D$2:$D$789,E80,المرتجع!$G$2:$G$789) -> 0 | Q80: =SUMIF(المرتجع!$D$2:$D$789,E80,المرتجع!$H$2:$H$789) -> 0 | R80: 80.36 | S80: 2936 | T80: 0 | AA80: 510 | AG80: =IFERROR(VLOOKUP(ROWS($AG$2:AG80),$AI$2:$AJ$932,2,0),"") -> 515 | AI80: =IF(ISNUMBER(SEARCH($AL$2,AJ80)),MAX($AI$1:AI79)+1,0) -> 78 | AJ80: 510
A81: 80 | B81: ألوان | C81: جاكار | D81: 3سم | E81: ألوان جاكار 3سم | F81: 1465.19 | I81: =SUMIF(الوارد!$D$2:$D$5853,E81,الوارد!$E$2:$E$5853) -> 0 | J81: =SUMIF(الوارد!$D$2:$D$5853,E81,الوارد!$G$2:$G$5853) -> 0 | K81: =SUMIF(الوارد!$D$2:$D$5853,E81,الوارد!$H$2:$H$5853) -> 0 | L81: =SUMIF(المنصرف!$D$2:$D$4677,E81,المنصرف!$E$2:$E$4677) -> 0 | M81: =SUMIF(المنصرف!$D$2:$D$4677,E81,المنصرف!$G$2:$G$4677) -> 0 | N81: =SUMIF(المنصرف!$D$2:$D$4677,E81,المنصرف!$H$2:$H$4677) -> 0 | O81: =SUMIF(المرتجع!$D$2:$D$789,E81,المرتجع!$E$2:$E$789) -> 0 | P81: =SUMIF(المرتجع!$D$2:$D$789,E81,المرتجع!$G$2:$G$789) -> 0 | Q81: =SUMIF(المرتجع!$D$2:$D$789,E81,المرتجع!$H$2:$H$789) -> 0 | R81: 1465.19 | S81: 0 | T81: 0 | AA81: 515 | AG81: =IFERROR(VLOOKUP(ROWS($AG$2:AG81),$AI$2:$AJ$932,2,0),"") -> 520 | AI81: =IF(ISNUMBER(SEARCH($AL$2,AJ81)),MAX($AI$1:AI80)+1,0) -> 79 | AJ81: 515
A82: 81 | B82: ابيض خام | C82: جاكار | D82: 3.5سم | E82: ابيض خام جاكار 3.5سم | F82: 296.78 | I82: =SUMIF(الوارد!$D$2:$D$5853,E82,الوارد!$E$2:$E$5853) -> 0 | J82: =SUMIF(الوارد!$D$2:$D$5853,E82,الوارد!$G$2:$G$5853) -> 0 | K82: =SUMIF(الوارد!$D$2:$D$5853,E82,الوارد!$H$2:$H$5853) -> 0 | L82: =SUMIF(المنصرف!$D$2:$D$4677,E82,المنصرف!$E$2:$E$4677) -> 0 | M82: =SUMIF(المنصرف!$D$2:$D$4677,E82,المنصرف!$G$2:$G$4677) -> 0 | N82: =SUMIF(المنصرف!$D$2:$D$4677,E82,المنصرف!$H$2:$H$4677) -> 0 | O82: =SUMIF(المرتجع!$D$2:$D$789,E82,المرتجع!$E$2:$E$789) -> 0 | P82: =SUMIF(المرتجع!$D$2:$D$789,E82,المرتجع!$G$2:$G$789) -> 0 | Q82: =SUMIF(المرتجع!$D$2:$D$789,E82,المرتجع!$H$2:$H$789) -> 0 | R82: 296.78 | S82: 0 | T82: 0 | AA82: 520 | AG82: =IFERROR(VLOOKUP(ROWS($AG$2:AG82),$AI$2:$AJ$932,2,0),"") -> 525 | AI82: =IF(ISNUMBER(SEARCH($AL$2,AJ82)),MAX($AI$1:AI81)+1,0) -> 80 | AJ82: 520
A83: 82 | C83: ويفين الوان | E83: ويفين الوان | F83: 282 | I83: =SUMIF(الوارد!$D$2:$D$5853,E83,الوارد!$E$2:$E$5853) -> 0 | J83: =SUMIF(الوارد!$D$2:$D$5853,E83,الوارد!$G$2:$G$5853) -> 0 | K83: =SUMIF(الوارد!$D$2:$D$5853,E83,الوارد!$H$2:$H$5853) -> 0 | L83: =SUMIF(المنصرف!$D$2:$D$4677,E83,المنصرف!$E$2:$E$4677) -> 0 | M83: =SUMIF(المنصرف!$D$2:$D$4677,E83,المنصرف!$G$2:$G$4677) -> 0 | N83: =SUMIF(المنصرف!$D$2:$D$4677,E83,المنصرف!$H$2:$H$4677) -> 0 | O83: =SUMIF(المرتجع!$D$2:$D$789,E83,المرتجع!$E$2:$E$789) -> 0 | P83: =SUMIF(المرتجع!$D$2:$D$789,E83,المرتجع!$G$2:$G$789) -> 0 | Q83: =SUMIF(المرتجع!$D$2:$D$789,E83,المرتجع!$H$2:$H$789) -> 0 | R83: 282 | S83: 0 | T83: 0 | AA83: 525 | AG83: =IFERROR(VLOOKUP(ROWS($AG$2:AG83),$AI$2:$AJ$932,2,0),"") -> 530 | AI83: =IF(ISNUMBER(SEARCH($AL$2,AJ83)),MAX($AI$1:AI82)+1,0) -> 81 | AJ83: 525
A84: 83 | B84: ابيض | C84: ويفين | D84: مقاسات مختلفة | E84: ابيض ويفين مقاسات مختلفة | F84: =296+182 -> 478 | I84: =SUMIF(الوارد!$D$2:$D$5853,E84,الوارد!$E$2:$E$5853) -> 0 | J84: =SUMIF(الوارد!$D$2:$D$5853,E84,الوارد!$G$2:$G$5853) -> 0 | K84: =SUMIF(الوارد!$D$2:$D$5853,E84,الوارد!$H$2:$H$5853) -> 0 | L84: =SUMIF(المنصرف!$D$2:$D$4677,E84,المنصرف!$E$2:$E$4677) -> 0 | M84: =SUMIF(المنصرف!$D$2:$D$4677,E84,المنصرف!$G$2:$G$4677) -> 0 | N84: =SUMIF(المنصرف!$D$2:$D$4677,E84,المنصرف!$H$2:$H$4677) -> 0 | O84: =SUMIF(المرتجع!$D$2:$D$789,E84,المرتجع!$E$2:$E$789) -> 0 | P84: =SUMIF(المرتجع!$D$2:$D$789,E84,المرتجع!$G$2:$G$789) -> 0 | Q84: =SUMIF(المرتجع!$D$2:$D$789,E84,المرتجع!$H$2:$H$789) -> 0 | R84: 478 | S84: 0 | T84: 0 | AA84: 530 | AG84: =IFERROR(VLOOKUP(ROWS($AG$2:AG84),$AI$2:$AJ$932,2,0),"") -> 600 | AI84: =IF(ISNUMBER(SEARCH($AL$2,AJ84)),MAX($AI$1:AI83)+1,0) -> 82 | AJ84: 530
A85: 84 | B85: ابيض | C85: ويفين | D85: 2سم | E85: =B85&" "&C85&" "&D85 -> ابيض ويفين 2سم | F85: 553.32 | I85: =SUMIF(الوارد!$D$2:$D$5853,E85,الوارد!$E$2:$E$5853) -> 1087.03 | J85: =SUMIF(الوارد!$D$2:$D$5853,E85,الوارد!$G$2:$G$5853) -> 0 | K85: =SUMIF(الوارد!$D$2:$D$5853,E85,الوارد!$H$2:$H$5853) -> 0 | L85: =SUMIF(المنصرف!$D$2:$D$4677,E85,المنصرف!$E$2:$E$4677) -> 1096.12 | M85: =SUMIF(المنصرف!$D$2:$D$4677,E85,المنصرف!$G$2:$G$4677) -> 0 | N85: =SUMIF(المنصرف!$D$2:$D$4677,E85,المنصرف!$H$2:$H$4677) -> 0 | O85: =SUMIF(المرتجع!$D$2:$D$789,E85,المرتجع!$E$2:$E$789) -> 0 | P85: =SUMIF(المرتجع!$D$2:$D$789,E85,المرتجع!$G$2:$G$789) -> 0 | Q85: =SUMIF(المرتجع!$D$2:$D$789,E85,المرتجع!$H$2:$H$789) -> 0 | R85: =F85+I85+O85-L85 -> 544.23 | S85: =G85+J85+P85-M85 -> 0 | T85: =H85+K85+Q85-N85 -> 0 | AA85: 600 | AG85: =IFERROR(VLOOKUP(ROWS($AG$2:AG85),$AI$2:$AJ$932,2,0),"") -> 620 | AI85: =IF(ISNUMBER(SEARCH($AL$2,AJ85)),MAX($AI$1:AI84)+1,0) -> 83 | AJ85: 600
A86: 85 | B86: ابيض | C86: ساندوتش | D86: 1.5سم | E86: ابيض ساندوتش 1.5سم | F86: 43.8 | I86: =SUMIF(الوارد!$D$2:$D$5853,E86,الوارد!$E$2:$E$5853) -> 840 | J86: =SUMIF(الوارد!$D$2:$D$5853,E86,الوارد!$G$2:$G$5853) -> 0 | K86: =SUMIF(الوارد!$D$2:$D$5853,E86,الوارد!$H$2:$H$5853) -> 0 | L86: =SUMIF(المنصرف!$D$2:$D$4677,E86,المنصرف!$E$2:$E$4677) -> 350.66 | M86: =SUMIF(المنصرف!$D$2:$D$4677,E86,المنصرف!$G$2:$G$4677) -> 24362.82 | N86: =SUMIF(المنصرف!$D$2:$D$4677,E86,المنصرف!$H$2:$H$4677) -> 0 | O86: =SUMIF(المرتجع!$D$2:$D$789,E86,المرتجع!$E$2:$E$789) -> 400.52 | P86: =SUMIF(المرتجع!$D$2:$D$789,E86,المرتجع!$G$2:$G$789) -> 38608.51 | Q86: =SUMIF(المرتجع!$D$2:$D$789,E86,المرتجع!$H$2:$H$789) -> 0 | R86: 933.66 | S86: 14245.69 | T86: 0 | AA86: 620 | AG86: =IFERROR(VLOOKUP(ROWS($AG$2:AG86),$AI$2:$AJ$932,2,0),"") -> 625 | AI86: =IF(ISNUMBER(SEARCH($AL$2,AJ86)),MAX($AI$1:AI85)+1,0) -> 84 | AJ86: 620
A87: 86 | B87: ابيض | C87: ويفين | D87: 3سم | E87: ابيض ويفين 3سم | F87: 449.3 | I87: =SUMIF(الوارد!$D$2:$D$5853,E87,الوارد!$E$2:$E$5853) -> 29.63 | J87: =SUMIF(الوارد!$D$2:$D$5853,E87,الوارد!$G$2:$G$5853) -> 1900 | K87: =SUMIF(الوارد!$D$2:$D$5853,E87,الوارد!$H$2:$H$5853) -> 0 | L87: =SUMIF(المنصرف!$D$2:$D$4677,E87,المنصرف!$E$2:$E$4677) -> 0 | M87: =SUMIF(المنصرف!$D$2:$D$4677,E87,المنصرف!$G$2:$G$4677) -> 0 | N87: =SUMIF(المنصرف!$D$2:$D$4677,E87,المنصرف!$H$2:$H$4677) -> 0 | O87: =SUMIF(المرتجع!$D$2:$D$789,E87,المرتجع!$E$2:$E$789) -> 0 | P87: =SUMIF(المرتجع!$D$2:$D$789,E87,المرتجع!$G$2:$G$789) -> 0 | Q87: =SUMIF(المرتجع!$D$2:$D$789,E87,المرتجع!$H$2:$H$789) -> 0 | R87: 478.93 | S87: 1900 | T87: 0 | AA87: 625 | AG87: =IFERROR(VLOOKUP(ROWS($AG$2:AG87),$AI$2:$AJ$932,2,0),"") -> 630 | AI87: =IF(ISNUMBER(SEARCH($AL$2,AJ87)),MAX($AI$1:AI86)+1,0) -> 85 | AJ87: 625
A88: 87 | B88: اسود | C88: ويفين | D88: 1.6سم | E88: اسود ويفين 1.6سم | F88: =336-98.05 -> 237.95 | I88: =SUMIF(الوارد!$D$2:$D$5853,E88,الوارد!$E$2:$E$5853) -> 95.1 | J88: =SUMIF(الوارد!$D$2:$D$5853,E88,الوارد!$G$2:$G$5853) -> 0 | K88: =SUMIF(الوارد!$D$2:$D$5853,E88,الوارد!$H$2:$H$5853) -> 0 | L88: =SUMIF(المنصرف!$D$2:$D$4677,E88,المنصرف!$E$2:$E$4677) -> 1433.41 | M88: =SUMIF(المنصرف!$D$2:$D$4677,E88,المنصرف!$G$2:$G$4677) -> 0 | N88: =SUMIF(المنصرف!$D$2:$D$4677,E88,المنصرف!$H$2:$H$4677) -> 0 | O88: =SUMIF(المرتجع!$D$2:$D$789,E88,المرتجع!$E$2:$E$789) -> 1407.11 | P88: =SUMIF(المرتجع!$D$2:$D$789,E88,المرتجع!$G$2:$G$789) -> 18798.3 | Q88: =SUMIF(المرتجع!$D$2:$D$789,E88,المرتجع!$H$2:$H$789) -> 0 | R88: 306.75 | S88: 18798.3 | T88: 0 | AA88: 630 | AG88: =IFERROR(VLOOKUP(ROWS($AG$2:AG88),$AI$2:$AJ$932,2,0),"") -> 635 | AI88: =IF(ISNUMBER(SEARCH($AL$2,AJ88)),MAX($AI$1:AI87)+1,0) -> 86 | AJ88: 630
A89: 88 | B89: اسود | C89: كورد قطن | D89: 112سم | E89: اسود كورد قطن 112سم | I89: =SUMIF(الوارد!$D$2:$D$5853,E89,الوارد!$E$2:$E$5853) -> 128.7 | J89: =SUMIF(الوارد!$D$2:$D$5853,E89,الوارد!$G$2:$G$5853) -> 10080 | K89: =SUMIF(الوارد!$D$2:$D$5853,E89,الوارد!$H$2:$H$5853) -> 0 | L89: =SUMIF(المنصرف!$D$2:$D$4677,E89,المنصرف!$E$2:$E$4677) -> 128.7 | M89: =SUMIF(المنصرف!$D$2:$D$4677,E89,المنصرف!$G$2:$G$4677) -> 10080 | N89: =SUMIF(المنصرف!$D$2:$D$4677,E89,المنصرف!$H$2:$H$4677) -> 0 | O89: =SUMIF(المرتجع!$D$2:$D$789,E89,المرتجع!$E$2:$E$789) -> 0 | P89: =SUMIF(المرتجع!$D$2:$D$789,E89,المرتجع!$G$2:$G$789) -> 0 | Q89: =SUMIF(المرتجع!$D$2:$D$789,E89,المرتجع!$H$2:$H$789) -> 0 | R89: 0 | S89: 0 | T89: 0 | AA89: 635 | AG89: =IFERROR(VLOOKUP(ROWS($AG$2:AG89),$AI$2:$AJ$932,2,0),"") -> 640 | AI89: =IF(ISNUMBER(SEARCH($AL$2,AJ89)),MAX($AI$1:AI88)+1,0) -> 87 | AJ89: 635
A90: 89 | B90: اسود | C90: ويفين | D90: 10مللى | E90: اسود ويفين 10مللى | F90: 21.65 | I90: =SUMIF(الوارد!$D$2:$D$5853,E90,الوارد!$E$2:$E$5853) -> 0 | J90: =SUMIF(الوارد!$D$2:$D$5853,E90,الوارد!$G$2:$G$5853) -> 0 | K90: =SUMIF(الوارد!$D$2:$D$5853,E90,الوارد!$H$2:$H$5853) -> 0 | L90: =SUMIF(المنصرف!$D$2:$D$4677,E90,المنصرف!$E$2:$E$4677) -> 0 | M90: =SUMIF(المنصرف!$D$2:$D$4677,E90,المنصرف!$G$2:$G$4677) -> 0 | N90: =SUMIF(المنصرف!$D$2:$D$4677,E90,المنصرف!$H$2:$H$4677) -> 0 | O90: =SUMIF(المرتجع!$D$2:$D$789,E90,المرتجع!$E$2:$E$789) -> 0 | P90: =SUMIF(المرتجع!$D$2:$D$789,E90,المرتجع!$G$2:$G$789) -> 0 | Q90: =SUMIF(المرتجع!$D$2:$D$789,E90,المرتجع!$H$2:$H$789) -> 0 | R90: 21.65 | S90: 0 | T90: 0 | AA90: 640 | AG90: =IFERROR(VLOOKUP(ROWS($AG$2:AG90),$AI$2:$AJ$932,2,0),"") ->  | AI90: =IF(ISNUMBER(SEARCH($AL$2,AJ90)),MAX($AI$1:AI89)+1,0) -> 88 | AJ90: 640
A91: 90 | B91: raw | C91: كورد قطن | D91: 1سم | E91: raw كورد قطن 1سم | I91: =SUMIF(الوارد!$D$2:$D$5853,E91,الوارد!$E$2:$E$5853) -> 127.4 | J91: =SUMIF(الوارد!$D$2:$D$5853,E91,الوارد!$G$2:$G$5853) -> 16859 | K91: =SUMIF(الوارد!$D$2:$D$5853,E91,الوارد!$H$2:$H$5853) -> 0 | L91: =SUMIF(المنصرف!$D$2:$D$4677,E91,المنصرف!$E$2:$E$4677) -> 400.4 | M91: =SUMIF(المنصرف!$D$2:$D$4677,E91,المنصرف!$G$2:$G$4677) -> 53259 | N91: =SUMIF(المنصرف!$D$2:$D$4677,E91,المنصرف!$H$2:$H$4677) -> 0 | O91: =SUMIF(المرتجع!$D$2:$D$789,E91,المرتجع!$E$2:$E$789) -> 368.01 | P91: =SUMIF(المرتجع!$D$2:$D$789,E91,المرتجع!$G$2:$G$789) -> 52765 | Q91: =SUMIF(المرتجع!$D$2:$D$789,E91,المرتجع!$H$2:$H$789) -> 0 | R91: 95.01 | S91: 16365 | T91: 0 | AG91: =IFERROR(VLOOKUP(ROWS($AG$2:AG91),$AI$2:$AJ$932,2,0),"") ->  | AI91: =IF(ISNUMBER(SEARCH($AL$2,AJ91)),MAX($AI$1:AI90)+1,0) -> 0
A92: 91 | B92: ابيض | C92: ويفين | D92: 4مم | E92: ابيض ويفين 4مم | F92: 68.47 | I92: =SUMIF(الوارد!$D$2:$D$5853,E92,الوارد!$E$2:$E$5853) -> 0 | J92: =SUMIF(الوارد!$D$2:$D$5853,E92,الوارد!$G$2:$G$5853) -> 0 | K92: =SUMIF(الوارد!$D$2:$D$5853,E92,الوارد!$H$2:$H$5853) -> 0 | L92: =SUMIF(المنصرف!$D$2:$D$4677,E92,المنصرف!$E$2:$E$4677) -> 1.45 | M92: =SUMIF(المنصرف!$D$2:$D$4677,E92,المنصرف!$G$2:$G$4677) -> 0 | N92: =SUMIF(المنصرف!$D$2:$D$4677,E92,المنصرف!$H$2:$H$4677) -> 0 | O92: =SUMIF(المرتجع!$D$2:$D$789,E92,المرتجع!$E$2:$E$789) -> 1.45 | P92: =SUMIF(المرتجع!$D$2:$D$789,E92,المرتجع!$G$2:$G$789) -> 0 | Q92: =SUMIF(المرتجع!$D$2:$D$789,E92,المرتجع!$H$2:$H$789) -> 0 | R92: 68.47 | S92: 0 | T92: 0 | AG92: =IFERROR(VLOOKUP(ROWS($AG$2:AG92),$AI$2:$AJ$932,2,0),"") ->  | AI92: =IF(ISNUMBER(SEARCH($AL$2,AJ92)),MAX($AI$1:AI91)+1,0) -> 0
A93: 92 | B93: اسود | C93: ويفين | D93: 3مم | E93: اسود ويفين 3مم | F93: 154.6 | I93: =SUMIF(الوارد!$D$2:$D$5853,E93,الوارد!$E$2:$E$5853) -> 0 | J93: =SUMIF(الوارد!$D$2:$D$5853,E93,الوارد!$G$2:$G$5853) -> 0 | K93: =SUMIF(الوارد!$D$2:$D$5853,E93,الوارد!$H$2:$H$5853) -> 0 | L93: =SUMIF(المنصرف!$D$2:$D$4677,E93,المنصرف!$E$2:$E$4677) -> 0 | M93: =SUMIF(المنصرف!$D$2:$D$4677,E93,المنصرف!$G$2:$G$4677) -> 0 | N93: =SUMIF(المنصرف!$D$2:$D$4677,E93,المنصرف!$H$2:$H$4677) -> 0 | O93: =SUMIF(المرتجع!$D$2:$D$789,E93,المرتجع!$E$2:$E$789) -> 0 | P93: =SUMIF(المرتجع!$D$2:$D$789,E93,المرتجع!$G$2:$G$789) -> 0 | Q93: =SUMIF(المرتجع!$D$2:$D$789,E93,المرتجع!$H$2:$H$789) -> 0 | R93: 154.6 | S93: 0 | T93: 0 | AG93: =IFERROR(VLOOKUP(ROWS($AG$2:AG93),$AI$2:$AJ$932,2,0),"") ->  | AI93: =IF(ISNUMBER(SEARCH($AL$2,AJ93)),MAX($AI$1:AI92)+1,0) -> 0
A94: 93 | B94: ابيض | C94: ويفين | D94: 3مم | E94: ابيض ويفين 3مم | F94: 22.15 | I94: =SUMIF(الوارد!$D$2:$D$5853,E94,الوارد!$E$2:$E$5853) -> 0 | J94: =SUMIF(الوارد!$D$2:$D$5853,E94,الوارد!$G$2:$G$5853) -> 0 | K94: =SUMIF(الوارد!$D$2:$D$5853,E94,الوارد!$H$2:$H$5853) -> 0 | L94: =SUMIF(المنصرف!$D$2:$D$4677,E94,المنصرف!$E$2:$E$4677) -> 0 | M94: =SUMIF(المنصرف!$D$2:$D$4677,E94,المنصرف!$G$2:$G$4677) -> 0 | N94: =SUMIF(المنصرف!$D$2:$D$4677,E94,المنصرف!$H$2:$H$4677) -> 0 | O94: =SUMIF(المرتجع!$D$2:$D$789,E94,المرتجع!$E$2:$E$789) -> 0 | P94: =SUMIF(المرتجع!$D$2:$D$789,E94,المرتجع!$G$2:$G$789) -> 0 | Q94: =SUMIF(المرتجع!$D$2:$D$789,E94,المرتجع!$H$2:$H$789) -> 0 | R94: 22.15 | S94: 0 | T94: 0 | AG94: =IFERROR(VLOOKUP(ROWS($AG$2:AG94),$AI$2:$AJ$932,2,0),"") ->  | AI94: =IF(ISNUMBER(SEARCH($AL$2,AJ94)),MAX($AI$1:AI93)+1,0) -> 0
A95: 94 | B95: زيتي بارز | C95: جاكار | D95: 3.5سم | E95: زيتي بارز جاكار 3.5سم | F95: -4.86 | G95: -215 | I95: =SUMIF(الوارد!$D$2:$D$5853,E95,الوارد!$E$2:$E$5853) -> 241.42 | J95: =SUMIF(الوارد!$D$2:$D$5853,E95,الوارد!$G$2:$G$5853) -> 10251 | K95: =SUMIF(الوارد!$D$2:$D$5853,E95,الوارد!$H$2:$H$5853) -> 0 | L95: =SUMIF(المنصرف!$D$2:$D$4677,E95,المنصرف!$E$2:$E$4677) -> 236.56 | M95: =SUMIF(المنصرف!$D$2:$D$4677,E95,المنصرف!$G$2:$G$4677) -> 10036 | N95: =SUMIF(المنصرف!$D$2:$D$4677,E95,المنصرف!$H$2:$H$4677) -> 0 | O95: =SUMIF(المرتجع!$D$2:$D$789,E95,المرتجع!$E$2:$E$789) -> 0 | P95: =SUMIF(المرتجع!$D$2:$D$789,E95,المرتجع!$G$2:$G$789) -> 0 | Q95: =SUMIF(المرتجع!$D$2:$D$789,E95,المرتجع!$H$2:$H$789) -> 0 | R95: 0 | S95: 0 | T95: 0 | AG95: =IFERROR(VLOOKUP(ROWS($AG$2:AG95),$AI$2:$AJ$932,2,0),"") ->  | AI95: =IF(ISNUMBER(SEARCH($AL$2,AJ95)),MAX($AI$1:AI94)+1,0) -> 0
A96: 95 | B96: ألوان | C96: ويفين | D96: 1سم | E96: ألوان ويفين 1سم | F96: 964 | I96: =SUMIF(الوارد!$D$2:$D$5853,E96,الوارد!$E$2:$E$5853) -> 0 | J96: =SUMIF(الوارد!$D$2:$D$5853,E96,الوارد!$G$2:$G$5853) -> 0 | K96: =SUMIF(الوارد!$D$2:$D$5853,E96,الوارد!$H$2:$H$5853) -> 0 | L96: =SUMIF(المنصرف!$D$2:$D$4677,E96,المنصرف!$E$2:$E$4677) -> 0 | M96: =SUMIF(المنصرف!$D$2:$D$4677,E96,المنصرف!$G$2:$G$4677) -> 0 | N96: =SUMIF(المنصرف!$D$2:$D$4677,E96,المنصرف!$H$2:$H$4677) -> 0 | O96: =SUMIF(المرتجع!$D$2:$D$789,E96,المرتجع!$E$2:$E$789) -> 0 | P96: =SUMIF(المرتجع!$D$2:$D$789,E96,المرتجع!$G$2:$G$789) -> 0 | Q96: =SUMIF(المرتجع!$D$2:$D$789,E96,المرتجع!$H$2:$H$789) -> 0 | R96: 964 | S96: 0 | T96: 0 | AG96: =IFERROR(VLOOKUP(ROWS($AG$2:AG96),$AI$2:$AJ$932,2,0),"") ->  | AI96: =IF(ISNUMBER(SEARCH($AL$2,AJ96)),MAX($AI$1:AI95)+1,0) -> 0
A97: 96 | B97: 16-1221 | C97: ويفين | D97: 1.6سم | E97: 16-1221 ويفين 1.6سم | I97: =SUMIF(الوارد!$D$2:$D$5853,E97,الوارد!$E$2:$E$5853) -> 0 | J97: =SUMIF(الوارد!$D$2:$D$5853,E97,الوارد!$G$2:$G$5853) -> 0 | K97: =SUMIF(الوارد!$D$2:$D$5853,E97,الوارد!$H$2:$H$5853) -> 0 | L97: =SUMIF(المنصرف!$D$2:$D$4677,E97,المنصرف!$E$2:$E$4677) -> 54 | M97: =SUMIF(المنصرف!$D$2:$D$4677,E97,المنصرف!$G$2:$G$4677) -> 6352.92 | N97: =SUMIF(المنصرف!$D$2:$D$4677,E97,المنصرف!$H$2:$H$4677) -> 0 | O97: =SUMIF(المرتجع!$D$2:$D$789,E97,المرتجع!$E$2:$E$789) -> 54 | P97: =SUMIF(المرتجع!$D$2:$D$789,E97,المرتجع!$G$2:$G$789) -> 6352.92 | Q97: =SUMIF(المرتجع!$D$2:$D$789,E97,المرتجع!$H$2:$H$789) -> 0 | R97: 0 | S97: 0 | T97: 0 | AG97: =IFERROR(VLOOKUP(ROWS($AG$2:AG97),$AI$2:$AJ$932,2,0),"") ->  | AI97: =IF(ISNUMBER(SEARCH($AL$2,AJ97)),MAX($AI$1:AI96)+1,0) -> 0
A98: 97 | B98: ابيض | C98: ويفين | D98: 5سم | E98: ابيض ويفين 5سم | F98: 88 | I98: =SUMIF(الوارد!$D$2:$D$5853,E98,الوارد!$E$2:$E$5853) -> 753.07 | J98: =SUMIF(الوارد!$D$2:$D$5853,E98,الوارد!$G$2:$G$5853) -> 0 | K98: =SUMIF(الوارد!$D$2:$D$5853,E98,الوارد!$H$2:$H$5853) -> 0 | L98: =SUMIF(المنصرف!$D$2:$D$4677,E98,المنصرف!$E$2:$E$4677) -> 721.17 | M98: =SUMIF(المنصرف!$D$2:$D$4677,E98,المنصرف!$G$2:$G$4677) -> 0 | N98: =SUMIF(المنصرف!$D$2:$D$4677,E98,المنصرف!$H$2:$H$4677) -> 0 | O98: =SUMIF(المرتجع!$D$2:$D$789,E98,المرتجع!$E$2:$E$789) -> 0 | P98: =SUMIF(المرتجع!$D$2:$D$789,E98,المرتجع!$G$2:$G$789) -> 0 | Q98: =SUMIF(المرتجع!$D$2:$D$789,E98,المرتجع!$H$2:$H$789) -> 0 | R98: 119.9 | S98: 0 | T98: 0 | AG98: =IFERROR(VLOOKUP(ROWS($AG$2:AG98),$AI$2:$AJ$932,2,0),"") ->  | AI98: =IF(ISNUMBER(SEARCH($AL$2,AJ98)),MAX($AI$1:AI97)+1,0) -> 0
A99: 98 | B99: اسود | C99: ويفين | D99: 7مم | E99: اسود ويفين 7مم | F99: 17.34 | I99: =SUMIF(الوارد!$D$2:$D$5853,E99,الوارد!$E$2:$E$5853) -> 0 | J99: =SUMIF(الوارد!$D$2:$D$5853,E99,الوارد!$G$2:$G$5853) -> 0 | K99: =SUMIF(الوارد!$D$2:$D$5853,E99,الوارد!$H$2:$H$5853) -> 0 | L99: =SUMIF(المنصرف!$D$2:$D$4677,E99,المنصرف!$E$2:$E$4677) -> 0 | M99: =SUMIF(المنصرف!$D$2:$D$4677,E99,المنصرف!$G$2:$G$4677) -> 0 | N99: =SUMIF(المنصرف!$D$2:$D$4677,E99,المنصرف!$H$2:$H$4677) -> 0 | O99: =SUMIF(المرتجع!$D$2:$D$789,E99,المرتجع!$E$2:$E$789) -> 0 | P99: =SUMIF(المرتجع!$D$2:$D$789,E99,المرتجع!$G$2:$G$789) -> 0 | Q99: =SUMIF(المرتجع!$D$2:$D$789,E99,المرتجع!$H$2:$H$789) -> 0 | R99: 17.34 | S99: 0 | T99: 0 | AG99: =IFERROR(VLOOKUP(ROWS($AG$2:AG99),$AI$2:$AJ$932,2,0),"") ->  | AI99: =IF(ISNUMBER(SEARCH($AL$2,AJ99)),MAX($AI$1:AI98)+1,0) -> 0
A100: 99 | B100: اسود | C100: ساندوتش | D100: 2سم | E100: اسود ساندوتش 2سم | I100: =SUMIF(الوارد!$D$2:$D$5853,E100,الوارد!$E$2:$E$5853) -> 0 | J100: =SUMIF(الوارد!$D$2:$D$5853,E100,الوارد!$G$2:$G$5853) -> 0 | K100: =SUMIF(الوارد!$D$2:$D$5853,E100,الوارد!$H$2:$H$5853) -> 0 | L100: =SUMIF(المنصرف!$D$2:$D$4677,E100,المنصرف!$E$2:$E$4677) -> 10 | M100: =SUMIF(المنصرف!$D$2:$D$4677,E100,المنصرف!$G$2:$G$4677) -> 2380 | N100: =SUMIF(المنصرف!$D$2:$D$4677,E100,المنصرف!$H$2:$H$4677) -> 0 | O100: =SUMIF(المرتجع!$D$2:$D$789,E100,المرتجع!$E$2:$E$789) -> 10 | P100: =SUMIF(المرتجع!$D$2:$D$789,E100,المرتجع!$G$2:$G$789) -> 2380 | Q100: =SUMIF(المرتجع!$D$2:$D$789,E100,المرتجع!$H$2:$H$789) -> 0 | R100: 0 | S100: 0 | T100: 0 | AG100: =IFERROR(VLOOKUP(ROWS($AG$2:AG100),$AI$2:$AJ$932,2,0),"") ->  | AI100: =IF(ISNUMBER(SEARCH($AL$2,AJ100)),MAX($AI$1:AI99)+1,0) -> 0
A101: 100 | B101: ابيض | C101: كروشيه | D101: 4.7سم | E101: ابيض كروشيه 4.7سم | I101: =SUMIF(الوارد!$D$2:$D$5853,E101,الوارد!$E$2:$E$5853) -> 213.11 | J101: =SUMIF(الوارد!$D$2:$D$5853,E101,الوارد!$G$2:$G$5853) -> 827 | K101: =SUMIF(الوارد!$D$2:$D$5853,E101,الوارد!$H$2:$H$5853) -> 0 | L101: =SUMIF(المنصرف!$D$2:$D$4677,E101,المنصرف!$E$2:$E$4677) -> 0 | M101: =SUMIF(المنصرف!$D$2:$D$4677,E101,المنصرف!$G$2:$G$4677) -> 0 | N101: =SUMIF(المنصرف!$D$2:$D$4677,E101,المنصرف!$H$2:$H$4677) -> 0 | O101: =SUMIF(المرتجع!$D$2:$D$789,E101,المرتجع!$E$2:$E$789) -> 0 | P101: =SUMIF(المرتجع!$D$2:$D$789,E101,المرتجع!$G$2:$G$789) -> 0 | Q101: =SUMIF(المرتجع!$D$2:$D$789,E101,المرتجع!$H$2:$H$789) -> 0 | R101: 213.11 | S101: 827 | T101: 0 | AG101: =IFERROR(VLOOKUP(ROWS($AG$2:AG101),$AI$2:$AJ$932,2,0),"") ->  | AI101: =IF(ISNUMBER(SEARCH($AL$2,AJ101)),MAX($AI$1:AI100)+1,0) -> 0
A102: 101 | B102: ابيض | C102: ويفين | D102: 1سم | E102: ابيض ويفين 1سم | F102: 42 | I102: =SUMIF(الوارد!$D$2:$D$5853,E102,الوارد!$E$2:$E$5853) -> 0 | J102: =SUMIF(الوارد!$D$2:$D$5853,E102,الوارد!$G$2:$G$5853) -> 0 | K102: =SUMIF(الوارد!$D$2:$D$5853,E102,الوارد!$H$2:$H$5853) -> 0 | L102: =SUMIF(المنصرف!$D$2:$D$4677,E102,المنصرف!$E$2:$E$4677) -> 0 | M102: =SUMIF(المنصرف!$D$2:$D$4677,E102,المنصرف!$G$2:$G$4677) -> 0 | N102: =SUMIF(المنصرف!$D$2:$D$4677,E102,المنصرف!$H$2:$H$4677) -> 0 | O102: =SUMIF(المرتجع!$D$2:$D$789,E102,المرتجع!$E$2:$E$789) -> 0 | P102: =SUMIF(المرتجع!$D$2:$D$789,E102,المرتجع!$G$2:$G$789) -> 0 | Q102: =SUMIF(المرتجع!$D$2:$D$789,E102,المرتجع!$H$2:$H$789) -> 0 | R102: 42 | S102: 0 | T102: 0 | AG102: =IFERROR(VLOOKUP(ROWS($AG$2:AG102),$AI$2:$AJ$932,2,0),"") ->  | AI102: =IF(ISNUMBER(SEARCH($AL$2,AJ102)),MAX($AI$1:AI101)+1,0) -> 0
A103: 102 | B103: ابيض | C103: ويفين | D103: 2.5سم | E103: ابيض ويفين 2.5سم | F103: 244 | I103: =SUMIF(الوارد!$D$2:$D$5853,E103,الوارد!$E$2:$E$5853) -> 58.09 | J103: =SUMIF(الوارد!$D$2:$D$5853,E103,الوارد!$G$2:$G$5853) -> 0 | K103: =SUMIF(الوارد!$D$2:$D$5853,E103,الوارد!$H$2:$H$5853) -> 0 | L103: =SUMIF(المنصرف!$D$2:$D$4677,E103,المنصرف!$E$2:$E$4677) -> 58.09 | M103: =SUMIF(المنصرف!$D$2:$D$4677,E103,المنصرف!$G$2:$G$4677) -> 0 | N103: =SUMIF(المنصرف!$D$2:$D$4677,E103,المنصرف!$H$2:$H$4677) -> 0 | O103: =SUMIF(المرتجع!$D$2:$D$789,E103,المرتجع!$E$2:$E$789) -> 0 | P103: =SUMIF(المرتجع!$D$2:$D$789,E103,المرتجع!$G$2:$G$789) -> 0 | Q103: =SUMIF(المرتجع!$D$2:$D$789,E103,المرتجع!$H$2:$H$789) -> 0 | R103: 244 | S103: 0 | T103: 0 | AG103: =IFERROR(VLOOKUP(ROWS($AG$2:AG103),$AI$2:$AJ$932,2,0),"") ->  | AI103: =IF(ISNUMBER(SEARCH($AL$2,AJ103)),MAX($AI$1:AI102)+1,0) -> 0
A104: 103 | B104: 18-6216 | C104: ويفين | D104: 1.6سم | E104: 18-6216 ويفين 1.6سم | I104: =SUMIF(الوارد!$D$2:$D$5853,E104,الوارد!$E$2:$E$5853) -> 0 | J104: =SUMIF(الوارد!$D$2:$D$5853,E104,الوارد!$G$2:$G$5853) -> 0 | K104: =SUMIF(الوارد!$D$2:$D$5853,E104,الوارد!$H$2:$H$5853) -> 0 | L104: =SUMIF(المنصرف!$D$2:$D$4677,E104,المنصرف!$E$2:$E$4677) -> 48.21 | M104: =SUMIF(المنصرف!$D$2:$D$4677,E104,المنصرف!$G$2:$G$4677) -> 5671.74 | N104: =SUMIF(المنصرف!$D$2:$D$4677,E104,المنصرف!$H$2:$H$4677) -> 0 | O104: =SUMIF(المرتجع!$D$2:$D$789,E104,المرتجع!$E$2:$E$789) -> 48.21 | P104: =SUMIF(المرتجع!$D$2:$D$789,E104,المرتجع!$G$2:$G$789) -> 5671.74 | Q104: =SUMIF(المرتجع!$D$2:$D$789,E104,المرتجع!$H$2:$H$789) -> 0 | R104: 0 | S104: 0 | T104: 0 | AG104: =IFERROR(VLOOKUP(ROWS($AG$2:AG104),$AI$2:$AJ$932,2,0),"") ->  | AI104: =IF(ISNUMBER(SEARCH($AL$2,AJ104)),MAX($AI$1:AI103)+1,0) -> 0
A105: 104 | C105: جاكار درجة | D105: مقاسات مختلفة | E105: جاكار درجة مقاسات مختلفة | F105: 28857 | I105: =SUMIF(الوارد!$D$2:$D$5853,E105,الوارد!$E$2:$E$5853) -> 0 | J105: =SUMIF(الوارد!$D$2:$D$5853,E105,الوارد!$G$2:$G$5853) -> 0 | K105: =SUMIF(الوارد!$D$2:$D$5853,E105,الوارد!$H$2:$H$5853) -> 0 | L105: =SUMIF(المنصرف!$D$2:$D$4677,E105,المنصرف!$E$2:$E$4677) -> 0 | M105: =SUMIF(المنصرف!$D$2:$D$4677,E105,المنصرف!$G$2:$G$4677) -> 0 | N105: =SUMIF(المنصرف!$D$2:$D$4677,E105,المنصرف!$H$2:$H$4677) -> 0 | O105: =SUMIF(المرتجع!$D$2:$D$789,E105,المرتجع!$E$2:$E$789) -> 0 | P105: =SUMIF(المرتجع!$D$2:$D$789,E105,المرتجع!$G$2:$G$789) -> 0 | Q105: =SUMIF(المرتجع!$D$2:$D$789,E105,المرتجع!$H$2:$H$789) -> 0 | R105: 28857 | S105: 0 | T105: 0 | AG105: =IFERROR(VLOOKUP(ROWS($AG$2:AG105),$AI$2:$AJ$932,2,0),"") ->  | AI105: =IF(ISNUMBER(SEARCH($AL$2,AJ105)),MAX($AI$1:AI104)+1,0) -> 0
A106: 105 | B106: دارك جراي | C106: كورد بوليستر | D106: 120سم | E106: دارك جراي كورد بوليستر 120سم | F106: 50.55 | I106: =SUMIF(الوارد!$D$2:$D$5853,E106,الوارد!$E$2:$E$5853) -> 16 | J106: =SUMIF(الوارد!$D$2:$D$5853,E106,الوارد!$G$2:$G$5853) -> 0 | K106: =SUMIF(الوارد!$D$2:$D$5853,E106,الوارد!$H$2:$H$5853) -> 0 | L106: =SUMIF(المنصرف!$D$2:$D$4677,E106,المنصرف!$E$2:$E$4677) -> 66.55 | M106: =SUMIF(المنصرف!$D$2:$D$4677,E106,المنصرف!$G$2:$G$4677) -> 0 | N106: =SUMIF(المنصرف!$D$2:$D$4677,E106,المنصرف!$H$2:$H$4677) -> 0 | O106: =SUMIF(المرتجع!$D$2:$D$789,E106,المرتجع!$E$2:$E$789) -> 0 | P106: =SUMIF(المرتجع!$D$2:$D$789,E106,المرتجع!$G$2:$G$789) -> 0 | Q106: =SUMIF(المرتجع!$D$2:$D$789,E106,المرتجع!$H$2:$H$789) -> 0 | R106: 0 | S106: 0 | T106: 0 | AG106: =IFERROR(VLOOKUP(ROWS($AG$2:AG106),$AI$2:$AJ$932,2,0),"") ->  | AI106: =IF(ISNUMBER(SEARCH($AL$2,AJ106)),MAX($AI$1:AI105)+1,0) -> 0
A107: 106 | B107: كافيه*مسطرد | C107: جاكار | D107: 3سم | E107: كافيه*مسطرد جاكار 3سم | F107: =360+2.89 -> 362.89 | G107: =15615+80 -> 15695 | I107: =SUMIF(الوارد!$D$2:$D$5853,E107,الوارد!$E$2:$E$5853) -> 237.98 | J107: =SUMIF(الوارد!$D$2:$D$5853,E107,الوارد!$G$2:$G$5853) -> 10375 | K107: =SUMIF(الوارد!$D$2:$D$5853,E107,الوارد!$H$2:$H$5853) -> 0 | L107: =SUMIF(المنصرف!$D$2:$D$4677,E107,المنصرف!$E$2:$E$4677) -> 600.87 | M107: =SUMIF(المنصرف!$D$2:$D$4677,E107,المنصرف!$G$2:$G$4677) -> 26070 | N107: =SUMIF(المنصرف!$D$2:$D$4677,E107,المنصرف!$H$2:$H$4677) -> 0 | O107: =SUMIF(المرتجع!$D$2:$D$789,E107,المرتجع!$E$2:$E$789) -> 0 | P107: =SUMIF(المرتجع!$D$2:$D$789,E107,المرتجع!$G$2:$G$789) -> 0 | Q107: =SUMIF(المرتجع!$D$2:$D$789,E107,المرتجع!$H$2:$H$789) -> 0 | R107: 0 | S107: 0 | T107: 0 | AG107: =IFERROR(VLOOKUP(ROWS($AG$2:AG107),$AI$2:$AJ$932,2,0),"") ->  | AI107: =IF(ISNUMBER(SEARCH($AL$2,AJ107)),MAX($AI$1:AI106)+1,0) -> 0
A108: 107 | B108: اسود*زيتي | C108: جاكار | D108: 3سم | E108: اسود*زيتي جاكار 3سم | F108: =703.55-141.57-8-9 -> 544.98 | G108: =32715-3550.85-372-3150 -> 25642.15 | I108: =SUMIF(الوارد!$D$2:$D$5853,E108,الوارد!$E$2:$E$5853) -> 5255.39 | J108: =SUMIF(الوارد!$D$2:$D$5853,E108,الوارد!$G$2:$G$5853) -> 243295.85 | K108: =SUMIF(الوارد!$D$2:$D$5853,E108,الوارد!$H$2:$H$5853) -> 0 | L108: =SUMIF(المنصرف!$D$2:$D$4677,E108,المنصرف!$E$2:$E$4677) -> 4995.58 | M108: =SUMIF(المنصرف!$D$2:$D$4677,E108,المنصرف!$G$2:$G$4677) -> 232711 | N108: =SUMIF(المنصرف!$D$2:$D$4677,E108,المنصرف!$H$2:$H$4677) -> 0 | O108: =SUMIF(المرتجع!$D$2:$D$789,E108,المرتجع!$E$2:$E$789) -> 0 | P108: =SUMIF(المرتجع!$D$2:$D$789,E108,المرتجع!$G$2:$G$789) -> 0 | Q108: =SUMIF(المرتجع!$D$2:$D$789,E108,المرتجع!$H$2:$H$789) -> 0 | R108: 804.79 | S108: 36227 | T108: 0 | AG108: =IFERROR(VLOOKUP(ROWS($AG$2:AG108),$AI$2:$AJ$932,2,0),"") ->  | AI108: =IF(ISNUMBER(SEARCH($AL$2,AJ108)),MAX($AI$1:AI107)+1,0) -> 0
A109: 108 | B109: ديفابلو*سكايبلو | C109: جاكار | D109: 3سم | E109: ديفابلو*سكايبلو جاكار 3سم | F109: =721+26.37+1.63 -> 749 | G109: =28623.7+5443.3-41 -> 34026 | I109: =SUMIF(الوارد!$D$2:$D$5853,E109,الوارد!$E$2:$E$5853) -> 234.58 | J109: =SUMIF(الوارد!$D$2:$D$5853,E109,الوارد!$G$2:$G$5853) -> 10653 | K109: =SUMIF(الوارد!$D$2:$D$5853,E109,الوارد!$H$2:$H$5853) -> 0 | L109: =SUMIF(المنصرف!$D$2:$D$4677,E109,المنصرف!$E$2:$E$4677) -> 928.45 | M109: =SUMIF(المنصرف!$D$2:$D$4677,E109,المنصرف!$G$2:$G$4677) -> 42176 | N109: =SUMIF(المنصرف!$D$2:$D$4677,E109,المنصرف!$H$2:$H$4677) -> 0 | O109: =SUMIF(المرتجع!$D$2:$D$789,E109,المرتجع!$E$2:$E$789) -> 0 | P109: =SUMIF(المرتجع!$D$2:$D$789,E109,المرتجع!$G$2:$G$789) -> 0 | Q109: =SUMIF(المرتجع!$D$2:$D$789,E109,المرتجع!$H$2:$H$789) -> 0 | R109: 55.13 | S109: 2503 | T109: 0 | AG109: =IFERROR(VLOOKUP(ROWS($AG$2:AG109),$AI$2:$AJ$932,2,0),"") ->  | AI109: =IF(ISNUMBER(SEARCH($AL$2,AJ109)),MAX($AI$1:AI108)+1,0) -> 0
A110: 109 | B110: اسود*كوردفان | C110: جاكار | D110: 3سم | E110: اسود*كوردفان جاكار 3سم | F110: =707.61-155.33+4.4+47+1.15-291+30 -> 343.83 | G110: =35380.5-8700+168+1475+387-14000+10299 -> 25009.5 | I110: =SUMIF(الوارد!$D$2:$D$5853,E110,الوارد!$E$2:$E$5853) -> 4798.48 | J110: =SUMIF(الوارد!$D$2:$D$5853,E110,الوارد!$G$2:$G$5853) -> 239744.5 | K110: =SUMIF(الوارد!$D$2:$D$5853,E110,الوارد!$H$2:$H$5853) -> 0 | L110: =SUMIF(المنصرف!$D$2:$D$4677,E110,المنصرف!$E$2:$E$4677) -> 4648.36 | M110: =SUMIF(المنصرف!$D$2:$D$4677,E110,المنصرف!$G$2:$G$4677) -> 232781 | N110: =SUMIF(المنصرف!$D$2:$D$4677,E110,المنصرف!$H$2:$H$4677) -> 0 | O110: =SUMIF(المرتجع!$D$2:$D$789,E110,المرتجع!$E$2:$E$789) -> 0 | P110: =SUMIF(المرتجع!$D$2:$D$789,E110,المرتجع!$G$2:$G$789) -> 0 | Q110: =SUMIF(المرتجع!$D$2:$D$789,E110,المرتجع!$H$2:$H$789) -> 0 | R110: 493.95 | S110: 31973 | T110: 0 | AG110: =IFERROR(VLOOKUP(ROWS($AG$2:AG110),$AI$2:$AJ$932,2,0),"") ->  | AI110: =IF(ISNUMBER(SEARCH($AL$2,AJ110)),MAX($AI$1:AI109)+1,0) -> 0
A111: 110 | B111: اسود*برونزجرين | C111: جاكار | D111: 3سم | E111: اسود*برونزجرين جاكار 3سم | F111: =172+103.89+307.06-0.06 -> 582.89 | G111: =8170+3824+14635 -> 26629 | I111: =SUMIF(الوارد!$D$2:$D$5853,E111,الوارد!$E$2:$E$5853) -> 3928.96 | J111: =SUMIF(الوارد!$D$2:$D$5853,E111,الوارد!$G$2:$G$5853) -> 185689 | K111: =SUMIF(الوارد!$D$2:$D$5853,E111,الوارد!$H$2:$H$5853) -> 0 | L111: =SUMIF(المنصرف!$D$2:$D$4677,E111,المنصرف!$E$2:$E$4677) -> 4215.8 | M111: =SUMIF(المنصرف!$D$2:$D$4677,E111,المنصرف!$G$2:$G$4677) -> 199174 | N111: =SUMIF(المنصرف!$D$2:$D$4677,E111,المنصرف!$H$2:$H$4677) -> 0 | O111: =SUMIF(المرتجع!$D$2:$D$789,E111,المرتجع!$E$2:$E$789) -> 0 | P111: =SUMIF(المرتجع!$D$2:$D$789,E111,المرتجع!$G$2:$G$789) -> 0 | Q111: =SUMIF(المرتجع!$D$2:$D$789,E111,المرتجع!$H$2:$H$789) -> 0 | R111: 296.05 | S111: 13144 | T111: 0 | AG111: =IFERROR(VLOOKUP(ROWS($AG$2:AG111),$AI$2:$AJ$932,2,0),"") ->  | AI111: =IF(ISNUMBER(SEARCH($AL$2,AJ111)),MAX($AI$1:AI110)+1,0) -> 0
A112: 111 | B112: دريزل*اسود | C112: جاكار | D112: 3سم | E112: دريزل*اسود جاكار 3سم | F112: 532.76 | G112: 22708.8 | I112: =SUMIF(الوارد!$D$2:$D$5853,E112,الوارد!$E$2:$E$5853) -> 21.95 | J112: =SUMIF(الوارد!$D$2:$D$5853,E112,الوارد!$G$2:$G$5853) -> 1070 | K112: =SUMIF(الوارد!$D$2:$D$5853,E112,الوارد!$H$2:$H$5853) -> 0 | L112: =SUMIF(المنصرف!$D$2:$D$4677,E112,المنصرف!$E$2:$E$4677) -> 55.71 | M112: =SUMIF(المنصرف!$D$2:$D$4677,E112,المنصرف!$G$2:$G$4677) -> 2714 | N112: =SUMIF(المنصرف!$D$2:$D$4677,E112,المنصرف!$H$2:$H$4677) -> 0 | O112: =SUMIF(المرتجع!$D$2:$D$789,E112,المرتجع!$E$2:$E$789) -> 0 | P112: =SUMIF(المرتجع!$D$2:$D$789,E112,المرتجع!$G$2:$G$789) -> 0 | Q112: =SUMIF(المرتجع!$D$2:$D$789,E112,المرتجع!$H$2:$H$789) -> 0 | R112: 499 | S112: 21064.8 | T112: 0 | AG112: =IFERROR(VLOOKUP(ROWS($AG$2:AG112),$AI$2:$AJ$932,2,0),"") ->  | AI112: =IF(ISNUMBER(SEARCH($AL$2,AJ112)),MAX($AI$1:AI111)+1,0) -> 0
A113: 112 | B113: سكايبلو*فرست جراي | C113: جاكار | D113: 3سم | E113: سكايبلو*فرست جراي جاكار 3سم | F113: =957-264.04+4.6 -> 697.56 | G113: =38040.7-6574.7+233 -> 31699 | I113: =SUMIF(الوارد!$D$2:$D$5853,E113,الوارد!$E$2:$E$5853) -> 208.76 | J113: =SUMIF(الوارد!$D$2:$D$5853,E113,الوارد!$G$2:$G$5853) -> 9414 | K113: =SUMIF(الوارد!$D$2:$D$5853,E113,الوارد!$H$2:$H$5853) -> 0 | L113: =SUMIF(المنصرف!$D$2:$D$4677,E113,المنصرف!$E$2:$E$4677) -> 928.97 | M113: =SUMIF(المنصرف!$D$2:$D$4677,E113,المنصرف!$G$2:$G$4677) -> 42118 | N113: =SUMIF(المنصرف!$D$2:$D$4677,E113,المنصرف!$H$2:$H$4677) -> 0 | O113: =SUMIF(المرتجع!$D$2:$D$789,E113,المرتجع!$E$2:$E$789) -> 36.25 | P113: =SUMIF(المرتجع!$D$2:$D$789,E113,المرتجع!$G$2:$G$789) -> 1651 | Q113: =SUMIF(المرتجع!$D$2:$D$789,E113,المرتجع!$H$2:$H$789) -> 0 | R113: 13.6 | S113: 646 | T113: 0 | AG113: =IFERROR(VLOOKUP(ROWS($AG$2:AG113),$AI$2:$AJ$932,2,0),"") ->  | AI113: =IF(ISNUMBER(SEARCH($AL$2,AJ113)),MAX($AI$1:AI112)+1,0) -> 0
A114: 113 | B114: اسود | C114: كورد بوليستر | D114: 132سم | E114: اسود كورد بوليستر 132سم | F114: 0 | I114: =SUMIF(الوارد!$D$2:$D$5853,E114,الوارد!$E$2:$E$5853) -> 1352.69 | J114: =SUMIF(الوارد!$D$2:$D$5853,E114,الوارد!$G$2:$G$5853) -> 82426.08 | K114: =SUMIF(الوارد!$D$2:$D$5853,E114,الوارد!$H$2:$H$5853) -> 0 | L114: =SUMIF(المنصرف!$D$2:$D$4677,E114,المنصرف!$E$2:$E$4677) -> 1367.48 | M114: =SUMIF(المنصرف!$D$2:$D$4677,E114,المنصرف!$G$2:$G$4677) -> 81964.08 | N114: =SUMIF(المنصرف!$D$2:$D$4677,E114,المنصرف!$H$2:$H$4677) -> 0 | O114: =SUMIF(المرتجع!$D$2:$D$789,E114,المرتجع!$E$2:$E$789) -> 21.3 | P114: =SUMIF(المرتجع!$D$2:$D$789,E114,المرتجع!$G$2:$G$789) -> 0 | Q114: =SUMIF(المرتجع!$D$2:$D$789,E114,المرتجع!$H$2:$H$789) -> 0 | R114: 6.51 | S114: 462 | T114: 0 | AG114: =IFERROR(VLOOKUP(ROWS($AG$2:AG114),$AI$2:$AJ$932,2,0),"") ->  | AI114: =IF(ISNUMBER(SEARCH($AL$2,AJ114)),MAX($AI$1:AI113)+1,0) -> 0
A115: 114 | B115: اخضر | C115: كورد بوليستر | D115: 132سم | E115: اخضر كورد بوليستر 132سم | F115: 0 | I115: =SUMIF(الوارد!$D$2:$D$5853,E115,الوارد!$E$2:$E$5853) -> 56.16 | J115: =SUMIF(الوارد!$D$2:$D$5853,E115,الوارد!$G$2:$G$5853) -> 8397.84 | K115: =SUMIF(الوارد!$D$2:$D$5853,E115,الوارد!$H$2:$H$5853) -> 0 | L115: =SUMIF(المنصرف!$D$2:$D$4677,E115,المنصرف!$E$2:$E$4677) -> 56.16 | M115: =SUMIF(المنصرف!$D$2:$D$4677,E115,المنصرف!$G$2:$G$4677) -> 8397.84 | N115: =SUMIF(المنصرف!$D$2:$D$4677,E115,المنصرف!$H$2:$H$4677) -> 0 | O115: =SUMIF(المرتجع!$D$2:$D$789,E115,المرتجع!$E$2:$E$789) -> 0 | P115: =SUMIF(المرتجع!$D$2:$D$789,E115,المرتجع!$G$2:$G$789) -> 0 | Q115: =SUMIF(المرتجع!$D$2:$D$789,E115,المرتجع!$H$2:$H$789) -> 0 | R115: 0 | S115: 0 | T115: 0 | AG115: =IFERROR(VLOOKUP(ROWS($AG$2:AG115),$AI$2:$AJ$932,2,0),"") ->  | AI115: =IF(ISNUMBER(SEARCH($AL$2,AJ115)),MAX($AI$1:AI114)+1,0) -> 0
A116: 115 | B116: 19-4033 | C116: ساندوتش | D116: 1.5سم | E116: 19-4033 ساندوتش 1.5سم | F116: 0 | I116: =SUMIF(الوارد!$D$2:$D$5853,E116,الوارد!$E$2:$E$5853) -> 0 | J116: =SUMIF(الوارد!$D$2:$D$5853,E116,الوارد!$G$2:$G$5853) -> 0 | K116: =SUMIF(الوارد!$D$2:$D$5853,E116,الوارد!$H$2:$H$5853) -> 0 | L116: =SUMIF(المنصرف!$D$2:$D$4677,E116,المنصرف!$E$2:$E$4677) -> 41.6 | M116: =SUMIF(المنصرف!$D$2:$D$4677,E116,المنصرف!$G$2:$G$4677) -> 0 | N116: =SUMIF(المنصرف!$D$2:$D$4677,E116,المنصرف!$H$2:$H$4677) -> 0 | O116: =SUMIF(المرتجع!$D$2:$D$789,E116,المرتجع!$E$2:$E$789) -> 41.6 | P116: =SUMIF(المرتجع!$D$2:$D$789,E116,المرتجع!$G$2:$G$789) -> 0 | Q116: =SUMIF(المرتجع!$D$2:$D$789,E116,المرتجع!$H$2:$H$789) -> 0 | R116: 0 | S116: 0 | T116: 0 | AG116: =IFERROR(VLOOKUP(ROWS($AG$2:AG116),$AI$2:$AJ$932,2,0),"") ->  | AI116: =IF(ISNUMBER(SEARCH($AL$2,AJ116)),MAX($AI$1:AI115)+1,0) -> 0
A117: 116 | B117: 19-4033 | C117: ويفين | D117: 1.6سم | E117: 19-4033 ويفين 1.6سم | F117: 0 | I117: =SUMIF(الوارد!$D$2:$D$5853,E117,الوارد!$E$2:$E$5853) -> 0 | J117: =SUMIF(الوارد!$D$2:$D$5853,E117,الوارد!$G$2:$G$5853) -> 0 | K117: =SUMIF(الوارد!$D$2:$D$5853,E117,الوارد!$H$2:$H$5853) -> 0 | L117: =SUMIF(المنصرف!$D$2:$D$4677,E117,المنصرف!$E$2:$E$4677) -> 69.16 | M117: =SUMIF(المنصرف!$D$2:$D$4677,E117,المنصرف!$G$2:$G$4677) -> 0 | N117: =SUMIF(المنصرف!$D$2:$D$4677,E117,المنصرف!$H$2:$H$4677) -> 0 | O117: =SUMIF(المرتجع!$D$2:$D$789,E117,المرتجع!$E$2:$E$789) -> 69.16 | P117: =SUMIF(المرتجع!$D$2:$D$789,E117,المرتجع!$G$2:$G$789) -> 0 | Q117: =SUMIF(المرتجع!$D$2:$D$789,E117,المرتجع!$H$2:$H$789) -> 0 | R117: 0 | S117: 0 | T117: 0 | AG117: =IFERROR(VLOOKUP(ROWS($AG$2:AG117),$AI$2:$AJ$932,2,0),"") ->  | AI117: =IF(ISNUMBER(SEARCH($AL$2,AJ117)),MAX($AI$1:AI116)+1,0) -> 0
A118: 117 | B118: 15-6313 | C118: ساندوتش | D118: 1.5سم | E118: 15-6313 ساندوتش 1.5سم | F118: 0 | I118: =SUMIF(الوارد!$D$2:$D$5853,E118,الوارد!$E$2:$E$5853) -> 0 | J118: =SUMIF(الوارد!$D$2:$D$5853,E118,الوارد!$G$2:$G$5853) -> 0 | K118: =SUMIF(الوارد!$D$2:$D$5853,E118,الوارد!$H$2:$H$5853) -> 0 | L118: =SUMIF(المنصرف!$D$2:$D$4677,E118,المنصرف!$E$2:$E$4677) -> 41.72 | M118: =SUMIF(المنصرف!$D$2:$D$4677,E118,المنصرف!$G$2:$G$4677) -> 0 | N118: =SUMIF(المنصرف!$D$2:$D$4677,E118,المنصرف!$H$2:$H$4677) -> 0 | O118: =SUMIF(المرتجع!$D$2:$D$789,E118,المرتجع!$E$2:$E$789) -> 41.72 | P118: =SUMIF(المرتجع!$D$2:$D$789,E118,المرتجع!$G$2:$G$789) -> 0 | Q118: =SUMIF(المرتجع!$D$2:$D$789,E118,المرتجع!$H$2:$H$789) -> 0 | R118: 0 | S118: 0 | T118: 0 | AG118: =IFERROR(VLOOKUP(ROWS($AG$2:AG118),$AI$2:$AJ$932,2,0),"") ->  | AI118: =IF(ISNUMBER(SEARCH($AL$2,AJ118)),MAX($AI$1:AI117)+1,0) -> 0
A119: 118 | B119: raw | C119: كورد قطن | D119: 1.1سم | E119: raw كورد قطن 1.1سم | F119: =-58.3499999999995-104.25 -> -162.6 | G119: =-21167.1-13790 -> -34957.1 | I119: =SUMIF(الوارد!$D$2:$D$5853,E119,الوارد!$E$2:$E$5853) -> 5682.33 | J119: =SUMIF(الوارد!$D$2:$D$5853,E119,الوارد!$G$2:$G$5853) -> 509856 | K119: =SUMIF(الوارد!$D$2:$D$5853,E119,الوارد!$H$2:$H$5853) -> 0 | L119: =SUMIF(المنصرف!$D$2:$D$4677,E119,المنصرف!$E$2:$E$4677) -> 8287.45 | M119: =SUMIF(المنصرف!$D$2:$D$4677,E119,المنصرف!$G$2:$G$4677) -> 860641.8 | N119: =SUMIF(المنصرف!$D$2:$D$4677,E119,المنصرف!$H$2:$H$4677) -> 0 | O119: =SUMIF(المرتجع!$D$2:$D$789,E119,المرتجع!$E$2:$E$789) -> 3027.97 | P119: =SUMIF(المرتجع!$D$2:$D$789,E119,المرتجع!$G$2:$G$789) -> 420434.9 | Q119: =SUMIF(المرتجع!$D$2:$D$789,E119,المرتجع!$H$2:$H$789) -> 0 | R119: 260.25 | S119: 34692 | T119: 0 | AG119: =IFERROR(VLOOKUP(ROWS($AG$2:AG119),$AI$2:$AJ$932,2,0),"") ->  | AI119: =IF(ISNUMBER(SEARCH($AL$2,AJ119)),MAX($AI$1:AI118)+1,0) -> 0
A120: 119 | B120: بني | C120: تيب بوليستر | D120: 1سم | E120: بني تيب بوليستر 1سم | F120: 0 | I120: =SUMIF(الوارد!$D$2:$D$5853,E120,الوارد!$E$2:$E$5853) -> 40.92 | J120: =SUMIF(الوارد!$D$2:$D$5853,E120,الوارد!$G$2:$G$5853) -> 6034 | K120: =SUMIF(الوارد!$D$2:$D$5853,E120,الوارد!$H$2:$H$5853) -> 0 | L120: =SUMIF(المنصرف!$D$2:$D$4677,E120,المنصرف!$E$2:$E$4677) -> 40.92 | M120: =SUMIF(المنصرف!$D$2:$D$4677,E120,المنصرف!$G$2:$G$4677) -> 6034 | N120: =SUMIF(المنصرف!$D$2:$D$4677,E120,المنصرف!$H$2:$H$4677) -> 0 | O120: =SUMIF(المرتجع!$D$2:$D$789,E120,المرتجع!$E$2:$E$789) -> 0 | P120: =SUMIF(المرتجع!$D$2:$D$789,E120,المرتجع!$G$2:$G$789) -> 0 | Q120: =SUMIF(المرتجع!$D$2:$D$789,E120,المرتجع!$H$2:$H$789) -> 0 | R120: 0 | S120: 0 | T120: 0 | AG120: =IFERROR(VLOOKUP(ROWS($AG$2:AG120),$AI$2:$AJ$932,2,0),"") ->  | AI120: =IF(ISNUMBER(SEARCH($AL$2,AJ120)),MAX($AI$1:AI119)+1,0) -> 0
A121: 120 | B121: دارك جراي | C121: كورد قطن | D121: 94سم | E121: دارك جراي كورد قطن 94سم | F121: 0 | I121: =SUMIF(الوارد!$D$2:$D$5853,E121,الوارد!$E$2:$E$5853) -> 16.36 | J121: =SUMIF(الوارد!$D$2:$D$5853,E121,الوارد!$G$2:$G$5853) -> 1574.5 | K121: =SUMIF(الوارد!$D$2:$D$5853,E121,الوارد!$H$2:$H$5853) -> 0 | L121: =SUMIF(المنصرف!$D$2:$D$4677,E121,المنصرف!$E$2:$E$4677) -> 16.36 | M121: =SUMIF(المنصرف!$D$2:$D$4677,E121,المنصرف!$G$2:$G$4677) -> 1574.5 | N121: =SUMIF(المنصرف!$D$2:$D$4677,E121,المنصرف!$H$2:$H$4677) -> 0 | O121: =SUMIF(المرتجع!$D$2:$D$789,E121,المرتجع!$E$2:$E$789) -> 0 | P121: =SUMIF(المرتجع!$D$2:$D$789,E121,المرتجع!$G$2:$G$789) -> 0 | Q121: =SUMIF(المرتجع!$D$2:$D$789,E121,المرتجع!$H$2:$H$789) -> 0 | R121: 0 | S121: 0 | T121: 0 | AG121: =IFERROR(VLOOKUP(ROWS($AG$2:AG121),$AI$2:$AJ$932,2,0),"") ->  | AI121: =IF(ISNUMBER(SEARCH($AL$2,AJ121)),MAX($AI$1:AI120)+1,0) -> 0
A122: 121 | B122: كحلي | C122: كورد قطن | D122: 103سم | E122: كحلي كورد قطن 103سم | F122: 0 | I122: =SUMIF(الوارد!$D$2:$D$5853,E122,الوارد!$E$2:$E$5853) -> 21.51 | J122: =SUMIF(الوارد!$D$2:$D$5853,E122,الوارد!$G$2:$G$5853) -> 2111.5 | K122: =SUMIF(الوارد!$D$2:$D$5853,E122,الوارد!$H$2:$H$5853) -> 0 | L122: =SUMIF(المنصرف!$D$2:$D$4677,E122,المنصرف!$E$2:$E$4677) -> 21.51 | M122: =SUMIF(المنصرف!$D$2:$D$4677,E122,المنصرف!$G$2:$G$4677) -> 2111.5 | N122: =SUMIF(المنصرف!$D$2:$D$4677,E122,المنصرف!$H$2:$H$4677) -> 0 | O122: =SUMIF(المرتجع!$D$2:$D$789,E122,المرتجع!$E$2:$E$789) -> 0 | P122: =SUMIF(المرتجع!$D$2:$D$789,E122,المرتجع!$G$2:$G$789) -> 0 | Q122: =SUMIF(المرتجع!$D$2:$D$789,E122,المرتجع!$H$2:$H$789) -> 0 | R122: 0 | S122: 0 | T122: 0 | AG122: =IFERROR(VLOOKUP(ROWS($AG$2:AG122),$AI$2:$AJ$932,2,0),"") ->  | AI122: =IF(ISNUMBER(SEARCH($AL$2,AJ122)),MAX($AI$1:AI121)+1,0) -> 0
A123: 122 | B123: كحلي | C123: كورد قطن | D123: 101سم | E123: كحلي كورد قطن 101سم | F123: 0 | I123: =SUMIF(الوارد!$D$2:$D$5853,E123,الوارد!$E$2:$E$5853) -> 2.95 | J123: =SUMIF(الوارد!$D$2:$D$5853,E123,الوارد!$G$2:$G$5853) -> 0 | K123: =SUMIF(الوارد!$D$2:$D$5853,E123,الوارد!$H$2:$H$5853) -> 0 | L123: =SUMIF(المنصرف!$D$2:$D$4677,E123,المنصرف!$E$2:$E$4677) -> 2.95 | M123: =SUMIF(المنصرف!$D$2:$D$4677,E123,المنصرف!$G$2:$G$4677) -> 0 | N123: =SUMIF(المنصرف!$D$2:$D$4677,E123,المنصرف!$H$2:$H$4677) -> 0 | O123: =SUMIF(المرتجع!$D$2:$D$789,E123,المرتجع!$E$2:$E$789) -> 0 | P123: =SUMIF(المرتجع!$D$2:$D$789,E123,المرتجع!$G$2:$G$789) -> 0 | Q123: =SUMIF(المرتجع!$D$2:$D$789,E123,المرتجع!$H$2:$H$789) -> 0 | R123: 0 | S123: 0 | T123: 0 | AG123: =IFERROR(VLOOKUP(ROWS($AG$2:AG123),$AI$2:$AJ$932,2,0),"") ->  | AI123: =IF(ISNUMBER(SEARCH($AL$2,AJ123)),MAX($AI$1:AI122)+1,0) -> 0
A124: 123 | B124: كحلي | C124: كورد قطن | D124: 98سم | E124: كحلي كورد قطن 98سم | F124: 0 | I124: =SUMIF(الوارد!$D$2:$D$5853,E124,الوارد!$E$2:$E$5853) -> 1.7 | J124: =SUMIF(الوارد!$D$2:$D$5853,E124,الوارد!$G$2:$G$5853) -> 0 | K124: =SUMIF(الوارد!$D$2:$D$5853,E124,الوارد!$H$2:$H$5853) -> 0 | L124: =SUMIF(المنصرف!$D$2:$D$4677,E124,المنصرف!$E$2:$E$4677) -> 1.7 | M124: =SUMIF(المنصرف!$D$2:$D$4677,E124,المنصرف!$G$2:$G$4677) -> 0 | N124: =SUMIF(المنصرف!$D$2:$D$4677,E124,المنصرف!$H$2:$H$4677) -> 0 | O124: =SUMIF(المرتجع!$D$2:$D$789,E124,المرتجع!$E$2:$E$789) -> 0 | P124: =SUMIF(المرتجع!$D$2:$D$789,E124,المرتجع!$G$2:$G$789) -> 0 | Q124: =SUMIF(المرتجع!$D$2:$D$789,E124,المرتجع!$H$2:$H$789) -> 0 | R124: 0 | S124: 0 | T124: 0 | AG124: =IFERROR(VLOOKUP(ROWS($AG$2:AG124),$AI$2:$AJ$932,2,0),"") ->  | AI124: =IF(ISNUMBER(SEARCH($AL$2,AJ124)),MAX($AI$1:AI123)+1,0) -> 0
A125: 124 | B125: كحلي | C125: كورد قطن | D125: 96سم | E125: كحلي كورد قطن 96سم | F125: 0 | I125: =SUMIF(الوارد!$D$2:$D$5853,E125,الوارد!$E$2:$E$5853) -> 13.16 | J125: =SUMIF(الوارد!$D$2:$D$5853,E125,الوارد!$G$2:$G$5853) -> 1441.92 | K125: =SUMIF(الوارد!$D$2:$D$5853,E125,الوارد!$H$2:$H$5853) -> 0 | L125: =SUMIF(المنصرف!$D$2:$D$4677,E125,المنصرف!$E$2:$E$4677) -> 13.16 | M125: =SUMIF(المنصرف!$D$2:$D$4677,E125,المنصرف!$G$2:$G$4677) -> 1441.92 | N125: =SUMIF(المنصرف!$D$2:$D$4677,E125,المنصرف!$H$2:$H$4677) -> 0 | O125: =SUMIF(المرتجع!$D$2:$D$789,E125,المرتجع!$E$2:$E$789) -> 0 | P125: =SUMIF(المرتجع!$D$2:$D$789,E125,المرتجع!$G$2:$G$789) -> 0 | Q125: =SUMIF(المرتجع!$D$2:$D$789,E125,المرتجع!$H$2:$H$789) -> 0 | R125: 0 | S125: 0 | T125: 0 | AG125: =IFERROR(VLOOKUP(ROWS($AG$2:AG125),$AI$2:$AJ$932,2,0),"") ->  | AI125: =IF(ISNUMBER(SEARCH($AL$2,AJ125)),MAX($AI$1:AI124)+1,0) -> 0
A126: 125 | B126: دارك جراي | C126: كورد قطن | D126: 92سم | E126: دارك جراي كورد قطن 92سم | F126: 0 | I126: =SUMIF(الوارد!$D$2:$D$5853,E126,الوارد!$E$2:$E$5853) -> 26.06 | J126: =SUMIF(الوارد!$D$2:$D$5853,E126,الوارد!$G$2:$G$5853) -> 1653.24 | K126: =SUMIF(الوارد!$D$2:$D$5853,E126,الوارد!$H$2:$H$5853) -> 0 | L126: =SUMIF(المنصرف!$D$2:$D$4677,E126,المنصرف!$E$2:$E$4677) -> 26.06 | M126: =SUMIF(المنصرف!$D$2:$D$4677,E126,المنصرف!$G$2:$G$4677) -> 1653.24 | N126: =SUMIF(المنصرف!$D$2:$D$4677,E126,المنصرف!$H$2:$H$4677) -> 0 | O126: =SUMIF(المرتجع!$D$2:$D$789,E126,المرتجع!$E$2:$E$789) -> 0 | P126: =SUMIF(المرتجع!$D$2:$D$789,E126,المرتجع!$G$2:$G$789) -> 0 | Q126: =SUMIF(المرتجع!$D$2:$D$789,E126,المرتجع!$H$2:$H$789) -> 0 | R126: 0 | S126: 0 | T126: 0 | AG126: =IFERROR(VLOOKUP(ROWS($AG$2:AG126),$AI$2:$AJ$932,2,0),"") ->  | AI126: =IF(ISNUMBER(SEARCH($AL$2,AJ126)),MAX($AI$1:AI125)+1,0) -> 0
A127: 126 | B127: ابيض | C127: ويفين (510) | D127: 2سم | E127: ابيض ويفين (510) 2سم | F127: =29.65+7.64 -> 37.29 | I127: =SUMIF(الوارد!$D$2:$D$5853,E127,الوارد!$E$2:$E$5853) -> 1909.63 | J127: =SUMIF(الوارد!$D$2:$D$5853,E127,الوارد!$G$2:$G$5853) -> 1576 | K127: =SUMIF(الوارد!$D$2:$D$5853,E127,الوارد!$H$2:$H$5853) -> 0 | L127: =SUMIF(المنصرف!$D$2:$D$4677,E127,المنصرف!$E$2:$E$4677) -> 1939.28 | M127: =SUMIF(المنصرف!$D$2:$D$4677,E127,المنصرف!$G$2:$G$4677) -> 1292 | N127: =SUMIF(المنصرف!$D$2:$D$4677,E127,المنصرف!$H$2:$H$4677) -> 0 | O127: =SUMIF(المرتجع!$D$2:$D$789,E127,المرتجع!$E$2:$E$789) -> 0 | P127: =SUMIF(المرتجع!$D$2:$D$789,E127,المرتجع!$G$2:$G$789) -> 0 | Q127: =SUMIF(المرتجع!$D$2:$D$789,E127,المرتجع!$H$2:$H$789) -> 0 | R127: 7.64 | S127: 284 | T127: 0 | AG127: =IFERROR(VLOOKUP(ROWS($AG$2:AG127),$AI$2:$AJ$932,2,0),"") ->  | AI127: =IF(ISNUMBER(SEARCH($AL$2,AJ127)),MAX($AI$1:AI126)+1,0) -> 0
A128: 127 | B128: اسود | C128: ويفين (510) | D128: 4.5سم | E128: اسود ويفين (510) 4.5سم | F128: 56.37 | I128: =SUMIF(الوارد!$D$2:$D$5853,E128,الوارد!$E$2:$E$5853) -> 107.58 | J128: =SUMIF(الوارد!$D$2:$D$5853,E128,الوارد!$G$2:$G$5853) -> 0 | K128: =SUMIF(الوارد!$D$2:$D$5853,E128,الوارد!$H$2:$H$5853) -> 0 | L128: =SUMIF(المنصرف!$D$2:$D$4677,E128,المنصرف!$E$2:$E$4677) -> 161.14 | M128: =SUMIF(المنصرف!$D$2:$D$4677,E128,المنصرف!$G$2:$G$4677) -> 0 | N128: =SUMIF(المنصرف!$D$2:$D$4677,E128,المنصرف!$H$2:$H$4677) -> 0 | O128: =SUMIF(المرتجع!$D$2:$D$789,E128,المرتجع!$E$2:$E$789) -> 0 | P128: =SUMIF(المرتجع!$D$2:$D$789,E128,المرتجع!$G$2:$G$789) -> 0 | Q128: =SUMIF(المرتجع!$D$2:$D$789,E128,المرتجع!$H$2:$H$789) -> 0 | R128: 2.81 | S128: 0 | T128: 0 | AG128: =IFERROR(VLOOKUP(ROWS($AG$2:AG128),$AI$2:$AJ$932,2,0),"") ->  | AI128: =IF(ISNUMBER(SEARCH($AL$2,AJ128)),MAX($AI$1:AI127)+1,0) -> 0
A129: 128 | B129: ابيض | C129: ويفين (510) | D129: 4سم | E129: ابيض ويفين (510) 4سم | F129: =190.59+6.46 -> 197.05 | I129: =SUMIF(الوارد!$D$2:$D$5853,E129,الوارد!$E$2:$E$5853) -> 2184.23 | J129: =SUMIF(الوارد!$D$2:$D$5853,E129,الوارد!$G$2:$G$5853) -> 1346 | K129: =SUMIF(الوارد!$D$2:$D$5853,E129,الوارد!$H$2:$H$5853) -> 0 | L129: =SUMIF(المنصرف!$D$2:$D$4677,E129,المنصرف!$E$2:$E$4677) -> 2328.72 | M129: =SUMIF(المنصرف!$D$2:$D$4677,E129,المنصرف!$G$2:$G$4677) -> 0 | N129: =SUMIF(المنصرف!$D$2:$D$4677,E129,المنصرف!$H$2:$H$4677) -> 0 | O129: =SUMIF(المرتجع!$D$2:$D$789,E129,المرتجع!$E$2:$E$789) -> 0 | P129: =SUMIF(المرتجع!$D$2:$D$789,E129,المرتجع!$G$2:$G$789) -> 0 | Q129: =SUMIF(المرتجع!$D$2:$D$789,E129,المرتجع!$H$2:$H$789) -> 0 | R129: 52.56 | S129: 1346 | T129: 0 | AG129: =IFERROR(VLOOKUP(ROWS($AG$2:AG129),$AI$2:$AJ$932,2,0),"") ->  | AI129: =IF(ISNUMBER(SEARCH($AL$2,AJ129)),MAX($AI$1:AI128)+1,0) -> 0
A130: 129 | B130: اسود | C130: ويفين (510) | D130: 2سم | E130: اسود ويفين (510) 2سم | F130: =156.4 -> 156.4 | I130: =SUMIF(الوارد!$D$2:$D$5853,E130,الوارد!$E$2:$E$5853) -> 655.16 | J130: =SUMIF(الوارد!$D$2:$D$5853,E130,الوارد!$G$2:$G$5853) -> 0 | K130: =SUMIF(الوارد!$D$2:$D$5853,E130,الوارد!$H$2:$H$5853) -> 0 | L130: =SUMIF(المنصرف!$D$2:$D$4677,E130,المنصرف!$E$2:$E$4677) -> 811.56 | M130: =SUMIF(المنصرف!$D$2:$D$4677,E130,المنصرف!$G$2:$G$4677) -> 0 | N130: =SUMIF(المنصرف!$D$2:$D$4677,E130,المنصرف!$H$2:$H$4677) -> 0 | O130: =SUMIF(المرتجع!$D$2:$D$789,E130,المرتجع!$E$2:$E$789) -> 0 | P130: =SUMIF(المرتجع!$D$2:$D$789,E130,المرتجع!$G$2:$G$789) -> 0 | Q130: =SUMIF(المرتجع!$D$2:$D$789,E130,المرتجع!$H$2:$H$789) -> 0 | R130: 0 | S130: 0 | T130: 0 | AG130: =IFERROR(VLOOKUP(ROWS($AG$2:AG130),$AI$2:$AJ$932,2,0),"") ->  | AI130: =IF(ISNUMBER(SEARCH($AL$2,AJ130)),MAX($AI$1:AI129)+1,0) -> 0
A131: 130 | B131: ابيض | C131: ويفين | D131: 4سم | E131: ابيض ويفين 4سم | F131: =50+1642.89-1129.91 -> 562.98 | I131: =SUMIF(الوارد!$D$2:$D$5853,E131,الوارد!$E$2:$E$5853) -> 3248.09 | J131: =SUMIF(الوارد!$D$2:$D$5853,E131,الوارد!$G$2:$G$5853) -> 0 | K131: =SUMIF(الوارد!$D$2:$D$5853,E131,الوارد!$H$2:$H$5853) -> 0 | L131: =SUMIF(المنصرف!$D$2:$D$4677,E131,المنصرف!$E$2:$E$4677) -> 3811.07 | M131: =SUMIF(المنصرف!$D$2:$D$4677,E131,المنصرف!$G$2:$G$4677) -> 0 | N131: =SUMIF(المنصرف!$D$2:$D$4677,E131,المنصرف!$H$2:$H$4677) -> 0 | O131: =SUMIF(المرتجع!$D$2:$D$789,E131,المرتجع!$E$2:$E$789) -> 0 | P131: =SUMIF(المرتجع!$D$2:$D$789,E131,المرتجع!$G$2:$G$789) -> 0 | Q131: =SUMIF(المرتجع!$D$2:$D$789,E131,المرتجع!$H$2:$H$789) -> 0 | R131: 0 | S131: 0 | T131: 0 | AG131: =IFERROR(VLOOKUP(ROWS($AG$2:AG131),$AI$2:$AJ$932,2,0),"") ->  | AI131: =IF(ISNUMBER(SEARCH($AL$2,AJ131)),MAX($AI$1:AI130)+1,0) -> 0
A132: 131 | B132: كحلي | C132: كورد مخلوط | D132: 99سم | E132: كحلي كورد مخلوط 99سم | F132: 0 | I132: =SUMIF(الوارد!$D$2:$D$5853,E132,الوارد!$E$2:$E$5853) -> 2.7 | J132: =SUMIF(الوارد!$D$2:$D$5853,E132,الوارد!$G$2:$G$5853) -> 207.9 | K132: =SUMIF(الوارد!$D$2:$D$5853,E132,الوارد!$H$2:$H$5853) -> 0 | L132: =SUMIF(المنصرف!$D$2:$D$4677,E132,المنصرف!$E$2:$E$4677) -> 2.7 | M132: =SUMIF(المنصرف!$D$2:$D$4677,E132,المنصرف!$G$2:$G$4677) -> 207.9 | N132: =SUMIF(المنصرف!$D$2:$D$4677,E132,المنصرف!$H$2:$H$4677) -> 0 | O132: =SUMIF(المرتجع!$D$2:$D$789,E132,المرتجع!$E$2:$E$789) -> 0 | P132: =SUMIF(المرتجع!$D$2:$D$789,E132,المرتجع!$G$2:$G$789) -> 0 | Q132: =SUMIF(المرتجع!$D$2:$D$789,E132,المرتجع!$H$2:$H$789) -> 0 | R132: 0 | S132: 0 | T132: 0 | AG132: =IFERROR(VLOOKUP(ROWS($AG$2:AG132),$AI$2:$AJ$932,2,0),"") ->  | AI132: =IF(ISNUMBER(SEARCH($AL$2,AJ132)),MAX($AI$1:AI131)+1,0) -> 0
A133: 132 | B133: BLHL | C133: كورد قطن | D133: 1.6سم | E133: BLHL كورد قطن 1.6سم | F133: -45.8 | G133: -2285 | I133: =SUMIF(الوارد!$D$2:$D$5853,E133,الوارد!$E$2:$E$5853) -> 2564.49 | J133: =SUMIF(الوارد!$D$2:$D$5853,E133,الوارد!$G$2:$G$5853) -> 165982 | K133: =SUMIF(الوارد!$D$2:$D$5853,E133,الوارد!$H$2:$H$5853) -> 0 | L133: =SUMIF(المنصرف!$D$2:$D$4677,E133,المنصرف!$E$2:$E$4677) -> 2518.69 | M133: =SUMIF(المنصرف!$D$2:$D$4677,E133,المنصرف!$G$2:$G$4677) -> 163697 | N133: =SUMIF(المنصرف!$D$2:$D$4677,E133,المنصرف!$H$2:$H$4677) -> 0 | O133: =SUMIF(المرتجع!$D$2:$D$789,E133,المرتجع!$E$2:$E$789) -> 0 | P133: =SUMIF(المرتجع!$D$2:$D$789,E133,المرتجع!$G$2:$G$789) -> 0 | Q133: =SUMIF(المرتجع!$D$2:$D$789,E133,المرتجع!$H$2:$H$789) -> 0 | R133: 0 | S133: 0 | T133: 0 | AG133: =IFERROR(VLOOKUP(ROWS($AG$2:AG133),$AI$2:$AJ$932,2,0),"") ->  | AI133: =IF(ISNUMBER(SEARCH($AL$2,AJ133)),MAX($AI$1:AI132)+1,0) -> 0
A134: 133 | B134: ابيض | C134: ويفين (510) | D134: 3سم | E134: ابيض ويفين (510) 3سم | F134: =25.36+18.44 -> 43.8 | I134: =SUMIF(الوارد!$D$2:$D$5853,E134,الوارد!$E$2:$E$5853) -> 739.01 | J134: =SUMIF(الوارد!$D$2:$D$5853,E134,الوارد!$G$2:$G$5853) -> 0 | K134: =SUMIF(الوارد!$D$2:$D$5853,E134,الوارد!$H$2:$H$5853) -> 0 | L134: =SUMIF(المنصرف!$D$2:$D$4677,E134,المنصرف!$E$2:$E$4677) -> 757.22 | M134: =SUMIF(المنصرف!$D$2:$D$4677,E134,المنصرف!$G$2:$G$4677) -> 0 | N134: =SUMIF(المنصرف!$D$2:$D$4677,E134,المنصرف!$H$2:$H$4677) -> 0 | O134: =SUMIF(المرتجع!$D$2:$D$789,E134,المرتجع!$E$2:$E$789) -> 0 | P134: =SUMIF(المرتجع!$D$2:$D$789,E134,المرتجع!$G$2:$G$789) -> 0 | Q134: =SUMIF(المرتجع!$D$2:$D$789,E134,المرتجع!$H$2:$H$789) -> 0 | R134: 25.59 | S134: 0 | T134: 0 | AG134: =IFERROR(VLOOKUP(ROWS($AG$2:AG134),$AI$2:$AJ$932,2,0),"") ->  | AI134: =IF(ISNUMBER(SEARCH($AL$2,AJ134)),MAX($AI$1:AI133)+1,0) -> 0
A135: 134 | B135: ابيض | C135: ويفين (510) | D135: 1.5سم | E135: ابيض ويفين (510) 1.5سم | F135: 0 | I135: =SUMIF(الوارد!$D$2:$D$5853,E135,الوارد!$E$2:$E$5853) -> 58.76 | J135: =SUMIF(الوارد!$D$2:$D$5853,E135,الوارد!$G$2:$G$5853) -> 0 | K135: =SUMIF(الوارد!$D$2:$D$5853,E135,الوارد!$H$2:$H$5853) -> 0 | L135: =SUMIF(المنصرف!$D$2:$D$4677,E135,المنصرف!$E$2:$E$4677) -> 41.32 | M135: =SUMIF(المنصرف!$D$2:$D$4677,E135,المنصرف!$G$2:$G$4677) -> 0 | N135: =SUMIF(المنصرف!$D$2:$D$4677,E135,المنصرف!$H$2:$H$4677) -> 0 | O135: =SUMIF(المرتجع!$D$2:$D$789,E135,المرتجع!$E$2:$E$789) -> 0 | P135: =SUMIF(المرتجع!$D$2:$D$789,E135,المرتجع!$G$2:$G$789) -> 0 | Q135: =SUMIF(المرتجع!$D$2:$D$789,E135,المرتجع!$H$2:$H$789) -> 0 | R135: 17.44 | S135: 0 | T135: 0 | AG135: =IFERROR(VLOOKUP(ROWS($AG$2:AG135),$AI$2:$AJ$932,2,0),"") ->  | AI135: =IF(ISNUMBER(SEARCH($AL$2,AJ135)),MAX($AI$1:AI134)+1,0) -> 0
A136: 135 | B136: جراي | C136: كورد قطن | D136: 87سم | E136: جراي كورد قطن 87سم | F136: 0 | I136: =SUMIF(الوارد!$D$2:$D$5853,E136,الوارد!$E$2:$E$5853) -> 21.11 | J136: =SUMIF(الوارد!$D$2:$D$5853,E136,الوارد!$G$2:$G$5853) -> 2088.87 | K136: =SUMIF(الوارد!$D$2:$D$5853,E136,الوارد!$H$2:$H$5853) -> 0 | L136: =SUMIF(المنصرف!$D$2:$D$4677,E136,المنصرف!$E$2:$E$4677) -> 21.11 | M136: =SUMIF(المنصرف!$D$2:$D$4677,E136,المنصرف!$G$2:$G$4677) -> 2088.87 | N136: =SUMIF(المنصرف!$D$2:$D$4677,E136,المنصرف!$H$2:$H$4677) -> 0 | O136: =SUMIF(المرتجع!$D$2:$D$789,E136,المرتجع!$E$2:$E$789) -> 0 | P136: =SUMIF(المرتجع!$D$2:$D$789,E136,المرتجع!$G$2:$G$789) -> 0 | Q136: =SUMIF(المرتجع!$D$2:$D$789,E136,المرتجع!$H$2:$H$789) -> 0 | R136: 0 | S136: 0 | T136: 0 | AG136: =IFERROR(VLOOKUP(ROWS($AG$2:AG136),$AI$2:$AJ$932,2,0),"") ->  | AI136: =IF(ISNUMBER(SEARCH($AL$2,AJ136)),MAX($AI$1:AI135)+1,0) -> 0
A137: 136 | B137: putty | C137: كورد قطن | D137: 96سم | E137: putty كورد قطن 96سم | F137: 0 | I137: =SUMIF(الوارد!$D$2:$D$5853,E137,الوارد!$E$2:$E$5853) -> 1.9 | J137: =SUMIF(الوارد!$D$2:$D$5853,E137,الوارد!$G$2:$G$5853) -> 0 | K137: =SUMIF(الوارد!$D$2:$D$5853,E137,الوارد!$H$2:$H$5853) -> 0 | L137: =SUMIF(المنصرف!$D$2:$D$4677,E137,المنصرف!$E$2:$E$4677) -> 1.9 | M137: =SUMIF(المنصرف!$D$2:$D$4677,E137,المنصرف!$G$2:$G$4677) -> 0 | N137: =SUMIF(المنصرف!$D$2:$D$4677,E137,المنصرف!$H$2:$H$4677) -> 0 | O137: =SUMIF(المرتجع!$D$2:$D$789,E137,المرتجع!$E$2:$E$789) -> 0 | P137: =SUMIF(المرتجع!$D$2:$D$789,E137,المرتجع!$G$2:$G$789) -> 0 | Q137: =SUMIF(المرتجع!$D$2:$D$789,E137,المرتجع!$H$2:$H$789) -> 0 | R137: 0 | S137: 0 | T137: 0 | AG137: =IFERROR(VLOOKUP(ROWS($AG$2:AG137),$AI$2:$AJ$932,2,0),"") ->  | AI137: =IF(ISNUMBER(SEARCH($AL$2,AJ137)),MAX($AI$1:AI136)+1,0) -> 0
A138: 137 | B138: احمر | C138: جاكار | D138: 2سم | E138: احمر جاكار 2سم | F138: 0 | G138: 0 | I138: =SUMIF(الوارد!$D$2:$D$5853,E138,الوارد!$E$2:$E$5853) -> 322.68 | J138: =SUMIF(الوارد!$D$2:$D$5853,E138,الوارد!$G$2:$G$5853) -> 29309 | K138: =SUMIF(الوارد!$D$2:$D$5853,E138,الوارد!$H$2:$H$5853) -> 0 | L138: =SUMIF(المنصرف!$D$2:$D$4677,E138,المنصرف!$E$2:$E$4677) -> 322.68 | M138: =SUMIF(المنصرف!$D$2:$D$4677,E138,المنصرف!$G$2:$G$4677) -> 29309 | N138: =SUMIF(المنصرف!$D$2:$D$4677,E138,المنصرف!$H$2:$H$4677) -> 0 | O138: =SUMIF(المرتجع!$D$2:$D$789,E138,المرتجع!$E$2:$E$789) -> 0 | P138: =SUMIF(المرتجع!$D$2:$D$789,E138,المرتجع!$G$2:$G$789) -> 0 | Q138: =SUMIF(المرتجع!$D$2:$D$789,E138,المرتجع!$H$2:$H$789) -> 0 | R138: 0 | S138: 0 | T138: 0 | AG138: =IFERROR(VLOOKUP(ROWS($AG$2:AG138),$AI$2:$AJ$932,2,0),"") ->  | AI138: =IF(ISNUMBER(SEARCH($AL$2,AJ138)),MAX($AI$1:AI137)+1,0) -> 0
A139: 138 | B139: احمر | C139: ساندوتش | D139: 1.5سم | E139: احمر ساندوتش 1.5سم | F139: 0 | G139: 0 | I139: =SUMIF(الوارد!$D$2:$D$5853,E139,الوارد!$E$2:$E$5853) -> 0 | J139: =SUMIF(الوارد!$D$2:$D$5853,E139,الوارد!$G$2:$G$5853) -> 0 | K139: =SUMIF(الوارد!$D$2:$D$5853,E139,الوارد!$H$2:$H$5853) -> 0 | L139: =SUMIF(المنصرف!$D$2:$D$4677,E139,المنصرف!$E$2:$E$4677) -> 159.1 | M139: =SUMIF(المنصرف!$D$2:$D$4677,E139,المنصرف!$G$2:$G$4677) -> 45455.78 | N139: =SUMIF(المنصرف!$D$2:$D$4677,E139,المنصرف!$H$2:$H$4677) -> 0 | O139: =SUMIF(المرتجع!$D$2:$D$789,E139,المرتجع!$E$2:$E$789) -> 159.1 | P139: =SUMIF(المرتجع!$D$2:$D$789,E139,المرتجع!$G$2:$G$789) -> 45455.78 | Q139: =SUMIF(المرتجع!$D$2:$D$789,E139,المرتجع!$H$2:$H$789) -> 0 | R139: 0 | S139: 0 | T139: 0 | AG139: =IFERROR(VLOOKUP(ROWS($AG$2:AG139),$AI$2:$AJ$932,2,0),"") ->  | AI139: =IF(ISNUMBER(SEARCH($AL$2,AJ139)),MAX($AI$1:AI138)+1,0) -> 0
A140: 139 | B140: ابيض | C140: ويفين | D140: 1.6سم | E140: ابيض ويفين 1.6سم | F140: =-1601.9 -> -1601.9 | G140: =-12272 -> -12272 | I140: =SUMIF(الوارد!$D$2:$D$5853,E140,الوارد!$E$2:$E$5853) -> 1601.9 | J140: =SUMIF(الوارد!$D$2:$D$5853,E140,الوارد!$G$2:$G$5853) -> 12272 | K140: =SUMIF(الوارد!$D$2:$D$5853,E140,الوارد!$H$2:$H$5853) -> 0 | L140: =SUMIF(المنصرف!$D$2:$D$4677,E140,المنصرف!$E$2:$E$4677) -> 139.2 | M140: =SUMIF(المنصرف!$D$2:$D$4677,E140,المنصرف!$G$2:$G$4677) -> 16383.74 | N140: =SUMIF(المنصرف!$D$2:$D$4677,E140,المنصرف!$H$2:$H$4677) -> 0 | O140: =SUMIF(المرتجع!$D$2:$D$789,E140,المرتجع!$E$2:$E$789) -> 139.2 | P140: =SUMIF(المرتجع!$D$2:$D$789,E140,المرتجع!$G$2:$G$789) -> 16383.74 | Q140: =SUMIF(المرتجع!$D$2:$D$789,E140,المرتجع!$H$2:$H$789) -> 0 | R140: -2.273736754e-13 | S140: 0 | T140: 0 | AG140: =IFERROR(VLOOKUP(ROWS($AG$2:AG140),$AI$2:$AJ$932,2,0),"") ->  | AI140: =IF(ISNUMBER(SEARCH($AL$2,AJ140)),MAX($AI$1:AI139)+1,0) -> 0
A141: 140 | B141: 11-0104 | C141: ويفين | D141: 1.6سم | E141: 11-0104 ويفين 1.6سم | F141: 0 | G141: 0 | I141: =SUMIF(الوارد!$D$2:$D$5853,E141,الوارد!$E$2:$E$5853) -> 0 | J141: =SUMIF(الوارد!$D$2:$D$5853,E141,الوارد!$G$2:$G$5853) -> 0 | K141: =SUMIF(الوارد!$D$2:$D$5853,E141,الوارد!$H$2:$H$5853) -> 0 | L141: =SUMIF(المنصرف!$D$2:$D$4677,E141,المنصرف!$E$2:$E$4677) -> 231.18 | M141: =SUMIF(المنصرف!$D$2:$D$4677,E141,المنصرف!$G$2:$G$4677) -> 28903.38 | N141: =SUMIF(المنصرف!$D$2:$D$4677,E141,المنصرف!$H$2:$H$4677) -> 0 | O141: =SUMIF(المرتجع!$D$2:$D$789,E141,المرتجع!$E$2:$E$789) -> 231.18 | P141: =SUMIF(المرتجع!$D$2:$D$789,E141,المرتجع!$G$2:$G$789) -> 28903.38 | Q141: =SUMIF(المرتجع!$D$2:$D$789,E141,المرتجع!$H$2:$H$789) -> 0 | R141: 0 | S141: 0 | T141: 0 | AG141: =IFERROR(VLOOKUP(ROWS($AG$2:AG141),$AI$2:$AJ$932,2,0),"") ->  | AI141: =IF(ISNUMBER(SEARCH($AL$2,AJ141)),MAX($AI$1:AI140)+1,0) -> 0
A142: 141 | B142: 13-6008 | C142: ويفين | D142: 1.6سم | E142: 13-6008 ويفين 1.6سم | F142: 0 | G142: 0 | I142: =SUMIF(الوارد!$D$2:$D$5853,E142,الوارد!$E$2:$E$5853) -> 0 | J142: =SUMIF(الوارد!$D$2:$D$5853,E142,الوارد!$G$2:$G$5853) -> 0 | K142: =SUMIF(الوارد!$D$2:$D$5853,E142,الوارد!$H$2:$H$5853) -> 0 | L142: =SUMIF(المنصرف!$D$2:$D$4677,E142,المنصرف!$E$2:$E$4677) -> 265.55 | M142: =SUMIF(المنصرف!$D$2:$D$4677,E142,المنصرف!$G$2:$G$4677) -> 31241.09 | N142: =SUMIF(المنصرف!$D$2:$D$4677,E142,المنصرف!$H$2:$H$4677) -> 0 | O142: =SUMIF(المرتجع!$D$2:$D$789,E142,المرتجع!$E$2:$E$789) -> 265.55 | P142: =SUMIF(المرتجع!$D$2:$D$789,E142,المرتجع!$G$2:$G$789) -> 31241.09 | Q142: =SUMIF(المرتجع!$D$2:$D$789,E142,المرتجع!$H$2:$H$789) -> 0 | R142: 0 | S142: 0 | T142: 0 | AG142: =IFERROR(VLOOKUP(ROWS($AG$2:AG142),$AI$2:$AJ$932,2,0),"") ->  | AI142: =IF(ISNUMBER(SEARCH($AL$2,AJ142)),MAX($AI$1:AI141)+1,0) -> 0
A143: 142 | B143: اسود | C143: ساندوتش | D143: 1.5سم | E143: اسود ساندوتش 1.5سم | F143: 15 | G143: 4999.98 | I143: =SUMIF(الوارد!$D$2:$D$5853,E143,الوارد!$E$2:$E$5853) -> 0 | J143: =SUMIF(الوارد!$D$2:$D$5853,E143,الوارد!$G$2:$G$5853) -> 0 | K143: =SUMIF(الوارد!$D$2:$D$5853,E143,الوارد!$H$2:$H$5853) -> 0 | L143: =SUMIF(المنصرف!$D$2:$D$4677,E143,المنصرف!$E$2:$E$4677) -> 246.19 | M143: =SUMIF(المنصرف!$D$2:$D$4677,E143,المنصرف!$G$2:$G$4677) -> 71910.86 | N143: =SUMIF(المنصرف!$D$2:$D$4677,E143,المنصرف!$H$2:$H$4677) -> 0 | O143: =SUMIF(المرتجع!$D$2:$D$789,E143,المرتجع!$E$2:$E$789) -> 309.39 | P143: =SUMIF(المرتجع!$D$2:$D$789,E143,المرتجع!$G$2:$G$789) -> 89981.78 | Q143: =SUMIF(المرتجع!$D$2:$D$789,E143,المرتجع!$H$2:$H$789) -> 0 | R143: 78.2 | S143: 23070.9 | T143: 0 | AG143: =IFERROR(VLOOKUP(ROWS($AG$2:AG143),$AI$2:$AJ$932,2,0),"") ->  | AI143: =IF(ISNUMBER(SEARCH($AL$2,AJ143)),MAX($AI$1:AI142)+1,0) -> 0
A144: 143 | B144: 19-3810 | C144: ساندوتش | D144: 1.5سم | E144: 19-3810 ساندوتش 1.5سم | F144: 0 | G144: 0 | I144: =SUMIF(الوارد!$D$2:$D$5853,E144,الوارد!$E$2:$E$5853) -> 0 | J144: =SUMIF(الوارد!$D$2:$D$5853,E144,الوارد!$G$2:$G$5853) -> 0 | K144: =SUMIF(الوارد!$D$2:$D$5853,E144,الوارد!$H$2:$H$5853) -> 0 | L144: =SUMIF(المنصرف!$D$2:$D$4677,E144,المنصرف!$E$2:$E$4677) -> 29.6 | M144: =SUMIF(المنصرف!$D$2:$D$4677,E144,المنصرف!$G$2:$G$4677) -> 9866.66 | N144: =SUMIF(المنصرف!$D$2:$D$4677,E144,المنصرف!$H$2:$H$4677) -> 0 | O144: =SUMIF(المرتجع!$D$2:$D$789,E144,المرتجع!$E$2:$E$789) -> 29.6 | P144: =SUMIF(المرتجع!$D$2:$D$789,E144,المرتجع!$G$2:$G$789) -> 9866.66 | Q144: =SUMIF(المرتجع!$D$2:$D$789,E144,المرتجع!$H$2:$H$789) -> 0 | R144: 0 | S144: 0 | T144: 0 | AG144: =IFERROR(VLOOKUP(ROWS($AG$2:AG144),$AI$2:$AJ$932,2,0),"") ->  | AI144: =IF(ISNUMBER(SEARCH($AL$2,AJ144)),MAX($AI$1:AI143)+1,0) -> 0
A145: 144 | B145: pinke | C145: فستونة | D145: 2.5سم | E145: pinke فستونة 2.5سم | F145: 0 | G145: 0 | I145: =SUMIF(الوارد!$D$2:$D$5853,E145,الوارد!$E$2:$E$5853) -> 39.21 | J145: =SUMIF(الوارد!$D$2:$D$5853,E145,الوارد!$G$2:$G$5853) -> 6824 | K145: =SUMIF(الوارد!$D$2:$D$5853,E145,الوارد!$H$2:$H$5853) -> 0 | L145: =SUMIF(المنصرف!$D$2:$D$4677,E145,المنصرف!$E$2:$E$4677) -> 37.55 | M145: =SUMIF(المنصرف!$D$2:$D$4677,E145,المنصرف!$G$2:$G$4677) -> 6824 | N145: =SUMIF(المنصرف!$D$2:$D$4677,E145,المنصرف!$H$2:$H$4677) -> 0 | O145: =SUMIF(المرتجع!$D$2:$D$789,E145,المرتجع!$E$2:$E$789) -> 0 | P145: =SUMIF(المرتجع!$D$2:$D$789,E145,المرتجع!$G$2:$G$789) -> 0 | Q145: =SUMIF(المرتجع!$D$2:$D$789,E145,المرتجع!$H$2:$H$789) -> 0 | R145: 1.66 | S145: 0 | T145: 0 | AG145: =IFERROR(VLOOKUP(ROWS($AG$2:AG145),$AI$2:$AJ$932,2,0),"") ->  | AI145: =IF(ISNUMBER(SEARCH($AL$2,AJ145)),MAX($AI$1:AI144)+1,0) -> 0
A146: 145 | B146: raw | C146: تويل تيب قطن | D146: 1سم | E146: raw تويل تيب قطن 1سم | F146: 0 | G146: 0 | I146: =SUMIF(الوارد!$D$2:$D$5853,E146,الوارد!$E$2:$E$5853) -> 1991.81 | J146: =SUMIF(الوارد!$D$2:$D$5853,E146,الوارد!$G$2:$G$5853) -> 594634.66 | K146: =SUMIF(الوارد!$D$2:$D$5853,E146,الوارد!$H$2:$H$5853) -> 0 | L146: =SUMIF(المنصرف!$D$2:$D$4677,E146,المنصرف!$E$2:$E$4677) -> 1930.37 | M146: =SUMIF(المنصرف!$D$2:$D$4677,E146,المنصرف!$G$2:$G$4677) -> 580919 | N146: =SUMIF(المنصرف!$D$2:$D$4677,E146,المنصرف!$H$2:$H$4677) -> 0 | O146: =SUMIF(المرتجع!$D$2:$D$789,E146,المرتجع!$E$2:$E$789) -> 0 | P146: =SUMIF(المرتجع!$D$2:$D$789,E146,المرتجع!$G$2:$G$789) -> 0 | Q146: =SUMIF(المرتجع!$D$2:$D$789,E146,المرتجع!$H$2:$H$789) -> 0 | R146: 61.44 | S146: 13715.66 | T146: 0 | AG146: =IFERROR(VLOOKUP(ROWS($AG$2:AG146),$AI$2:$AJ$932,2,0),"") ->  | AI146: =IF(ISNUMBER(SEARCH($AL$2,AJ146)),MAX($AI$1:AI145)+1,0) -> 0
A147: 146 | B147: ابيض | C147: ويفين (510) | D147: 5سم | E147: ابيض ويفين (510) 5سم | F147: 289.94 | G147: 0 | I147: =SUMIF(الوارد!$D$2:$D$5853,E147,الوارد!$E$2:$E$5853) -> 129.08 | J147: =SUMIF(الوارد!$D$2:$D$5853,E147,الوارد!$G$2:$G$5853) -> 1444 | K147: =SUMIF(الوارد!$D$2:$D$5853,E147,الوارد!$H$2:$H$5853) -> 0 | L147: =SUMIF(المنصرف!$D$2:$D$4677,E147,المنصرف!$E$2:$E$4677) -> 363.34 | M147: =SUMIF(المنصرف!$D$2:$D$4677,E147,المنصرف!$G$2:$G$4677) -> 0 | N147: =SUMIF(المنصرف!$D$2:$D$4677,E147,المنصرف!$H$2:$H$4677) -> 0 | O147: =SUMIF(المرتجع!$D$2:$D$789,E147,المرتجع!$E$2:$E$789) -> 0 | P147: =SUMIF(المرتجع!$D$2:$D$789,E147,المرتجع!$G$2:$G$789) -> 0 | Q147: =SUMIF(المرتجع!$D$2:$D$789,E147,المرتجع!$H$2:$H$789) -> 0 | R147: 55.68 | S147: 1444 | T147: 0 | AG147: =IFERROR(VLOOKUP(ROWS($AG$2:AG147),$AI$2:$AJ$932,2,0),"") ->  | AI147: =IF(ISNUMBER(SEARCH($AL$2,AJ147)),MAX($AI$1:AI146)+1,0) -> 0
A148: 147 | C148: جاكار درجة ثانية | E148: جاكار درجة ثانية | F148: =28313.15 -> 28313.15 | I148: =SUMIF(الوارد!$D$2:$D$5853,E148,الوارد!$E$2:$E$5853) -> 3201.52 | J148: =SUMIF(الوارد!$D$2:$D$5853,E148,الوارد!$G$2:$G$5853) -> 0 | K148: =SUMIF(الوارد!$D$2:$D$5853,E148,الوارد!$H$2:$H$5853) -> 0 | L148: =SUMIF(المنصرف!$D$2:$D$4677,E148,المنصرف!$E$2:$E$4677) -> 0 | M148: =SUMIF(المنصرف!$D$2:$D$4677,E148,المنصرف!$G$2:$G$4677) -> 0 | N148: =SUMIF(المنصرف!$D$2:$D$4677,E148,المنصرف!$H$2:$H$4677) -> 0 | O148: =SUMIF(المرتجع!$D$2:$D$789,E148,المرتجع!$E$2:$E$789) -> 2259 | P148: =SUMIF(المرتجع!$D$2:$D$789,E148,المرتجع!$G$2:$G$789) -> 0 | Q148: =SUMIF(المرتجع!$D$2:$D$789,E148,المرتجع!$H$2:$H$789) -> 0 | R148: 33773.67 | S148: 0 | T148: 0 | AG148: =IFERROR(VLOOKUP(ROWS($AG$2:AG148),$AI$2:$AJ$932,2,0),"") ->  | AI148: =IF(ISNUMBER(SEARCH($AL$2,AJ148)),MAX($AI$1:AI147)+1,0) -> 0
A149: 148 | B149: كحلي | C149: كورد بوليستر | D149: 100سم | E149: =B149&" "&C149&" "&D149 -> كحلي كورد بوليستر 100سم | F149: 0 | I149: =SUMIF(الوارد!$D$2:$D$5853,E149,الوارد!$E$2:$E$5853) -> 139.02 | J149: =SUMIF(الوارد!$D$2:$D$5853,E149,الوارد!$G$2:$G$5853) -> 14391 | K149: =SUMIF(الوارد!$D$2:$D$5853,E149,الوارد!$H$2:$H$5853) -> 0 | L149: =SUMIF(المنصرف!$D$2:$D$4677,E149,المنصرف!$E$2:$E$4677) -> 139.02 | M149: =SUMIF(المنصرف!$D$2:$D$4677,E149,المنصرف!$G$2:$G$4677) -> 14391 | N149: =SUMIF(المنصرف!$D$2:$D$4677,E149,المنصرف!$H$2:$H$4677) -> 0 | O149: =SUMIF(المرتجع!$D$2:$D$789,E149,المرتجع!$E$2:$E$789) -> 0 | P149: =SUMIF(المرتجع!$D$2:$D$789,E149,المرتجع!$G$2:$G$789) -> 0 | Q149: =SUMIF(المرتجع!$D$2:$D$789,E149,المرتجع!$H$2:$H$789) -> 0 | R149: =F149+I149+O149-L149 -> 0 | S149: =G149+J149+P149-M149 -> 0 | T149: =H149+K149+Q149-N149 -> 0 | AG149: =IFERROR(VLOOKUP(ROWS($AG$2:AG149),$AI$2:$AJ$932,2,0),"") ->  | AI149: =IF(ISNUMBER(SEARCH($AL$2,AJ149)),MAX($AI$1:AI148)+1,0) -> 0
A150: 149 | B150: جراي | C150: كورد بوليستر | D150: 110سم | E150: جراي كورد بوليستر 110سم | F150: 0 | I150: =SUMIF(الوارد!$D$2:$D$5853,E150,الوارد!$E$2:$E$5853) -> 440.48 | J150: =SUMIF(الوارد!$D$2:$D$5853,E150,الوارد!$G$2:$G$5853) -> 46501.7 | K150: =SUMIF(الوارد!$D$2:$D$5853,E150,الوارد!$H$2:$H$5853) -> 0 | L150: =SUMIF(المنصرف!$D$2:$D$4677,E150,المنصرف!$E$2:$E$4677) -> 440.48 | M150: =SUMIF(المنصرف!$D$2:$D$4677,E150,المنصرف!$G$2:$G$4677) -> 46501.7 | N150: =SUMIF(المنصرف!$D$2:$D$4677,E150,المنصرف!$H$2:$H$4677) -> 0 | O150: =SUMIF(المرتجع!$D$2:$D$789,E150,المرتجع!$E$2:$E$789) -> 0 | P150: =SUMIF(المرتجع!$D$2:$D$789,E150,المرتجع!$G$2:$G$789) -> 0 | Q150: =SUMIF(المرتجع!$D$2:$D$789,E150,المرتجع!$H$2:$H$789) -> 0 | R150: 0 | S150: 0 | T150: 0 | AG150: =IFERROR(VLOOKUP(ROWS($AG$2:AG150),$AI$2:$AJ$932,2,0),"") ->  | AI150: =IF(ISNUMBER(SEARCH($AL$2,AJ150)),MAX($AI$1:AI149)+1,0) -> 0
A151: 150 | B151: جراي | C151: كورد بوليستر | D151: 100سم | E151: جراي كورد بوليستر 100سم | F151: 0 | G151: 0 | I151: =SUMIF(الوارد!$D$2:$D$5853,E151,الوارد!$E$2:$E$5853) -> 179.85 | J151: =SUMIF(الوارد!$D$2:$D$5853,E151,الوارد!$G$2:$G$5853) -> 17476 | K151: =SUMIF(الوارد!$D$2:$D$5853,E151,الوارد!$H$2:$H$5853) -> 0 | L151: =SUMIF(المنصرف!$D$2:$D$4677,E151,المنصرف!$E$2:$E$4677) -> 179.85 | M151: =SUMIF(المنصرف!$D$2:$D$4677,E151,المنصرف!$G$2:$G$4677) -> 17476 | N151: =SUMIF(المنصرف!$D$2:$D$4677,E151,المنصرف!$H$2:$H$4677) -> 0 | O151: =SUMIF(المرتجع!$D$2:$D$789,E151,المرتجع!$E$2:$E$789) -> 0 | P151: =SUMIF(المرتجع!$D$2:$D$789,E151,المرتجع!$G$2:$G$789) -> 0 | Q151: =SUMIF(المرتجع!$D$2:$D$789,E151,المرتجع!$H$2:$H$789) -> 0 | R151: 0 | S151: 0 | T151: 0 | AG151: =IFERROR(VLOOKUP(ROWS($AG$2:AG151),$AI$2:$AJ$932,2,0),"") ->  | AI151: =IF(ISNUMBER(SEARCH($AL$2,AJ151)),MAX($AI$1:AI150)+1,0) -> 0
A152: 151 | B152: كحلي | C152: كورد بوليستر | D152: 130سم | E152: كحلي كورد بوليستر 130سم | F152: 0 | G152: 0 | I152: =SUMIF(الوارد!$D$2:$D$5853,E152,الوارد!$E$2:$E$5853) -> 536.11 | J152: =SUMIF(الوارد!$D$2:$D$5853,E152,الوارد!$G$2:$G$5853) -> 51460.1 | K152: =SUMIF(الوارد!$D$2:$D$5853,E152,الوارد!$H$2:$H$5853) -> 0 | L152: =SUMIF(المنصرف!$D$2:$D$4677,E152,المنصرف!$E$2:$E$4677) -> 476.61 | M152: =SUMIF(المنصرف!$D$2:$D$4677,E152,المنصرف!$G$2:$G$4677) -> 45090.1 | N152: =SUMIF(المنصرف!$D$2:$D$4677,E152,المنصرف!$H$2:$H$4677) -> 0 | O152: =SUMIF(المرتجع!$D$2:$D$789,E152,المرتجع!$E$2:$E$789) -> 0 | P152: =SUMIF(المرتجع!$D$2:$D$789,E152,المرتجع!$G$2:$G$789) -> 0 | Q152: =SUMIF(المرتجع!$D$2:$D$789,E152,المرتجع!$H$2:$H$789) -> 0 | R152: 59.5 | S152: 6370 | T152: 0 | AG152: =IFERROR(VLOOKUP(ROWS($AG$2:AG152),$AI$2:$AJ$932,2,0),"") ->  | AI152: =IF(ISNUMBER(SEARCH($AL$2,AJ152)),MAX($AI$1:AI151)+1,0) -> 0
A153: 152 | B153: ابيض بارز | C153: جاكار | D153: 3سم | E153: ابيض بارز جاكار 3سم | F153: =322-56.65 -> 265.35 | G153: =14627.9-2632.9 -> 11995 | I153: =SUMIF(الوارد!$D$2:$D$5853,E153,الوارد!$E$2:$E$5853) -> 548.14 | J153: =SUMIF(الوارد!$D$2:$D$5853,E153,الوارد!$G$2:$G$5853) -> 25003 | K153: =SUMIF(الوارد!$D$2:$D$5853,E153,الوارد!$H$2:$H$5853) -> 0 | L153: =SUMIF(المنصرف!$D$2:$D$4677,E153,المنصرف!$E$2:$E$4677) -> 559.49 | M153: =SUMIF(المنصرف!$D$2:$D$4677,E153,المنصرف!$G$2:$G$4677) -> 25868 | N153: =SUMIF(المنصرف!$D$2:$D$4677,E153,المنصرف!$H$2:$H$4677) -> 0 | O153: =SUMIF(المرتجع!$D$2:$D$789,E153,المرتجع!$E$2:$E$789) -> 56 | P153: =SUMIF(المرتجع!$D$2:$D$789,E153,المرتجع!$G$2:$G$789) -> 2544 | Q153: =SUMIF(المرتجع!$D$2:$D$789,E153,المرتجع!$H$2:$H$789) -> 0 | R153: 310 | S153: 13674 | T153: 0 | AG153: =IFERROR(VLOOKUP(ROWS($AG$2:AG153),$AI$2:$AJ$932,2,0),"") ->  | AI153: =IF(ISNUMBER(SEARCH($AL$2,AJ153)),MAX($AI$1:AI152)+1,0) -> 0
A154: 153 | B154: ابيض*اسود | C154: جاكار | D154: 3سم | E154: ابيض*اسود جاكار 3سم | F154: =240-56.8-38.81-111+7 -> 40.39 | G154: =10890-1752-1730-5000+600 -> 3008 | I154: =SUMIF(الوارد!$D$2:$D$5853,E154,الوارد!$E$2:$E$5853) -> 2475.34 | J154: =SUMIF(الوارد!$D$2:$D$5853,E154,الوارد!$G$2:$G$5853) -> 113235 | K154: =SUMIF(الوارد!$D$2:$D$5853,E154,الوارد!$H$2:$H$5853) -> 0 | L154: =SUMIF(المنصرف!$D$2:$D$4677,E154,المنصرف!$E$2:$E$4677) -> 2332.64 | M154: =SUMIF(المنصرف!$D$2:$D$4677,E154,المنصرف!$G$2:$G$4677) -> 107335 | N154: =SUMIF(المنصرف!$D$2:$D$4677,E154,المنصرف!$H$2:$H$4677) -> 0 | O154: =SUMIF(المرتجع!$D$2:$D$789,E154,المرتجع!$E$2:$E$789) -> 0 | P154: =SUMIF(المرتجع!$D$2:$D$789,E154,المرتجع!$G$2:$G$789) -> 0 | Q154: =SUMIF(المرتجع!$D$2:$D$789,E154,المرتجع!$H$2:$H$789) -> 0 | R154: 183.09 | S154: 8908 | T154: 0 | AG154: =IFERROR(VLOOKUP(ROWS($AG$2:AG154),$AI$2:$AJ$932,2,0),"") ->  | AI154: =IF(ISNUMBER(SEARCH($AL$2,AJ154)),MAX($AI$1:AI153)+1,0) -> 0
A155: 154 | B155: ابيض*رويال(ابيض*ديفابلو) | C155: جاكار | D155: 3سم | E155: ابيض*رويال(ابيض*ديفابلو) جاكار 3سم | F155: =572.85+8.21+54.48-69-26 -> 540.54 | G155: =25950-4507.5+2840-3200-1800 -> 19282.5 | I155: =SUMIF(الوارد!$D$2:$D$5853,E155,الوارد!$E$2:$E$5853) -> 3953.84 | J155: =SUMIF(الوارد!$D$2:$D$5853,E155,الوارد!$G$2:$G$5853) -> 183157.5 | K155: =SUMIF(الوارد!$D$2:$D$5853,E155,الوارد!$H$2:$H$5853) -> 0 | L155: =SUMIF(المنصرف!$D$2:$D$4677,E155,المنصرف!$E$2:$E$4677) -> 4005.56 | M155: =SUMIF(المنصرف!$D$2:$D$4677,E155,المنصرف!$G$2:$G$4677) -> 181797 | N155: =SUMIF(المنصرف!$D$2:$D$4677,E155,المنصرف!$H$2:$H$4677) -> 0 | O155: =SUMIF(المرتجع!$D$2:$D$789,E155,المرتجع!$E$2:$E$789) -> 0 | P155: =SUMIF(المرتجع!$D$2:$D$789,E155,المرتجع!$G$2:$G$789) -> 0 | Q155: =SUMIF(المرتجع!$D$2:$D$789,E155,المرتجع!$H$2:$H$789) -> 0 | R155: 488.82 | S155: 20643 | T155: 0 | AG155: =IFERROR(VLOOKUP(ROWS($AG$2:AG155),$AI$2:$AJ$932,2,0),"") ->  | AI155: =IF(ISNUMBER(SEARCH($AL$2,AJ155)),MAX($AI$1:AI154)+1,0) -> 0
A156: 155 | B156: ابيض*سكاي بلو | C156: جاكار | D156: 3سم | E156: ابيض*سكاي بلو جاكار 3سم | F156: =609.6+244.97-191-8 -> 655.57 | G156: =28956+22544-8800-2616 -> 40084 | I156: =SUMIF(الوارد!$D$2:$D$5853,E156,الوارد!$E$2:$E$5853) -> 3893.42 | J156: =SUMIF(الوارد!$D$2:$D$5853,E156,الوارد!$G$2:$G$5853) -> 185175 | K156: =SUMIF(الوارد!$D$2:$D$5853,E156,الوارد!$H$2:$H$5853) -> 0 | L156: =SUMIF(المنصرف!$D$2:$D$4677,E156,المنصرف!$E$2:$E$4677) -> 4324.39 | M156: =SUMIF(المنصرف!$D$2:$D$4677,E156,المنصرف!$G$2:$G$4677) -> 217386 | N156: =SUMIF(المنصرف!$D$2:$D$4677,E156,المنصرف!$H$2:$H$4677) -> 0 | O156: =SUMIF(المرتجع!$D$2:$D$789,E156,المرتجع!$E$2:$E$789) -> 0 | P156: =SUMIF(المرتجع!$D$2:$D$789,E156,المرتجع!$G$2:$G$789) -> 0 | Q156: =SUMIF(المرتجع!$D$2:$D$789,E156,المرتجع!$H$2:$H$789) -> 0 | R156: 224.6 | S156: 7873 | T156: 0 | AG156: =IFERROR(VLOOKUP(ROWS($AG$2:AG156),$AI$2:$AJ$932,2,0),"") ->  | AI156: =IF(ISNUMBER(SEARCH($AL$2,AJ156)),MAX($AI$1:AI155)+1,0) -> 0
A157: 156 | B157: ابيض*كافيه | C157: جاكار | D157: 3سم | E157: ابيض*كافيه جاكار 3سم | F157: =30.9199999999998+17 -> 47.92 | G157: =1270+800 -> 2070 | I157: =SUMIF(الوارد!$D$2:$D$5853,E157,الوارد!$E$2:$E$5853) -> 1765.25 | J157: =SUMIF(الوارد!$D$2:$D$5853,E157,الوارد!$G$2:$G$5853) -> 80192 | K157: =SUMIF(الوارد!$D$2:$D$5853,E157,الوارد!$H$2:$H$5853) -> 0 | L157: =SUMIF(المنصرف!$D$2:$D$4677,E157,المنصرف!$E$2:$E$4677) -> 1462.37 | M157: =SUMIF(المنصرف!$D$2:$D$4677,E157,المنصرف!$G$2:$G$4677) -> 66289 | N157: =SUMIF(المنصرف!$D$2:$D$4677,E157,المنصرف!$H$2:$H$4677) -> 0 | O157: =SUMIF(المرتجع!$D$2:$D$789,E157,المرتجع!$E$2:$E$789) -> 0 | P157: =SUMIF(المرتجع!$D$2:$D$789,E157,المرتجع!$G$2:$G$789) -> 0 | Q157: =SUMIF(المرتجع!$D$2:$D$789,E157,المرتجع!$H$2:$H$789) -> 0 | R157: 350.8 | S157: 15973 | T157: 0 | AG157: =IFERROR(VLOOKUP(ROWS($AG$2:AG157),$AI$2:$AJ$932,2,0),"") ->  | AI157: =IF(ISNUMBER(SEARCH($AL$2,AJ157)),MAX($AI$1:AI156)+1,0) -> 0
A158: 157 | B158: ابيض*هيدرو | C158: جاكار | D158: 3سم | E158: ابيض*هيدرو جاكار 3سم | F158: =190.2-46.75+11.48+17.5-2 -> 170.43 | G158: =8621-1241-685+794-638 -> 6851 | I158: =SUMIF(الوارد!$D$2:$D$5853,E158,الوارد!$E$2:$E$5853) -> 2651.09 | J158: =SUMIF(الوارد!$D$2:$D$5853,E158,الوارد!$G$2:$G$5853) -> 119787 | K158: =SUMIF(الوارد!$D$2:$D$5853,E158,الوارد!$H$2:$H$5853) -> 0 | L158: =SUMIF(المنصرف!$D$2:$D$4677,E158,المنصرف!$E$2:$E$4677) -> 2384.72 | M158: =SUMIF(المنصرف!$D$2:$D$4677,E158,المنصرف!$G$2:$G$4677) -> 107468 | N158: =SUMIF(المنصرف!$D$2:$D$4677,E158,المنصرف!$H$2:$H$4677) -> 0 | O158: =SUMIF(المرتجع!$D$2:$D$789,E158,المرتجع!$E$2:$E$789) -> 0 | P158: =SUMIF(المرتجع!$D$2:$D$789,E158,المرتجع!$G$2:$G$789) -> 0 | Q158: =SUMIF(المرتجع!$D$2:$D$789,E158,المرتجع!$H$2:$H$789) -> 0 | R158: 436.8 | S158: 19170 | T158: 0 | AG158: =IFERROR(VLOOKUP(ROWS($AG$2:AG158),$AI$2:$AJ$932,2,0),"") ->  | AI158: =IF(ISNUMBER(SEARCH($AL$2,AJ158)),MAX($AI$1:AI157)+1,0) -> 0
A159: 158 | B159: اسود بارز | C159: جاكار | D159: 3سم | E159: اسود بارز جاكار 3سم | F159: =459.65-300.58+232.61+3-21+4.5 -> 378.18 | G159: =21866.2-12817.2+10654+200-1000+1641 -> 20544 | I159: =SUMIF(الوارد!$D$2:$D$5853,E159,الوارد!$E$2:$E$5853) -> 7906.92 | J159: =SUMIF(الوارد!$D$2:$D$5853,E159,الوارد!$G$2:$G$5853) -> 372183.7 | K159: =SUMIF(الوارد!$D$2:$D$5853,E159,الوارد!$H$2:$H$5853) -> 0 | L159: =SUMIF(المنصرف!$D$2:$D$4677,E159,المنصرف!$E$2:$E$4677) -> 7895.04 | M159: =SUMIF(المنصرف!$D$2:$D$4677,E159,المنصرف!$G$2:$G$4677) -> 374599 | N159: =SUMIF(المنصرف!$D$2:$D$4677,E159,المنصرف!$H$2:$H$4677) -> 0 | O159: =SUMIF(المرتجع!$D$2:$D$789,E159,المرتجع!$E$2:$E$789) -> 0 | P159: =SUMIF(المرتجع!$D$2:$D$789,E159,المرتجع!$G$2:$G$789) -> 0 | Q159: =SUMIF(المرتجع!$D$2:$D$789,E159,المرتجع!$H$2:$H$789) -> 0 | R159: 390.06 | S159: 18128.7 | T159: 0 | AG159: =IFERROR(VLOOKUP(ROWS($AG$2:AG159),$AI$2:$AJ$932,2,0),"") ->  | AI159: =IF(ISNUMBER(SEARCH($AL$2,AJ159)),MAX($AI$1:AI158)+1,0) -> 0
A160: 159 | B160: اسود*ابيض | C160: جاكار | D160: 3سم | E160: اسود*ابيض جاكار 3سم | F160: =425.6+153.52+4.85+215.2-333-7-30-2.23 -> 426.94 | G160: =19258.4+6154.6+184+9799-14000-750+150-10 -> 20786 | I160: =SUMIF(الوارد!$D$2:$D$5853,E160,الوارد!$E$2:$E$5853) -> 5365.33 | J160: =SUMIF(الوارد!$D$2:$D$5853,E160,الوارد!$G$2:$G$5853) -> 239835 | K160: =SUMIF(الوارد!$D$2:$D$5853,E160,الوارد!$H$2:$H$5853) -> 0 | L160: =SUMIF(المنصرف!$D$2:$D$4677,E160,المنصرف!$E$2:$E$4677) -> 5792.27 | M160: =SUMIF(المنصرف!$D$2:$D$4677,E160,المنصرف!$G$2:$G$4677) -> 260621 | N160: =SUMIF(المنصرف!$D$2:$D$4677,E160,المنصرف!$H$2:$H$4677) -> 0 | O160: =SUMIF(المرتجع!$D$2:$D$789,E160,المرتجع!$E$2:$E$789) -> 0 | P160: =SUMIF(المرتجع!$D$2:$D$789,E160,المرتجع!$G$2:$G$789) -> 0 | Q160: =SUMIF(المرتجع!$D$2:$D$789,E160,المرتجع!$H$2:$H$789) -> 0 | R160: 0 | S160: 0 | T160: 0 | AG160: =IFERROR(VLOOKUP(ROWS($AG$2:AG160),$AI$2:$AJ$932,2,0),"") ->  | AI160: =IF(ISNUMBER(SEARCH($AL$2,AJ160)),MAX($AI$1:AI159)+1,0) -> 0
A161: 160 | B161: اسود*اورنج | C161: جاكار | D161: 3سم | E161: اسود*اورنج جاكار 3سم | F161: =-244.4+12-5 -> -237.4 | G161: =-11000+600-2415 -> -12815 | I161: =SUMIF(الوارد!$D$2:$D$5853,E161,الوارد!$E$2:$E$5853) -> 950.15 | J161: =SUMIF(الوارد!$D$2:$D$5853,E161,الوارد!$G$2:$G$5853) -> 43898 | K161: =SUMIF(الوارد!$D$2:$D$5853,E161,الوارد!$H$2:$H$5853) -> 0 | L161: =SUMIF(المنصرف!$D$2:$D$4677,E161,المنصرف!$E$2:$E$4677) -> 617.3 | M161: =SUMIF(المنصرف!$D$2:$D$4677,E161,المنصرف!$G$2:$G$4677) -> 28707 | N161: =SUMIF(المنصرف!$D$2:$D$4677,E161,المنصرف!$H$2:$H$4677) -> 0 | O161: =SUMIF(المرتجع!$D$2:$D$789,E161,المرتجع!$E$2:$E$789) -> 0 | P161: =SUMIF(المرتجع!$D$2:$D$789,E161,المرتجع!$G$2:$G$789) -> 0 | Q161: =SUMIF(المرتجع!$D$2:$D$789,E161,المرتجع!$H$2:$H$789) -> 0 | R161: 95.45 | S161: 2376 | T161: 0 | AG161: =IFERROR(VLOOKUP(ROWS($AG$2:AG161),$AI$2:$AJ$932,2,0),"") ->  | AI161: =IF(ISNUMBER(SEARCH($AL$2,AJ161)),MAX($AI$1:AI160)+1,0) -> 0
A162: 161 | B162: اسود*دارك جراي | C162: جاكار | D162: 3سم | E162: اسود*دارك جراي جاكار 3سم | F162: =320-264 -> 56 | G162: =14520-12388 -> 2132 | I162: =SUMIF(الوارد!$D$2:$D$5853,E162,الوارد!$E$2:$E$5853) -> 8 | J162: =SUMIF(الوارد!$D$2:$D$5853,E162,الوارد!$G$2:$G$5853) -> 372 | K162: =SUMIF(الوارد!$D$2:$D$5853,E162,الوارد!$H$2:$H$5853) -> 0 | L162: =SUMIF(المنصرف!$D$2:$D$4677,E162,المنصرف!$E$2:$E$4677) -> 64 | M162: =SUMIF(المنصرف!$D$2:$D$4677,E162,المنصرف!$G$2:$G$4677) -> 2504 | N162: =SUMIF(المنصرف!$D$2:$D$4677,E162,المنصرف!$H$2:$H$4677) -> 0 | O162: =SUMIF(المرتجع!$D$2:$D$789,E162,المرتجع!$E$2:$E$789) -> 0 | P162: =SUMIF(المرتجع!$D$2:$D$789,E162,المرتجع!$G$2:$G$789) -> 0 | Q162: =SUMIF(المرتجع!$D$2:$D$789,E162,المرتجع!$H$2:$H$789) -> 0 | R162: 0 | S162: 0 | T162: 0 | AG162: =IFERROR(VLOOKUP(ROWS($AG$2:AG162),$AI$2:$AJ$932,2,0),"") ->  | AI162: =IF(ISNUMBER(SEARCH($AL$2,AJ162)),MAX($AI$1:AI161)+1,0) -> 0
A163: 162 | B163: اسود*دارك ريد | C163: جاكار | D163: 3سم | E163: اسود*دارك ريد جاكار 3سم | F163: =43.06 -> 43.06 | G163: =2053 -> 2053 | I163: =SUMIF(الوارد!$D$2:$D$5853,E163,الوارد!$E$2:$E$5853) -> 3.46 | J163: =SUMIF(الوارد!$D$2:$D$5853,E163,الوارد!$G$2:$G$5853) -> 164 | K163: =SUMIF(الوارد!$D$2:$D$5853,E163,الوارد!$H$2:$H$5853) -> 0 | L163: =SUMIF(المنصرف!$D$2:$D$4677,E163,المنصرف!$E$2:$E$4677) -> 46.52 | M163: =SUMIF(المنصرف!$D$2:$D$4677,E163,المنصرف!$G$2:$G$4677) -> 2217 | N163: =SUMIF(المنصرف!$D$2:$D$4677,E163,المنصرف!$H$2:$H$4677) -> 0 | O163: =SUMIF(المرتجع!$D$2:$D$789,E163,المرتجع!$E$2:$E$789) -> 0 | P163: =SUMIF(المرتجع!$D$2:$D$789,E163,المرتجع!$G$2:$G$789) -> 0 | Q163: =SUMIF(المرتجع!$D$2:$D$789,E163,المرتجع!$H$2:$H$789) -> 0 | R163: 0 | S163: 0 | T163: 0 | AG163: =IFERROR(VLOOKUP(ROWS($AG$2:AG163),$AI$2:$AJ$932,2,0),"") ->  | AI163: =IF(ISNUMBER(SEARCH($AL$2,AJ163)),MAX($AI$1:AI162)+1,0) -> 0
A164: 163 | B164: اسود*دريزل | C164: جاكار | D164: 3سم | E164: اسود*دريزل جاكار 3سم | F164: =432.54-79.6-17.4 -> 335.54 | G164: =20135-3720-800 -> 15615 | I164: =SUMIF(الوارد!$D$2:$D$5853,E164,الوارد!$E$2:$E$5853) -> 44.41 | J164: =SUMIF(الوارد!$D$2:$D$5853,E164,الوارد!$G$2:$G$5853) -> 2042 | K164: =SUMIF(الوارد!$D$2:$D$5853,E164,الوارد!$H$2:$H$5853) -> 0 | L164: =SUMIF(المنصرف!$D$2:$D$4677,E164,المنصرف!$E$2:$E$4677) -> 368 | M164: =SUMIF(المنصرف!$D$2:$D$4677,E164,المنصرف!$G$2:$G$4677) -> 17112 | N164: =SUMIF(المنصرف!$D$2:$D$4677,E164,المنصرف!$H$2:$H$4677) -> 0 | O164: =SUMIF(المرتجع!$D$2:$D$789,E164,المرتجع!$E$2:$E$789) -> 0 | P164: =SUMIF(المرتجع!$D$2:$D$789,E164,المرتجع!$G$2:$G$789) -> 0 | Q164: =SUMIF(المرتجع!$D$2:$D$789,E164,المرتجع!$H$2:$H$789) -> 0 | R164: 11.95 | S164: 545 | T164: 0 | AG164: =IFERROR(VLOOKUP(ROWS($AG$2:AG164),$AI$2:$AJ$932,2,0),"") ->  | AI164: =IF(ISNUMBER(SEARCH($AL$2,AJ164)),MAX($AI$1:AI163)+1,0) -> 0
A165: 164 | B165: اسود*كافيه | C165: جاكار | D165: 3سم | E165: اسود*كافيه جاكار 3سم | F165: =3.86-9.02 -> -5.16 | G165: =175-420 -> -245 | I165: =SUMIF(الوارد!$D$2:$D$5853,E165,الوارد!$E$2:$E$5853) -> 49.76 | J165: =SUMIF(الوارد!$D$2:$D$5853,E165,الوارد!$G$2:$G$5853) -> 2375 | K165: =SUMIF(الوارد!$D$2:$D$5853,E165,الوارد!$H$2:$H$5853) -> 0 | L165: =SUMIF(المنصرف!$D$2:$D$4677,E165,المنصرف!$E$2:$E$4677) -> 7.3 | M165: =SUMIF(المنصرف!$D$2:$D$4677,E165,المنصرف!$G$2:$G$4677) -> 356 | N165: =SUMIF(المنصرف!$D$2:$D$4677,E165,المنصرف!$H$2:$H$4677) -> 0 | O165: =SUMIF(المرتجع!$D$2:$D$789,E165,المرتجع!$E$2:$E$789) -> 0 | P165: =SUMIF(المرتجع!$D$2:$D$789,E165,المرتجع!$G$2:$G$789) -> 0 | Q165: =SUMIF(المرتجع!$D$2:$D$789,E165,المرتجع!$H$2:$H$789) -> 0 | R165: 37.3 | S165: 1774 | T165: 0 | AG165: =IFERROR(VLOOKUP(ROWS($AG$2:AG165),$AI$2:$AJ$932,2,0),"") ->  | AI165: =IF(ISNUMBER(SEARCH($AL$2,AJ165)),MAX($AI$1:AI164)+1,0) -> 0
A166: 165 | B166: جراي*كحلي | C166: جاكار | D166: 3سم | E166: جراي*كحلي جاكار 3سم | F166: =272.69-2 -> 270.69 | G166: =12729-100 -> 12629 | I166: =SUMIF(الوارد!$D$2:$D$5853,E166,الوارد!$E$2:$E$5853) -> 937.15 | J166: =SUMIF(الوارد!$D$2:$D$5853,E166,الوارد!$G$2:$G$5853) -> 43842 | K166: =SUMIF(الوارد!$D$2:$D$5853,E166,الوارد!$H$2:$H$5853) -> 0 | L166: =SUMIF(المنصرف!$D$2:$D$4677,E166,المنصرف!$E$2:$E$4677) -> 1201.37 | M166: =SUMIF(المنصرف!$D$2:$D$4677,E166,المنصرف!$G$2:$G$4677) -> 56169 | N166: =SUMIF(المنصرف!$D$2:$D$4677,E166,المنصرف!$H$2:$H$4677) -> 0 | O166: =SUMIF(المرتجع!$D$2:$D$789,E166,المرتجع!$E$2:$E$789) -> 0 | P166: =SUMIF(المرتجع!$D$2:$D$789,E166,المرتجع!$G$2:$G$789) -> 0 | Q166: =SUMIF(المرتجع!$D$2:$D$789,E166,المرتجع!$H$2:$H$789) -> 0 | R166: 6.47 | S166: 302 | T166: 0 | AG166: =IFERROR(VLOOKUP(ROWS($AG$2:AG166),$AI$2:$AJ$932,2,0),"") ->  | AI166: =IF(ISNUMBER(SEARCH($AL$2,AJ166)),MAX($AI$1:AI165)+1,0) -> 0
A167: 166 | B167: دارك جراي*ابيض | C167: جاكار | D167: 3سم | E167: دارك جراي*ابيض جاكار 3سم | F167: =42+146.79 -> 188.79 | G167: =2045.9+7180.1 -> 9226 | I167: =SUMIF(الوارد!$D$2:$D$5853,E167,الوارد!$E$2:$E$5853) -> 870.22 | J167: =SUMIF(الوارد!$D$2:$D$5853,E167,الوارد!$G$2:$G$5853) -> 42408 | K167: =SUMIF(الوارد!$D$2:$D$5853,E167,الوارد!$H$2:$H$5853) -> 0 | L167: =SUMIF(المنصرف!$D$2:$D$4677,E167,المنصرف!$E$2:$E$4677) -> 1059.01 | M167: =SUMIF(المنصرف!$D$2:$D$4677,E167,المنصرف!$G$2:$G$4677) -> 51634 | N167: =SUMIF(المنصرف!$D$2:$D$4677,E167,المنصرف!$H$2:$H$4677) -> 0 | O167: =SUMIF(المرتجع!$D$2:$D$789,E167,المرتجع!$E$2:$E$789) -> 0 | P167: =SUMIF(المرتجع!$D$2:$D$789,E167,المرتجع!$G$2:$G$789) -> 0 | Q167: =SUMIF(المرتجع!$D$2:$D$789,E167,المرتجع!$H$2:$H$789) -> 0 | R167: 0 | S167: 0 | T167: 0 | AG167: =IFERROR(VLOOKUP(ROWS($AG$2:AG167),$AI$2:$AJ$932,2,0),"") ->  | AI167: =IF(ISNUMBER(SEARCH($AL$2,AJ167)),MAX($AI$1:AI166)+1,0) -> 0
A168: 167 | B168: دارك جراي*اسود | C168: جاكار | D168: 3سم | E168: دارك جراي*اسود جاكار 3سم | F168: =562.85-913.95 -> -351.1 | G168: =22373.2-38422.2 -> -16049 | I168: =SUMIF(الوارد!$D$2:$D$5853,E168,الوارد!$E$2:$E$5853) -> 351.1 | J168: =SUMIF(الوارد!$D$2:$D$5853,E168,الوارد!$G$2:$G$5853) -> 16049 | K168: =SUMIF(الوارد!$D$2:$D$5853,E168,الوارد!$H$2:$H$5853) -> 0 | L168: =SUMIF(المنصرف!$D$2:$D$4677,E168,المنصرف!$E$2:$E$4677) -> 0 | M168: =SUMIF(المنصرف!$D$2:$D$4677,E168,المنصرف!$G$2:$G$4677) -> 0 | N168: =SUMIF(المنصرف!$D$2:$D$4677,E168,المنصرف!$H$2:$H$4677) -> 0 | O168: =SUMIF(المرتجع!$D$2:$D$789,E168,المرتجع!$E$2:$E$789) -> 0 | P168: =SUMIF(المرتجع!$D$2:$D$789,E168,المرتجع!$G$2:$G$789) -> 0 | Q168: =SUMIF(المرتجع!$D$2:$D$789,E168,المرتجع!$H$2:$H$789) -> 0 | R168: -5.684341886e-14 | S168: 3.637978807e-12 | T168: 0 | AG168: =IFERROR(VLOOKUP(ROWS($AG$2:AG168),$AI$2:$AJ$932,2,0),"") ->  | AI168: =IF(ISNUMBER(SEARCH($AL$2,AJ168)),MAX($AI$1:AI167)+1,0) -> 0
A169: 168 | B169: دريزل*باين جروف | C169: جاكار | D169: 3سم | E169: دريزل*باين جروف جاكار 3سم | F169: =258.71-208.82+5.24-1.01 -> 54.12 | G169: =11027+776+299-70 -> 12032 | I169: =SUMIF(الوارد!$D$2:$D$5853,E169,الوارد!$E$2:$E$5853) -> 436.93 | J169: =SUMIF(الوارد!$D$2:$D$5853,E169,الوارد!$G$2:$G$5853) -> 21169 | K169: =SUMIF(الوارد!$D$2:$D$5853,E169,الوارد!$H$2:$H$5853) -> 0 | L169: =SUMIF(المنصرف!$D$2:$D$4677,E169,المنصرف!$E$2:$E$4677) -> 567.75 | M169: =SUMIF(المنصرف!$D$2:$D$4677,E169,المنصرف!$G$2:$G$4677) -> 36939 | N169: =SUMIF(المنصرف!$D$2:$D$4677,E169,المنصرف!$H$2:$H$4677) -> 0 | O169: =SUMIF(المرتجع!$D$2:$D$789,E169,المرتجع!$E$2:$E$789) -> 76.7 | P169: =SUMIF(المرتجع!$D$2:$D$789,E169,المرتجع!$G$2:$G$789) -> 3738 | Q169: =SUMIF(المرتجع!$D$2:$D$789,E169,المرتجع!$H$2:$H$789) -> 0 | R169: 0 | S169: 0 | T169: 0 | AG169: =IFERROR(VLOOKUP(ROWS($AG$2:AG169),$AI$2:$AJ$932,2,0),"") ->  | AI169: =IF(ISNUMBER(SEARCH($AL$2,AJ169)),MAX($AI$1:AI168)+1,0) -> 0
A170: 169 | B170: دريزل*بترول بلو | C170: جاكار | D170: 3سم | E170: دريزل*بترول بلو جاكار 3سم | F170: =637-92.07-23.7 -> 521.23 | G170: =25288.9+107.1-1151 -> 24245 | I170: =SUMIF(الوارد!$D$2:$D$5853,E170,الوارد!$E$2:$E$5853) -> 10.86 | J170: =SUMIF(الوارد!$D$2:$D$5853,E170,الوارد!$G$2:$G$5853) -> 552 | K170: =SUMIF(الوارد!$D$2:$D$5853,E170,الوارد!$H$2:$H$5853) -> 0 | L170: =SUMIF(المنصرف!$D$2:$D$4677,E170,المنصرف!$E$2:$E$4677) -> 532.09 | M170: =SUMIF(المنصرف!$D$2:$D$4677,E170,المنصرف!$G$2:$G$4677) -> 24797 | N170: =SUMIF(المنصرف!$D$2:$D$4677,E170,المنصرف!$H$2:$H$4677) -> 0 | O170: =SUMIF(المرتجع!$D$2:$D$789,E170,المرتجع!$E$2:$E$789) -> 0 | P170: =SUMIF(المرتجع!$D$2:$D$789,E170,المرتجع!$G$2:$G$789) -> 0 | Q170: =SUMIF(المرتجع!$D$2:$D$789,E170,المرتجع!$H$2:$H$789) -> 0 | R170: 0 | S170: 0 | T170: 0 | AG170: =IFERROR(VLOOKUP(ROWS($AG$2:AG170),$AI$2:$AJ$932,2,0),"") ->  | AI170: =IF(ISNUMBER(SEARCH($AL$2,AJ170)),MAX($AI$1:AI169)+1,0) -> 0
A171: 170 | B171: دريزل*شاركول جراي | C171: جاكار | D171: 3سم | E171: دريزل*شاركول جراي جاكار 3سم | F171: =876.5+361.32-33.47 -> 1204.35 | G171: =44826.7+17084.3-1554 -> 60357 | I171: =SUMIF(الوارد!$D$2:$D$5853,E171,الوارد!$E$2:$E$5853) -> 339.42 | J171: =SUMIF(الوارد!$D$2:$D$5853,E171,الوارد!$G$2:$G$5853) -> 17224 | K171: =SUMIF(الوارد!$D$2:$D$5853,E171,الوارد!$H$2:$H$5853) -> 0 | L171: =SUMIF(المنصرف!$D$2:$D$4677,E171,المنصرف!$E$2:$E$4677) -> 1543.77 | M171: =SUMIF(المنصرف!$D$2:$D$4677,E171,المنصرف!$G$2:$G$4677) -> 77581 | N171: =SUMIF(المنصرف!$D$2:$D$4677,E171,المنصرف!$H$2:$H$4677) -> 0 | O171: =SUMIF(المرتجع!$D$2:$D$789,E171,المرتجع!$E$2:$E$789) -> 0 | P171: =SUMIF(المرتجع!$D$2:$D$789,E171,المرتجع!$G$2:$G$789) -> 0 | Q171: =SUMIF(المرتجع!$D$2:$D$789,E171,المرتجع!$H$2:$H$789) -> 0 | R171: 0 | S171: 0 | T171: 0 | AG171: =IFERROR(VLOOKUP(ROWS($AG$2:AG171),$AI$2:$AJ$932,2,0),"") ->  | AI171: =IF(ISNUMBER(SEARCH($AL$2,AJ171)),MAX($AI$1:AI170)+1,0) -> 0
A172: 171 | B172: دريزل*هيدرو | C172: جاكار | D172: 3سم | E172: دريزل*هيدرو جاكار 3سم | F172: =495.85-91.31+14.8 -> 419.34 | G172: =19710-742+690 -> 19658 | I172: =SUMIF(الوارد!$D$2:$D$5853,E172,الوارد!$E$2:$E$5853) -> 163.86 | J172: =SUMIF(الوارد!$D$2:$D$5853,E172,الوارد!$G$2:$G$5853) -> 6852 | K172: =SUMIF(الوارد!$D$2:$D$5853,E172,الوارد!$H$2:$H$5853) -> 0 | L172: =SUMIF(المنصرف!$D$2:$D$4677,E172,المنصرف!$E$2:$E$4677) -> 583.2 | M172: =SUMIF(المنصرف!$D$2:$D$4677,E172,المنصرف!$G$2:$G$4677) -> 26510 | N172: =SUMIF(المنصرف!$D$2:$D$4677,E172,المنصرف!$H$2:$H$4677) -> 0 | O172: =SUMIF(المرتجع!$D$2:$D$789,E172,المرتجع!$E$2:$E$789) -> 0 | P172: =SUMIF(المرتجع!$D$2:$D$789,E172,المرتجع!$G$2:$G$789) -> 0 | Q172: =SUMIF(المرتجع!$D$2:$D$789,E172,المرتجع!$H$2:$H$789) -> 0 | R172: 0 | S172: 0 | T172: 0 | AG172: =IFERROR(VLOOKUP(ROWS($AG$2:AG172),$AI$2:$AJ$932,2,0),"") ->  | AI172: =IF(ISNUMBER(SEARCH($AL$2,AJ172)),MAX($AI$1:AI171)+1,0) -> 0
A173: 172 | B173: جراي بارز | C173: جاكار | D173: 3سم | E173: جراي بارز جاكار 3سم | F173: =308.5+101.75 -> 410.25 | G173: =15028.3+17015.7 -> 32044 | I173: =SUMIF(الوارد!$D$2:$D$5853,E173,الوارد!$E$2:$E$5853) -> 2160.49 | J173: =SUMIF(الوارد!$D$2:$D$5853,E173,الوارد!$G$2:$G$5853) -> 93367 | K173: =SUMIF(الوارد!$D$2:$D$5853,E173,الوارد!$H$2:$H$5853) -> 0 | L173: =SUMIF(المنصرف!$D$2:$D$4677,E173,المنصرف!$E$2:$E$4677) -> 2553.49 | M173: =SUMIF(المنصرف!$D$2:$D$4677,E173,المنصرف!$G$2:$G$4677) -> 124573 | N173: =SUMIF(المنصرف!$D$2:$D$4677,E173,المنصرف!$H$2:$H$4677) -> 0 | O173: =SUMIF(المرتجع!$D$2:$D$789,E173,المرتجع!$E$2:$E$789) -> 0 | P173: =SUMIF(المرتجع!$D$2:$D$789,E173,المرتجع!$G$2:$G$789) -> 0 | Q173: =SUMIF(المرتجع!$D$2:$D$789,E173,المرتجع!$H$2:$H$789) -> 0 | R173: 17.25 | S173: 838 | T173: 0 | AG173: =IFERROR(VLOOKUP(ROWS($AG$2:AG173),$AI$2:$AJ$932,2,0),"") ->  | AI173: =IF(ISNUMBER(SEARCH($AL$2,AJ173)),MAX($AI$1:AI172)+1,0) -> 0
A174: 173 | B174: شاركول جراي*اسود | C174: جاكار | D174: 3سم | E174: شاركول جراي*اسود جاكار 3سم | F174: =964.32-29.55 -> 934.77 | G174: =43362-990 -> 42372 | I174: =SUMIF(الوارد!$D$2:$D$5853,E174,الوارد!$E$2:$E$5853) -> 1543.56 | J174: =SUMIF(الوارد!$D$2:$D$5853,E174,الوارد!$G$2:$G$5853) -> 70089 | K174: =SUMIF(الوارد!$D$2:$D$5853,E174,الوارد!$H$2:$H$5853) -> 0 | L174: =SUMIF(المنصرف!$D$2:$D$4677,E174,المنصرف!$E$2:$E$4677) -> 2477.12 | M174: =SUMIF(المنصرف!$D$2:$D$4677,E174,المنصرف!$G$2:$G$4677) -> 112406 | N174: =SUMIF(المنصرف!$D$2:$D$4677,E174,المنصرف!$H$2:$H$4677) -> 0 | O174: =SUMIF(المرتجع!$D$2:$D$789,E174,المرتجع!$E$2:$E$789) -> 0 | P174: =SUMIF(المرتجع!$D$2:$D$789,E174,المرتجع!$G$2:$G$789) -> 0 | Q174: =SUMIF(المرتجع!$D$2:$D$789,E174,المرتجع!$H$2:$H$789) -> 0 | R174: 1.21 | S174: 55 | T174: 0 | AG174: =IFERROR(VLOOKUP(ROWS($AG$2:AG174),$AI$2:$AJ$932,2,0),"") ->  | AI174: =IF(ISNUMBER(SEARCH($AL$2,AJ174)),MAX($AI$1:AI173)+1,0) -> 0
A175: 174 | B175: شاركول جراي*دريزل | C175: جاكار | D175: 3سم | E175: شاركول جراي*دريزل جاكار 3سم | F175: =139-267.5-6.16 -> -134.66 | G175: =5518.3+4699.4-315 -> 9902.7 | I175: =SUMIF(الوارد!$D$2:$D$5853,E175,الوارد!$E$2:$E$5853) -> 2513.07 | J175: =SUMIF(الوارد!$D$2:$D$5853,E175,الوارد!$G$2:$G$5853) -> 121131.3 | K175: =SUMIF(الوارد!$D$2:$D$5853,E175,الوارد!$H$2:$H$5853) -> 0 | L175: =SUMIF(المنصرف!$D$2:$D$4677,E175,المنصرف!$E$2:$E$4677) -> 2378.41 | M175: =SUMIF(المنصرف!$D$2:$D$4677,E175,المنصرف!$G$2:$G$4677) -> 131034 | N175: =SUMIF(المنصرف!$D$2:$D$4677,E175,المنصرف!$H$2:$H$4677) -> 0 | O175: =SUMIF(المرتجع!$D$2:$D$789,E175,المرتجع!$E$2:$E$789) -> 0 | P175: =SUMIF(المرتجع!$D$2:$D$789,E175,المرتجع!$G$2:$G$789) -> 0 | Q175: =SUMIF(المرتجع!$D$2:$D$789,E175,المرتجع!$H$2:$H$789) -> 0 | R175: 0 | S175: 0 | T175: 0 | AG175: =IFERROR(VLOOKUP(ROWS($AG$2:AG175),$AI$2:$AJ$932,2,0),"") ->  | AI175: =IF(ISNUMBER(SEARCH($AL$2,AJ175)),MAX($AI$1:AI174)+1,0) -> 0
A176: 175 | B176: كحلي بارز | C176: جاكار | D176: 3سم | E176: كحلي بارز جاكار 3سم | F176: =237.6+195.83+0.06 -> 433.49 | G176: =10929.6+8163.4 -> 19093 | I176: =SUMIF(الوارد!$D$2:$D$5853,E176,الوارد!$E$2:$E$5853) -> 1299.28 | J176: =SUMIF(الوارد!$D$2:$D$5853,E176,الوارد!$G$2:$G$5853) -> 60670 | K176: =SUMIF(الوارد!$D$2:$D$5853,E176,الوارد!$H$2:$H$5853) -> 0 | L176: =SUMIF(المنصرف!$D$2:$D$4677,E176,المنصرف!$E$2:$E$4677) -> 1732.77 | M176: =SUMIF(المنصرف!$D$2:$D$4677,E176,المنصرف!$G$2:$G$4677) -> 79763 | N176: =SUMIF(المنصرف!$D$2:$D$4677,E176,المنصرف!$H$2:$H$4677) -> 0 | O176: =SUMIF(المرتجع!$D$2:$D$789,E176,المرتجع!$E$2:$E$789) -> 0 | P176: =SUMIF(المرتجع!$D$2:$D$789,E176,المرتجع!$G$2:$G$789) -> 0 | Q176: =SUMIF(المرتجع!$D$2:$D$789,E176,المرتجع!$H$2:$H$789) -> 0 | R176: 0 | S176: 0 | T176: 0 | AG176: =IFERROR(VLOOKUP(ROWS($AG$2:AG176),$AI$2:$AJ$932,2,0),"") ->  | AI176: =IF(ISNUMBER(SEARCH($AL$2,AJ176)),MAX($AI$1:AI175)+1,0) -> 0
A177: 176 | B177: كحلي *ابيض | C177: جاكار | D177: 3سم | E177: كحلي *ابيض جاكار 3سم | F177: =83-271.66 -> -188.66 | G177: =3944-12457 -> -8513 | I177: =SUMIF(الوارد!$D$2:$D$5853,E177,الوارد!$E$2:$E$5853) -> 314.97 | J177: =SUMIF(الوارد!$D$2:$D$5853,E177,الوارد!$G$2:$G$5853) -> 14512 | K177: =SUMIF(الوارد!$D$2:$D$5853,E177,الوارد!$H$2:$H$5853) -> 0 | L177: =SUMIF(المنصرف!$D$2:$D$4677,E177,المنصرف!$E$2:$E$4677) -> 123.05 | M177: =SUMIF(المنصرف!$D$2:$D$4677,E177,المنصرف!$G$2:$G$4677) -> 5845 | N177: =SUMIF(المنصرف!$D$2:$D$4677,E177,المنصرف!$H$2:$H$4677) -> 0 | O177: =SUMIF(المرتجع!$D$2:$D$789,E177,المرتجع!$E$2:$E$789) -> 0 | P177: =SUMIF(المرتجع!$D$2:$D$789,E177,المرتجع!$G$2:$G$789) -> 0 | Q177: =SUMIF(المرتجع!$D$2:$D$789,E177,المرتجع!$H$2:$H$789) -> 0 | R177: 3.26 | S177: 154 | T177: 0 | AG177: =IFERROR(VLOOKUP(ROWS($AG$2:AG177),$AI$2:$AJ$932,2,0),"") ->  | AI177: =IF(ISNUMBER(SEARCH($AL$2,AJ177)),MAX($AI$1:AI176)+1,0) -> 0
A178: 177 | B178: جراي*بترول بلو | C178: جاكار | D178: 3سم | E178: جراي*بترول بلو جاكار 3سم | F178: =47.2-60.05 -> -12.85 | G178: =2144.2-2743.2 -> -599 | I178: =SUMIF(الوارد!$D$2:$D$5853,E178,الوارد!$E$2:$E$5853) -> 12.85 | J178: =SUMIF(الوارد!$D$2:$D$5853,E178,الوارد!$G$2:$G$5853) -> 599 | K178: =SUMIF(الوارد!$D$2:$D$5853,E178,الوارد!$H$2:$H$5853) -> 0 | L178: =SUMIF(المنصرف!$D$2:$D$4677,E178,المنصرف!$E$2:$E$4677) -> 0 | M178: =SUMIF(المنصرف!$D$2:$D$4677,E178,المنصرف!$G$2:$G$4677) -> 0 | N178: =SUMIF(المنصرف!$D$2:$D$4677,E178,المنصرف!$H$2:$H$4677) -> 0 | O178: =SUMIF(المرتجع!$D$2:$D$789,E178,المرتجع!$E$2:$E$789) -> 0 | P178: =SUMIF(المرتجع!$D$2:$D$789,E178,المرتجع!$G$2:$G$789) -> 0 | Q178: =SUMIF(المرتجع!$D$2:$D$789,E178,المرتجع!$H$2:$H$789) -> 0 | R178: 7.105427358e-15 | S178: 0 | T178: 0 | AG178: =IFERROR(VLOOKUP(ROWS($AG$2:AG178),$AI$2:$AJ$932,2,0),"") ->  | AI178: =IF(ISNUMBER(SEARCH($AL$2,AJ178)),MAX($AI$1:AI177)+1,0) -> 0
A179: 178 | B179: دارك جراي*اسود | C179: جاكار | D179: 4سم | E179: دارك جراي*اسود جاكار 4سم | F179: 0 | G179: 0 | I179: =SUMIF(الوارد!$D$2:$D$5853,E179,الوارد!$E$2:$E$5853) -> 19.2 | J179: =SUMIF(الوارد!$D$2:$D$5853,E179,الوارد!$G$2:$G$5853) -> 799 | K179: =SUMIF(الوارد!$D$2:$D$5853,E179,الوارد!$H$2:$H$5853) -> 0 | L179: =SUMIF(المنصرف!$D$2:$D$4677,E179,المنصرف!$E$2:$E$4677) -> 10.42 | M179: =SUMIF(المنصرف!$D$2:$D$4677,E179,المنصرف!$G$2:$G$4677) -> 434 | N179: =SUMIF(المنصرف!$D$2:$D$4677,E179,المنصرف!$H$2:$H$4677) -> 0 | O179: =SUMIF(المرتجع!$D$2:$D$789,E179,المرتجع!$E$2:$E$789) -> 0 | P179: =SUMIF(المرتجع!$D$2:$D$789,E179,المرتجع!$G$2:$G$789) -> 0 | Q179: =SUMIF(المرتجع!$D$2:$D$789,E179,المرتجع!$H$2:$H$789) -> 0 | R179: 8.78 | S179: 365 | T179: 0 | AG179: =IFERROR(VLOOKUP(ROWS($AG$2:AG179),$AI$2:$AJ$932,2,0),"") ->  | AI179: =IF(ISNUMBER(SEARCH($AL$2,AJ179)),MAX($AI$1:AI178)+1,0) -> 0
A180: 179 | B180: دارك جراي*ابيض | C180: جاكار | D180: 4سم | E180: دارك جراي*ابيض جاكار 4سم | F180: 0 | G180: 0 | I180: =SUMIF(الوارد!$D$2:$D$5853,E180,الوارد!$E$2:$E$5853) -> 120.95 | J180: =SUMIF(الوارد!$D$2:$D$5853,E180,الوارد!$G$2:$G$5853) -> 5595 | K180: =SUMIF(الوارد!$D$2:$D$5853,E180,الوارد!$H$2:$H$5853) -> 0 | L180: =SUMIF(المنصرف!$D$2:$D$4677,E180,المنصرف!$E$2:$E$4677) -> 3.5 | M180: =SUMIF(المنصرف!$D$2:$D$4677,E180,المنصرف!$G$2:$G$4677) -> 152 | N180: =SUMIF(المنصرف!$D$2:$D$4677,E180,المنصرف!$H$2:$H$4677) -> 0 | O180: =SUMIF(المرتجع!$D$2:$D$789,E180,المرتجع!$E$2:$E$789) -> 0 | P180: =SUMIF(المرتجع!$D$2:$D$789,E180,المرتجع!$G$2:$G$789) -> 0 | Q180: =SUMIF(المرتجع!$D$2:$D$789,E180,المرتجع!$H$2:$H$789) -> 0 | R180: 117.45 | S180: 5443 | T180: 0 | AG180: =IFERROR(VLOOKUP(ROWS($AG$2:AG180),$AI$2:$AJ$932,2,0),"") ->  | AI180: =IF(ISNUMBER(SEARCH($AL$2,AJ180)),MAX($AI$1:AI179)+1,0) -> 0
A181: 180 | B181: جراي*اسود | C181: جاكار | D181: 4سم | E181: جراي*اسود جاكار 4سم | F181: =1.55000000000001 -> 1.55 | G181: =155 -> 155 | I181: =SUMIF(الوارد!$D$2:$D$5853,E181,الوارد!$E$2:$E$5853) -> 245.02 | J181: =SUMIF(الوارد!$D$2:$D$5853,E181,الوارد!$G$2:$G$5853) -> 10102 | K181: =SUMIF(الوارد!$D$2:$D$5853,E181,الوارد!$H$2:$H$5853) -> 0 | L181: =SUMIF(المنصرف!$D$2:$D$4677,E181,المنصرف!$E$2:$E$4677) -> 246.57 | M181: =SUMIF(المنصرف!$D$2:$D$4677,E181,المنصرف!$G$2:$G$4677) -> 10257 | N181: =SUMIF(المنصرف!$D$2:$D$4677,E181,المنصرف!$H$2:$H$4677) -> 0 | O181: =SUMIF(المرتجع!$D$2:$D$789,E181,المرتجع!$E$2:$E$789) -> 0 | P181: =SUMIF(المرتجع!$D$2:$D$789,E181,المرتجع!$G$2:$G$789) -> 0 | Q181: =SUMIF(المرتجع!$D$2:$D$789,E181,المرتجع!$H$2:$H$789) -> 0 | R181: 0 | S181: 0 | T181: 0 | AG181: =IFERROR(VLOOKUP(ROWS($AG$2:AG181),$AI$2:$AJ$932,2,0),"") ->  | AI181: =IF(ISNUMBER(SEARCH($AL$2,AJ181)),MAX($AI$1:AI180)+1,0) -> 0
A182: 181 | B182: جراي*ابيض | C182: جاكار | D182: 4سم | E182: جراي*ابيض جاكار 4سم | F182: =16.05+45.12 -> 61.17 | G182: =697+1762 -> 2459 | I182: =SUMIF(الوارد!$D$2:$D$5853,E182,الوارد!$E$2:$E$5853) -> 194.48 | J182: =SUMIF(الوارد!$D$2:$D$5853,E182,الوارد!$G$2:$G$5853) -> 8545 | K182: =SUMIF(الوارد!$D$2:$D$5853,E182,الوارد!$H$2:$H$5853) -> 0 | L182: =SUMIF(المنصرف!$D$2:$D$4677,E182,المنصرف!$E$2:$E$4677) -> 255.65 | M182: =SUMIF(المنصرف!$D$2:$D$4677,E182,المنصرف!$G$2:$G$4677) -> 11004 | N182: =SUMIF(المنصرف!$D$2:$D$4677,E182,المنصرف!$H$2:$H$4677) -> 0 | O182: =SUMIF(المرتجع!$D$2:$D$789,E182,المرتجع!$E$2:$E$789) -> 0 | P182: =SUMIF(المرتجع!$D$2:$D$789,E182,المرتجع!$G$2:$G$789) -> 0 | Q182: =SUMIF(المرتجع!$D$2:$D$789,E182,المرتجع!$H$2:$H$789) -> 0 | R182: 0 | S182: 0 | T182: 0 | AG182: =IFERROR(VLOOKUP(ROWS($AG$2:AG182),$AI$2:$AJ$932,2,0),"") ->  | AI182: =IF(ISNUMBER(SEARCH($AL$2,AJ182)),MAX($AI$1:AI181)+1,0) -> 0
A183: 182 | B183: ابيض | C183: ساندوتش خام | D183: 1.5سم | E183: ابيض ساندوتش خام 1.5سم | F183: =370 -> 370 | G183: 0 | I183: =SUMIF(الوارد!$D$2:$D$5853,E183,الوارد!$E$2:$E$5853) -> 5360 | J183: =SUMIF(الوارد!$D$2:$D$5853,E183,الوارد!$G$2:$G$5853) -> 0 | K183: =SUMIF(الوارد!$D$2:$D$5853,E183,الوارد!$H$2:$H$5853) -> 0 | L183: =SUMIF(المنصرف!$D$2:$D$4677,E183,المنصرف!$E$2:$E$4677) -> 6050 | M183: =SUMIF(المنصرف!$D$2:$D$4677,E183,المنصرف!$G$2:$G$4677) -> 0 | N183: =SUMIF(المنصرف!$D$2:$D$4677,E183,المنصرف!$H$2:$H$4677) -> 0 | O183: =SUMIF(المرتجع!$D$2:$D$789,E183,المرتجع!$E$2:$E$789) -> 320 | P183: =SUMIF(المرتجع!$D$2:$D$789,E183,المرتجع!$G$2:$G$789) -> 0 | Q183: =SUMIF(المرتجع!$D$2:$D$789,E183,المرتجع!$H$2:$H$789) -> 0 | R183: 0 | S183: 0 | T183: 0 | AG183: =IFERROR(VLOOKUP(ROWS($AG$2:AG183),$AI$2:$AJ$932,2,0),"") ->  | AI183: =IF(ISNUMBER(SEARCH($AL$2,AJ183)),MAX($AI$1:AI182)+1,0) -> 0
A184: 183 | B184: ابيض | C184: ويفين خام | D184: 1.6سم | E184: ابيض ويفين خام 1.6سم | F184: =1309.4 -> 1309.4 | G184: 0 | I184: =SUMIF(الوارد!$D$2:$D$5853,E184,الوارد!$E$2:$E$5853) -> 6222 | J184: =SUMIF(الوارد!$D$2:$D$5853,E184,الوارد!$G$2:$G$5853) -> 0 | K184: =SUMIF(الوارد!$D$2:$D$5853,E184,الوارد!$H$2:$H$5853) -> 0 | L184: =SUMIF(المنصرف!$D$2:$D$4677,E184,المنصرف!$E$2:$E$4677) -> 8091.4 | M184: =SUMIF(المنصرف!$D$2:$D$4677,E184,المنصرف!$G$2:$G$4677) -> 0 | N184: =SUMIF(المنصرف!$D$2:$D$4677,E184,المنصرف!$H$2:$H$4677) -> 0 | O184: =SUMIF(المرتجع!$D$2:$D$789,E184,المرتجع!$E$2:$E$789) -> 560 | P184: =SUMIF(المرتجع!$D$2:$D$789,E184,المرتجع!$G$2:$G$789) -> 0 | Q184: =SUMIF(المرتجع!$D$2:$D$789,E184,المرتجع!$H$2:$H$789) -> 0 | R184: 0 | S184: 0 | T184: 0 | AG184: =IFERROR(VLOOKUP(ROWS($AG$2:AG184),$AI$2:$AJ$932,2,0),"") ->  | AI184: =IF(ISNUMBER(SEARCH($AL$2,AJ184)),MAX($AI$1:AI183)+1,0) -> 0
A185: 184 | B185: ابيض | C185: ساندوتش خام | D185: 2سم | E185: ابيض ساندوتش خام 2سم | F185: 0 | G185: 0 | I185: =SUMIF(الوارد!$D$2:$D$5853,E185,الوارد!$E$2:$E$5853) -> 1045 | J185: =SUMIF(الوارد!$D$2:$D$5853,E185,الوارد!$G$2:$G$5853) -> 0 | K185: =SUMIF(الوارد!$D$2:$D$5853,E185,الوارد!$H$2:$H$5853) -> 0 | L185: =SUMIF(المنصرف!$D$2:$D$4677,E185,المنصرف!$E$2:$E$4677) -> 485 | M185: =SUMIF(المنصرف!$D$2:$D$4677,E185,المنصرف!$G$2:$G$4677) -> 0 | N185: =SUMIF(المنصرف!$D$2:$D$4677,E185,المنصرف!$H$2:$H$4677) -> 0 | O185: =SUMIF(المرتجع!$D$2:$D$789,E185,المرتجع!$E$2:$E$789) -> 0 | P185: =SUMIF(المرتجع!$D$2:$D$789,E185,المرتجع!$G$2:$G$789) -> 0 | Q185: =SUMIF(المرتجع!$D$2:$D$789,E185,المرتجع!$H$2:$H$789) -> 0 | R185: 560 | S185: 0 | T185: 0 | AG185: =IFERROR(VLOOKUP(ROWS($AG$2:AG185),$AI$2:$AJ$932,2,0),"") ->  | AI185: =IF(ISNUMBER(SEARCH($AL$2,AJ185)),MAX($AI$1:AI184)+1,0) -> 0
A186: 185 | B186: mellon | C186: ساندوتش | D186: 1.5سم | E186: mellon ساندوتش 1.5سم | I186: =SUMIF(الوارد!$D$2:$D$5853,E186,الوارد!$E$2:$E$5853) -> 25 | J186: =SUMIF(الوارد!$D$2:$D$5853,E186,الوارد!$G$2:$G$5853) -> 0 | K186: =SUMIF(الوارد!$D$2:$D$5853,E186,الوارد!$H$2:$H$5853) -> 0 | L186: =SUMIF(المنصرف!$D$2:$D$4677,E186,المنصرف!$E$2:$E$4677) -> 83.31 | M186: =SUMIF(المنصرف!$D$2:$D$4677,E186,المنصرف!$G$2:$G$4677) -> 16659.56 | N186: =SUMIF(المنصرف!$D$2:$D$4677,E186,المنصرف!$H$2:$H$4677) -> 0 | O186: =SUMIF(المرتجع!$D$2:$D$789,E186,المرتجع!$E$2:$E$789) -> 58.31 | P186: =SUMIF(المرتجع!$D$2:$D$789,E186,المرتجع!$G$2:$G$789) -> 16659.56 | Q186: =SUMIF(المرتجع!$D$2:$D$789,E186,المرتجع!$H$2:$H$789) -> 0 | R186: 0 | S186: 0 | T186: 0 | AG186: =IFERROR(VLOOKUP(ROWS($AG$2:AG186),$AI$2:$AJ$932,2,0),"") ->  | AI186: =IF(ISNUMBER(SEARCH($AL$2,AJ186)),MAX($AI$1:AI185)+1,0) -> 0
A187: 186 | B187: اسود*مسطرد | C187: جاكار | D187: 3سم | E187: اسود*مسطرد جاكار 3سم | F187: =-73.14+100.7+28.66-42.2+2 -> 16.02 | G187: =-3276+4455+1530-1900+600 -> 1409 | H187: 0 | I187: =SUMIF(الوارد!$D$2:$D$5853,E187,الوارد!$E$2:$E$5853) -> 3021.34 | J187: =SUMIF(الوارد!$D$2:$D$5853,E187,الوارد!$G$2:$G$5853) -> 135021 | K187: =SUMIF(الوارد!$D$2:$D$5853,E187,الوارد!$H$2:$H$5853) -> 0 | L187: =SUMIF(المنصرف!$D$2:$D$4677,E187,المنصرف!$E$2:$E$4677) -> 2579.8 | M187: =SUMIF(المنصرف!$D$2:$D$4677,E187,المنصرف!$G$2:$G$4677) -> 114702 | N187: =SUMIF(المنصرف!$D$2:$D$4677,E187,المنصرف!$H$2:$H$4677) -> 0 | O187: =SUMIF(المرتجع!$D$2:$D$789,E187,المرتجع!$E$2:$E$789) -> 0 | P187: =SUMIF(المرتجع!$D$2:$D$789,E187,المرتجع!$G$2:$G$789) -> 0 | Q187: =SUMIF(المرتجع!$D$2:$D$789,E187,المرتجع!$H$2:$H$789) -> 0 | R187: 457.56 | S187: 21728 | T187: 0 | AG187: =IFERROR(VLOOKUP(ROWS($AG$2:AG187),$AI$2:$AJ$932,2,0),"") ->  | AI187: =IF(ISNUMBER(SEARCH($AL$2,AJ187)),MAX($AI$1:AI186)+1,0) -> 0
A188: 187 | B188: اسود | C188: تيب بوليستر | D188: 1سم | E188: اسود تيب بوليستر 1سم | F188: =10.17 -> 10.17 | G188: =2904 -> 2904 | I188: =SUMIF(الوارد!$D$2:$D$5853,E188,الوارد!$E$2:$E$5853) -> 223.09 | J188: =SUMIF(الوارد!$D$2:$D$5853,E188,الوارد!$G$2:$G$5853) -> 64265 | K188: =SUMIF(الوارد!$D$2:$D$5853,E188,الوارد!$H$2:$H$5853) -> 0 | L188: =SUMIF(المنصرف!$D$2:$D$4677,E188,المنصرف!$E$2:$E$4677) -> 233.26 | M188: =SUMIF(المنصرف!$D$2:$D$4677,E188,المنصرف!$G$2:$G$4677) -> 67169 | N188: =SUMIF(المنصرف!$D$2:$D$4677,E188,المنصرف!$H$2:$H$4677) -> 0 | O188: =SUMIF(المرتجع!$D$2:$D$789,E188,المرتجع!$E$2:$E$789) -> 0 | P188: =SUMIF(المرتجع!$D$2:$D$789,E188,المرتجع!$G$2:$G$789) -> 0 | Q188: =SUMIF(المرتجع!$D$2:$D$789,E188,المرتجع!$H$2:$H$789) -> 0 | R188: 0 | S188: 0 | T188: 0 | AG188: =IFERROR(VLOOKUP(ROWS($AG$2:AG188),$AI$2:$AJ$932,2,0),"") ->  | AI188: =IF(ISNUMBER(SEARCH($AL$2,AJ188)),MAX($AI$1:AI187)+1,0) -> 0
A189: 188 | B189: بيج | C189: ويفين تيب | D189: 1.2سم | E189: بيج ويفين تيب 1.2سم | F189: 0 | G189: 0 | I189: =SUMIF(الوارد!$D$2:$D$5853,E189,الوارد!$E$2:$E$5853) -> 163.96 | J189: =SUMIF(الوارد!$D$2:$D$5853,E189,الوارد!$G$2:$G$5853) -> 21840 | K189: =SUMIF(الوارد!$D$2:$D$5853,E189,الوارد!$H$2:$H$5853) -> 0 | L189: =SUMIF(المنصرف!$D$2:$D$4677,E189,المنصرف!$E$2:$E$4677) -> 163.96 | M189: =SUMIF(المنصرف!$D$2:$D$4677,E189,المنصرف!$G$2:$G$4677) -> 21840 | N189: =SUMIF(المنصرف!$D$2:$D$4677,E189,المنصرف!$H$2:$H$4677) -> 0 | O189: =SUMIF(المرتجع!$D$2:$D$789,E189,المرتجع!$E$2:$E$789) -> 0 | P189: =SUMIF(المرتجع!$D$2:$D$789,E189,المرتجع!$G$2:$G$789) -> 0 | Q189: =SUMIF(المرتجع!$D$2:$D$789,E189,المرتجع!$H$2:$H$789) -> 0 | R189: 0 | S189: 0 | T189: 0 | AG189: =IFERROR(VLOOKUP(ROWS($AG$2:AG189),$AI$2:$AJ$932,2,0),"") ->  | AI189: =IF(ISNUMBER(SEARCH($AL$2,AJ189)),MAX($AI$1:AI188)+1,0) -> 0
A190: 189 | B190: ابيض | C190: ويفين تيب | D190: 1.2سم | E190: ابيض ويفين تيب 1.2سم | F190: 0 | G190: 0 | I190: =SUMIF(الوارد!$D$2:$D$5853,E190,الوارد!$E$2:$E$5853) -> 5.81 | J190: =SUMIF(الوارد!$D$2:$D$5853,E190,الوارد!$G$2:$G$5853) -> 726 | K190: =SUMIF(الوارد!$D$2:$D$5853,E190,الوارد!$H$2:$H$5853) -> 0 | L190: =SUMIF(المنصرف!$D$2:$D$4677,E190,المنصرف!$E$2:$E$4677) -> 5.81 | M190: =SUMIF(المنصرف!$D$2:$D$4677,E190,المنصرف!$G$2:$G$4677) -> 726 | N190: =SUMIF(المنصرف!$D$2:$D$4677,E190,المنصرف!$H$2:$H$4677) -> 0 | O190: =SUMIF(المرتجع!$D$2:$D$789,E190,المرتجع!$E$2:$E$789) -> 0 | P190: =SUMIF(المرتجع!$D$2:$D$789,E190,المرتجع!$G$2:$G$789) -> 0 | Q190: =SUMIF(المرتجع!$D$2:$D$789,E190,المرتجع!$H$2:$H$789) -> 0 | R190: 0 | S190: 0 | T190: 0 | AG190: =IFERROR(VLOOKUP(ROWS($AG$2:AG190),$AI$2:$AJ$932,2,0),"") ->  | AI190: =IF(ISNUMBER(SEARCH($AL$2,AJ190)),MAX($AI$1:AI189)+1,0) -> 0
A191: 190 | B191: ابيض | C191: بايبنج | D191: 3مم | E191: ابيض بايبنج 3مم | F191: =1.31 -> 1.31 | G191: =655 -> 655 | I191: =SUMIF(الوارد!$D$2:$D$5853,E191,الوارد!$E$2:$E$5853) -> 259.5 | J191: =SUMIF(الوارد!$D$2:$D$5853,E191,الوارد!$G$2:$G$5853) -> 157664 | K191: =SUMIF(الوارد!$D$2:$D$5853,E191,الوارد!$H$2:$H$5853) -> 0 | L191: =SUMIF(المنصرف!$D$2:$D$4677,E191,المنصرف!$E$2:$E$4677) -> 260.81 | M191: =SUMIF(المنصرف!$D$2:$D$4677,E191,المنصرف!$G$2:$G$4677) -> 158319 | N191: =SUMIF(المنصرف!$D$2:$D$4677,E191,المنصرف!$H$2:$H$4677) -> 0 | O191: =SUMIF(المرتجع!$D$2:$D$789,E191,المرتجع!$E$2:$E$789) -> 0 | P191: =SUMIF(المرتجع!$D$2:$D$789,E191,المرتجع!$G$2:$G$789) -> 0 | Q191: =SUMIF(المرتجع!$D$2:$D$789,E191,المرتجع!$H$2:$H$789) -> 0 | R191: 0 | S191: 0 | T191: 0 | AG191: =IFERROR(VLOOKUP(ROWS($AG$2:AG191),$AI$2:$AJ$932,2,0),"") ->  | AI191: =IF(ISNUMBER(SEARCH($AL$2,AJ191)),MAX($AI$1:AI190)+1,0) -> 0
A192: 191 | B192: احمر | C192: بايبنج | D192: 3مم | E192: احمر بايبنج 3مم | F192: 0 | G192: 0 | I192: =SUMIF(الوارد!$D$2:$D$5853,E192,الوارد!$E$2:$E$5853) -> 0 | J192: =SUMIF(الوارد!$D$2:$D$5853,E192,الوارد!$G$2:$G$5853) -> 0 | K192: =SUMIF(الوارد!$D$2:$D$5853,E192,الوارد!$H$2:$H$5853) -> 0 | L192: =SUMIF(المنصرف!$D$2:$D$4677,E192,المنصرف!$E$2:$E$4677) -> 0 | M192: =SUMIF(المنصرف!$D$2:$D$4677,E192,المنصرف!$G$2:$G$4677) -> 0 | N192: =SUMIF(المنصرف!$D$2:$D$4677,E192,المنصرف!$H$2:$H$4677) -> 0 | O192: =SUMIF(المرتجع!$D$2:$D$789,E192,المرتجع!$E$2:$E$789) -> 0 | P192: =SUMIF(المرتجع!$D$2:$D$789,E192,المرتجع!$G$2:$G$789) -> 0 | Q192: =SUMIF(المرتجع!$D$2:$D$789,E192,المرتجع!$H$2:$H$789) -> 0 | R192: 0 | S192: 0 | T192: 0 | AG192: =IFERROR(VLOOKUP(ROWS($AG$2:AG192),$AI$2:$AJ$932,2,0),"") ->  | AI192: =IF(ISNUMBER(SEARCH($AL$2,AJ192)),MAX($AI$1:AI191)+1,0) -> 0
A193: 192 | B193: 18-0317 | C193: ويفين | D193: 1.6سم | E193: 18-0317 ويفين 1.6سم | F193: 0 | G193: 0 | I193: =SUMIF(الوارد!$D$2:$D$5853,E193,الوارد!$E$2:$E$5853) -> 0 | J193: =SUMIF(الوارد!$D$2:$D$5853,E193,الوارد!$G$2:$G$5853) -> 0 | K193: =SUMIF(الوارد!$D$2:$D$5853,E193,الوارد!$H$2:$H$5853) -> 0 | L193: =SUMIF(المنصرف!$D$2:$D$4677,E193,المنصرف!$E$2:$E$4677) -> 76.16 | M193: =SUMIF(المنصرف!$D$2:$D$4677,E193,المنصرف!$G$2:$G$4677) -> 0 | N193: =SUMIF(المنصرف!$D$2:$D$4677,E193,المنصرف!$H$2:$H$4677) -> 0 | O193: =SUMIF(المرتجع!$D$2:$D$789,E193,المرتجع!$E$2:$E$789) -> 76.16 | P193: =SUMIF(المرتجع!$D$2:$D$789,E193,المرتجع!$G$2:$G$789) -> 0 | Q193: =SUMIF(المرتجع!$D$2:$D$789,E193,المرتجع!$H$2:$H$789) -> 0 | R193: 0 | S193: 0 | T193: 0 | AG193: =IFERROR(VLOOKUP(ROWS($AG$2:AG193),$AI$2:$AJ$932,2,0),"") ->  | AI193: =IF(ISNUMBER(SEARCH($AL$2,AJ193)),MAX($AI$1:AI192)+1,0) -> 0
A194: 193 | B194: 11_4301 | C194: ويفين | D194: 1.6سم | E194: 11_4301 ويفين 1.6سم | F194: 0 | G194: 0 | I194: =SUMIF(الوارد!$D$2:$D$5853,E194,الوارد!$E$2:$E$5853) -> 0 | J194: =SUMIF(الوارد!$D$2:$D$5853,E194,الوارد!$G$2:$G$5853) -> 0 | K194: =SUMIF(الوارد!$D$2:$D$5853,E194,الوارد!$H$2:$H$5853) -> 0 | L194: =SUMIF(المنصرف!$D$2:$D$4677,E194,المنصرف!$E$2:$E$4677) -> 229.6 | M194: =SUMIF(المنصرف!$D$2:$D$4677,E194,المنصرف!$G$2:$G$4677) -> 19709.35 | N194: =SUMIF(المنصرف!$D$2:$D$4677,E194,المنصرف!$H$2:$H$4677) -> 0 | O194: =SUMIF(المرتجع!$D$2:$D$789,E194,المرتجع!$E$2:$E$789) -> 244.15 | P194: =SUMIF(المرتجع!$D$2:$D$789,E194,المرتجع!$G$2:$G$789) -> 21421.11 | Q194: =SUMIF(المرتجع!$D$2:$D$789,E194,المرتجع!$H$2:$H$789) -> 0 | R194: 14.55 | S194: 1711.76 | T194: 0 | AG194: =IFERROR(VLOOKUP(ROWS($AG$2:AG194),$AI$2:$AJ$932,2,0),"") ->  | AI194: =IF(ISNUMBER(SEARCH($AL$2,AJ194)),MAX($AI$1:AI193)+1,0) -> 0
A195: 194 | B195: 11_4301 | C195: ساندوتش | D195: 1.5سم | E195: 11_4301 ساندوتش 1.5سم | F195: 0 | G195: 0 | I195: =SUMIF(الوارد!$D$2:$D$5853,E195,الوارد!$E$2:$E$5853) -> 0 | J195: =SUMIF(الوارد!$D$2:$D$5853,E195,الوارد!$G$2:$G$5853) -> 0 | K195: =SUMIF(الوارد!$D$2:$D$5853,E195,الوارد!$H$2:$H$5853) -> 0 | L195: =SUMIF(المنصرف!$D$2:$D$4677,E195,المنصرف!$E$2:$E$4677) -> 114.65 | M195: =SUMIF(المنصرف!$D$2:$D$4677,E195,المنصرف!$G$2:$G$4677) -> 24685.68 | N195: =SUMIF(المنصرف!$D$2:$D$4677,E195,المنصرف!$H$2:$H$4677) -> 0 | O195: =SUMIF(المرتجع!$D$2:$D$789,E195,المرتجع!$E$2:$E$789) -> 114.65 | P195: =SUMIF(المرتجع!$D$2:$D$789,E195,المرتجع!$G$2:$G$789) -> 24685.68 | Q195: =SUMIF(المرتجع!$D$2:$D$789,E195,المرتجع!$H$2:$H$789) -> 0 | R195: 0 | S195: 0 | T195: 0 | AG195: =IFERROR(VLOOKUP(ROWS($AG$2:AG195),$AI$2:$AJ$932,2,0),"") ->  | AI195: =IF(ISNUMBER(SEARCH($AL$2,AJ195)),MAX($AI$1:AI194)+1,0) -> 0
A196: 195 | B196: اسود | C196: كورد بوليستر | D196: 77سم | E196: اسود كورد بوليستر 77سم | F196: 0 | G196: 0 | I196: =SUMIF(الوارد!$D$2:$D$5853,E196,الوارد!$E$2:$E$5853) -> 14.71 | J196: =SUMIF(الوارد!$D$2:$D$5853,E196,الوارد!$G$2:$G$5853) -> 2105.95 | K196: =SUMIF(الوارد!$D$2:$D$5853,E196,الوارد!$H$2:$H$5853) -> 0 | L196: =SUMIF(المنصرف!$D$2:$D$4677,E196,المنصرف!$E$2:$E$4677) -> 14.71 | M196: =SUMIF(المنصرف!$D$2:$D$4677,E196,المنصرف!$G$2:$G$4677) -> 2105.95 | N196: =SUMIF(المنصرف!$D$2:$D$4677,E196,المنصرف!$H$2:$H$4677) -> 0 | O196: =SUMIF(المرتجع!$D$2:$D$789,E196,المرتجع!$E$2:$E$789) -> 0 | P196: =SUMIF(المرتجع!$D$2:$D$789,E196,المرتجع!$G$2:$G$789) -> 0 | Q196: =SUMIF(المرتجع!$D$2:$D$789,E196,المرتجع!$H$2:$H$789) -> 0 | R196: 0 | S196: 0 | T196: 0 | AG196: =IFERROR(VLOOKUP(ROWS($AG$2:AG196),$AI$2:$AJ$932,2,0),"") ->  | AI196: =IF(ISNUMBER(SEARCH($AL$2,AJ196)),MAX($AI$1:AI195)+1,0) -> 0
A197: 196 | B197: اسود | C197: كورد بوليستر | D197: 92سم | E197: اسود كورد بوليستر 92سم | F197: 0 | G197: 0 | I197: =SUMIF(الوارد!$D$2:$D$5853,E197,الوارد!$E$2:$E$5853) -> 59.68 | J197: =SUMIF(الوارد!$D$2:$D$5853,E197,الوارد!$G$2:$G$5853) -> 8989.74 | K197: =SUMIF(الوارد!$D$2:$D$5853,E197,الوارد!$H$2:$H$5853) -> 0 | L197: =SUMIF(المنصرف!$D$2:$D$4677,E197,المنصرف!$E$2:$E$4677) -> 59.68 | M197: =SUMIF(المنصرف!$D$2:$D$4677,E197,المنصرف!$G$2:$G$4677) -> 8989.74 | N197: =SUMIF(المنصرف!$D$2:$D$4677,E197,المنصرف!$H$2:$H$4677) -> 0 | O197: =SUMIF(المرتجع!$D$2:$D$789,E197,المرتجع!$E$2:$E$789) -> 0 | P197: =SUMIF(المرتجع!$D$2:$D$789,E197,المرتجع!$G$2:$G$789) -> 0 | Q197: =SUMIF(المرتجع!$D$2:$D$789,E197,المرتجع!$H$2:$H$789) -> 0 | R197: 0 | S197: 0 | T197: 0 | AG197: =IFERROR(VLOOKUP(ROWS($AG$2:AG197),$AI$2:$AJ$932,2,0),"") ->  | AI197: =IF(ISNUMBER(SEARCH($AL$2,AJ197)),MAX($AI$1:AI196)+1,0) -> 0
A198: 197 | B198: اسود | C198: كورد بوليستر | D198: 83سم | E198: اسود كورد بوليستر 83سم | F198: 0 | G198: 0 | I198: =SUMIF(الوارد!$D$2:$D$5853,E198,الوارد!$E$2:$E$5853) -> 18.45 | J198: =SUMIF(الوارد!$D$2:$D$5853,E198,الوارد!$G$2:$G$5853) -> 3614.45 | K198: =SUMIF(الوارد!$D$2:$D$5853,E198,الوارد!$H$2:$H$5853) -> 0 | L198: =SUMIF(المنصرف!$D$2:$D$4677,E198,المنصرف!$E$2:$E$4677) -> 16.1 | M198: =SUMIF(المنصرف!$D$2:$D$4677,E198,المنصرف!$G$2:$G$4677) -> 3614.45 | N198: =SUMIF(المنصرف!$D$2:$D$4677,E198,المنصرف!$H$2:$H$4677) -> 0 | O198: =SUMIF(المرتجع!$D$2:$D$789,E198,المرتجع!$E$2:$E$789) -> 0 | P198: =SUMIF(المرتجع!$D$2:$D$789,E198,المرتجع!$G$2:$G$789) -> 0 | Q198: =SUMIF(المرتجع!$D$2:$D$789,E198,المرتجع!$H$2:$H$789) -> 0 | R198: 2.35 | S198: 0 | T198: 0 | AG198: =IFERROR(VLOOKUP(ROWS($AG$2:AG198),$AI$2:$AJ$932,2,0),"") ->  | AI198: =IF(ISNUMBER(SEARCH($AL$2,AJ198)),MAX($AI$1:AI197)+1,0) -> 0
A199: 198 | B199: اسود | C199: كورد بوليستر | D199: 79سم | E199: اسود كورد بوليستر 79سم | F199: 0 | G199: 0 | I199: =SUMIF(الوارد!$D$2:$D$5853,E199,الوارد!$E$2:$E$5853) -> 103.45 | J199: =SUMIF(الوارد!$D$2:$D$5853,E199,الوارد!$G$2:$G$5853) -> 0 | K199: =SUMIF(الوارد!$D$2:$D$5853,E199,الوارد!$H$2:$H$5853) -> 0 | L199: =SUMIF(المنصرف!$D$2:$D$4677,E199,المنصرف!$E$2:$E$4677) -> 103.45 | M199: =SUMIF(المنصرف!$D$2:$D$4677,E199,المنصرف!$G$2:$G$4677) -> 0 | N199: =SUMIF(المنصرف!$D$2:$D$4677,E199,المنصرف!$H$2:$H$4677) -> 0 | O199: =SUMIF(المرتجع!$D$2:$D$789,E199,المرتجع!$E$2:$E$789) -> 0 | P199: =SUMIF(المرتجع!$D$2:$D$789,E199,المرتجع!$G$2:$G$789) -> 0 | Q199: =SUMIF(المرتجع!$D$2:$D$789,E199,المرتجع!$H$2:$H$789) -> 0 | R199: 0 | S199: 0 | T199: 0 | AG199: =IFERROR(VLOOKUP(ROWS($AG$2:AG199),$AI$2:$AJ$932,2,0),"") ->  | AI199: =IF(ISNUMBER(SEARCH($AL$2,AJ199)),MAX($AI$1:AI198)+1,0) -> 0
A200: 199 | B200: ابيض | C200: ويفين (510) | D200: 4.5سم | E200: ابيض ويفين (510) 4.5سم | F200: 50.03 | G200: 0 | I200: =SUMIF(الوارد!$D$2:$D$5853,E200,الوارد!$E$2:$E$5853) -> 954.84 | J200: =SUMIF(الوارد!$D$2:$D$5853,E200,الوارد!$G$2:$G$5853) -> 639 | K200: =SUMIF(الوارد!$D$2:$D$5853,E200,الوارد!$H$2:$H$5853) -> 0 | L200: =SUMIF(المنصرف!$D$2:$D$4677,E200,المنصرف!$E$2:$E$4677) -> 980.59 | M200: =SUMIF(المنصرف!$D$2:$D$4677,E200,المنصرف!$G$2:$G$4677) -> 639 | N200: =SUMIF(المنصرف!$D$2:$D$4677,E200,المنصرف!$H$2:$H$4677) -> 0 | O200: =SUMIF(المرتجع!$D$2:$D$789,E200,المرتجع!$E$2:$E$789) -> 0 | P200: =SUMIF(المرتجع!$D$2:$D$789,E200,المرتجع!$G$2:$G$789) -> 0 | Q200: =SUMIF(المرتجع!$D$2:$D$789,E200,المرتجع!$H$2:$H$789) -> 0 | R200: 24.28 | S200: 0 | T200: 0 | AG200: =IFERROR(VLOOKUP(ROWS($AG$2:AG200),$AI$2:$AJ$932,2,0),"") ->  | AI200: =IF(ISNUMBER(SEARCH($AL$2,AJ200)),MAX($AI$1:AI199)+1,0) -> 0
... 1036 more rows

Sheet الوارد
A1: التاريخ | B1: أذن أضافة | C1: الكود | D1: اللون | E1: الكمية بالكيلو | F1: وزن المتر بالكيلو | G1: الكمية بالامتار | H1: الكمية بالقطع | I1: العميل | J1: b
A2: 1906-08-02 | B2: 14334 | C2: 383 | D2: =IFERROR(VLOOKUP(C2,التكويد!$A$2:$R$1435,5,0),"") -> اسود كورد بوليستر(حشو اسود) 79سم | E2: 15.5 | F2: =IFERROR(SUM(E2/G2),"") -> 0.006442227764 | G2: 2406 | AA2: 5
A3: 2025-08-02 | B3: 14038 | C3: 253 | D3: =IFERROR(VLOOKUP(C3,التكويد!$A$2:$R$1435,5,0),"") -> ابيض*سكاي بلو جاكار 4سم | E3: 7 | F3: 0.025 | G3: 280 | AA3: 10
A4: 2025-08-06 | B4: 14087 | C4: 181 | D4: =IFERROR(VLOOKUP(C4,التكويد!$A$2:$R$1435,5,0),"") -> جراي*ابيض جاكار 4سم | E4: 49 | F4: 0.02302631579 | G4: 2128 | AA4: 15
A5: 2025-08-06 | B5: 14087 | C5: 180 | D5: =IFERROR(VLOOKUP(C5,التكويد!$A$2:$R$1435,5,0),"") -> جراي*اسود جاكار 4سم | E5: 49 | F5: 0.02405498282 | G5: 2037 | AA5: 20
A6: 2025-08-07 | B6: 14095 | C6: 181 | D6: =IFERROR(VLOOKUP(C6,التكويد!$A$2:$R$1435,5,0),"") -> جراي*ابيض جاكار 4سم | E6: 3.5 | F6: 0.02302631579 | G6: 152 | AA6: 25
A7: 2025-08-07 | B7: 14095 | C7: 180 | D7: =IFERROR(VLOOKUP(C7,التكويد!$A$2:$R$1435,5,0),"") -> جراي*اسود جاكار 4سم | E7: 10.2 | F7: 0.02350230415 | G7: 434 | AA7: 30
A8: 2025-08-09 | B8: 14107 | C8: 179 | D8: =IFERROR(VLOOKUP(C8,التكويد!$A$2:$R$1435,5,0),"") -> دارك جراي*ابيض جاكار 4سم | E8: 7 | F8: 0.02302631579 | G8: 304 | AA8: 35
A9: 2025-08-09 | B9: 14107 | C9: 180 | D9: =IFERROR(VLOOKUP(C9,التكويد!$A$2:$R$1435,5,0),"") -> جراي*اسود جاكار 4سم | E9: 35 | F9: 0.02405498282 | G9: 1455 | AA9: 40
A10: 2025-08-11 | B10: 14127 | C10: 58 | D10: =IFERROR(VLOOKUP(C10,التكويد!$A$2:$R$1435,5,0),"") -> كحلي كورد بوليستر 110سم | E10: 8.21 | AA10: 45
A11: 2025-08-11 | B11: 14127 | C11: 113 | D11: =IFERROR(VLOOKUP(C11,التكويد!$A$2:$R$1435,5,0),"") -> اسود كورد بوليستر 132سم | E11: 25.6 | AA11: 50
A12: 2025-08-11 | B12: 14129 | C12: 118 | D12: =IFERROR(VLOOKUP(C12,التكويد!$A$2:$R$1435,5,0),"") -> raw كورد قطن 1.1سم | E12: 26.75 | AA12: 55
A13: 2025-08-11 | B13: 14130 | C13: 119 | D13: =IFERROR(VLOOKUP(C13,التكويد!$A$2:$R$1435,5,0),"") -> بني تيب بوليستر 1سم | E13: 15 | AA13: 60
A14: 2025-08-11 | B14: 14131 | C14: 120 | D14: =IFERROR(VLOOKUP(C14,التكويد!$A$2:$R$1435,5,0),"") -> دارك جراي كورد قطن 94سم | E14: 3.56 | AA14: 65
A15: 2025-08-11 | B15: 14131 | C15: 121 | D15: =IFERROR(VLOOKUP(C15,التكويد!$A$2:$R$1435,5,0),"") -> كحلي كورد قطن 103سم | E15: 3.46 | AA15: 70
A16: 2025-08-11 | B16: 14131 | C16: 122 | D16: =IFERROR(VLOOKUP(C16,التكويد!$A$2:$R$1435,5,0),"") -> كحلي كورد قطن 101سم | E16: 2.95 | AA16: 75
A17: 2025-08-11 | B17: 14131 | C17: 123 | D17: =IFERROR(VLOOKUP(C17,التكويد!$A$2:$R$1435,5,0),"") -> كحلي كورد قطن 98سم | E17: 1.7 | AA17: 80
A18: 2025-08-11 | B18: 14131 | C18: 124 | D18: =IFERROR(VLOOKUP(C18,التكويد!$A$2:$R$1435,5,0),"") -> كحلي كورد قطن 96سم | E18: 0.8 | AA18: 85
A19: 2025-08-11 | B19: 14131 | C19: 125 | D19: =IFERROR(VLOOKUP(C19,التكويد!$A$2:$R$1435,5,0),"") -> دارك جراي كورد قطن 92سم | E19: 7.69 | AA19: 90
A20: 2025-08-11 | B20: 14132 | C20: 126 | D20: =IFERROR(VLOOKUP(C20,التكويد!$A$2:$R$1435,5,0),"") -> ابيض ويفين (510) 2سم | E20: 61.12 | AA20: 95
A21: 2025-08-11 | B21: 14132 | C21: 127 | D21: =IFERROR(VLOOKUP(C21,التكويد!$A$2:$R$1435,5,0),"") -> اسود ويفين (510) 4.5سم | E21: 9.22 | AA21: 100
A22: 2025-08-11 | B22: 14132 | C22: 128 | D22: =IFERROR(VLOOKUP(C22,التكويد!$A$2:$R$1435,5,0),"") -> ابيض ويفين (510) 4سم | E22: 35.87 | AA22: 105
A23: 2025-08-11 | B23: 14132 | C23: 129 | D23: =IFERROR(VLOOKUP(C23,التكويد!$A$2:$R$1435,5,0),"") -> اسود ويفين (510) 2سم | E23: 13.91 | AA23: 110
A24: 2025-08-11 | B24: 14134 | C24: 35 | D24: =IFERROR(VLOOKUP(C24,التكويد!$A$2:$R$1435,5,0),"") -> ابيض كروشيه 5سم | E24: 221.28 | AA24: 115
A25: 2025-08-11 | B25: 14134 | C25: 8 | D25: =IFERROR(VLOOKUP(C25,التكويد!$A$2:$R$1435,5,0),"") -> ابيض كروشيه 4.5سم | E25: 165.96 | AA25: 120
A26: 2025-08-11 | B26: 14134 | C26: 6 | D26: =IFERROR(VLOOKUP(C26,التكويد!$A$2:$R$1435,5,0),"") -> ابيض كروشيه 4سم | E26: 36.88 | AA26: 125
A27: 2025-08-11 | B27: 14134 | C27: 10 | D27: =IFERROR(VLOOKUP(C27,التكويد!$A$2:$R$1435,5,0),"") -> ابيض كروشيه 3.5سم | E27: 55.32 | AA27: 130
A28: 2025-08-11 | B28: 14134 | C28: 1 | D28: =IFERROR(VLOOKUP(C28,التكويد!$A$2:$R$1435,5,0),"") -> ابيض كروشيه 3سم | E28: 64.54 | AA28: 135
A29: 2025-08-11 | B29: 14134 | C29: 11 | D29: =IFERROR(VLOOKUP(C29,التكويد!$A$2:$R$1435,5,0),"") -> اسود كروشيه 3.5سم | E29: 82.98 | AA29: 140
A30: 2025-08-11 | B30: 14134 | C30: 35 | D30: =IFERROR(VLOOKUP(C30,التكويد!$A$2:$R$1435,5,0),"") -> ابيض كروشيه 5سم | E30: 138.3 | AA30: 145
A31: 2025-08-11 | B31: 14134 | C31: 8 | D31: =IFERROR(VLOOKUP(C31,التكويد!$A$2:$R$1435,5,0),"") -> ابيض كروشيه 4.5سم | E31: 378.02 | AA31: 150
A32: 2025-08-11 | B32: 14135 | C32: 32 | D32: =IFERROR(VLOOKUP(C32,التكويد!$A$2:$R$1435,5,0),"") -> ابيض كروشيه 2.5سم | E32: 110.64 | AA32: 155
A33: 2025-08-11 | B33: 14135 | C33: 36 | D33: =IFERROR(VLOOKUP(C33,التكويد!$A$2:$R$1435,5,0),"") -> اسود كروشيه 2.5سم | E33: 9.22 | AA33: 160
A34: 2025-08-11 | B34: 14135 | C34: 7 | D34: =IFERROR(VLOOKUP(C34,التكويد!$A$2:$R$1435,5,0),"") -> اسود كروشيه 4سم | E34: 156.74 | AA34: 165
A35: 2025-08-11 | B35: 14135 | C35: 28 | D35: =IFERROR(VLOOKUP(C35,التكويد!$A$2:$R$1435,5,0),"") -> اسود كروشيه 5.5سم | E35: 9.22 | AA35: 170
A36: 2025-08-11 | B36: 14124 | C36: 154 | D36: =IFERROR(VLOOKUP(C36,التكويد!$A$2:$R$1435,5,0),"") -> ابيض*رويال(ابيض*ديفابلو) جاكار 3سم | E36: 79.3 | F36: 0.02202777778 | G36: 3600 | AA36: 175
A37: 2025-08-11 | B37: 14124 | C37: 155 | D37: =IFERROR(VLOOKUP(C37,التكويد!$A$2:$R$1435,5,0),"") -> ابيض*سكاي بلو جاكار 3سم | E37: 64.9 | F37: 0.02104409857 | G37: 3084 | AA37: 180
A38: 2025-08-11 | B38: 14124 | C38: 159 | D38: =IFERROR(VLOOKUP(C38,التكويد!$A$2:$R$1435,5,0),"") -> اسود*ابيض جاكار 3سم | E38: 8 | F38: 0.02209944751 | G38: 362 | AA38: 185
A39: 2025-08-11 | B39: 14124 | C39: 107 | D39: =IFERROR(VLOOKUP(C39,التكويد!$A$2:$R$1435,5,0),"") -> اسود*زيتي جاكار 3سم | E39: 88.15 | F39: 0.02151049292 | G39: 4098 | AA39: 190
A40: 2025-08-11 | B40: 14124 | C40: 109 | D40: =IFERROR(VLOOKUP(C40,التكويد!$A$2:$R$1435,5,0),"") -> اسود*كوردفان جاكار 3سم | E40: 35.65 | F40: 0.02000561167 | G40: 1782 | AA40: 195
A41: 2025-08-11 | B41: 14124 | C41: 110 | D41: =IFERROR(VLOOKUP(C41,التكويد!$A$2:$R$1435,5,0),"") -> اسود*برونزجرين جاكار 3سم | E41: 40 | F41: 0.02100840336 | G41: 1904 | AA41: 200
A42: 2025-08-11 | B42: 14124 | C42: 171 | D42: =IFERROR(VLOOKUP(C42,التكويد!$A$2:$R$1435,5,0),"") -> دريزل*هيدرو جاكار 3سم | E42: 29.15 | F42: 0.02204992436 | G42: 1322 | AA42: 205
A43: 2025-08-11 | B43: 14124 | C43: 170 | D43: =IFERROR(VLOOKUP(C43,التكويد!$A$2:$R$1435,5,0),"") -> دريزل*شاركول جراي جاكار 3سم | E43: 81.75 | F43: 0.01955741627 | G43: 4180 | AA43: 210
A44: 2025-08-11 | B44: 14125 | C44: 106 | D44: =IFERROR(VLOOKUP(C44,التكويد!$A$2:$R$1435,5,0),"") -> كافيه*مسطرد جاكار 3سم | E44: 24 | F44: 0.02305475504 | G44: 1041 | AA44: 215
A45: 2025-08-11 | B45: 14125 | C45: 174 | D45: =IFERROR(VLOOKUP(C45,التكويد!$A$2:$R$1435,5,0),"") -> شاركول جراي*دريزل جاكار 3سم | E45: 22.65 | F45: 0.02304170905 | G45: 983 | AA45: 220
A46: 2025-08-11 | B46: 14125 | C46: 168 | D46: =IFERROR(VLOOKUP(C46,التكويد!$A$2:$R$1435,5,0),"") -> دريزل*باين جروف جاكار 3سم | E46: 52.3 | F46: 0.0209367494 | G46: 2498 | AA46: 225
A47: 2025-08-11 | B47: 14125 | C47: 157 | D47: =IFERROR(VLOOKUP(C47,التكويد!$A$2:$R$1435,5,0),"") -> ابيض*هيدرو جاكار 3سم | E47: 8 | F47: 0.02203856749 | G47: 363 | AA47: 230
A48: 2025-08-11 | B48: 14125 | C48: 167 | D48: =IFERROR(VLOOKUP(C48,التكويد!$A$2:$R$1435,5,0),"") -> دارك جراي*اسود جاكار 3سم | E48: 46.3 | F48: 0.02201616738 | G48: 2103 | AA48: 235
A49: 2025-08-11 | B49: 14125 | C49: 112 | D49: =IFERROR(VLOOKUP(C49,التكويد!$A$2:$R$1435,5,0),"") -> سكايبلو*فرست جراي جاكار 3سم | E49: 13.2 | F49: 0.022 | G49: 600 | AA49: 240
A50: 2025-08-11 | B50: 14125 | C50: 156 | D50: =IFERROR(VLOOKUP(C50,التكويد!$A$2:$R$1435,5,0),"") -> ابيض*كافيه جاكار 3سم | E50: 12 | F50: 0.02205882353 | G50: 544 | AA50: 245
A51: 2025-08-11 | B51: 14126 | C51: 158 | D51: =IFERROR(VLOOKUP(C51,التكويد!$A$2:$R$1435,5,0),"") -> اسود بارز جاكار 3سم | E51: 74.85 | F51: 0.02121598639 | G51: 3528 | AA51: 250
A52: 2025-08-11 | B52: 14126 | C52: 172 | D52: =IFERROR(VLOOKUP(C52,التكويد!$A$2:$R$1435,5,0),"") -> جراي بارز جاكار 3سم | E52: 68.4 | F52: 0.02038748137 | G52: 3355 | AA52: 255
A53: 2025-08-11 | B53: 14126 | C53: 175 | D53: =IFERROR(VLOOKUP(C53,التكويد!$A$2:$R$1435,5,0),"") -> كحلي بارز جاكار 3سم | E53: 42.35 | F53: 0.02174024641 | G53: 1948 | AA53: 260
A54: 2025-08-11 | B54: 14126 | C54: 176 | D54: =IFERROR(VLOOKUP(C54,التكويد!$A$2:$R$1435,5,0),"") -> كحلي *ابيض جاكار 3سم | E54: 53.3 | F54: 0.02101735016 | G54: 2536 | AA54: 265
A55: 2025-08-11 | B55: 14126 | C55: 166 | D55: =IFERROR(VLOOKUP(C55,التكويد!$A$2:$R$1435,5,0),"") -> دارك جراي*ابيض جاكار 3سم | E55: 7 | F55: 0.02052785924 | G55: 341 | AA55: 270
A56: 2025-08-11 | B56: 14126 | C56: 178 | D56: =IFERROR(VLOOKUP(C56,التكويد!$A$2:$R$1435,5,0),"") -> دارك جراي*اسود جاكار 4سم | E56: 19.2 | F56: 0.02403003755 | G56: 799 | AA56: 275
A57: 2025-08-11 | B57: 14126 | C57: 181 | D57: =IFERROR(VLOOKUP(C57,التكويد!$A$2:$R$1435,5,0),"") -> جراي*ابيض جاكار 4سم | E57: 65.15 | F57: 0.02302933899 | G57: 2829 | AA57: 280
A58: 2025-08-12 | B58: 14139 | C58: 8 | D58: =IFERROR(VLOOKUP(C58,التكويد!$A$2:$R$1435,5,0),"") -> ابيض كروشيه 4.5سم | E58: 82.98 | AA58: 285
A59: 2025-08-12 | B59: 14139 | C59: 6 | D59: =IFERROR(VLOOKUP(C59,التكويد!$A$2:$R$1435,5,0),"") -> ابيض كروشيه 4سم | E59: 387.24 | AA59: 290
A60: 2025-08-12 | B60: 14139 | C60: 32 | D60: =IFERROR(VLOOKUP(C60,التكويد!$A$2:$R$1435,5,0),"") -> ابيض كروشيه 2.5سم | E60: 55.32 | AA60: 295
A61: 2025-08-12 | B61: 14139 | C61: 35 | D61: =IFERROR(VLOOKUP(C61,التكويد!$A$2:$R$1435,5,0),"") -> ابيض كروشيه 5سم | E61: 165.96 | AA61: 300
A62: 2025-08-12 | B62: 14139 | C62: 8 | D62: =IFERROR(VLOOKUP(C62,التكويد!$A$2:$R$1435,5,0),"") -> ابيض كروشيه 4.5سم | E62: 239.72 | AA62: 305
A63: 2025-08-12 | B63: 14139 | C63: 10 | D63: =IFERROR(VLOOKUP(C63,التكويد!$A$2:$R$1435,5,0),"") -> ابيض كروشيه 3.5سم | E63: 239.72 | AA63: 310
A64: 2025-08-12 | B64: 14139 | C64: 11 | D64: =IFERROR(VLOOKUP(C64,التكويد!$A$2:$R$1435,5,0),"") -> اسود كروشيه 3.5سم | E64: 165.96 | AA64: 315
A65: 2025-08-12 | B65: 14140 | C65: 7 | D65: =IFERROR(VLOOKUP(C65,التكويد!$A$2:$R$1435,5,0),"") -> اسود كروشيه 4سم | E65: 212.06 | AA65: 320
A66: 2025-08-12 | B66: 14140 | C66: 28 | D66: =IFERROR(VLOOKUP(C66,التكويد!$A$2:$R$1435,5,0),"") -> اسود كروشيه 5.5سم | E66: 202.84 | F66: =IFERROR(SUM(E66/G66),"") ->  | AA66: 325
A67: 2025-08-12 | B67: 14140 | C67: 35 | D67: =IFERROR(VLOOKUP(C67,التكويد!$A$2:$R$1435,5,0),"") -> ابيض كروشيه 5سم | E67: 175.18 | AA67: 330
A68: 2025-08-12 | B68: 14140 | C68: 10 | D68: =IFERROR(VLOOKUP(C68,التكويد!$A$2:$R$1435,5,0),"") -> ابيض كروشيه 3.5سم | E68: 6.61 | AA68: 335
A69: 2025-08-12 | B69: 14140 | C69: 9 | D69: =IFERROR(VLOOKUP(C69,التكويد!$A$2:$R$1435,5,0),"") -> اسود كروشيه 4.5سم | E69: 9.22 | AA69: 340
A70: 2025-08-12 | B70: 14140 | C70: 10 | D70: =IFERROR(VLOOKUP(C70,التكويد!$A$2:$R$1435,5,0),"") -> ابيض كروشيه 3.5سم | E70: 27.66 | AA70: 345
A71: 2025-08-12 | B71: 14141 | C71: 130 | D71: =IFERROR(VLOOKUP(C71,التكويد!$A$2:$R$1435,5,0),"") -> ابيض ويفين 4سم | E71: 91 | AA71: 350
A72: 2025-08-12 | B72: 14142 | C72: 62 | D72: =IFERROR(VLOOKUP(C72,التكويد!$A$2:$R$1435,5,0),"") -> اسود كورد بوليستر 5مم | E72: 14.11 | AA72: 355
A73: 2025-08-12 | B73: 14142 | C73: 132 | D73: =IFERROR(VLOOKUP(C73,التكويد!$A$2:$R$1435,5,0),"") -> BLHL كورد قطن 1.6سم | E73: 35 | AA73: 360
A74: 2025-08-12 | B74: 14143 | C74: 126 | D74: =IFERROR(VLOOKUP(C74,التكويد!$A$2:$R$1435,5,0),"") -> ابيض ويفين (510) 2سم | E74: 122.24 | AA74: 365
A75: 2025-08-12 | B75: 14143 | C75: 133 | D75: =IFERROR(VLOOKUP(C75,التكويد!$A$2:$R$1435,5,0),"") -> ابيض ويفين (510) 3سم | E75: 37.27 | AA75: 370
A76: 2025-08-12 | B76: 14143 | C76: 134 | D76: =IFERROR(VLOOKUP(C76,التكويد!$A$2:$R$1435,5,0),"") -> ابيض ويفين (510) 1.5سم | E76: 18.66 | AA76: 375
A77: 2025-08-12 | B77: 14143 | C77: 129 | D77: =IFERROR(VLOOKUP(C77,التكويد!$A$2:$R$1435,5,0),"") -> اسود ويفين (510) 2سم | E77: 19.14 | AA77: 380
A78: 2025-08-12 | B78: 14143 | C78: 128 | D78: =IFERROR(VLOOKUP(C78,التكويد!$A$2:$R$1435,5,0),"") -> ابيض ويفين (510) 4سم | E78: 27.2 | AA78: 385
A79: 2025-08-12 | B79: 14143 | C79: 126 | D79: =IFERROR(VLOOKUP(C79,التكويد!$A$2:$R$1435,5,0),"") -> ابيض ويفين (510) 2سم | E79: 77.92 | AA79: 390
A80: 2025-08-12 | B80: 14143 | C80: 129 | D80: =IFERROR(VLOOKUP(C80,التكويد!$A$2:$R$1435,5,0),"") -> اسود ويفين (510) 2سم | E80: 13.27 | AA80: 395
A81: 2025-08-12 | B81: 14144 | C81: 119 | D81: =IFERROR(VLOOKUP(C81,التكويد!$A$2:$R$1435,5,0),"") -> بني تيب بوليستر 1سم | E81: 7.81 | AA81: 400
A82: 2025-08-12 | B82: 14145 | C82: 113 | D82: =IFERROR(VLOOKUP(C82,التكويد!$A$2:$R$1435,5,0),"") -> اسود كورد بوليستر 132سم | E82: 25.8 | AA82: 405
A83: 2025-08-12 | B83: 14145 | C83: 125 | D83: =IFERROR(VLOOKUP(C83,التكويد!$A$2:$R$1435,5,0),"") -> دارك جراي كورد قطن 92سم | E83: 5.46 | AA83: 410
A84: 2025-08-12 | B84: 14145 | C84: 135 | D84: =IFERROR(VLOOKUP(C84,التكويد!$A$2:$R$1435,5,0),"") -> جراي كورد قطن 87سم | E84: 4.45 | AA84: 415
A85: 2025-08-12 | B85: 14145 | C85: 136 | D85: =IFERROR(VLOOKUP(C85,التكويد!$A$2:$R$1435,5,0),"") -> putty كورد قطن 96سم | E85: 1.9 | AA85: 420
A86: 2025-08-12 | B86: 14136 | C86: 106 | D86: =IFERROR(VLOOKUP(C86,التكويد!$A$2:$R$1435,5,0),"") -> كافيه*مسطرد جاكار 3سم | E86: 42.2 | F86: 0.02306010929 | G86: 1830 | AA86: 425
A87: 2025-08-12 | B87: 14136 | C87: 159 | D87: =IFERROR(VLOOKUP(C87,التكويد!$A$2:$R$1435,5,0),"") -> اسود*ابيض جاكار 3سم | E87: 12.9 | F87: 0.02107843137 | G87: 612 | AA87: 430
A88: 2025-08-12 | B88: 14136 | C88: 109 | D88: =IFERROR(VLOOKUP(C88,التكويد!$A$2:$R$1435,5,0),"") -> اسود*كوردفان جاكار 3سم | E88: 28 | F88: 0.02 | G88: 1400 | AA88: 435
A89: 2025-08-12 | B89: 14136 | C89: 107 | D89: =IFERROR(VLOOKUP(C89,التكويد!$A$2:$R$1435,5,0),"") -> اسود*زيتي جاكار 3سم | E89: 8 | F89: 0.02150537634 | G89: 372 | AA89: 440
A90: 2025-08-12 | B90: 14136 | C90: 110 | D90: =IFERROR(VLOOKUP(C90,التكويد!$A$2:$R$1435,5,0),"") -> اسود*برونزجرين جاكار 3سم | E90: 16 | F90: 0.02105263158 | G90: 760 | AA90: 445
A91: 2025-08-12 | B91: 14136 | C91: 154 | D91: =IFERROR(VLOOKUP(C91,التكويد!$A$2:$R$1435,5,0),"") -> ابيض*رويال(ابيض*ديفابلو) جاكار 3سم | E91: 49.2 | F91: 0.02145660706 | G91: 2293 | AA91: 450
A92: 2025-08-12 | B92: 14136 | C92: 155 | D92: =IFERROR(VLOOKUP(C92,التكويد!$A$2:$R$1435,5,0),"") -> ابيض*سكاي بلو جاكار 3سم | E92: 45.85 | F92: 0.02106109325 | G92: 2177 | AA92: 455
A93: 2025-08-12 | B93: 14136 | C93: 170 | D93: =IFERROR(VLOOKUP(C93,التكويد!$A$2:$R$1435,5,0),"") -> دريزل*شاركول جراي جاكار 3سم | E93: 92.15 | F93: 0.019993491 | G93: 4609 | AA93: 460
A94: 2025-08-12 | B94: 14137 | C94: 168 | D94: =IFERROR(VLOOKUP(C94,التكويد!$A$2:$R$1435,5,0),"") -> دريزل*باين جروف جاكار 3سم | E94: 61.6 | F94: 0.02087427991 | G94: 2951 | AA94: 465
A95: 2025-08-12 | B95: 14137 | C95: 157 | D95: =IFERROR(VLOOKUP(C95,التكويد!$A$2:$R$1435,5,0),"") -> ابيض*هيدرو جاكار 3سم | E95: 80.4 | F95: 0.02203947368 | G95: 3648 | AA95: 470
A96: 2025-08-12 | B96: 14137 | C96: 174 | D96: =IFERROR(VLOOKUP(C96,التكويد!$A$2:$R$1435,5,0),"") -> شاركول جراي*دريزل جاكار 3سم | E96: 43.25 | F96: 0.02202138493 | G96: 1964 | AA96: 475
A97: 2025-08-12 | B97: 14137 | C97: 112 | D97: =IFERROR(VLOOKUP(C97,التكويد!$A$2:$R$1435,5,0),"") -> سكايبلو*فرست جراي جاكار 3سم | E97: 74.25 | F97: 0.02259586123 | G97: 3286 | AA97: 480
A98: 2025-08-12 | B98: 14137 | C98: 108 | D98: =IFERROR(VLOOKUP(C98,التكويد!$A$2:$R$1435,5,0),"") -> ديفابلو*سكايبلو جاكار 3سم | E98: 11.3 | F98: 0.02202729045 | G98: 513 | AA98: 485
A99: 2025-08-12 | B99: 14137 | C99: 156 | D99: =IFERROR(VLOOKUP(C99,التكويد!$A$2:$R$1435,5,0),"") -> ابيض*كافيه جاكار 3سم | E99: 79.7 | F99: 0.0220409292 | G99: 3616 | AA99: 490
A100: 2025-08-12 | B100: 14137 | C100: 167 | D100: =IFERROR(VLOOKUP(C100,التكويد!$A$2:$R$1435,5,0),"") -> دارك جراي*اسود جاكار 3سم | E100: 14 | F100: 0.02201257862 | G100: 636 | AA100: 495
A101: 2025-08-12 | B101: 14137 | C101: 165 | D101: =IFERROR(VLOOKUP(C101,التكويد!$A$2:$R$1435,5,0),"") -> جراي*كحلي جاكار 3سم | E101: 12.55 | F101: 0.02201754386 | G101: 570 | AA101: 500
A102: 2025-08-12 | B102: 14138 | C102: 158 | D102: =IFERROR(VLOOKUP(C102,التكويد!$A$2:$R$1435,5,0),"") -> اسود بارز جاكار 3سم | E102: 90.95 | F102: 0.02102890173 | G102: 4325 | AA102: 505
A103: 2025-08-12 | B103: 14138 | C103: 172 | D103: =IFERROR(VLOOKUP(C103,التكويد!$A$2:$R$1435,5,0),"") -> جراي بارز جاكار 3سم | E103: 80.45 | F103: 0.02029515641 | G103: 3964 | AA103: 510
A104: 2025-08-12 | B104: 14138 | C104: 176 | D104: =IFERROR(VLOOKUP(C104,التكويد!$A$2:$R$1435,5,0),"") -> كحلي *ابيض جاكار 3سم | E104: 13.1 | F104: 0.02106109325 | G104: 622 | AA104: 515
A105: 2025-08-12 | B105: 14138 | C105: 180 | D105: =IFERROR(VLOOKUP(C105,التكويد!$A$2:$R$1435,5,0),"") -> جراي*اسود جاكار 4سم | E105: 56.15 | F105: 0.0251118068 | G105: 2236 | AA105: 520
A106: 2025-08-12 | B106: 14138 | C106: 181 | D106: =IFERROR(VLOOKUP(C106,التكويد!$A$2:$R$1435,5,0),"") -> جراي*ابيض جاكار 4سم | E106: 7 | F106: 0.02302631579 | G106: 304 | AA106: 525
A107: 2025-08-13 | B107: 14149 | C107: 10 | D107: =IFERROR(VLOOKUP(C107,التكويد!$A$2:$R$1435,5,0),"") -> ابيض كروشيه 3.5سم | E107: 119.86 | AA107: 530
A108: 2025-08-13 | B108: 14149 | C108: 6 | D108: =IFERROR(VLOOKUP(C108,التكويد!$A$2:$R$1435,5,0),"") -> ابيض كروشيه 4سم | E108: 433.34 | AA108: 535
A109: 2025-08-13 | B109: 14149 | C109: 35 | D109: =IFERROR(VLOOKUP(C109,التكويد!$A$2:$R$1435,5,0),"") -> ابيض كروشيه 5سم | E109: 212.06 | AA109: 540
A110: 2025-08-13 | B110: 14149 | C110: 35 | D110: =IFERROR(VLOOKUP(C110,التكويد!$A$2:$R$1435,5,0),"") -> ابيض كروشيه 5سم | E110: 221.28 | AA110: 545
A111: 2025-08-13 | B111: 14149 | C111: 8 | D111: =IFERROR(VLOOKUP(C111,التكويد!$A$2:$R$1435,5,0),"") -> ابيض كروشيه 4.5سم | E111: 543.98 | AA111: 550
A112: 2025-08-13 | B112: 14149 | C112: 8 | D112: =IFERROR(VLOOKUP(C112,التكويد!$A$2:$R$1435,5,0),"") -> ابيض كروشيه 4.5سم | E112: 43.32 | AA112: 555
A113: 2025-08-13 | B113: 14149 | C113: 11 | D113: =IFERROR(VLOOKUP(C113,التكويد!$A$2:$R$1435,5,0),"") -> اسود كروشيه 3.5سم | E113: 27.66 | AA113: 560
A114: 2025-08-13 | B114: 14149 | C114: 7 | D114: =IFERROR(VLOOKUP(C114,التكويد!$A$2:$R$1435,5,0),"") -> اسود كروشيه 4سم | E114: 27.66 | AA114: 565
A115: 2025-08-13 | B115: 14150 | C115: 28 | D115: =IFERROR(VLOOKUP(C115,التكويد!$A$2:$R$1435,5,0),"") -> اسود كروشيه 5.5سم | E115: 9.22 | AA115: 570
A116: 2025-08-13 | B116: 14150 | C116: 1 | D116: =IFERROR(VLOOKUP(C116,التكويد!$A$2:$R$1435,5,0),"") -> ابيض كروشيه 3سم | E116: 18.44 | AA116: 575
A117: 2025-08-13 | B117: 14150 | C117: 8 | D117: =IFERROR(VLOOKUP(C117,التكويد!$A$2:$R$1435,5,0),"") -> ابيض كروشيه 4.5سم | E117: 6.66 | AA117: 580
A118: 2025-08-13 | B118: 14150 | C118: 1 | D118: =IFERROR(VLOOKUP(C118,التكويد!$A$2:$R$1435,5,0),"") -> ابيض كروشيه 3سم | E118: 27.66 | AA118: 585
A119: 2025-08-13 | B119: 14150 | C119: 32 | D119: =IFERROR(VLOOKUP(C119,التكويد!$A$2:$R$1435,5,0),"") -> ابيض كروشيه 2.5سم | E119: 82.98 | AA119: 590
A120: 2025-08-13 | B120: 14150 | C120: 10 | D120: =IFERROR(VLOOKUP(C120,التكويد!$A$2:$R$1435,5,0),"") -> ابيض كروشيه 3.5سم | E120: 27.25 | AA120: 595
A121: 2025-08-13 | B121: 14151 | C121: 137 | D121: =IFERROR(VLOOKUP(C121,التكويد!$A$2:$R$1435,5,0),"") -> احمر جاكار 2سم | E121: 282.81 | F121: 0.01100942074 | G121: 25688 | AA121: 600
A122: 2025-08-13 | B122: 14153 | C122: 144 | D122: =IFERROR(VLOOKUP(C122,التكويد!$A$2:$R$1435,5,0),"") -> pinke فستونة 2.5سم | E122: 14.61 | F122: 0.005500753012 | G122: 2656 | AA122: 605
A123: 2025-08-13 | B123: 14154 | C123: 145 | D123: =IFERROR(VLOOKUP(C123,التكويد!$A$2:$R$1435,5,0),"") -> raw تويل تيب قطن 1سم | E123: 3.15 | F123: 0.003701527615 | G123: 851 | AA123: 610
A124: 2025-08-13 | B124: 14155 | C124: 113 | D124: =IFERROR(VLOOKUP(C124,التكويد!$A$2:$R$1435,5,0),"") -> اسود كورد بوليستر 132سم | E124: 24.95 | AA124: 615
A125: 2025-08-13 | B125: 14156 | C125: 132 | D125: =IFERROR(VLOOKUP(C125,التكويد!$A$2:$R$1435,5,0),"") -> BLHL كورد قطن 1.6سم | E125: 21 | F125: 0.01502145923 | G125: 1398 | AA125: 620
A126: 2025-08-13 | B126: 14156 | C126: 62 | D126: =IFERROR(VLOOKUP(C126,التكويد!$A$2:$R$1435,5,0),"") -> اسود كورد بوليستر 5مم | E126: 170 | AA126: 625
A127: 2025-08-13 | B127: 14157 | C127: 126 | D127: =IFERROR(VLOOKUP(C127,التكويد!$A$2:$R$1435,5,0),"") -> ابيض ويفين (510) 2سم | E127: 72.42 | G127: 0 | AA127: 630
A128: 2025-08-13 | B128: 14157 | C128: 128 | D128: =IFERROR(VLOOKUP(C128,التكويد!$A$2:$R$1435,5,0),"") -> ابيض ويفين (510) 4سم | E128: 27.66 | G128: 0 | AA128: 635
A129: 2025-08-13 | B129: 14157 | C129: 129 | D129: =IFERROR(VLOOKUP(C129,التكويد!$A$2:$R$1435,5,0),"") -> اسود ويفين (510) 2سم | E129: 7.64 | G129: 0 | AA129: 640
A130: 2025-08-13 | B130: 14157 | C130: 146 | D130: =IFERROR(VLOOKUP(C130,التكويد!$A$2:$R$1435,5,0),"") -> ابيض ويفين (510) 5سم | E130: 36.88 | F130: =IFERROR(SUM(E130/G130),"") -> 0.0255401662 | G130: 1444 | AA130: 645
A131: 2025-08-13 | B131: 14158 | C131: 130 | D131: =IFERROR(VLOOKUP(C131,التكويد!$A$2:$R$1435,5,0),"") -> ابيض ويفين 4سم | E131: 21 | AA131: 650
A132: 2025-08-13 | B132: 14146 | C132: 112 | D132: =IFERROR(VLOOKUP(C132,التكويد!$A$2:$R$1435,5,0),"") -> سكايبلو*فرست جراي جاكار 3سم | E132: 32 | F132: 0.02202339986 | G132: 1453 | AA132: 655
A133: 2025-08-13 | B133: 14146 | C133: 159 | D133: =IFERROR(VLOOKUP(C133,التكويد!$A$2:$R$1435,5,0),"") -> اسود*ابيض جاكار 3سم | E133: 64 | F133: 0.02209181912 | G133: 2897 | AA133: 660
A134: 2025-08-13 | B134: 14146 | C134: 174 | D134: =IFERROR(VLOOKUP(C134,التكويد!$A$2:$R$1435,5,0),"") -> شاركول جراي*دريزل جاكار 3سم | E134: 59.3 | F134: 0.02153779101 | G134: 2753.3 | AA134: 665
A135: 2025-08-13 | B135: 14146 | C135: 167 | D135: =IFERROR(VLOOKUP(C135,التكويد!$A$2:$R$1435,5,0),"") -> دارك جراي*اسود جاكار 3سم | E135: 33.85 | F135: 0.02202342225 | G135: 1537 | AA135: 670
A136: 2025-08-13 | B136: 14146 | C136: 109 | D136: =IFERROR(VLOOKUP(C136,التكويد!$A$2:$R$1435,5,0),"") -> اسود*كوردفان جاكار 3سم | E136: 65.35 | F136: 0.01999082288 | G136: 3269 | AA136: 675
A137: 2025-08-13 | B137: 14146 | C137: 106 | D137: =IFERROR(VLOOKUP(C137,التكويد!$A$2:$R$1435,5,0),"") -> كافيه*مسطرد جاكار 3سم | E137: 35 | F137: 0.02269779507 | G137: 1542 | AA137: 680
A138: 2025-08-13 | B138: 14146 | C138: 156 | D138: =IFERROR(VLOOKUP(C138,التكويد!$A$2:$R$1435,5,0),"") -> ابيض*كافيه جاكار 3سم | E138: 75 | F138: 0.02209131075 | G138: 3395 | AA138: 685
A139: 2025-08-13 | B139: 14146 | C139: 157 | D139: =IFERROR(VLOOKUP(C139,التكويد!$A$2:$R$1435,5,0),"") -> ابيض*هيدرو جاكار 3سم | E139: 35.7 | F139: 0.02205064855 | G139: 1619 | AA139: 690
A140: 2025-08-13 | B140: 14147 | C140: 165 | D140: =IFERROR(VLOOKUP(C140,التكويد!$A$2:$R$1435,5,0),"") -> جراي*كحلي جاكار 3سم | E140: 78.75 | F140: 0.02198492462 | G140: 3582 | AA140: 695
A141: 2025-08-13 | B141: 14147 | C141: 170 | D141: =IFERROR(VLOOKUP(C141,التكويد!$A$2:$R$1435,5,0),"") -> دريزل*شاركول جراي جاكار 3سم | E141: 21.25 | F141: 0.01931818182 | G141: 1100 | AA141: 700
A142: 2025-08-13 | B142: 14147 | C142: 154 | D142: =IFERROR(VLOOKUP(C142,التكويد!$A$2:$R$1435,5,0),"") -> ابيض*رويال(ابيض*ديفابلو) جاكار 3سم | E142: 32.4 | F142: 0.02204081633 | G142: 1470 | AA142: 705
A143: 2025-08-13 | B143: 14147 | C143: 167 | D143: =IFERROR(VLOOKUP(C143,التكويد!$A$2:$R$1435,5,0),"") -> دارك جراي*اسود جاكار 3سم | E143: 12.3 | F143: 0.01863636364 | G143: 660 | AA143: 710
A144: 2025-08-13 | B144: 14147 | C144: 107 | D144: =IFERROR(VLOOKUP(C144,التكويد!$A$2:$R$1435,5,0),"") -> اسود*زيتي جاكار 3سم | E144: 49.2 | F144: 0.02151289899 | G144: 2287
A145: 2025-08-13 | B145: 14147 | C145: 168 | D145: =IFERROR(VLOOKUP(C145,التكويد!$A$2:$R$1435,5,0),"") -> دريزل*باين جروف جاكار 3سم | E145: 47.35 | F145: 0.02048896582 | G145: 2311
A146: 2025-08-13 | B146: 14147 | C146: 110 | D146: =IFERROR(VLOOKUP(C146,التكويد!$A$2:$R$1435,5,0),"") -> اسود*برونزجرين جاكار 3سم | E146: 43.3 | F146: 0.02074748443 | G146: 2087
A147: 2025-08-13 | B147: 14147 | C147: 176 | D147: =IFERROR(VLOOKUP(C147,التكويد!$A$2:$R$1435,5,0),"") -> كحلي *ابيض جاكار 3سم | E147: 11.4 | F147: 0.02107208872 | G147: 541
A148: 2025-08-13 | B148: 14148 | C148: 158 | D148: =IFERROR(VLOOKUP(C148,التكويد!$A$2:$R$1435,5,0),"") -> اسود بارز جاكار 3سم | E148: 78.1 | F148: 0.02073818375 | G148: 3766
A149: 2025-08-13 | B149: 14148 | C149: 175 | D149: =IFERROR(VLOOKUP(C149,التكويد!$A$2:$R$1435,5,0),"") -> كحلي بارز جاكار 3سم | E149: 68.05 | F149: 0.02168578713 | G149: 3138
A150: 2025-08-13 | B150: 14148 | C150: 172 | D150: =IFERROR(VLOOKUP(C150,التكويد!$A$2:$R$1435,5,0),"") -> جراي بارز جاكار 3سم | E150: 48.95 | F150: 0.01894349845 | G150: 2584
A151: 2025-08-14 | B151: 14160 | C151: 58 | D151: =IFERROR(VLOOKUP(C151,التكويد!$A$2:$R$1435,5,0),"") -> كحلي كورد بوليستر 110سم | E151: 25.15 | F151: 0.01022523988 | G151: 2459.6
A152: 2025-08-14 | B152: 14160 | C152: 148 | D152: =IFERROR(VLOOKUP(C152,التكويد!$A$2:$R$1435,5,0),"") -> كحلي كورد بوليستر 100سم | E152: 17.6 | F152: 0.01040804258 | G152: 1691
A153: 2025-08-14 | B153: 14160 | C153: 149 | D153: =IFERROR(VLOOKUP(C153,التكويد!$A$2:$R$1435,5,0),"") -> جراي كورد بوليستر 110سم | E153: 32.45 | F153: 0.00616767719 | G153: 5261.3
A154: 2025-08-14 | B154: 14160 | C154: 150 | D154: =IFERROR(VLOOKUP(C154,التكويد!$A$2:$R$1435,5,0),"") -> جراي كورد بوليستر 100سم | E154: 0.55 | F154: 0.01170212766 | G154: 47
A155: 2025-08-14 | B155: 14160 | C155: 151 | D155: =IFERROR(VLOOKUP(C155,التكويد!$A$2:$R$1435,5,0),"") -> كحلي كورد بوليستر 130سم | E155: 3.9 | F155: 0.01 | G155: 390
A156: 2025-08-14 | B156: 14161 | C156: 7 | D156: =IFERROR(VLOOKUP(C156,التكويد!$A$2:$R$1435,5,0),"") -> اسود كروشيه 4سم | E156: 304.26 | G156: 0
A157: 2025-08-14 | B157: 14161 | C157: 8 | D157: =IFERROR(VLOOKUP(C157,التكويد!$A$2:$R$1435,5,0),"") -> ابيض كروشيه 4.5سم | E157: 368.8 | G157: 0
A158: 2025-08-14 | B158: 14161 | C158: 35 | D158: =IFERROR(VLOOKUP(C158,التكويد!$A$2:$R$1435,5,0),"") -> ابيض كروشيه 5سم | E158: 184.4 | G158: 0
A159: 2025-08-14 | B159: 14161 | C159: 35 | D159: =IFERROR(VLOOKUP(C159,التكويد!$A$2:$R$1435,5,0),"") -> ابيض كروشيه 5سم | E159: 239.72 | G159: 0
A160: 2025-08-14 | B160: 14161 | C160: 6 | D160: =IFERROR(VLOOKUP(C160,التكويد!$A$2:$R$1435,5,0),"") -> ابيض كروشيه 4سم | E160: 193.62 | G160: 0
A161: 2025-08-14 | B161: 14161 | C161: 11 | D161: =IFERROR(VLOOKUP(C161,التكويد!$A$2:$R$1435,5,0),"") -> اسود كروشيه 3.5سم | E161: 147.52 | G161: 0
A162: 2025-08-14 | B162: 14161 | C162: 39 | D162: =IFERROR(VLOOKUP(C162,التكويد!$A$2:$R$1435,5,0),"") -> اسود كروشيه 5سم | E162: 55.32 | G162: 0
A163: 2025-08-14 | B163: 14162 | C163: 1 | D163: =IFERROR(VLOOKUP(C163,التكويد!$A$2:$R$1435,5,0),"") -> ابيض كروشيه 3سم | E163: 138.3
A164: 2025-08-14 | B164: 14162 | C164: 1 | D164: =IFERROR(VLOOKUP(C164,التكويد!$A$2:$R$1435,5,0),"") -> ابيض كروشيه 3سم | E164: 18.44
A165: 2025-08-14 | B165: 14162 | C165: 9 | D165: =IFERROR(VLOOKUP(C165,التكويد!$A$2:$R$1435,5,0),"") -> اسود كروشيه 4.5سم | E165: 36.88
A166: 2025-08-14 | B166: 14162 | C166: 32 | D166: =IFERROR(VLOOKUP(C166,التكويد!$A$2:$R$1435,5,0),"") -> ابيض كروشيه 2.5سم | E166: 18.44
A167: 2025-08-14 | B167: 14162 | C167: 8 | D167: =IFERROR(VLOOKUP(C167,التكويد!$A$2:$R$1435,5,0),"") -> ابيض كروشيه 4.5سم | E167: 9.22
A168: 2025-08-14 | B168: 14162 | C168: 28 | D168: =IFERROR(VLOOKUP(C168,التكويد!$A$2:$R$1435,5,0),"") -> اسود كروشيه 5.5سم | E168: 27.66
A169: 2025-08-14 | B169: 14163 | C169: 107 | D169: =IFERROR(VLOOKUP(C169,التكويد!$A$2:$R$1435,5,0),"") -> اسود*زيتي جاكار 3سم | E169: 45.1 | F169: 0.02122352941 | G169: 2125
A170: 2025-08-14 | B170: 14163 | C170: 111 | D170: =IFERROR(VLOOKUP(C170,التكويد!$A$2:$R$1435,5,0),"") -> دريزل*اسود جاكار 3سم | E170: 21.95 | F170: 0.02051401869 | G170: 1070
A171: 2025-08-14 | B171: 14163 | C171: 106 | D171: =IFERROR(VLOOKUP(C171,التكويد!$A$2:$R$1435,5,0),"") -> كافيه*مسطرد جاكار 3سم | E171: 8 | F171: 0.02305475504 | G171: 347
A172: 2025-08-14 | B172: 14163 | C172: 157 | D172: =IFERROR(VLOOKUP(C172,التكويد!$A$2:$R$1435,5,0),"") -> ابيض*هيدرو جاكار 3سم | E172: 45.7 | F172: 0.02199230029 | G172: 2078
A173: 2025-08-14 | B173: 14163 | C173: 159 | D173: =IFERROR(VLOOKUP(C173,التكويد!$A$2:$R$1435,5,0),"") -> اسود*ابيض جاكار 3سم | E173: 8 | F173: 0.02209944751 | G173: 362
A174: 2025-08-14 | B174: 14163 | C174: 174 | D174: =IFERROR(VLOOKUP(C174,التكويد!$A$2:$R$1435,5,0),"") -> شاركول جراي*دريزل جاكار 3سم | E174: 17.3 | F174: 0.02203821656 | G174: 785
A175: 2025-08-14 | B175: 14163 | C175: 170 | D175: =IFERROR(VLOOKUP(C175,التكويد!$A$2:$R$1435,5,0),"") -> دريزل*شاركول جراي جاكار 3سم | E175: 58.9 | F175: 0.01953565506 | G175: 3015
A176: 2025-08-14 | B176: 14164 | C176: 168 | D176: =IFERROR(VLOOKUP(C176,التكويد!$A$2:$R$1435,5,0),"") -> دريزل*باين جروف جاكار 3سم | E176: 14 | F176: 0.02052785924 | G176: 682
A177: 2025-08-14 | B177: 14164 | C177: 167 | D177: =IFERROR(VLOOKUP(C177,التكويد!$A$2:$R$1435,5,0),"") -> دارك جراي*اسود جاكار 3سم | E177: 9 | F177: 0.02179176755 | G177: 413
A178: 2025-08-14 | B178: 14164 | C178: 112 | D178: =IFERROR(VLOOKUP(C178,التكويد!$A$2:$R$1435,5,0),"") -> سكايبلو*فرست جراي جاكار 3سم | E178: 23.8 | F178: 0.02201665125 | G178: 1081
A179: 2025-08-14 | B179: 14164 | C179: 165 | D179: =IFERROR(VLOOKUP(C179,التكويد!$A$2:$R$1435,5,0),"") -> جراي*كحلي جاكار 3سم | E179: 29.7 | F179: 0.033 | G179: 900
A180: 2025-08-14 | B180: 14164 | C180: 155 | D180: =IFERROR(VLOOKUP(C180,التكويد!$A$2:$R$1435,5,0),"") -> ابيض*سكاي بلو جاكار 3سم | E180: 31.61 | F180: 0.02235502122 | G180: 1414
A181: 2025-08-14 | B181: 14164 | C181: 176 | D181: =IFERROR(VLOOKUP(C181,التكويد!$A$2:$R$1435,5,0),"") -> كحلي *ابيض جاكار 3سم | E181: 27 | F181: 0.02102803738 | G181: 1284
A182: 2025-08-14 | B182: 14164 | C182: 158 | D182: =IFERROR(VLOOKUP(C182,التكويد!$A$2:$R$1435,5,0),"") -> اسود بارز جاكار 3سم | E182: 14.9 | F182: 0.02104519774 | G182: 708
A183: 2025-08-14 | B183: 14164 | C183: 175 | D183: =IFERROR(VLOOKUP(C183,التكويد!$A$2:$R$1435,5,0),"") -> كحلي بارز جاكار 3سم | E183: 60.15 | F183: 0.02201683748 | G183: 2732
A184: 2025-08-14 | B184: 14165 | C184: 62 | D184: =IFERROR(VLOOKUP(C184,التكويد!$A$2:$R$1435,5,0),"") -> اسود كورد بوليستر 5مم | E184: 50
A185: 2025-08-14 | B185: 14166 | C185: 130 | D185: =IFERROR(VLOOKUP(C185,التكويد!$A$2:$R$1435,5,0),"") -> ابيض ويفين 4سم | E185: 42
A186: 2025-08-16 | B186: 14167 | C186: 182 | D186: =IFERROR(VLOOKUP(C186,التكويد!$A$2:$R$1435,5,0),"") -> ابيض ساندوتش خام 1.5سم | E186: 395
A187: 2025-08-16 | B187: 14167 | C187: 183 | D187: =IFERROR(VLOOKUP(C187,التكويد!$A$2:$R$1435,5,0),"") -> ابيض ويفين خام 1.6سم | E187: 430
A188: 2025-08-16 | B188: 14167 | C188: 184 | D188: =IFERROR(VLOOKUP(C188,التكويد!$A$2:$R$1435,5,0),"") -> ابيض ساندوتش خام 2سم | E188: 75
A189: 2025-08-16 | B189: 14169 | C189: 154 | D189: =IFERROR(VLOOKUP(C189,التكويد!$A$2:$R$1435,5,0),"") -> ابيض*رويال(ابيض*ديفابلو) جاكار 3سم | E189: 11.3 | F189: 0.002217425432 | G189: 5096
A190: 2025-08-16 | B190: 14169 | C190: 155 | D190: =IFERROR(VLOOKUP(C190,التكويد!$A$2:$R$1435,5,0),"") -> ابيض*سكاي بلو جاكار 3سم | E190: 104.15 | F190: 0.02105742014 | G190: 4946
A191: 2025-08-16 | B191: 14169 | C191: 156 | D191: =IFERROR(VLOOKUP(C191,التكويد!$A$2:$R$1435,5,0),"") -> ابيض*كافيه جاكار 3سم | E191: 129.7 | F191: 0.02217473072 | G191: 5849
A192: 2025-08-16 | B192: 14169 | C192: 165 | D192: =IFERROR(VLOOKUP(C192,التكويد!$A$2:$R$1435,5,0),"") -> جراي*كحلي جاكار 3سم | E192: 52.6 | F192: 0.02177152318 | G192: 2416
A193: 2025-08-16 | B193: 14169 | C193: 110 | D193: =IFERROR(VLOOKUP(C193,التكويد!$A$2:$R$1435,5,0),"") -> اسود*برونزجرين جاكار 3سم | E193: 143.7 | F193: 0.02104261239 | G193: 6829
A194: 2025-08-16 | B194: 14169 | C194: 167 | D194: =IFERROR(VLOOKUP(C194,التكويد!$A$2:$R$1435,5,0),"") -> دارك جراي*اسود جاكار 3سم | E194: 21 | F194: =IFERROR(SUM(E194/G194),"") -> 0.02201257862 | G194: 954
A195: 2025-08-16 | B195: 14169 | C195: 186 | D195: =IFERROR(VLOOKUP(C195,التكويد!$A$2:$R$1435,5,0),"") -> اسود*مسطرد جاكار 3سم | E195: 8 | F195: 0.02253521127 | G195: 355
A196: 2025-08-16 | B196: 14170 | C196: 159 | D196: =IFERROR(VLOOKUP(C196,التكويد!$A$2:$R$1435,5,0),"") -> اسود*ابيض جاكار 3سم | E196: 162.65 | F196: 0.02210819628 | G196: 7357
A197: 2025-08-16 | B197: 14170 | C197: 157 | D197: =IFERROR(VLOOKUP(C197,التكويد!$A$2:$R$1435,5,0),"") -> ابيض*هيدرو جاكار 3سم | E197: 84.2 | F197: 0.02208234986 | G197: 3813
A198: 2025-08-16 | B198: 14170 | C198: 171 | D198: =IFERROR(VLOOKUP(C198,التكويد!$A$2:$R$1435,5,0),"") -> دريزل*هيدرو جاكار 3سم | E198: 56.5 | F198: 0.01955017301 | G198: 2890
A199: 2025-08-16 | B199: 14170 | C199: 109 | D199: =IFERROR(VLOOKUP(C199,التكويد!$A$2:$R$1435,5,0),"") -> اسود*كوردفان جاكار 3سم | E199: 125.1 | F199: 0.01999360716 | G199: 6257
A200: 2025-08-16 | B200: 14170 | C200: 168 | D200: =IFERROR(VLOOKUP(C200,التكويد!$A$2:$R$1435,5,0),"") -> دريزل*باين جروف جاكار 3سم | E200: 88.15 | F200: 0.02053342651 | G200: 4293
... 5653 more rows

Sheet المنصرف
A1: التاريخ | B1: أذن الصرف | C1: الكود | D1: اللون | E1: الكمية بالكيلو | F1: وزن المتر بالكيلو | G1: الكمية بالامتار | H1: الكمية بالقطع | I1: العميل | J1: b
A2: 2025-08-06 | B2: 17458 | C2: 181 | D2: =IFERROR(VLOOKUP(C2,التكويد!$A$2:$R$1435,5,0),"") -> جراي*ابيض جاكار 4سم | E2: 49 | F2: =IFERROR(SUM(E2/G2),"") -> 0.02302631579 | G2: 2128
A3: 2025-08-06 | B3: 17458 | C3: 180 | D3: =IFERROR(VLOOKUP(C3,التكويد!$A$2:$R$1435,5,0),"") -> جراي*اسود جاكار 4سم | E3: 49 | F3: 0.02405498282 | G3: 2037
A4: 2025-08-07 | B4: 17478 | C4: 179 | D4: =IFERROR(VLOOKUP(C4,التكويد!$A$2:$R$1435,5,0),"") -> دارك جراي*ابيض جاكار 4سم | E4: 3.5 | F4: 0.02302631579 | G4: 152
A5: 2025-08-07 | B5: 17478 | C5: 178 | D5: =IFERROR(VLOOKUP(C5,التكويد!$A$2:$R$1435,5,0),"") -> دارك جراي*اسود جاكار 4سم | E5: 10.42 | F5: 0.02400921659 | G5: 434
A6: 2025-08-11 | B6: 17501 | C6: 40 | D6: =IFERROR(VLOOKUP(C6,التكويد!$A$2:$R$1435,5,0),"") -> ابيض كروشيه 2سم | E6: 38.2
A7: 2025-08-11 | B7: 17501 | C7: 10 | D7: =IFERROR(VLOOKUP(C7,التكويد!$A$2:$R$1435,5,0),"") -> ابيض كروشيه 3.5سم | E7: 580.86
A8: 2025-08-11 | B8: 17501 | C8: 6 | D8: =IFERROR(VLOOKUP(C8,التكويد!$A$2:$R$1435,5,0),"") -> ابيض كروشيه 4سم | E8: 221.28
A9: 2025-08-11 | B9: 17501 | C9: 35 | D9: =IFERROR(VLOOKUP(C9,التكويد!$A$2:$R$1435,5,0),"") -> ابيض كروشيه 5سم | E9: 922
A10: 2025-08-11 | B10: 17502 | C10: 8 | D10: =IFERROR(VLOOKUP(C10,التكويد!$A$2:$R$1435,5,0),"") -> ابيض كروشيه 4.5سم | E10: 119.86
A11: 2025-08-11 | B11: 17502 | C11: 6 | D11: =IFERROR(VLOOKUP(C11,التكويد!$A$2:$R$1435,5,0),"") -> ابيض كروشيه 4سم | E11: 322.7
A12: 2025-08-11 | B12: 17502 | C12: 35 | D12: =IFERROR(VLOOKUP(C12,التكويد!$A$2:$R$1435,5,0),"") -> ابيض كروشيه 5سم | E12: 585.57
A13: 2025-08-11 | B13: 17503 | C13: 105 | D13: =IFERROR(VLOOKUP(C13,التكويد!$A$2:$R$1435,5,0),"") -> دارك جراي كورد بوليستر 120سم | E13: 65.55
A14: 2025-08-11 | B14: 17503 | C14: 58 | D14: =IFERROR(VLOOKUP(C14,التكويد!$A$2:$R$1435,5,0),"") -> كحلي كورد بوليستر 110سم | E14: 8.21
A15: 2025-08-11 | B15: 17504 | C15: 85 | D15: =IFERROR(VLOOKUP(C15,التكويد!$A$2:$R$1435,5,0),"") -> ابيض ساندوتش 1.5سم | E15: 142.25
A16: 2025-08-11 | B16: 17505 | C16: 10 | D16: =IFERROR(VLOOKUP(C16,التكويد!$A$2:$R$1435,5,0),"") -> ابيض كروشيه 3.5سم | E16: 180.72
A17: 2025-08-11 | B17: 17508 | C17: 118 | D17: =IFERROR(VLOOKUP(C17,التكويد!$A$2:$R$1435,5,0),"") -> raw كورد قطن 1.1سم | E17: 10
A18: 2025-08-11 | B18: 17509 | C18: 8 | D18: =IFERROR(VLOOKUP(C18,التكويد!$A$2:$R$1435,5,0),"") -> ابيض كروشيه 4.5سم | E18: 378.02
A19: 2025-08-11 | B19: 17510 | C19: 11 | D19: =IFERROR(VLOOKUP(C19,التكويد!$A$2:$R$1435,5,0),"") -> اسود كروشيه 3.5سم | E19: 82.98
A20: 2025-08-11 | B20: 17511 | C20: 113 | D20: =IFERROR(VLOOKUP(C20,التكويد!$A$2:$R$1435,5,0),"") -> اسود كورد بوليستر 132سم | E20: 25.6
A21: 2025-08-11 | B21: 17512 | C21: 119 | D21: =IFERROR(VLOOKUP(C21,التكويد!$A$2:$R$1435,5,0),"") -> بني تيب بوليستر 1سم | E21: 15
A22: 2025-08-11 | B22: 17513 | C22: 120 | D22: =IFERROR(VLOOKUP(C22,التكويد!$A$2:$R$1435,5,0),"") -> دارك جراي كورد قطن 94سم | E22: 3.56
A23: 2025-08-11 | B23: 17513 | C23: 121 | D23: =IFERROR(VLOOKUP(C23,التكويد!$A$2:$R$1435,5,0),"") -> كحلي كورد قطن 103سم | E23: 3.46
A24: 2025-08-11 | B24: 17513 | C24: 122 | D24: =IFERROR(VLOOKUP(C24,التكويد!$A$2:$R$1435,5,0),"") -> كحلي كورد قطن 101سم | E24: 2.95
A25: 2025-08-11 | B25: 17513 | C25: 123 | D25: =IFERROR(VLOOKUP(C25,التكويد!$A$2:$R$1435,5,0),"") -> كحلي كورد قطن 98سم | E25: 1.7
A26: 2025-08-11 | B26: 17513 | C26: 124 | D26: =IFERROR(VLOOKUP(C26,التكويد!$A$2:$R$1435,5,0),"") -> كحلي كورد قطن 96سم | E26: 0.8
A27: 2025-08-11 | B27: 17513 | C27: 125 | D27: =IFERROR(VLOOKUP(C27,التكويد!$A$2:$R$1435,5,0),"") -> دارك جراي كورد قطن 92سم | E27: 7.69
A28: 2025-08-11 | B28: 17514 | C28: 126 | D28: =IFERROR(VLOOKUP(C28,التكويد!$A$2:$R$1435,5,0),"") -> ابيض ويفين (510) 2سم | E28: 61.12
A29: 2025-08-11 | B29: 17514 | C29: 127 | D29: =IFERROR(VLOOKUP(C29,التكويد!$A$2:$R$1435,5,0),"") -> اسود ويفين (510) 4.5سم | E29: 9.22
A30: 2025-08-11 | B30: 17514 | C30: 128 | D30: =IFERROR(VLOOKUP(C30,التكويد!$A$2:$R$1435,5,0),"") -> ابيض ويفين (510) 4سم | E30: 35.87
A31: 2025-08-11 | B31: 17514 | C31: 129 | D31: =IFERROR(VLOOKUP(C31,التكويد!$A$2:$R$1435,5,0),"") -> اسود ويفين (510) 2سم | E31: 13.91
A32: 2025-08-11 | B32: 17515 | C32: 115 | D32: =IFERROR(VLOOKUP(C32,التكويد!$A$2:$R$1435,5,0),"") -> 19-4033 ساندوتش 1.5سم | E32: 41.6
A33: 2025-08-11 | B33: 17515 | C33: 116 | D33: =IFERROR(VLOOKUP(C33,التكويد!$A$2:$R$1435,5,0),"") -> 19-4033 ويفين 1.6سم | E33: 69.16
A34: 2025-08-11 | B34: 17515 | C34: 117 | D34: =IFERROR(VLOOKUP(C34,التكويد!$A$2:$R$1435,5,0),"") -> 15-6313 ساندوتش 1.5سم | E34: 41.72
A35: 2025-08-11 | B35: 17506 | C35: 180 | D35: =IFERROR(VLOOKUP(C35,التكويد!$A$2:$R$1435,5,0),"") -> جراي*اسود جاكار 4سم | E35: 35 | F35: 0.02405498282 | G35: 1455
A36: 2025-08-11 | B36: 17506 | C36: 181 | D36: =IFERROR(VLOOKUP(C36,التكويد!$A$2:$R$1435,5,0),"") -> جراي*ابيض جاكار 4سم | E36: 14 | F36: 0.02302631579 | G36: 608
A37: 2025-08-11 | B37: 17507 | C37: 154 | D37: =IFERROR(VLOOKUP(C37,التكويد!$A$2:$R$1435,5,0),"") -> ابيض*رويال(ابيض*ديفابلو) جاكار 3سم | E37: 176 | F37: 0.02203856749 | G37: 7986
A38: 2025-08-11 | B38: 17507 | C38: 169 | D38: =IFERROR(VLOOKUP(C38,التكويد!$A$2:$R$1435,5,0),"") -> دريزل*بترول بلو جاكار 3سم | E38: 175 | F38: 0.02201257862 | G38: 7950
A39: 2025-08-11 | B39: 17507 | C39: 171 | D39: =IFERROR(VLOOKUP(C39,التكويد!$A$2:$R$1435,5,0),"") -> دريزل*هيدرو جاكار 3سم | E39: 175 | F39: 0.02201257862 | G39: 7950
A40: 2025-08-11 | B40: 17507 | C40: 107 | D40: =IFERROR(VLOOKUP(C40,التكويد!$A$2:$R$1435,5,0),"") -> اسود*زيتي جاكار 3سم | E40: 176 | F40: 0.02150537634 | G40: 8184
A41: 2025-08-11 | B41: 17507 | C41: 155 | D41: =IFERROR(VLOOKUP(C41,التكويد!$A$2:$R$1435,5,0),"") -> ابيض*سكاي بلو جاكار 3سم | E41: 176 | F41: 0.02105263158 | G41: 8360
A42: 2025-08-11 | B42: 17516 | C42: 158 | D42: =IFERROR(VLOOKUP(C42,التكويد!$A$2:$R$1435,5,0),"") -> اسود بارز جاكار 3سم | E42: 469 | F42: 0.02102102102 | G42: 22311
A43: 2025-08-11 | B43: 17516 | C43: 172 | D43: =IFERROR(VLOOKUP(C43,التكويد!$A$2:$R$1435,5,0),"") -> جراي بارز جاكار 3سم | E43: 189 | F43: 0.02052785924 | G43: 9207
A44: 2025-08-11 | B44: 17516 | C44: 175 | D44: =IFERROR(VLOOKUP(C44,التكويد!$A$2:$R$1435,5,0),"") -> كحلي بارز جاكار 3سم | E44: 112 | F44: 0.02173913043 | G44: 5152
A45: 2025-08-11 | B45: 17516 | C45: 176 | D45: =IFERROR(VLOOKUP(C45,التكويد!$A$2:$R$1435,5,0),"") -> كحلي *ابيض جاكار 3سم | E45: 72 | F45: 0.02105263158 | G45: 3420
A46: 2025-08-11 | B46: 17516 | C46: 166 | D46: =IFERROR(VLOOKUP(C46,التكويد!$A$2:$R$1435,5,0),"") -> دارك جراي*ابيض جاكار 3سم | E46: 42 | F46: 0.02052785924 | G46: 2046
A47: 2025-08-12 | B47: 17517 | C47: 126 | D47: =IFERROR(VLOOKUP(C47,التكويد!$A$2:$R$1435,5,0),"") -> ابيض ويفين (510) 2سم | E47: 122.24
A48: 2025-08-12 | B48: 17517 | C48: 133 | D48: =IFERROR(VLOOKUP(C48,التكويد!$A$2:$R$1435,5,0),"") -> ابيض ويفين (510) 3سم | E48: 37.27
A49: 2025-08-12 | B49: 17517 | C49: 134 | D49: =IFERROR(VLOOKUP(C49,التكويد!$A$2:$R$1435,5,0),"") -> ابيض ويفين (510) 1.5سم | E49: 18.66
A50: 2025-08-12 | B50: 17517 | C50: 129 | D50: =IFERROR(VLOOKUP(C50,التكويد!$A$2:$R$1435,5,0),"") -> اسود ويفين (510) 2سم | E50: 19.14
A51: 2025-08-12 | B51: 17518 | C51: 7 | D51: =IFERROR(VLOOKUP(C51,التكويد!$A$2:$R$1435,5,0),"") -> اسود كروشيه 4سم | E51: 553.2
A52: 2025-08-12 | B52: 17519 | C52: 23 | D52: =IFERROR(VLOOKUP(C52,التكويد!$A$2:$R$1435,5,0),"") -> اسود كروشيه 3سم | E52: 81.73
A53: 2025-08-12 | B53: 17519 | C53: 1 | D53: =IFERROR(VLOOKUP(C53,التكويد!$A$2:$R$1435,5,0),"") -> ابيض كروشيه 3سم | E53: 252.29
A54: 2025-08-12 | B54: 17521 | C54: 32 | D54: =IFERROR(VLOOKUP(C54,التكويد!$A$2:$R$1435,5,0),"") -> ابيض كروشيه 2.5سم | E54: 55.32
A55: 2025-08-12 | B55: 17521 | C55: 36 | D55: =IFERROR(VLOOKUP(C55,التكويد!$A$2:$R$1435,5,0),"") -> اسود كروشيه 2.5سم | E55: 202.84
A56: 2025-08-12 | B56: 17521 | C56: 28 | D56: =IFERROR(VLOOKUP(C56,التكويد!$A$2:$R$1435,5,0),"") -> اسود كروشيه 5.5سم | E56: 175.18
A57: 2025-08-12 | B57: 17521 | C57: 6 | D57: =IFERROR(VLOOKUP(C57,التكويد!$A$2:$R$1435,5,0),"") -> ابيض كروشيه 4سم | E57: 396.46
A58: 2025-08-12 | B58: 17521 | C58: 13 | D58: =IFERROR(VLOOKUP(C58,التكويد!$A$2:$R$1435,5,0),"") -> ابيض كروشيه 5مم | E58: 64.73
A59: 2025-08-12 | B59: 17521 | C59: 32 | D59: =IFERROR(VLOOKUP(C59,التكويد!$A$2:$R$1435,5,0),"") -> ابيض كروشيه 2.5سم | E59: 18.44
A60: 2025-08-12 | B60: 17522 | C60: 51 | D60: =IFERROR(VLOOKUP(C60,التكويد!$A$2:$R$1435,5,0),"") -> كورد قطن مبروم بواقي | E60: 25.45
A61: 2025-08-12 | B61: 17523 | C61: 128 | D61: =IFERROR(VLOOKUP(C61,التكويد!$A$2:$R$1435,5,0),"") -> ابيض ويفين (510) 4سم | E61: 27.2
A62: 2025-08-12 | B62: 17523 | C62: 126 | D62: =IFERROR(VLOOKUP(C62,التكويد!$A$2:$R$1435,5,0),"") -> ابيض ويفين (510) 2سم | E62: 77.92
A63: 2025-08-12 | B63: 17523 | C63: 129 | D63: =IFERROR(VLOOKUP(C63,التكويد!$A$2:$R$1435,5,0),"") -> اسود ويفين (510) 2سم | E63: 13.27
A64: 2025-08-12 | B64: 17524 | C64: 10 | D64: =IFERROR(VLOOKUP(C64,التكويد!$A$2:$R$1435,5,0),"") -> ابيض كروشيه 3.5سم | E64: 27.66
A65: 2025-08-12 | B65: 17524 | C65: 9 | D65: =IFERROR(VLOOKUP(C65,التكويد!$A$2:$R$1435,5,0),"") -> اسود كروشيه 4.5سم | E65: 11.31
A66: 2025-08-12 | B66: 17525 | C66: 119 | D66: =IFERROR(VLOOKUP(C66,التكويد!$A$2:$R$1435,5,0),"") -> بني تيب بوليستر 1سم | E66: 7.81 | F66: =IFERROR(SUM(E66/G66),"") -> 
A67: 2025-08-12 | B67: 17526 | C67: 136 | D67: =IFERROR(VLOOKUP(C67,التكويد!$A$2:$R$1435,5,0),"") -> putty كورد قطن 96سم | E67: 1.9
A68: 2025-08-12 | B68: 17526 | C68: 135 | D68: =IFERROR(VLOOKUP(C68,التكويد!$A$2:$R$1435,5,0),"") -> جراي كورد قطن 87سم | E68: 4.45
A69: 2025-08-12 | B69: 17526 | C69: 125 | D69: =IFERROR(VLOOKUP(C69,التكويد!$A$2:$R$1435,5,0),"") -> دارك جراي كورد قطن 92سم | E69: 5.46
A70: 2025-08-12 | B70: 17527 | C70: 8 | D70: =IFERROR(VLOOKUP(C70,التكويد!$A$2:$R$1435,5,0),"") -> ابيض كروشيه 4.5سم | E70: 248.94
A71: 2025-08-12 | B71: 17528 | C71: 11 | D71: =IFERROR(VLOOKUP(C71,التكويد!$A$2:$R$1435,5,0),"") -> اسود كروشيه 3.5سم | E71: 175.18
A72: 2025-08-12 | B72: 17529 | C72: 132 | D72: =IFERROR(VLOOKUP(C72,التكويد!$A$2:$R$1435,5,0),"") -> BLHL كورد قطن 1.6سم | E72: 35
A73: 2025-08-12 | B73: 17530 | C73: 113 | D73: =IFERROR(VLOOKUP(C73,التكويد!$A$2:$R$1435,5,0),"") -> اسود كورد بوليستر 132سم | E73: 25.8
A74: 2025-08-12 | B74: 17520 | C74: 181 | D74: =IFERROR(VLOOKUP(C74,التكويد!$A$2:$R$1435,5,0),"") -> جراي*ابيض جاكار 4سم | E74: 77.7 | F74: 0.02302904564 | G74: 3374
A75: 2025-08-12 | B75: 17520 | C75: 180 | D75: =IFERROR(VLOOKUP(C75,التكويد!$A$2:$R$1435,5,0),"") -> جراي*اسود جاكار 4سم | E75: 59.8 | F75: 0.02401606426 | G75: 2490
A76: 2025-08-13 | B76: 17531 | C76: 23 | D76: =IFERROR(VLOOKUP(C76,التكويد!$A$2:$R$1435,5,0),"") -> اسود كروشيه 3سم | E76: 82.98
A77: 2025-08-13 | B77: 17531 | C77: 1 | D77: =IFERROR(VLOOKUP(C77,التكويد!$A$2:$R$1435,5,0),"") -> ابيض كروشيه 3سم | E77: 119.86
A78: 2025-08-13 | B78: 17532 | C78: 137 | D78: =IFERROR(VLOOKUP(C78,التكويد!$A$2:$R$1435,5,0),"") -> احمر جاكار 2سم | E78: 282.81 | F78: 0.01100942074 | G78: 25688
A79: 2025-08-13 | B79: 17533 | C79: 138 | D79: =IFERROR(VLOOKUP(C79,التكويد!$A$2:$R$1435,5,0),"") -> احمر ساندوتش 1.5سم | E79: 19.7 | F79: 0.003500007107 | G79: 5628.56
A80: 2025-08-13 | B80: 17534 | C80: 144 | D80: =IFERROR(VLOOKUP(C80,التكويد!$A$2:$R$1435,5,0),"") -> pinke فستونة 2.5سم | E80: 14.61 | F80: 0.005500753012 | G80: 2656
A81: 2025-08-13 | B81: 17535 | C81: 145 | D81: =IFERROR(VLOOKUP(C81,التكويد!$A$2:$R$1435,5,0),"") -> raw تويل تيب قطن 1سم | E81: 3.15 | F81: 0.003701527615 | G81: 851
A82: 2025-08-13 | B82: 17536 | C82: 139 | D82: =IFERROR(VLOOKUP(C82,التكويد!$A$2:$R$1435,5,0),"") -> ابيض ويفين 1.6سم | E82: 42 | F82: 0.008300017983 | G82: 5060.23
A83: 2025-08-13 | B83: 17536 | C83: 140 | D83: =IFERROR(VLOOKUP(C83,التكويد!$A$2:$R$1435,5,0),"") -> 11-0104 ويفين 1.6سم | E83: 40.06 | F83: 0.008 | G83: 5007.5
A84: 2025-08-13 | B84: 17536 | C84: 141 | D84: =IFERROR(VLOOKUP(C84,التكويد!$A$2:$R$1435,5,0),"") -> 13-6008 ويفين 1.6سم | E84: 60 | F84: 0.008500028333 | G84: 7058.8
A85: 2025-08-13 | B85: 17536 | C85: 142 | D85: =IFERROR(VLOOKUP(C85,التكويد!$A$2:$R$1435,5,0),"") -> اسود ساندوتش 1.5سم | E85: 15 | F85: 0.003000012 | G85: 4999.98
A86: 2025-08-13 | B86: 17536 | C86: 87 | D86: =IFERROR(VLOOKUP(C86,التكويد!$A$2:$R$1435,5,0),"") -> اسود ويفين 1.6سم | E86: 35.08
A87: 2025-08-13 | B87: 17536 | C87: 143 | D87: =IFERROR(VLOOKUP(C87,التكويد!$A$2:$R$1435,5,0),"") -> 19-3810 ساندوتش 1.5سم | E87: 29.6 | F87: 0.003000002027 | G87: 9866.66
A88: 2025-08-13 | B88: 17537 | C88: 158 | D88: =IFERROR(VLOOKUP(C88,التكويد!$A$2:$R$1435,5,0),"") -> اسود بارز جاكار 3سم | E88: 121.25 | F88: 0.02102479625 | G88: 5767
A89: 2025-08-13 | B89: 17537 | C89: 166 | D89: =IFERROR(VLOOKUP(C89,التكويد!$A$2:$R$1435,5,0),"") -> دارك جراي*ابيض جاكار 3سم | E89: 7 | F89: 0.02052785924 | G89: 341
A90: 2025-08-13 | B90: 17537 | C90: 176 | D90: =IFERROR(VLOOKUP(C90,التكويد!$A$2:$R$1435,5,0),"") -> كحلي *ابيض جاكار 3سم | E90: 16 | F90: 0.02105263158 | G90: 760
A91: 2025-08-13 | B91: 17537 | C91: 158 | D91: =IFERROR(VLOOKUP(C91,التكويد!$A$2:$R$1435,5,0),"") -> اسود بارز جاكار 3سم | E91: 14 | F91: 0.02102102102 | G91: 666
A92: 2025-08-13 | B92: 17537 | C92: 176 | D92: =IFERROR(VLOOKUP(C92,التكويد!$A$2:$R$1435,5,0),"") -> كحلي *ابيض جاكار 3سم | E92: 27.05 | F92: 0.02105058366 | G92: 1285
A93: 2025-08-13 | B93: 17538 | C93: 8 | D93: =IFERROR(VLOOKUP(C93,التكويد!$A$2:$R$1435,5,0),"") -> ابيض كروشيه 4.5سم | E93: 507.1
A94: 2025-08-13 | B94: 17538 | C94: 9 | D94: =IFERROR(VLOOKUP(C94,التكويد!$A$2:$R$1435,5,0),"") -> اسود كروشيه 4.5سم | E94: 101.42
A95: 2025-08-13 | B95: 17539 | C95: 113 | D95: =IFERROR(VLOOKUP(C95,التكويد!$A$2:$R$1435,5,0),"") -> اسود كورد بوليستر 132سم | E95: 24.95
A96: 2025-08-13 | B96: 17540 | C96: 132 | D96: =IFERROR(VLOOKUP(C96,التكويد!$A$2:$R$1435,5,0),"") -> BLHL كورد قطن 1.6سم | E96: 21 | F96: 0.01502145923 | G96: 1398
A97: 2025-08-13 | B97: 17541 | C97: 11 | D97: =IFERROR(VLOOKUP(C97,التكويد!$A$2:$R$1435,5,0),"") -> اسود كروشيه 3.5سم | E97: 27.66
A98: 2025-08-13 | B98: 17542 | C98: 126 | D98: =IFERROR(VLOOKUP(C98,التكويد!$A$2:$R$1435,5,0),"") -> ابيض ويفين (510) 2سم | E98: 72.42
A99: 2025-08-13 | B99: 17542 | C99: 128 | D99: =IFERROR(VLOOKUP(C99,التكويد!$A$2:$R$1435,5,0),"") -> ابيض ويفين (510) 4سم | E99: 27.66
A100: 2025-08-13 | B100: 17542 | C100: 129 | D100: =IFERROR(VLOOKUP(C100,التكويد!$A$2:$R$1435,5,0),"") -> اسود ويفين (510) 2سم | E100: 7.64
A101: 2025-08-13 | B101: 17543 | C101: 1 | D101: =IFERROR(VLOOKUP(C101,التكويد!$A$2:$R$1435,5,0),"") -> ابيض كروشيه 3سم | E101: 107.5
A102: 2025-08-13 | B102: 17544 | C102: 10 | D102: =IFERROR(VLOOKUP(C102,التكويد!$A$2:$R$1435,5,0),"") -> ابيض كروشيه 3.5سم | E102: 18.44
A103: 2025-08-14 | B103: 17545 | C103: 58 | D103: =IFERROR(VLOOKUP(C103,التكويد!$A$2:$R$1435,5,0),"") -> كحلي كورد بوليستر 110سم | E103: 25.15 | F103: 0.01022523988 | G103: 2459.6
A104: 2025-08-14 | B104: 17545 | C104: 148 | D104: =IFERROR(VLOOKUP(C104,التكويد!$A$2:$R$1435,5,0),"") -> كحلي كورد بوليستر 100سم | E104: 17.6 | F104: 0.01040804258 | G104: 1691
A105: 2025-08-14 | B105: 17545 | C105: 149 | D105: =IFERROR(VLOOKUP(C105,التكويد!$A$2:$R$1435,5,0),"") -> جراي كورد بوليستر 110سم | E105: 32.45 | F105: 0.00616767719 | G105: 5261.3
A106: 2025-08-14 | B106: 17545 | C106: 150 | D106: =IFERROR(VLOOKUP(C106,التكويد!$A$2:$R$1435,5,0),"") -> جراي كورد بوليستر 100سم | E106: 0.55 | F106: 0.01170212766 | G106: 47
A107: 2025-08-14 | B107: 17545 | C107: 151 | D107: =IFERROR(VLOOKUP(C107,التكويد!$A$2:$R$1435,5,0),"") -> كحلي كورد بوليستر 130سم | E107: 3.9 | F107: 0.01 | G107: 390
A108: 2025-08-14 | B108: 17546 | C108: 35 | D108: =IFERROR(VLOOKUP(C108,التكويد!$A$2:$R$1435,5,0),"") -> ابيض كروشيه 5سم | E108: 636.62
A109: 2025-08-14 | B109: 17546 | C109: 8 | D109: =IFERROR(VLOOKUP(C109,التكويد!$A$2:$R$1435,5,0),"") -> ابيض كروشيه 4.5سم | E109: 163.4
A110: 2025-08-14 | B110: 17546 | C110: 6 | D110: =IFERROR(VLOOKUP(C110,التكويد!$A$2:$R$1435,5,0),"") -> ابيض كروشيه 4سم | E110: 24.11
A111: 2025-08-14 | B111: 17547 | C111: 256 | D111: =IFERROR(VLOOKUP(C111,التكويد!$A$2:$R$1435,5,0),"") -> جولد*اسود جاكار 5سم | E111: 103.66 | F111: 0.03366677493 | G111: 3079
A112: 2025-08-14 | B112: 17547 | C112: 257 | D112: =IFERROR(VLOOKUP(C112,التكويد!$A$2:$R$1435,5,0),"") -> سيلفر*اسود جاكار 5سم | E112: 11.16 | F112: 0.033115727 | G112: 337
A113: 2025-08-16 | B113: 17548 | C113: 187 | D113: =IFERROR(VLOOKUP(C113,التكويد!$A$2:$R$1435,5,0),"") -> اسود تيب بوليستر 1سم | E113: 40 | F113: 0.00350140056 | G113: 11424
A114: 2025-08-16 | B114: 17549 | C114: 190 | D114: =IFERROR(VLOOKUP(C114,التكويد!$A$2:$R$1435,5,0),"") -> ابيض بايبنج 3مم | E114: 16.83 | F114: 0.002005959476 | G114: 8390
A115: 2025-08-16 | B115: 17549 | C115: 190 | D115: =IFERROR(VLOOKUP(C115,التكويد!$A$2:$R$1435,5,0),"") -> ابيض بايبنج 3مم | E115: 12.63 | F115: 0.001931192661 | G115: 6540
A116: 2025-08-16 | B116: 17550 | C116: 258 | D116: =IFERROR(VLOOKUP(C116,التكويد!$A$2:$R$1435,5,0),"") -> احمر كورد قطن 1سم | E116: 32.4 | F116: 0.0075 | G116: 4320
A117: 2025-08-16 | B117: 17551 | C117: 175 | D117: =IFERROR(VLOOKUP(C117,التكويد!$A$2:$R$1435,5,0),"") -> كحلي بارز جاكار 3سم | E117: 131.9 | F117: 0.02172981878 | G117: 6070
A118: 2025-08-16 | B118: 17551 | C118: 172 | D118: =IFERROR(VLOOKUP(C118,التكويد!$A$2:$R$1435,5,0),"") -> جراي بارز جاكار 3سم | E118: 376.6 | F118: 0.0204673913 | G118: 18400
A119: 2025-08-16 | B119: 17552 | C119: 169 | D119: =IFERROR(VLOOKUP(C119,التكويد!$A$2:$R$1435,5,0),"") -> دريزل*بترول بلو جاكار 3سم | E119: 315 | F119: 0.02201257862 | G119: 14310
A120: 2025-08-16 | B120: 17552 | C120: 170 | D120: =IFERROR(VLOOKUP(C120,التكويد!$A$2:$R$1435,5,0),"") -> دريزل*شاركول جراي جاكار 3سم | E120: 139.51 | F120: 0.019555649 | G120: 7134
A121: 2025-08-16 | B121: 17553 | C121: 10 | D121: =IFERROR(VLOOKUP(C121,التكويد!$A$2:$R$1435,5,0),"") -> ابيض كروشيه 3.5سم | E121: 55.32
A122: 2025-08-16 | B122: 17554 | C122: 170 | D122: =IFERROR(VLOOKUP(C122,التكويد!$A$2:$R$1435,5,0),"") -> دريزل*شاركول جراي جاكار 3سم | E122: 560 | F122: 0.01955307263 | G122: 28640
A123: 2025-08-16 | B123: 17554 | C123: 107 | D123: =IFERROR(VLOOKUP(C123,التكويد!$A$2:$R$1435,5,0),"") -> اسود*زيتي جاكار 3سم | E123: 336 | F123: 0.02150537634 | G123: 15624
A124: 2025-08-16 | B124: 17555 | C124: 169 | D124: =IFERROR(VLOOKUP(C124,التكويد!$A$2:$R$1435,5,0),"") -> دريزل*بترول بلو جاكار 3سم | E124: 34.09 | F124: 0.0158043579 | G124: 2157
A125: 2025-08-16 | B125: 17556 | C125: 188 | D125: =IFERROR(VLOOKUP(C125,التكويد!$A$2:$R$1435,5,0),"") -> بيج ويفين تيب 1.2سم | E125: 94.6 | F125: 0.007506744961 | G125: 12602
A126: 2025-08-16 | B126: 17556 | C126: 189 | D126: =IFERROR(VLOOKUP(C126,التكويد!$A$2:$R$1435,5,0),"") -> ابيض ويفين تيب 1.2سم | E126: 5.81 | F126: 0.008002754821 | G126: 726
A127: 2025-08-16 | B127: 17557 | C127: 192 | D127: =IFERROR(VLOOKUP(C127,التكويد!$A$2:$R$1435,5,0),"") -> 18-0317 ويفين 1.6سم | E127: 76.16
A128: 2025-08-16 | B128: 17557 | C128: 193 | D128: =IFERROR(VLOOKUP(C128,التكويد!$A$2:$R$1435,5,0),"") -> 11_4301 ويفين 1.6سم | E128: 62.07
A129: 2025-08-16 | B129: 17557 | C129: 194 | D129: =IFERROR(VLOOKUP(C129,التكويد!$A$2:$R$1435,5,0),"") -> 11_4301 ساندوتش 1.5سم | E129: 28.25
A130: 2025-08-16 | B130: 17558 | C130: 301 | D130: =IFERROR(VLOOKUP(C130,التكويد!$A$2:$R$1435,5,0),"") -> جراي*ابيض جاكار 3سم | E130: 169.8 | F130: =IFERROR(SUM(E130/G130),"") -> 0.021225 | G130: 8000
A131: 2025-08-16 | B131: 17558 | C131: 302 | D131: =IFERROR(VLOOKUP(C131,التكويد!$A$2:$R$1435,5,0),"") -> نيفي*ابيض جاكار 3سم | E131: 112.25 | F131: 0.02104819051 | G131: 5333
A132: 2025-08-16 | B132: 17559 | C132: 195 | D132: =IFERROR(VLOOKUP(C132,التكويد!$A$2:$R$1435,5,0),"") -> اسود كورد بوليستر 77سم | E132: 14.71 | F132: 0.006984971153 | G132: 2105.95
A133: 2025-08-16 | B133: 17559 | C133: 196 | D133: =IFERROR(VLOOKUP(C133,التكويد!$A$2:$R$1435,5,0),"") -> اسود كورد بوليستر 92سم | E133: 26.16 | F133: 0.006821061854 | G133: 3835.18
A134: 2025-08-16 | B134: 17559 | C134: 197 | D134: =IFERROR(VLOOKUP(C134,التكويد!$A$2:$R$1435,5,0),"") -> اسود كورد بوليستر 83سم | E134: 16.1 | F134: 0.004454342984 | G134: 3614.45
A135: 2025-08-16 | B135: 17559 | C135: 198 | D135: =IFERROR(VLOOKUP(C135,التكويد!$A$2:$R$1435,5,0),"") -> اسود كورد بوليستر 79سم | E135: 22
A136: 2025-08-16 | B136: 17560 | C136: 8 | D136: =IFERROR(VLOOKUP(C136,التكويد!$A$2:$R$1435,5,0),"") -> ابيض كروشيه 4.5سم | E136: 608.52
A137: 2025-08-16 | B137: 17560 | C137: 9 | D137: =IFERROR(VLOOKUP(C137,التكويد!$A$2:$R$1435,5,0),"") -> اسود كروشيه 4.5سم | E137: 64.54
A138: 2025-08-16 | B138: 17562 | C138: 129 | D138: =IFERROR(VLOOKUP(C138,التكويد!$A$2:$R$1435,5,0),"") -> اسود ويفين (510) 2سم | E138: 10.3
A139: 2025-08-16 | B139: 17562 | C139: 126 | D139: =IFERROR(VLOOKUP(C139,التكويد!$A$2:$R$1435,5,0),"") -> ابيض ويفين (510) 2سم | E139: 218.59
A140: 2025-08-16 | B140: 17562 | C140: 128 | D140: =IFERROR(VLOOKUP(C140,التكويد!$A$2:$R$1435,5,0),"") -> ابيض ويفين (510) 4سم | E140: 64.93
A141: 2025-08-16 | B141: 17562 | C141: 199 | D141: =IFERROR(VLOOKUP(C141,التكويد!$A$2:$R$1435,5,0),"") -> ابيض ويفين (510) 4.5سم | E141: 2.36
A142: 2025-08-16 | B142: 17562 | C142: 200 | D142: =IFERROR(VLOOKUP(C142,التكويد!$A$2:$R$1435,5,0),"") -> اسود ويفين (510) 4سم | E142: 9.22
A143: 2025-08-16 | B143: 17563 | C143: 20 | D143: =IFERROR(VLOOKUP(C143,التكويد!$A$2:$R$1435,5,0),"") -> ابيض كروشيه 1سم | E143: 4
A144: 2025-08-16 | B144: 17563 | C144: 40 | D144: =IFERROR(VLOOKUP(C144,التكويد!$A$2:$R$1435,5,0),"") -> ابيض كروشيه 2سم | E144: 21.69
A145: 2025-08-16 | B145: 17563 | C145: 32 | D145: =IFERROR(VLOOKUP(C145,التكويد!$A$2:$R$1435,5,0),"") -> ابيض كروشيه 2.5سم | E145: 31.23
A146: 2025-08-16 | B146: 17563 | C146: 1 | D146: =IFERROR(VLOOKUP(C146,التكويد!$A$2:$R$1435,5,0),"") -> ابيض كروشيه 3سم | E146: 75.66
A147: 2025-08-16 | B147: 17564 | C147: 62 | D147: =IFERROR(VLOOKUP(C147,التكويد!$A$2:$R$1435,5,0),"") -> اسود كورد بوليستر 5مم | E147: 75
A148: 2025-08-16 | B148: 17565 | C148: 39 | D148: =IFERROR(VLOOKUP(C148,التكويد!$A$2:$R$1435,5,0),"") -> اسود كروشيه 5سم | E148: 258.16
A149: 2025-08-16 | B149: 17566 | C149: 201 | D149: =IFERROR(VLOOKUP(C149,التكويد!$A$2:$R$1435,5,0),"") -> دارك جراي كورد قطن 85سم | E149: 4.76
A150: 2025-08-16 | B150: 17566 | C150: 202 | D150: =IFERROR(VLOOKUP(C150,التكويد!$A$2:$R$1435,5,0),"") -> دارك جراي كورد قطن 83سم | E150: 6.61
A151: 2025-08-16 | B151: 17566 | C151: 203 | D151: =IFERROR(VLOOKUP(C151,التكويد!$A$2:$R$1435,5,0),"") -> اسود كورد قطن 98سم | E151: 1.65
A152: 2025-08-16 | B152: 17566 | C152: 204 | D152: =IFERROR(VLOOKUP(C152,التكويد!$A$2:$R$1435,5,0),"") -> اسود كورد قطن 96سم | E152: 0.7
A153: 2025-08-16 | B153: 17566 | C153: 205 | D153: =IFERROR(VLOOKUP(C153,التكويد!$A$2:$R$1435,5,0),"") -> اسود كورد قطن 101سم | E153: 0.4
A154: 2025-08-16 | B154: 17566 | C154: 206 | D154: =IFERROR(VLOOKUP(C154,التكويد!$A$2:$R$1435,5,0),"") -> اسود كورد قطن 103سم | E154: 0.65
A155: 2025-08-16 | B155: 17566 | C155: 207 | D155: =IFERROR(VLOOKUP(C155,التكويد!$A$2:$R$1435,5,0),"") -> اسود كورد قطن 92سم | E155: 0.85
A156: 2025-08-16 | B156: 17566 | C156: 124 | D156: =IFERROR(VLOOKUP(C156,التكويد!$A$2:$R$1435,5,0),"") -> كحلي كورد قطن 96سم | E156: 0.7
A157: 2025-08-16 | B157: 17567 | C157: 44 | D157: =IFERROR(VLOOKUP(C157,التكويد!$A$2:$R$1435,5,0),"") -> ابيض كروشيه 5.5سم | E157: 92.2
A158: 2025-08-16 | B158: 17567 | C158: 10 | D158: =IFERROR(VLOOKUP(C158,التكويد!$A$2:$R$1435,5,0),"") -> ابيض كروشيه 3.5سم | E158: 8.81
A159: 2025-08-16 | B159: 17568 | C159: 182 | D159: =IFERROR(VLOOKUP(C159,التكويد!$A$2:$R$1435,5,0),"") -> ابيض ساندوتش خام 1.5سم | E159: 395
A160: 2025-08-16 | B160: 17568 | C160: 183 | D160: =IFERROR(VLOOKUP(C160,التكويد!$A$2:$R$1435,5,0),"") -> ابيض ويفين خام 1.6سم | E160: 430
A161: 2025-08-16 | B161: 17568 | C161: 184 | D161: =IFERROR(VLOOKUP(C161,التكويد!$A$2:$R$1435,5,0),"") -> ابيض ساندوتش خام 2سم | E161: 75
A162: 2025-08-17 | B162: 17569 | C162: 138 | D162: =IFERROR(VLOOKUP(C162,التكويد!$A$2:$R$1435,5,0),"") -> احمر ساندوتش 1.5سم | E162: 63.15 | F162: 0.003500011085 | G162: 18042.8
A163: 2025-08-17 | B163: 17569 | C163: 185 | D163: =IFERROR(VLOOKUP(C163,التكويد!$A$2:$R$1435,5,0),"") -> mellon ساندوتش 1.5سم | E163: 21.1 | F163: 0.003500000829 | G163: 6028.57
A164: 2025-08-17 | B164: 17570 | C164: 137 | D164: =IFERROR(VLOOKUP(C164,التكويد!$A$2:$R$1435,5,0),"") -> احمر جاكار 2سم | E164: 39.87 | F164: 0.01101077051 | G164: 3621
A165: 2025-08-17 | B165: 17570 | C165: 208 | D165: =IFERROR(VLOOKUP(C165,التكويد!$A$2:$R$1435,5,0),"") -> mellon جاكار 2سم | E165: 160.43 | F165: 0.01151687006 | G165: 13930
A166: 2025-08-17 | B166: 17571 | C166: 85 | D166: =IFERROR(VLOOKUP(C166,التكويد!$A$2:$R$1435,5,0),"") -> ابيض ساندوتش 1.5سم | E166: 65
A167: 2025-08-17 | B167: 17572 | C167: 1 | D167: =IFERROR(VLOOKUP(C167,التكويد!$A$2:$R$1435,5,0),"") -> ابيض كروشيه 3سم | E167: 386.68
A168: 2025-08-17 | B168: 17572 | C168: 40 | D168: =IFERROR(VLOOKUP(C168,التكويد!$A$2:$R$1435,5,0),"") -> ابيض كروشيه 2سم | E168: 76.4
A169: 2025-08-17 | B169: 17572 | C169: 32 | D169: =IFERROR(VLOOKUP(C169,التكويد!$A$2:$R$1435,5,0),"") -> ابيض كروشيه 2.5سم | E169: 138.3
A170: 2025-08-17 | B170: 17573 | C170: 23 | D170: =IFERROR(VLOOKUP(C170,التكويد!$A$2:$R$1435,5,0),"") -> اسود كروشيه 3سم | E170: 73.76
A171: 2025-08-17 | B171: 17574 | C171: 130 | D171: =IFERROR(VLOOKUP(C171,التكويد!$A$2:$R$1435,5,0),"") -> ابيض ويفين 4سم | E171: 203
A172: 2025-08-17 | B172: 17575 | C172: 170 | D172: =IFERROR(VLOOKUP(C172,التكويد!$A$2:$R$1435,5,0),"") -> دريزل*شاركول جراي جاكار 3سم | E172: 266 | F172: 0.01955307263 | G172: 13604
A173: 2025-08-17 | B173: 17575 | C173: 163 | D173: =IFERROR(VLOOKUP(C173,التكويد!$A$2:$R$1435,5,0),"") -> اسود*دريزل جاكار 3سم | E173: 112 | F173: 0.02150537634 | G173: 5208
A174: 2025-08-17 | B174: 17575 | C174: 168 | D174: =IFERROR(VLOOKUP(C174,التكويد!$A$2:$R$1435,5,0),"") -> دريزل*باين جروف جاكار 3سم | E174: 147 | F174: 0.02052785924 | G174: 7161
A175: 2025-08-17 | B175: 17575 | C175: 109 | D175: =IFERROR(VLOOKUP(C175,التكويد!$A$2:$R$1435,5,0),"") -> اسود*كوردفان جاكار 3سم | E175: 152 | F175: 0.02 | G175: 7600
A176: 2025-08-17 | B176: 17575 | C176: 112 | D176: =IFERROR(VLOOKUP(C176,التكويد!$A$2:$R$1435,5,0),"") -> سكايبلو*فرست جراي جاكار 3سم | E176: 42.66 | F176: 0.02202374806 | G176: 1937
A177: 2025-08-17 | B177: 17575 | C177: 155 | D177: =IFERROR(VLOOKUP(C177,التكويد!$A$2:$R$1435,5,0),"") -> ابيض*سكاي بلو جاكار 3سم | E177: 176 | F177: 0.02105263158 | G177: 8360
A178: 2025-08-17 | B178: 17575 | C178: 155 | D178: =IFERROR(VLOOKUP(C178,التكويد!$A$2:$R$1435,5,0),"") -> ابيض*سكاي بلو جاكار 3سم | E178: 52.5 | F178: 0.02106741573 | G178: 2492
A179: 2025-08-17 | B179: 17575 | C179: 170 | D179: =IFERROR(VLOOKUP(C179,التكويد!$A$2:$R$1435,5,0),"") -> دريزل*شاركول جراي جاكار 3سم | E179: 28 | F179: 0.01955307263 | G179: 1432
A180: 2025-08-17 | B180: 17567 | C180: 172 | D180: =IFERROR(VLOOKUP(C180,التكويد!$A$2:$R$1435,5,0),"") -> جراي بارز جاكار 3سم | E180: 82.2 | F180: 0.02127879886 | G180: 3863
A181: 2025-08-18 | B181: 17577 | C181: 214 | D181: =IFERROR(VLOOKUP(C181,التكويد!$A$2:$R$1435,5,0),"") -> كحلي كورد بوليستر 124سم | E181: 12.35 | F181: 0.01213115398 | G181: 1018.04
A182: 2025-08-18 | B182: 17577 | C182: 215 | D182: =IFERROR(VLOOKUP(C182,التكويد!$A$2:$R$1435,5,0),"") -> كحلي كورد بوليستر 133سم | E182: 13 | F182: 0.01190552508 | G182: 1091.93
A183: 2025-08-18 | B183: 17577 | C183: 216 | D183: =IFERROR(VLOOKUP(C183,التكويد!$A$2:$R$1435,5,0),"") -> كحلي كورد بوليستر 115سم | E183: 5.51 | F183: 0.01165767481 | G183: 472.65
A184: 2025-08-18 | B184: 17577 | C184: 217 | D184: =IFERROR(VLOOKUP(C184,التكويد!$A$2:$R$1435,5,0),"") -> كحلي كورد بوليستر 142سم | E184: 7.31 | F184: 0.01252527329 | G184: 583.62
A185: 2025-08-18 | B185: 17578 | C185: 218 | D185: =IFERROR(VLOOKUP(C185,التكويد!$A$2:$R$1435,5,0),"") -> انتركيكي كورد بوليستر 135سم | E185: 6.76 | F185: 0.007799700012 | G185: 866.7
A186: 2025-08-18 | B186: 17578 | C186: 219 | D186: =IFERROR(VLOOKUP(C186,التكويد!$A$2:$R$1435,5,0),"") -> انتركيكي كورد بوليستر 139سم | E186: 6.56 | F186: 0.007762211284 | G186: 845.12
A187: 2025-08-18 | B187: 17578 | C187: 220 | D187: =IFERROR(VLOOKUP(C187,التكويد!$A$2:$R$1435,5,0),"") -> انتركيكي كورد بوليستر 125سم | E187: 5.96 | F187: 0.008716636197 | G187: 683.75
A188: 2025-08-18 | B188: 17578 | C188: 221 | D188: =IFERROR(VLOOKUP(C188,التكويد!$A$2:$R$1435,5,0),"") -> انتركيكي كورد بوليستر 140سم | E188: 12.4 | F188: 0.008081334724 | G188: 1534.4
A189: 2025-08-18 | B189: 17578 | C189: 222 | D189: =IFERROR(VLOOKUP(C189,التكويد!$A$2:$R$1435,5,0),"") -> انتركيكي كورد بوليستر 145سم | E189: 9.5 | F189: 0.008553164671 | G189: 1110.7
A190: 2025-08-18 | B190: 17578 | C190: 223 | D190: =IFERROR(VLOOKUP(C190,التكويد!$A$2:$R$1435,5,0),"") -> انتركيكي كورد بوليستر 130سم | E190: 8.1 | F190: 0.008176862508 | G190: 990.6
A191: 2025-08-18 | B191: 17579 | C191: 224 | D191: =IFERROR(VLOOKUP(C191,التكويد!$A$2:$R$1435,5,0),"") -> زيتي كورد بوليستر 140سم | E191: 10.2 | F191: 0.007534347762 | G191: 1353.8
A192: 2025-08-18 | B192: 17579 | C192: 225 | D192: =IFERROR(VLOOKUP(C192,التكويد!$A$2:$R$1435,5,0),"") -> زيتي كورد بوليستر 145سم | E192: 6.85 | F192: 0.007416630576 | G192: 923.6
A193: 2025-08-18 | B193: 17579 | C193: 226 | D193: =IFERROR(VLOOKUP(C193,التكويد!$A$2:$R$1435,5,0),"") -> زيتي كورد بوليستر 130سم | E193: 6.85 | F193: 0.007527472527 | G193: 910
A194: 2025-08-18 | B194: 17579 | C194: 227 | D194: =IFERROR(VLOOKUP(C194,التكويد!$A$2:$R$1435,5,0),"") -> زيتي كورد بوليستر 125سم | E194: 4.61 | F194: =IFERROR(SUM(E194/G194),"") -> 0.007390781563 | G194: 623.75
A195: 2025-08-18 | B195: 17579 | C195: 228 | D195: =IFERROR(VLOOKUP(C195,التكويد!$A$2:$R$1435,5,0),"") -> زيتي كورد بوليستر 150سم | E195: 7.16 | F195: 0.007661851257 | G195: 934.5
A196: 2025-08-18 | B196: 17579 | C196: 229 | D196: =IFERROR(VLOOKUP(C196,التكويد!$A$2:$R$1435,5,0),"") -> زيتي كورد بوليستر 135سم | E196: 9.5 | F196: 0.006939878735 | G196: 1368.9
A197: 2025-08-18 | B197: 17580 | C197: 230 | D197: =IFERROR(VLOOKUP(C197,التكويد!$A$2:$R$1435,5,0),"") -> اسود كورد بوليستر 127سم | E197: 6.7 | F197: 0.008676958143 | G197: 772.16
A198: 2025-08-18 | B198: 17580 | C198: 231 | D198: =IFERROR(VLOOKUP(C198,التكويد!$A$2:$R$1435,5,0),"") -> اسود كورد بوليستر 136سم | E198: 6.89 | F198: 0.00833252709 | G198: 826.88
A199: 2025-08-18 | B199: 17580 | C199: 232 | D199: =IFERROR(VLOOKUP(C199,التكويد!$A$2:$R$1435,5,0),"") -> اسود كورد بوليستر 146سم | E199: 3.81 | F199: 0.008584174477 | G199: 443.84
A200: 2025-08-18 | B200: 17580 | C200: 233 | D200: =IFERROR(VLOOKUP(C200,التكويد!$A$2:$R$1435,5,0),"") -> اسود كورد بوليستر 124سم | E200: 5.21 | F200: 0.008826917864 | G200: 590.24
... 4477 more rows

Sheet المرتجع
A1: التاريخ | B1: أذن المرتجع | C1: الكود | D1: اللون | E1: الكمية بالكيلو | F1: وزن المتر بالكيلو | G1: وزن المتر | H1: الكمية بالقطع | I1: العميل | J1: b
A2: 2025-08-04 | B2: 14060 | C2: 257 | D2: =IFERROR(VLOOKUP(C2,التكويد!$A$2:$R$1435,5,0),"") -> سيلفر*اسود جاكار 5سم | E2: 30.86 | F2: =IFERROR(SUM(E2/G2),"") -> 0.03297008547 | G2: 936
A3: 2025-08-04 | B3: 14060 | C3: 256 | D3: =IFERROR(VLOOKUP(C3,التكويد!$A$2:$R$1435,5,0),"") -> جولد*اسود جاكار 5سم | E3: 107.21 | F3: 0.03366091052 | G3: 3185
A4: 2025-08-11 | B4: 14128 | C4: 85 | D4: =IFERROR(VLOOKUP(C4,التكويد!$A$2:$R$1435,5,0),"") -> ابيض ساندوتش 1.5سم | E4: 142.25
A5: 2025-08-11 | B5: 14128 | C5: 115 | D5: =IFERROR(VLOOKUP(C5,التكويد!$A$2:$R$1435,5,0),"") -> 19-4033 ساندوتش 1.5سم | E5: 41.6
A6: 2025-08-11 | B6: 14128 | C6: 116 | D6: =IFERROR(VLOOKUP(C6,التكويد!$A$2:$R$1435,5,0),"") -> 19-4033 ويفين 1.6سم | E6: 69.16
A7: 2025-08-11 | B7: 14128 | C7: 117 | D7: =IFERROR(VLOOKUP(C7,التكويد!$A$2:$R$1435,5,0),"") -> 15-6313 ساندوتش 1.5سم | E7: 41.72
A8: 2025-08-13 | B8: 14152 | C8: 87 | D8: =IFERROR(VLOOKUP(C8,التكويد!$A$2:$R$1435,5,0),"") -> اسود ويفين 1.6سم | E8: 35.08
A9: 2025-08-13 | B9: 14152 | C9: 138 | D9: =IFERROR(VLOOKUP(C9,التكويد!$A$2:$R$1435,5,0),"") -> احمر ساندوتش 1.5سم | E9: 19.7 | F9: 0.003500007107 | G9: 5628.56
A10: 2025-08-13 | B10: 14152 | C10: 139 | D10: =IFERROR(VLOOKUP(C10,التكويد!$A$2:$R$1435,5,0),"") -> ابيض ويفين 1.6سم | E10: 42 | F10: 0.008300017983 | G10: 5060.23
A11: 2025-08-13 | B11: 14152 | C11: 140 | D11: =IFERROR(VLOOKUP(C11,التكويد!$A$2:$R$1435,5,0),"") -> 11-0104 ويفين 1.6سم | E11: 40.06 | F11: 0.008 | G11: 5007.5
A12: 2025-08-13 | B12: 14152 | C12: 141 | D12: =IFERROR(VLOOKUP(C12,التكويد!$A$2:$R$1435,5,0),"") -> 13-6008 ويفين 1.6سم | E12: 60 | F12: 0.008500028333 | G12: 7058.8
A13: 2025-08-13 | B13: 14152 | C13: 142 | D13: =IFERROR(VLOOKUP(C13,التكويد!$A$2:$R$1435,5,0),"") -> اسود ساندوتش 1.5سم | E13: 15 | F13: 0.003000012 | G13: 4999.98
A14: 2025-08-13 | B14: 14152 | C14: 143 | D14: =IFERROR(VLOOKUP(C14,التكويد!$A$2:$R$1435,5,0),"") -> 19-3810 ساندوتش 1.5سم | E14: 29.6 | F14: 0.003000002027 | G14: 9866.66
A15: 2025-08-14 | B15: 14159 | C15: 147 | D15: =IFERROR(VLOOKUP(C15,التكويد!$A$2:$R$1435,5,0),"") -> جاكار درجة ثانية | E15: 25
A16: 2025-08-14 | B16: 14159 | C16: 290 | D16: =IFERROR(VLOOKUP(C16,التكويد!$A$2:$R$1435,5,0),"") -> جاكار درجة اولي | E16: 10
A17: 2025-08-16 | B17: 14168 | C17: 138 | D17: =IFERROR(VLOOKUP(C17,التكويد!$A$2:$R$1435,5,0),"") -> احمر ساندوتش 1.5سم | E17: 63.15 | F17: 0.003500011085 | G17: 18042.8
A18: 2025-08-16 | B18: 14168 | C18: 185 | D18: =IFERROR(VLOOKUP(C18,التكويد!$A$2:$R$1435,5,0),"") -> mellon ساندوتش 1.5سم | E18: 21.1 | F18: 0.003500000829 | G18: 6028.57
A19: 2025-08-16 | B19: 14168 | C19: 85 | D19: =IFERROR(VLOOKUP(C19,التكويد!$A$2:$R$1435,5,0),"") -> ابيض ساندوتش 1.5سم | E19: 65
A20: 2025-08-16 | B20: 14177 | C20: 192 | D20: =IFERROR(VLOOKUP(C20,التكويد!$A$2:$R$1435,5,0),"") -> 18-0317 ويفين 1.6سم | E20: 76.16
A21: 2025-08-16 | B21: 14177 | C21: 193 | D21: =IFERROR(VLOOKUP(C21,التكويد!$A$2:$R$1435,5,0),"") -> 11_4301 ويفين 1.6سم | E21: 62.07
A22: 2025-08-16 | B22: 14177 | C22: 194 | D22: =IFERROR(VLOOKUP(C22,التكويد!$A$2:$R$1435,5,0),"") -> 11_4301 ساندوتش 1.5سم | E22: 28.25
A23: 2025-08-18 | B23: 14199 | C23: 247 | D23: =IFERROR(VLOOKUP(C23,التكويد!$A$2:$R$1435,5,0),"") -> 19-1758 ويفين 1.6سم | E23: 48 | F23: 0.008500028333 | G23: 5647.04
A24: 2025-08-18 | B24: 14199 | C24: 248 | D24: =IFERROR(VLOOKUP(C24,التكويد!$A$2:$R$1435,5,0),"") -> 19-1758 ساندوتش 1.5سم | E24: 25 | F24: 0.0035000035 | G24: 7142.85
A25: 2025-08-18 | B25: 14199 | C25: 249 | D25: =IFERROR(VLOOKUP(C25,التكويد!$A$2:$R$1435,5,0),"") -> 13-2803 ويفين 1.6سم | E25: 48 | F25: 0.008500028333 | G25: 5647.04
A26: 2025-08-18 | B26: 14199 | C26: 250 | D26: =IFERROR(VLOOKUP(C26,التكويد!$A$2:$R$1435,5,0),"") -> 13-2803 ساندوتش 1.5سم | E26: 27.25 | F26: 0.003500001927 | G26: 7785.71
A27: 2025-08-18 | B27: 14199 | C27: 251 | D27: =IFERROR(VLOOKUP(C27,التكويد!$A$2:$R$1435,5,0),"") -> 14-3907 ويفين 1.6سم | E27: 60 | F27: 0.008 | G27: 7500
A28: 2025-08-18 | B28: 14199 | C28: 252 | D28: =IFERROR(VLOOKUP(C28,التكويد!$A$2:$R$1435,5,0),"") -> 14-4105 ويفين 1.6سم | E28: 54 | F28: 0.008500028333 | G28: 6352.92
A29: 2025-08-19 | B29: 14200 | C29: 39 | D29: =IFERROR(VLOOKUP(C29,التكويد!$A$2:$R$1435,5,0),"") -> اسود كروشيه 5سم | E29: 36.88
A30: 2025-08-19 | B30: 14200 | C30: 39 | D30: =IFERROR(VLOOKUP(C30,التكويد!$A$2:$R$1435,5,0),"") -> اسود كروشيه 5سم | E30: 18.44
A31: 2025-08-19 | B31: 14216 | C31: 276 | D31: =IFERROR(VLOOKUP(C31,التكويد!$A$2:$R$1435,5,0),"") -> تويل تيب قطن 1سم | E31: 121.28 | F31: 0.003700381388 | G31: 32775
A32: 2025-08-20 | B32: 14217 | C32: 168 | D32: =IFERROR(VLOOKUP(C32,التكويد!$A$2:$R$1435,5,0),"") -> دريزل*باين جروف جاكار 3سم | E32: 76.7 | F32: 0.02051899411 | G32: 3738
A33: 2025-08-20 | B33: 14217 | C33: 112 | D33: =IFERROR(VLOOKUP(C33,التكويد!$A$2:$R$1435,5,0),"") -> سكايبلو*فرست جراي جاكار 3سم | E33: 36.25 | F33: 0.02195639007 | G33: 1651
A34: 2025-08-20 | B34: 14219 | C34: 138 | D34: =IFERROR(VLOOKUP(C34,التكويد!$A$2:$R$1435,5,0),"") -> احمر ساندوتش 1.5سم | E34: 21.95 | F34: 0.003500004784 | G34: 6271.42
A35: 2025-08-20 | B35: 14219 | C35: 303 | D35: =IFERROR(VLOOKUP(C35,التكويد!$A$2:$R$1435,5,0),"") -> 14-1511 ويفين 1.6سم | E35: 41.21 | F35: 0.008500026814 | G35: 4848.22
A36: 2025-08-20 | B36: 14219 | C36: 304 | D36: =IFERROR(VLOOKUP(C36,التكويد!$A$2:$R$1435,5,0),"") -> 14-1511 ويفين 1.5سم | E36: 17.25 | F36: 0.003500008116 | G36: 4928.56
A37: 2025-08-20 | B37: 14219 | C37: 305 | D37: =IFERROR(VLOOKUP(C37,التكويد!$A$2:$R$1435,5,0),"") -> 14-4105 ويفين 1.5سم | E37: 35.9 | F37: 0.003500004387 | G37: 10257.13
A38: 2025-08-20 | B38: 14219 | C38: 306 | D38: =IFERROR(VLOOKUP(C38,التكويد!$A$2:$R$1435,5,0),"") -> 13-1114 ويفين 1.5سم | E38: 22.4 | F38: 0.0035 | G38: 6400
A39: 2025-08-20 | B39: 14219 | C39: 307 | D39: =IFERROR(VLOOKUP(C39,التكويد!$A$2:$R$1435,5,0),"") -> 13-1114 ويفين 1.6سم | E39: 42 | F39: 0.008500028333 | G39: 4941.16
A40: 2025-08-20 | B40: 14219 | C40: 308 | D40: =IFERROR(VLOOKUP(C40,التكويد!$A$2:$R$1435,5,0),"") -> 12-0601 ويفين 1.6سم | E40: 6 | F40: 0.008 | G40: 750
A41: 2025-08-20 | B41: 14219 | C41: 309 | D41: =IFERROR(VLOOKUP(C41,التكويد!$A$2:$R$1435,5,0),"") -> 11-0107 ويفين 1.6سم | E41: 18 | F41: 0.008500028333 | G41: 2117.64
A42: 2025-08-21 | B42: 14233 | C42: 147 | D42: =IFERROR(VLOOKUP(C42,التكويد!$A$2:$R$1435,5,0),"") -> جاكار درجة ثانية | E42: 141
A43: 2025-08-21 | B43: 14233 | C43: 290 | D43: =IFERROR(VLOOKUP(C43,التكويد!$A$2:$R$1435,5,0),"") -> جاكار درجة اولي | E43: 25
A44: 2025-08-23 | B44: 14252 | C44: 311 | D44: =IFERROR(VLOOKUP(C44,التكويد!$A$2:$R$1435,5,0),"") -> TURQ ساندوتش 1.5سم | E44: 41.95 | F44: 0.003500004172 | G44: 11985.7
A45: 2025-08-23 | B45: 14252 | C45: 247 | D45: =IFERROR(VLOOKUP(C45,التكويد!$A$2:$R$1435,5,0),"") -> 19-1758 ويفين 1.6سم | E45: 6 | F45: 0.008500028333 | G45: 705.88
A46: 2025-08-23 | B46: 14252 | C46: 312 | D46: =IFERROR(VLOOKUP(C46,التكويد!$A$2:$R$1435,5,0),"") -> 19-1862 ساندوتش 1.5سم | E46: 5 | F46: 0.0035000035 | G46: 1428.57
A47: 2025-08-23 | B47: 14255 | C47: 365 | D47: =IFERROR(VLOOKUP(C47,التكويد!$A$2:$R$1435,5,0),"") -> 13-4411 ويفين 1.6سم | E47: 56.92 | F47: 0.008500038827 | G47: 6696.44
A48: 2025-08-23 | B48: 14255 | C48: 316 | D48: =IFERROR(VLOOKUP(C48,التكويد!$A$2:$R$1435,5,0),"") -> 17-1516 ويفين 1.6سم | E48: 78 | F48: 0.008500028333 | G48: 9176.44
A49: 2025-08-23 | B49: 14255 | C49: 317 | D49: =IFERROR(VLOOKUP(C49,التكويد!$A$2:$R$1435,5,0),"") -> 17-1516 ويفين 1.5سم | E49: 33.55 | F49: 0.003500005216 | G49: 9585.7
A50: 2025-08-23 | B50: 14255 | C50: 318 | D50: =IFERROR(VLOOKUP(C50,التكويد!$A$2:$R$1435,5,0),"") -> 16-1010 ويفين 1.6سم | E50: 36.27 | F50: 0.008500037497 | G50: 4267.04
A51: 2025-08-23 | B51: 14255 | C51: 307 | D51: =IFERROR(VLOOKUP(C51,التكويد!$A$2:$R$1435,5,0),"") -> 13-1114 ويفين 1.6سم | E51: 6 | F51: 0.008500028333 | G51: 705.88
A52: 2025-08-23 | B52: 14255 | C52: 320 | D52: =IFERROR(VLOOKUP(C52,التكويد!$A$2:$R$1435,5,0),"") -> 13-4411 ويفين 1.5سم | E52: 28.3 | F52: 0.003500001855 | G52: 8085.71
A53: 2025-08-23 | B53: 14255 | C53: 319 | D53: =IFERROR(VLOOKUP(C53,التكويد!$A$2:$R$1435,5,0),"") -> 14-0002 ويفين 1.6سم | E53: 39.92 | F53: 0.008542874874 | G53: 4672.9
A54: 2025-08-25 | B54: 14257 | C54: 10 | D54: =IFERROR(VLOOKUP(C54,التكويد!$A$2:$R$1435,5,0),"") -> ابيض كروشيه 3.5سم | E54: 46.1
A55: 2025-08-25 | B55: 14265 | C55: 268 | D55: =IFERROR(VLOOKUP(C55,التكويد!$A$2:$R$1435,5,0),"") -> كحلي كورد قطن 1سم | E55: 10 | F55: 0.007692307692 | G55: 1300
A56: 2025-08-25 | B56: 14279 | C56: 249 | D56: =IFERROR(VLOOKUP(C56,التكويد!$A$2:$R$1435,5,0),"") -> 13-2803 ويفين 1.6سم | E56: 56.66 | F56: 0.008500028503 | G56: 6665.86
A57: 2025-08-25 | B57: 14279 | C57: 331 | D57: =IFERROR(VLOOKUP(C57,التكويد!$A$2:$R$1435,5,0),"") -> 17-3725 ويفين 1.6سم | E57: 54 | F57: 0.008500028333 | G57: 6352.92
A58: 2025-08-25 | B58: 14279 | C58: 332 | D58: =IFERROR(VLOOKUP(C58,التكويد!$A$2:$R$1435,5,0),"") -> 17-3725 ساندوتش 1.5سم | E58: 14.1 | F58: 0.003499879614 | G58: 4028.71
A59: 2025-08-25 | B59: 14279 | C59: 333 | D59: =IFERROR(VLOOKUP(C59,التكويد!$A$2:$R$1435,5,0),"") -> 11-0107 ساندوتش 1.5سم | E59: 28.1 | F59: 0.003500000623 | G59: 8028.57
A60: 2025-08-25 | B60: 14279 | C60: 334 | D60: =IFERROR(VLOOKUP(C60,التكويد!$A$2:$R$1435,5,0),"") -> 19-3810 ويفين 1.6سم | E60: 42 | F60: 0.008500028333 | G60: 4941.16
A61: 2025-08-25 | B61: 14279 | C61: 335 | D61: =IFERROR(VLOOKUP(C61,التكويد!$A$2:$R$1435,5,0),"") -> 14-1909 ساندوتش 1.5سم | E61: 24.2 | F61: 0.003500144634 | G61: 6914
A62: 2025-08-25 | B62: 14279 | C62: 336 | D62: =IFERROR(VLOOKUP(C62,التكويد!$A$2:$R$1435,5,0),"") -> 14-3907 ساندوتش 1.5سم | E62: 35 | F62: 0.0035 | G62: 10000
A63: 2025-08-25 | B63: 14280 | C63: 337 | D63: =IFERROR(VLOOKUP(C63,التكويد!$A$2:$R$1435,5,0),"") -> 18-0317 ساندوتش 1.5سم | E63: 20 | F63: 0.0035000035 | G63: 5714.28
A64: 2025-08-25 | B64: 14280 | C64: 338 | D64: =IFERROR(VLOOKUP(C64,التكويد!$A$2:$R$1435,5,0),"") -> 19-1555 ساندوتش 1.5سم | E64: 13.9 | F64: 0.003500254335 | G64: 3971.14
A65: 2025-08-25 | B65: 14280 | C65: 339 | D65: =IFERROR(VLOOKUP(C65,التكويد!$A$2:$R$1435,5,0),"") -> 19-1555 ويفين 1.6سم | E65: 48 | F65: 0.008500028333 | G65: 5647.04
A66: 2025-08-26 | B66: 14282 | C66: 49 | D66: =IFERROR(VLOOKUP(C66,التكويد!$A$2:$R$1435,5,0),"") -> اوف وايت كورد قطن 1.1سم | E66: 20 | F66: =IFERROR(SUM(E66/G66),"") -> 0.007692307692 | G66: 2600
A67: 2025-08-26 | B67: 14282 | C67: 342 | D67: =IFERROR(VLOOKUP(C67,التكويد!$A$2:$R$1435,5,0),"") -> rose كورد قطن 1.1سم | E67: 20 | F67: 0.007692307692 | G67: 2600
A68: 2025-08-26 | B68: 14282 | C68: 341 | D68: =IFERROR(VLOOKUP(C68,التكويد!$A$2:$R$1435,5,0),"") -> اسود كورد قطن 1.1سم | E68: 20 | F68: 0.007692307692 | G68: 2600
A69: 2025-08-26 | B69: 14288 | C69: 357 | D69: =IFERROR(VLOOKUP(C69,التكويد!$A$2:$R$1435,5,0),"") -> (19-1555)red dahlia ويفين 1.5سم | E69: 22.85 | F69: 0.003500006127 | G69: 6528.56
A70: 2025-08-26 | B70: 14288 | C70: 358 | D70: =IFERROR(VLOOKUP(C70,التكويد!$A$2:$R$1435,5,0),"") -> برونزجرين (18-0317) ويفين 1.5سم | E70: 5 | F70: 0.0035000035 | G70: 1428.57
A71: 2025-08-26 | B71: 14288 | C71: 359 | D71: =IFERROR(VLOOKUP(C71,التكويد!$A$2:$R$1435,5,0),"") -> (19-1555)red dahlia ويفين 1.6سم | E71: 16.46 | F71: 0.008500046477 | G71: 1936.46
A72: 2025-08-26 | B72: 14288 | C72: 360 | D72: =IFERROR(VLOOKUP(C72,التكويد!$A$2:$R$1435,5,0),"") -> (19-1528)wind sor wind ويفين 1.6سم | E72: 78 | F72: 0.008500028333 | G72: 9176.44
A73: 2025-08-26 | B73: 14288 | C73: 361 | D73: =IFERROR(VLOOKUP(C73,التكويد!$A$2:$R$1435,5,0),"") -> (19-1528)wind sor wind ويفين 1.5سم | E73: 35 | F73: 0.0035000035 | G73: 9999.99
A74: 2025-08-26 | B74: 14288 | C74: 362 | D74: =IFERROR(VLOOKUP(C74,التكويد!$A$2:$R$1435,5,0),"") -> (19-1862)juster red ويفين 1.5سم | E74: 2.36 | F74: 0.003500029661 | G74: 674.28
A75: 2025-08-27 | B75: 14297 | C75: 362 | D75: =IFERROR(VLOOKUP(C75,التكويد!$A$2:$R$1435,5,0),"") -> (19-1862)juster red ويفين 1.5سم | E75: 10 | F75: 0.0035000035 | G75: 2857.14
A76: 2025-08-27 | B76: 14297 | C76: 371 | D76: =IFERROR(VLOOKUP(C76,التكويد!$A$2:$R$1435,5,0),"") -> (19-1862)juster red ويفين 1.6سم | E76: 30 | F76: 0.008500028333 | G76: 3529.4
A77: 2025-08-27 | B77: 14297 | C77: 361 | D77: =IFERROR(VLOOKUP(C77,التكويد!$A$2:$R$1435,5,0),"") -> (19-1528)wind sor wind ويفين 1.5سم | E77: 5 | F77: 0.0035000035 | G77: 1428.57
A78: 2025-08-27 | B78: 14297 | C78: 361 | D78: =IFERROR(VLOOKUP(C78,التكويد!$A$2:$R$1435,5,0),"") -> (19-1528)wind sor wind ويفين 1.5سم | E78: 3.75 | F78: 0.00220404133 | G78: 1701.42
A79: 2025-08-27 | B79: 14297 | C79: 142 | D79: =IFERROR(VLOOKUP(C79,التكويد!$A$2:$R$1435,5,0),"") -> اسود ساندوتش 1.5سم | E79: 15 | F79: 0.0035000035 | G79: 4285.71
A80: 2025-08-30 | B80: 14316 | C80: 142 | D80: =IFERROR(VLOOKUP(C80,التكويد!$A$2:$R$1435,5,0),"") -> اسود ساندوتش 1.5سم | E80: 24.17 | F80: 0.003500012309 | G80: 6905.69
A81: 2025-08-30 | B81: 14316 | C81: 87 | D81: =IFERROR(VLOOKUP(C81,التكويد!$A$2:$R$1435,5,0),"") -> اسود ويفين 1.6سم | E81: 93.51
A82: 2025-08-30 | B82: 14316 | C82: 380 | D82: =IFERROR(VLOOKUP(C82,التكويد!$A$2:$R$1435,5,0),"") -> 14-1909 ويفين 1.6سم | E82: 61.56 | F82: 0.008500026925 | G82: 7242.33
A83: 2025-08-30 | B83: 14316 | C83: 381 | D83: =IFERROR(VLOOKUP(C83,التكويد!$A$2:$R$1435,5,0),"") -> 14-1862 ويفين 1.6سم | E83: 9.81 | F83: 0.00850005632 | G83: 1154.11
A84: 2025-08-30 | B84: 14321 | C84: 290 | D84: =IFERROR(VLOOKUP(C84,التكويد!$A$2:$R$1435,5,0),"") -> جاكار درجة اولي | E84: 35
A85: 2025-08-30 | B85: 14321 | C85: 147 | D85: =IFERROR(VLOOKUP(C85,التكويد!$A$2:$R$1435,5,0),"") -> جاكار درجة ثانية | E85: 115
A86: 2025-08-31 | B86: 14335 | C86: 87 | D86: =IFERROR(VLOOKUP(C86,التكويد!$A$2:$R$1435,5,0),"") -> اسود ويفين 1.6سم | E86: 93.51
A87: 2025-08-31 | B87: 14335 | C87: 87 | D87: =IFERROR(VLOOKUP(C87,التكويد!$A$2:$R$1435,5,0),"") -> اسود ويفين 1.6سم | E87: 53.26
A88: 2025-08-31 | B88: 14336 | C88: 39 | D88: =IFERROR(VLOOKUP(C88,التكويد!$A$2:$R$1435,5,0),"") -> اسود كروشيه 5سم | E88: 18.44
A89: 2025-08-31 | B89: 14338 | C89: 142 | D89: =IFERROR(VLOOKUP(C89,التكويد!$A$2:$R$1435,5,0),"") -> اسود ساندوتش 1.5سم | E89: 30.72 | F89: 0.003500005127 | G89: 8777.13
A90: 2025-08-31 | B90: 14338 | C90: 251 | D90: =IFERROR(VLOOKUP(C90,التكويد!$A$2:$R$1435,5,0),"") -> 14-3907 ويفين 1.6سم | E90: 49.16 | F90: 0.008500028529 | G90: 5783.51
A91: 2025-08-31 | B91: 14338 | C91: 142 | D91: =IFERROR(VLOOKUP(C91,التكويد!$A$2:$R$1435,5,0),"") -> اسود ساندوتش 1.5سم | E91: 25 | F91: 0.0035000035 | G91: 7142.85
A92: 2025-09-01 | B92: 14337 | C92: 213 | D92: =IFERROR(VLOOKUP(C92,التكويد!$A$2:$R$1435,5,0),"") -> شاركول جراي*بترول بلو جاكار 3سم | E92: 161 | F92: 0.02102102102 | G92: 7659
A93: 2025-09-01 | B93: 14337 | C93: 321 | D93: =IFERROR(VLOOKUP(C93,التكويد!$A$2:$R$1435,5,0),"") -> بيج*كافيه جاكار 3سم | E93: 147 | F93: 0.01955307263 | G93: 7518
A94: 2025-09-02 | B94: 14361 | C94: 193 | D94: =IFERROR(VLOOKUP(C94,التكويد!$A$2:$R$1435,5,0),"") -> 11_4301 ويفين 1.6سم | E94: 52.51 | F94: 0.008500037231 | G94: 6177.62
A95: 2025-09-02 | B95: 14361 | C95: 194 | D95: =IFERROR(VLOOKUP(C95,التكويد!$A$2:$R$1435,5,0),"") -> 11_4301 ساندوتش 1.5سم | E95: 26 | F95: 0.003500005385 | G95: 7428.56
A96: 2025-09-02 | B96: 14361 | C96: 336 | D96: =IFERROR(VLOOKUP(C96,التكويد!$A$2:$R$1435,5,0),"") -> 14-3907 ساندوتش 1.5سم | E96: 28.8 | F96: 0.003500000608 | G96: 8228.57
A97: 2025-09-02 | B97: 14361 | C97: 397 | D97: =IFERROR(VLOOKUP(C97,التكويد!$A$2:$R$1435,5,0),"") -> 12-0710 ساندوتش 1.5سم | E97: 30 | F97: 0.003500175009 | G97: 8571
A98: 2025-09-02 | B98: 14361 | C98: 398 | D98: =IFERROR(VLOOKUP(C98,التكويد!$A$2:$R$1435,5,0),"") -> 12-0710 ويفين 1.6سم | E98: 58.81 | F98: 0.008 | G98: 7351.25
A99: 2025-09-02 | B99: 14361 | C99: 399 | D99: =IFERROR(VLOOKUP(C99,التكويد!$A$2:$R$1435,5,0),"") -> 13-4103 ساندوتش 1.5سم | E99: 10 | F99: 0.0035000035 | G99: 2857.14
A100: 2025-09-02 | B100: 14361 | C100: 400 | D100: =IFERROR(VLOOKUP(C100,التكويد!$A$2:$R$1435,5,0),"") -> 16-3812 ساندوتش 1.5سم | E100: 13.55 | F100: 0.003500007749 | G100: 3871.42
A101: 2025-09-02 | B101: 14361 | C101: 402 | D101: =IFERROR(VLOOKUP(C101,التكويد!$A$2:$R$1435,5,0),"") -> 16-3812 ويفين 1.6سم | E101: 60 | F101: 0.008500028333 | G101: 7058.8
A102: 2025-09-02 | B102: 14361 | C102: 403 | D102: =IFERROR(VLOOKUP(C102,التكويد!$A$2:$R$1435,5,0),"") -> 13-4103 ويفين 1.6سم | E102: 36 | F102: 0.008500028333 | G102: 4235.28
A103: 2025-09-06 | B103: 14382 | C103: 403 | D103: =IFERROR(VLOOKUP(C103,التكويد!$A$2:$R$1435,5,0),"") -> 13-4103 ويفين 1.6سم | E103: 19.56 | F103: 0.008500060839 | G103: 2301.16
A104: 2025-09-06 | B104: 14382 | C104: 399 | D104: =IFERROR(VLOOKUP(C104,التكويد!$A$2:$R$1435,5,0),"") -> 13-4103 ساندوتش 1.5سم | E104: 19.2 | F104: 0.003500002734 | G104: 5485.71
A105: 2025-09-06 | B105: 14382 | C105: 400 | D105: =IFERROR(VLOOKUP(C105,التكويد!$A$2:$R$1435,5,0),"") -> 16-3812 ساندوتش 1.5سم | E105: 16.5 | F105: 0.003500004242 | G105: 4714.28
A106: 2025-09-06 | B106: 14382 | C106: 415 | D106: =IFERROR(VLOOKUP(C106,التكويد!$A$2:$R$1435,5,0),"") -> 17-1311 ساندوتش 1.5سم | E106: 23.2 | F106: 0.00350030175 | G106: 6628
A107: 2025-09-06 | B107: 14382 | C107: 416 | D107: =IFERROR(VLOOKUP(C107,التكويد!$A$2:$R$1435,5,0),"") -> 18-3725 ساندوتش 1.5سم | E107: 5 | F107: 0.0035000035 | G107: 1428.57
A108: 2025-09-06 | B108: 14382 | C108: 417 | D108: =IFERROR(VLOOKUP(C108,التكويد!$A$2:$R$1435,5,0),"") -> 15-1304 ساندوتش 1.5سم | E108: 10 | F108: 0.0035000035 | G108: 2857.14
A109: 2025-09-06 | B109: 14382 | C109: 418 | D109: =IFERROR(VLOOKUP(C109,التكويد!$A$2:$R$1435,5,0),"") -> 19-3406 ويفين 1.6سم | E109: 54 | F109: 0.008500028333 | G109: 6352.92
A110: 2025-09-06 | B110: 14382 | C110: 419 | D110: =IFERROR(VLOOKUP(C110,التكويد!$A$2:$R$1435,5,0),"") -> 19-3406 ساندوتش 1.5سم | E110: 15 | F110: 0.0035000035 | G110: 4285.71
A111: 2025-09-06 | B111: 14383 | C111: 303 | D111: =IFERROR(VLOOKUP(C111,التكويد!$A$2:$R$1435,5,0),"") -> 14-1511 ويفين 1.6سم | E111: 12 | F111: 0.008500028333 | G111: 1411.76
A112: 2025-09-06 | B112: 14383 | C112: 420 | D112: =IFERROR(VLOOKUP(C112,التكويد!$A$2:$R$1435,5,0),"") -> 17-1311 ويفين 1.6سم | E112: 10.61 | F112: 0.005777419601 | G112: 1836.46
A113: 2025-09-06 | B113: 14383 | C113: 421 | D113: =IFERROR(VLOOKUP(C113,التكويد!$A$2:$R$1435,5,0),"") -> 14-1511 ساندوتش 1.5سم | E113: 8.93 | F113: 0.00453357025 | G113: 1969.75
A114: 2025-09-06 | B114: 14383 | C114: 422 | D114: =IFERROR(VLOOKUP(C114,التكويد!$A$2:$R$1435,5,0),"") -> 13-1119 ساندوتش 1.5سم | E114: 5.66 | F114: 0.003465122259 | G114: 1633.42
A115: 2025-09-07 | B115: 14393 | C115: 427 | D115: =IFERROR(VLOOKUP(C115,التكويد!$A$2:$R$1435,5,0),"") -> اورنج (15-1160) جاكار كيوت جيرل 1.7سم | E115: 38.26 | F115: 0.01050810217 | G115: 3641
A116: 2025-09-07 | B116: 14394 | C116: 338 | D116: =IFERROR(VLOOKUP(C116,التكويد!$A$2:$R$1435,5,0),"") -> 19-1555 ساندوتش 1.5سم | E116: 32.21 | F116: 0.00350000652 | G116: 9202.84
A117: 2025-09-07 | B117: 14394 | C117: 332 | D117: =IFERROR(VLOOKUP(C117,التكويد!$A$2:$R$1435,5,0),"") -> 17-3725 ساندوتش 1.5سم | E117: 5 | F117: 0.0035000035 | G117: 1428.57
A118: 2025-09-07 | B118: 14394 | C118: 337 | D118: =IFERROR(VLOOKUP(C118,التكويد!$A$2:$R$1435,5,0),"") -> 18-0317 ساندوتش 1.5سم | E118: 22.07 | F118: 0.003500007929 | G118: 6305.7
A119: 2025-09-07 | B119: 14394 | C119: 420 | D119: =IFERROR(VLOOKUP(C119,التكويد!$A$2:$R$1435,5,0),"") -> 17-1311 ويفين 1.6سم | E119: 25.05 | F119: 0.008500313884 | G119: 2946.95
A120: 2025-09-07 | B120: 14394 | C120: 428 | D120: =IFERROR(VLOOKUP(C120,التكويد!$A$2:$R$1435,5,0),"") -> 19-1724 ويفين 1.6سم | E120: 50.86 | F120: 0.008500027576 | G120: 5983.51
A121: 2025-09-07 | B121: 14394 | C121: 429 | D121: =IFERROR(VLOOKUP(C121,التكويد!$A$2:$R$1435,5,0),"") -> 19-1724 ساندوتش 1.5سم | E121: 9.16 | F121: 0.003500003821 | G121: 2617.14
A122: 2025-09-07 | B122: 14394 | C122: 430 | D122: =IFERROR(VLOOKUP(C122,التكويد!$A$2:$R$1435,5,0),"") -> 15-1304 ويفين 1.6سم | E122: 33.92 | F122: 0.008500400962 | G122: 3990.4
A123: 2025-09-07 | B123: 14394 | C123: 85 | D123: =IFERROR(VLOOKUP(C123,التكويد!$A$2:$R$1435,5,0),"") -> ابيض ساندوتش 1.5سم | E123: 21.21
A124: 2025-09-09 | B124: 14408 | C124: 290 | D124: =IFERROR(VLOOKUP(C124,التكويد!$A$2:$R$1435,5,0),"") -> جاكار درجة اولي | E124: 40
A125: 2025-09-09 | B125: 14408 | C125: 147 | D125: =IFERROR(VLOOKUP(C125,التكويد!$A$2:$R$1435,5,0),"") -> جاكار درجة ثانية | E125: 29
A126: 2025-09-09 | B126: 14418 | C126: 447 | D126: =IFERROR(VLOOKUP(C126,التكويد!$A$2:$R$1435,5,0),"") -> 16-1318 ويفين 1.6سم | E126: 49.66 | F126: 0.008500033377 | G126: 5842.33
A127: 2025-09-09 | B127: 14418 | C127: 417 | D127: =IFERROR(VLOOKUP(C127,التكويد!$A$2:$R$1435,5,0),"") -> 15-1304 ساندوتش 1.5سم | E127: 20 | F127: 0.0035000035 | G127: 5714.28
A128: 2025-09-09 | B128: 14418 | C128: 420 | D128: =IFERROR(VLOOKUP(C128,التكويد!$A$2:$R$1435,5,0),"") -> 17-1311 ويفين 1.6سم | E128: 6 | F128: 0.008500028333 | G128: 705.88
A129: 2025-09-09 | B129: 14418 | C129: 415 | D129: =IFERROR(VLOOKUP(C129,التكويد!$A$2:$R$1435,5,0),"") -> 17-1311 ساندوتش 1.5سم | E129: 27.4 | F129: 0.003500000639 | G129: 7828.57
A130: 2025-09-09 | B130: 14418 | C130: 449 | D130: =IFERROR(VLOOKUP(C130,التكويد!$A$2:$R$1435,5,0),"") -> 18-3714 ساندوتش 1.5سم | E130: 18.6 | F130: =IFERROR(SUM(E130/G130),"") -> 0.003500003763 | G130: 5314.28
A131: 2025-09-09 | B131: 14418 | C131: 448 | D131: =IFERROR(VLOOKUP(C131,التكويد!$A$2:$R$1435,5,0),"") -> 18-3714 ويفين 1.6سم | E131: 18 | F131: 0.008500028333 | G131: 2117.64
A132: 2025-09-09 | B132: 14418 | C132: 332 | D132: =IFERROR(VLOOKUP(C132,التكويد!$A$2:$R$1435,5,0),"") -> 17-3725 ساندوتش 1.5سم | E132: 12.56 | F132: 0.003500011147 | G132: 3588.56
A133: 2025-09-09 | B133: 14419 | C133: 450 | D133: =IFERROR(VLOOKUP(C133,التكويد!$A$2:$R$1435,5,0),"") -> 13-3406 ساندوتش 1.5سم | E133: 12.15 | F133: 0.003500008642 | G133: 3471.42
A134: 2025-09-09 | B134: 14419 | C134: 400 | D134: =IFERROR(VLOOKUP(C134,التكويد!$A$2:$R$1435,5,0),"") -> 16-3812 ساندوتش 1.5سم | E134: 5 | F134: 0.0035000035 | G134: 1428.57
A135: 2025-09-09 | B135: 14419 | C135: 451 | D135: =IFERROR(VLOOKUP(C135,التكويد!$A$2:$R$1435,5,0),"") -> 63-346 ساندوتش 1.5سم | E135: 5 | F135: 0.0035000035 | G135: 1428.57
A136: 2025-09-09 | B136: 14419 | C136: 451 | D136: =IFERROR(VLOOKUP(C136,التكويد!$A$2:$R$1435,5,0),"") -> 63-346 ساندوتش 1.5سم | E136: 5 | F136: 0.0035000035 | G136: 1428.57
A137: 2025-09-09 | B137: 14419 | C137: 400 | D137: =IFERROR(VLOOKUP(C137,التكويد!$A$2:$R$1435,5,0),"") -> 16-3812 ساندوتش 1.5سم | E137: 5 | F137: 0.0035000035 | G137: 1428.57
A138: 2025-09-09 | B138: 14419 | C138: 452 | D138: =IFERROR(VLOOKUP(C138,التكويد!$A$2:$R$1435,5,0),"") -> 12_4607 ويفين 1.6سم | E138: 23.31 | F138: 0.008500040112 | G138: 2742.34
A139: 2025-09-09 | B139: 14419 | C139: 453 | D139: =IFERROR(VLOOKUP(C139,التكويد!$A$2:$R$1435,5,0),"") -> 12_4607 ساندوتش 1.5سم | E139: 30 | F139: 0.003499995333 | G139: 8571.44
A140: 2025-09-09 | B140: 14419 | C140: 400 | D140: =IFERROR(VLOOKUP(C140,التكويد!$A$2:$R$1435,5,0),"") -> 16-3812 ساندوتش 1.5سم | E140: 3.9 | F140: 0.003500017949 | G140: 1114.28
A141: 2025-09-09 | B141: 14419 | C141: 451 | D141: =IFERROR(VLOOKUP(C141,التكويد!$A$2:$R$1435,5,0),"") -> 63-346 ساندوتش 1.5سم | E141: 2.33 | F141: 0.003500022532 | G141: 665.71
A142: 2025-09-10 | B142: 14422 | C142: 270 | D142: =IFERROR(VLOOKUP(C142,التكويد!$A$2:$R$1435,5,0),"") -> كحلي تيب بوليستر 1سم | E142: 57.53 | F142: 0.003547293131 | G142: 16218
A143: 2025-09-10 | B143: 14429 | C143: 185 | D143: =IFERROR(VLOOKUP(C143,التكويد!$A$2:$R$1435,5,0),"") -> mellon ساندوتش 1.5سم | E143: 27.21 | F143: 0.00350019617 | G143: 7773.85
A144: 2025-09-10 | B144: 14429 | C144: 311 | D144: =IFERROR(VLOOKUP(C144,التكويد!$A$2:$R$1435,5,0),"") -> TURQ ساندوتش 1.5سم | E144: 32.55 | F144: 0.003500003763 | G144: 9299.99
A145: 2025-09-10 | B145: 14429 | C145: 85 | D145: =IFERROR(VLOOKUP(C145,التكويد!$A$2:$R$1435,5,0),"") -> ابيض ساندوتش 1.5سم | E145: 36.86
A146: 2025-09-10 | B146: 14429 | C146: 142 | D146: =IFERROR(VLOOKUP(C146,التكويد!$A$2:$R$1435,5,0),"") -> اسود ساندوتش 1.5سم | E146: 12.76 | F146: 0.003500004114 | G146: 3645.71
A147: 2025-09-10 | B147: 14429 | C147: 317 | D147: =IFERROR(VLOOKUP(C147,التكويد!$A$2:$R$1435,5,0),"") -> 17-1516 ويفين 1.5سم | E147: 10 | F147: 0.0035000035 | G147: 2857.14
A148: 2025-09-13 | B148: 14451 | C148: 401 | D148: =IFERROR(VLOOKUP(C148,التكويد!$A$2:$R$1435,5,0),"") -> 16-3714 ويفين 1.6سم | E148: 3.66 | F148: 0.008500162571 | G148: 430.58
A149: 2025-09-13 | B149: 14451 | C149: 193 | D149: =IFERROR(VLOOKUP(C149,التكويد!$A$2:$R$1435,5,0),"") -> 11_4301 ويفين 1.6سم | E149: 26.66 | F149: 0.008500028695 | G149: 3136.46
A150: 2025-09-13 | B150: 14451 | C150: 194 | D150: =IFERROR(VLOOKUP(C150,التكويد!$A$2:$R$1435,5,0),"") -> 11_4301 ساندوتش 1.5سم | E150: 4.7 | F150: 0.003500018617 | G150: 1342.85
A151: 2025-09-13 | B151: 14451 | C151: 140 | D151: =IFERROR(VLOOKUP(C151,التكويد!$A$2:$R$1435,5,0),"") -> 11-0104 ويفين 1.6سم | E151: 80.11 | F151: 0.008500032362 | G151: 9424.67
A152: 2025-09-13 | B152: 14451 | C152: 458 | D152: =IFERROR(VLOOKUP(C152,التكويد!$A$2:$R$1435,5,0),"") -> 11-0104 ساندوتش 1.5سم | E152: 41.7 | F152: 0.003585989359 | G152: 11628.59
A153: 2025-09-13 | B153: 14451 | C153: 317 | D153: =IFERROR(VLOOKUP(C153,التكويد!$A$2:$R$1435,5,0),"") -> 17-1516 ويفين 1.5سم | E153: 5 | F153: 0.003499562555 | G153: 1428.75
A154: 2025-09-13 | B154: 14451 | C154: 459 | D154: =IFERROR(VLOOKUP(C154,التكويد!$A$2:$R$1435,5,0),"") -> 19-1431 ساندوتش 1.5سم | E154: 6.5 | F154: 0.003501079949 | G154: 1856.57
A155: 2025-09-13 | B155: 14452 | C155: 193 | D155: =IFERROR(VLOOKUP(C155,التكويد!$A$2:$R$1435,5,0),"") -> 11_4301 ويفين 1.6سم | E155: 48 | F155: 0.008500028333 | G155: 5647.04
A156: 2025-09-13 | B156: 14452 | C156: 460 | D156: =IFERROR(VLOOKUP(C156,التكويد!$A$2:$R$1435,5,0),"") -> 19-3938 ساندوتش 1.5سم | E156: 17.9 | F156: 0.003500003911 | G156: 5114.28
A157: 2025-09-13 | B157: 14452 | C157: 194 | D157: =IFERROR(VLOOKUP(C157,التكويد!$A$2:$R$1435,5,0),"") -> 11_4301 ساندوتش 1.5سم | E157: 26.6 | F157: 0.0035 | G157: 7600
A158: 2025-09-13 | B158: 14452 | C158: 335 | D158: =IFERROR(VLOOKUP(C158,التكويد!$A$2:$R$1435,5,0),"") -> 14-1909 ساندوتش 1.5سم | E158: 29 | F158: 0.00350000181 | G158: 8285.71
A159: 2025-09-14 | B159: 14468 | C159: 87 | D159: =IFERROR(VLOOKUP(C159,التكويد!$A$2:$R$1435,5,0),"") -> اسود ويفين 1.6سم | E159: 96
A160: 2025-09-15 | B160: 14469 | C160: 270 | D160: =IFERROR(VLOOKUP(C160,التكويد!$A$2:$R$1435,5,0),"") -> كحلي تيب بوليستر 1سم | E160: 6.26 | F160: 0.003516853933 | G160: 1780
A161: 2025-09-15 | B161: 14476 | C161: 255 | D161: =IFERROR(VLOOKUP(C161,التكويد!$A$2:$R$1435,5,0),"") -> 18-4018 ويفين 1.6سم | E161: 72 | F161: 0.008500028333 | G161: 8470.56
A162: 2025-09-15 | B162: 14476 | C162: 380 | D162: =IFERROR(VLOOKUP(C162,التكويد!$A$2:$R$1435,5,0),"") -> 14-1909 ويفين 1.6سم | E162: 40.41 | F162: 0.008500031552 | G162: 4754.1
A163: 2025-09-15 | B163: 14476 | C163: 142 | D163: =IFERROR(VLOOKUP(C163,التكويد!$A$2:$R$1435,5,0),"") -> اسود ساندوتش 1.5سم | E163: 15 | F163: 0.0035000035 | G163: 4285.71
A164: 2025-09-15 | B164: 14476 | C164: 489 | D164: =IFERROR(VLOOKUP(C164,التكويد!$A$2:$R$1435,5,0),"") -> 13-1006 ساندوتش 1.5سم | E164: 5 | F164: 0.0035000035 | G164: 1428.57
A165: 2025-09-16 | B165: 14478 | C165: 290 | D165: =IFERROR(VLOOKUP(C165,التكويد!$A$2:$R$1435,5,0),"") -> جاكار درجة اولي | E165: 121
A166: 2025-09-16 | B166: 14478 | C166: 147 | D166: =IFERROR(VLOOKUP(C166,التكويد!$A$2:$R$1435,5,0),"") -> جاكار درجة ثانية | E166: 65
A167: 2025-09-16 | B167: 14487 | C167: 492 | D167: =IFERROR(VLOOKUP(C167,التكويد!$A$2:$R$1435,5,0),"") -> 18-4018 ساندوتش 1.5سم | E167: 25 | F167: 0.0035000035 | G167: 7142.85
A168: 2025-09-16 | B168: 14487 | C168: 255 | D168: =IFERROR(VLOOKUP(C168,التكويد!$A$2:$R$1435,5,0),"") -> 18-4018 ويفين 1.6سم | E168: 15.36 | F168: 0.008500041504 | G168: 1807.05
A169: 2025-09-16 | B169: 14487 | C169: 194 | D169: =IFERROR(VLOOKUP(C169,التكويد!$A$2:$R$1435,5,0),"") -> 11_4301 ساندوتش 1.5سم | E169: 2.7 | F169: 0.003500038889 | G169: 771.42
A170: 2025-09-16 | B170: 14487 | C170: 494 | D170: =IFERROR(VLOOKUP(C170,التكويد!$A$2:$R$1435,5,0),"") -> 14-1318 ويفين 1.6سم | E170: 24 | F170: 0.008500028333 | G170: 2823.52
A171: 2025-09-16 | B171: 14487 | C171: 493 | D171: =IFERROR(VLOOKUP(C171,التكويد!$A$2:$R$1435,5,0),"") -> 17-0123 ساندوتش 1.5سم | E171: 15 | F171: 0.0035000035 | G171: 4285.71
A172: 2025-09-17 | B172: 14490 | C172: 504 | D172: =IFERROR(VLOOKUP(C172,التكويد!$A$2:$R$1435,5,0),"") -> كحلي تويل تيب قطن 1سم | E172: 16
A173: 2025-09-17 | B173: 14490 | C173: 505 | D173: =IFERROR(VLOOKUP(C173,التكويد!$A$2:$R$1435,5,0),"") -> لايت بلو تويل تيب قطن 1سم | E173: 20
A174: 2025-09-17 | B174: 14490 | C174: 268 | D174: =IFERROR(VLOOKUP(C174,التكويد!$A$2:$R$1435,5,0),"") -> كحلي كورد قطن 1سم | E174: 10
A175: 2025-09-17 | B175: 14502 | C175: 494 | D175: =IFERROR(VLOOKUP(C175,التكويد!$A$2:$R$1435,5,0),"") -> 14-1318 ويفين 1.6سم | E175: 24 | F175: 0.008500028333 | G175: 2823.52
A176: 2025-09-17 | B176: 14502 | C176: 513 | D176: =IFERROR(VLOOKUP(C176,التكويد!$A$2:$R$1435,5,0),"") -> 14-1318 ساندوتش 1.5سم | E176: 10 | F176: 0.0035000035 | G176: 2857.14
A177: 2025-09-17 | B177: 14502 | C177: 514 | D177: =IFERROR(VLOOKUP(C177,التكويد!$A$2:$R$1435,5,0),"") -> 14-1310 ويفين 1.6سم | E177: 54.66 | F177: 0.008500037322 | G177: 6430.56
A178: 2025-09-17 | B178: 14502 | C178: 515 | D178: =IFERROR(VLOOKUP(C178,التكويد!$A$2:$R$1435,5,0),"") -> 14-1310 ساندوتش 1.5سم | E178: 15 | F178: 0.0035000035 | G178: 4285.71
A179: 2025-09-17 | B179: 14502 | C179: 516 | D179: =IFERROR(VLOOKUP(C179,التكويد!$A$2:$R$1435,5,0),"") -> 17-0123 ويفين 1.6سم | E179: 40 | F179: 0.007083356945 | G179: 5647.04
A180: 2025-09-17 | B180: 14502 | C180: 492 | D180: =IFERROR(VLOOKUP(C180,التكويد!$A$2:$R$1435,5,0),"") -> 18-4018 ساندوتش 1.5سم | E180: 11.7 | F180: 0.005318205992 | G180: 2199.99
A181: 2025-09-17 | B181: 14502 | C181: 516 | D181: =IFERROR(VLOOKUP(C181,التكويد!$A$2:$R$1435,5,0),"") -> 17-0123 ويفين 1.6سم | E181: 18 | F181: 0.008500028333 | G181: 2117.64
A182: 2025-09-17 | B182: 14503 | C182: 515 | D182: =IFERROR(VLOOKUP(C182,التكويد!$A$2:$R$1435,5,0),"") -> 14-1310 ساندوتش 1.5سم | E182: 10 | F182: 0.0035000035 | G182: 2857.14
A183: 2025-09-17 | B183: 14503 | C183: 193 | D183: =IFERROR(VLOOKUP(C183,التكويد!$A$2:$R$1435,5,0),"") -> 11_4301 ويفين 1.6سم | E183: 4.36 | F183: 0.008500019495 | G183: 512.94
A184: 2025-09-17 | B184: 14503 | C184: 513 | D184: =IFERROR(VLOOKUP(C184,التكويد!$A$2:$R$1435,5,0),"") -> 14-1318 ساندوتش 1.5سم | E184: 12.15 | F184: 0.003500008642 | G184: 3471.42
A185: 2025-09-17 | B185: 14503 | C185: 517 | D185: =IFERROR(VLOOKUP(C185,التكويد!$A$2:$R$1435,5,0),"") -> 13-1006 ويفين 1.6سم | E185: 2.26 | F185: 0.00350002323 | G185: 645.71
A186: 2025-09-17 | B186: 14503 | C186: 516 | D186: =IFERROR(VLOOKUP(C186,التكويد!$A$2:$R$1435,5,0),"") -> 17-0123 ويفين 1.6سم | E186: 6 | F186: 0.008500028333 | G186: 705.88
A187: 2025-09-17 | B187: 14503 | C187: 397 | D187: =IFERROR(VLOOKUP(C187,التكويد!$A$2:$R$1435,5,0),"") -> 12-0710 ساندوتش 1.5سم | E187: 4.3 | F187: 0.00350000407 | G187: 1228.57
A188: 2025-09-18 | B188: 14506 | C188: 185 | D188: =IFERROR(VLOOKUP(C188,التكويد!$A$2:$R$1435,5,0),"") -> mellon ساندوتش 1.5سم | E188: 10 | F188: 0.0035000035 | G188: 2857.14
A189: 2025-09-20 | B189: 14528 | C189: 533 | D189: =IFERROR(VLOOKUP(C189,التكويد!$A$2:$R$1435,5,0),"") -> 17-1723 ويفين 1.6سم | E189: 67.18 | F189: 0.008000476361 | G189: 8397
A190: 2025-09-20 | B190: 14528 | C190: 534 | D190: =IFERROR(VLOOKUP(C190,التكويد!$A$2:$R$1435,5,0),"") -> 17-1723 ساندوتش 1.5سم | E190: 30 | F190: 0.0035000035 | G190: 8571.42
A191: 2025-09-20 | B191: 14528 | C191: 493 | D191: =IFERROR(VLOOKUP(C191,التكويد!$A$2:$R$1435,5,0),"") -> 17-0123 ساندوتش 1.5سم | E191: 16.6 | F191: 0.003500632644 | G191: 4742
A192: 2025-09-20 | B192: 14528 | C192: 535 | D192: =IFERROR(VLOOKUP(C192,التكويد!$A$2:$R$1435,5,0),"") -> 15-4020 ساندوتش 1.5سم | E192: 35 | F192: 0.0035000035 | G192: 9999.99
A193: 2025-09-20 | B193: 14528 | C193: 536 | D193: =IFERROR(VLOOKUP(C193,التكويد!$A$2:$R$1435,5,0),"") -> 13-3802 ويفين 1.6سم | E193: 70.86 | F193: 0.008500031188 | G193: 8336.44
A194: 2025-09-20 | B194: 14528 | C194: 537 | D194: =IFERROR(VLOOKUP(C194,التكويد!$A$2:$R$1435,5,0),"") -> 12-1007 ويفين 1.6سم | E194: 51.06 | F194: =IFERROR(SUM(E194/G194),"") -> 0.008500026635 | G194: 6007.04
A195: 2025-09-20 | B195: 14528 | C195: 538 | D195: =IFERROR(VLOOKUP(C195,التكويد!$A$2:$R$1435,5,0),"") -> 13-0401 ويفين 1.6سم | E195: 63 | F195: 0.009333333333 | G195: 6750
A196: 2025-09-20 | B196: 14528 | C196: 539 | D196: =IFERROR(VLOOKUP(C196,التكويد!$A$2:$R$1435,5,0),"") -> 13-3802 ساندوتش 1.5سم | E196: 25 | F196: 0.0035000035 | G196: 7142.85
A197: 2025-09-21 | B197: 14535 | C197: 138 | D197: =IFERROR(VLOOKUP(C197,التكويد!$A$2:$R$1435,5,0),"") -> احمر ساندوتش 1.5سم | E197: 23 | F197: 0.003500228276 | G197: 6571
A198: 2025-09-21 | B198: 14535 | C198: 541 | D198: =IFERROR(VLOOKUP(C198,التكويد!$A$2:$R$1435,5,0),"") -> 15-4020 ويفين 1.6سم | E198: 36.86 | F198: 0.008409477202 | G198: 4383.15
A199: 2025-09-21 | B199: 14535 | C199: 535 | D199: =IFERROR(VLOOKUP(C199,التكويد!$A$2:$R$1435,5,0),"") -> 15-4020 ساندوتش 1.5سم | E199: 5 | F199: 0.0035000035 | G199: 1428.57
A200: 2025-09-21 | B200: 14535 | C200: 542 | D200: =IFERROR(VLOOKUP(C200,التكويد!$A$2:$R$1435,5,0),"") -> 13-0401 ساندوتش 1.5سم | E200: 30 | F200: 0.0035000035 | G200: 8571.42
... 589 more rows
